Workbook

Sheet Designer_Sink_Quote_1 (hidden)
I2: Sink Configuration Model
C3: Logo
D7: Project Information
D10: Architect/Designer | I10: Project Name | N10: Email | S10: Phone
D12: Country/State | I12: Location Details | N12: Sloan Representative | S12: Cloud for Sales ID #
D16: Sink Information
D19: Sink Quantity | I19: Sink Model | N19: Station Quantity | S19: Notes:
D22: Material | I22: Material Color | N22: Colors Marked with *** will need Special Pricing
N23: If alternate color option, please list in Notes
D25: Trough Style | I25: Edge Type | N25: Enclosure
D28: LED | I28: Purse Hooks | N28: Purse Hook Quantity | S28: Purse Hook Color
D31: Faucet Quantity (per sink) | I31: Sloan Faucet Model | N31: Sloan Faucet Code | S31: Faucet Hole Size (If Non Sloan)
D34: Soap Dispenser Quantity (per sink) | I34: Sloan Soap Dispenser Model | N34: Sloan Soap Dispenser Code | S34: Soap Dispenser Hole Size (If Non Sloan)
D37: Drawing Requested? | I37: Discount (May Require Approval)
D40: Approval Signature | I40: Approvers Title | N40: Date (mm/dd/yyyy)
D45: Sink Model Number | I45: =IF(Calculator!G2=0,"",(IF(Calculator!AE2="Oops! Something Went Wrong Please Contact Sloan","Oops! Something Went Wrong Please Contact Sloan",Calculator!AG2))) ->  | N45: Sloan Product Code | S45: =IF(I45="","",(IF(Calculator!AE2="","",Calculator!AH2))) -> 
D50: Internal Use Only
D53: Internal Sloan Representative | I53: List Price (Good for 60 Days) | N53: Additional Notes:
I54: Base Sink Price (EA): | K54: =IF(Calculator!AE2="Oops! Something Went Wrong Please Contact Sloan",0,Quote3[Base Sink $$]) -> 0
I55: Faucet & Soap Total: | K55: =Quote3[Faucet & Soap Total] -> 0
D56: Shipping Lead Time* | I56: Add-On Total: | K56: =Quote3[Add-On Total] -> 0
I57: Mounting Total: | K57: =Quote3[Mounting Total] -> 0
I58: Sink Total: | K58: =Quote3[Sink Total] -> 0
D59: Quote Number | I59: Discount: | K59: =Quote3[[Discount ]] -> 0
I60: Extended Price: | K60: =Quote3[Extended Price] -> 0
D62: *Lead Time Starts upon Sloan's receipt of order - Note: Changes to Drawings after sign-off may extend lead time | N62: **Any Corian sinks longer than 120 inches will need to be seamed on site, any Quartz sinks over 119 inches will need to be seamed on site. Quartz meterials that are seamed will have a visible seam

Sheet Arc Worksheet
I2: Shower
D7: Project Information
D10: Architect/Designer | I10: Project Name | N10: Email | S10: Phone
D12: Country | F12: State/Province | I12: Project Type | N12: Stone and Steel Representative | S12: Cloud for Sales ID #
J16: Shower Information
D19: Shower Quantity | I19: Shower Pan | N19: Pan Configuration | S19: Notes:
D22: Pan Material | I22: Pan Material Color | N22: Pan Finish
D25: Pan Size | I25: Pan Threshold Style | N25: Drains
D28: Rough In
D35: Shower Walls (Y/N) | I35: Wall Configuration | N35: Wall Material | S35: Wall Material Color
D38: Wall Finish | I38: Wall Height | N38: Wall Thickness | S38: Wall Hardware Finish
D41: Glass Door Type (If App)
D45: Drawing Requested
D46: Yes
D48: Approval Name | I48: Approvers Title | N48: Date (mm/dd/yyyy)
V53: V02.22.19-1
D54: Internal Use Only
D57: Internal Stone and Steel Representative | I57: Compliance Notes (If App) | N57: Additional Notes:
D60: List Price Per Surface | I60: Quote Number
D63: *Lead Time Starts upon Stone and Steel's receipt of order - Note: Changes to Drawings after sign-off may extend lead time | N63: **Any Corian products longer than 120 inches will need to be seamed on site, any Quartz products over 119 inches will need to be seamed on site. Quartz materials that are seamed will have a visible seam
D68: Notes:
D69: - This quote is applicable to the request that accompanied it. Any changes may result in price and lead time changes and requires a new quote. After order has been placed any changes may result in extension of the lead time and/or fees up to the full price of the product.
D70: - Lead Time Starts upon receipt of order
D71: - Pricing does not include freight or unloading to final destination unless otherwise noted.
D72: - Quote is valid for 90 days from issue date
D73: - Any Corian sinks longer than 120 inches will need to be seamed on site, any Quartz sinks over 119 inches will need to be seamed on site. Quartz materials that are seamed will have a visible seam
D74: - Customer is responsible for paying all applicable Sales Tax to appropriate entities
D75: -Unless otherwise specified, exclusions to this quote include but are not limed to: Fixtures, plumbing components and materials, electronics, AV equipment, interior partitions, casework/millwork, wall/floor coverings, mounting hardware and furniture.
D77: Cancellation Policy:
D78: In the event of an order cancellation the following items may apply:
D79: -If the order is cancelled more than 5 working days from order placement it will result in a minimum of a 25% fee, up to the full price of that product.
D80: -If the order is 5 working days or less from scheduled shipment any cancelations result in the full price of the product.
D81: Return Policy:
D82: All products except for some accessories are custom built and not eligible for return. Some accessories may be returned for partial credit.
D83: Installation/Field Measurements:
D84: Stone and Steel requires all products to be installed by knowledgeable installers. Installation and/or field measurement is not included in this estimate, and is by others. Installation must be performed by qualified personnel and in accordance with installation instructions and generally accepted industry practices. Incorrect or improper installation will void any product warranty. For sinks: Any Corian sinks longer than 120 inches will need to be seamed on site, any Quartz sinks over 119 inches will need to be seamed on site. Quartz materials that are seamed will have a visible seam. For custom sinks refer to signed drawings packet to see if seaming will be required. We do not provide material/epoxy.
D87: Materials:
D88: All products provided by Stone and Steel will have some inherent variation. While Stone and Steel takes the utmost caution to match and orient these products in such a way that these imperfections add to the aesthetic value of the product, Stone and Steel will not be held responsible for this variation. Natural products such as wood veneers, marble, granite and similar materials have variation in coloration, grain, veins, and surface finish both between lots/slabs and even within the same lot/slab. natural products similarly may have imperfections within a sheet/slab such as small cracks, pitting or other surface imperfections, and/or discoloration. While Stone and Steel takes the utmost caution to match and orient these products in suck a way that these imperfections add to the aesthetic value of the product, Stone and Steel will not be held responsible for this variation
D92: Signed Document Submittal:
D93: Stone and Steel requires a signed architectural worksheet or signed drawing (if applicable) to be able to place an order. If an order is placed without these documents submitted to Stone and Steel it will result in an order hold that will extend any previously agreed upon lead time commitments. Once the documents are received the order will be reinstated and an updated ship date will be provided.
D95: Claim Process:
D96: For all Stone and Steel items if you receive a damaged item or suspect damage (crate broken, etc.) please reference our procedure below. THE BOL MUST BE MARKED AS "DAMAGED" UPON RECEIPT IN ORDER TO BE ELIGIBLE FOR CREDIT/REPLACEMENT of product. Send the below information to DesignTeam@stoneandsteel.com
D97: Information to be provided:
D98: 1. Recipient must keep all original packaging, including cartons and contents, until the claim resolution process is completed. It may be necessary to make the packaging / contents available for inspection by the carrier’s representative. Keep merchandise and all packaging materials.
D99: NOTE: It is imperative that the receiver keep the merchandise segregated and available for inspection until the claim is settled. If the claim is for full replacement value, and the claim is successfully paid, the carrier has the right to the cargo and may elect to collect it for sale or salvage to recoup a portion of their costs.
D100: 2. Explanation of what we are filing a claim for (i.e. damage, lost, shortage), against whom we should file, and the value of the claim being filed. For a damage claim, provide as much detail as possible specifically describing the damage to the product.
D101: 3. Account Number
D102: 4. Customer Name, Customer Contact Name, Customer Address, Customer Phone Number
D103: 5. Signed copy of carrier bill of lading, or delivery receipt from recipient (copy should be signed by receiver noting that the cargo was short or damaged when delivered) and photos.
D104: 6. Stone and Steel Delivery Number and/or Sales Order Number
D105: 7. Copied of all documentation related to proof of claim value. This can be a copy of original invoice from vendor or supplier, copy of retail invoice or receipt, final confirmation screen if online order with proof of payment, itemized repair invoice or statement of non-repair, appraisals, expense statement, or any other applicable documentation.
D106: 8. Copy of any inspection form that may have been completed noting damage and cost of repair.
D107: 9. Copies of any photos showing damage.
D108: If you have a shortage (missing soap dispenser, etc.) please contact Stone and Steel’s customer service. Please have ready your order number and the item name and quantity that you are missing.

Sheet Designer_Sink_Quote_BOM (hidden)
I2: Sink Configuration Model
C3: Logo
D7: Project Information
D10: Architect/Designer | I10: Project Name | N10: Email | S10: Phone
D11: =IF(ISBLANK('Arc Worksheet'!D11),"",'Arc Worksheet'!D11) ->  | I11: ='Arc Worksheet'!I11 -> 0 | N11: ='Arc Worksheet'!N11 -> 0 | S11: ='Arc Worksheet'!S11 -> 0
D12: Country/State | I12: Location Details | N12: Sloan Representative | S12: Cloud for Sales ID #
D13: ='Arc Worksheet'!D13 -> 0 | I13: ='Arc Worksheet'!I13 -> 0 | N13: ='Arc Worksheet'!N13 -> 0 | S13: ='Arc Worksheet'!S13 -> 0
D16: Sink Information
D19: Sink Quantity | I19: Sink Model | N19: Station Quantity | S19: Notes: | AA19: Sink Location Alcove
D20: ='Arc Worksheet'!D20 -> 0 | I20: ='Arc Worksheet'!#REF! ->  | N20: ='Arc Worksheet'!#REF! ->  | S20: ='Arc Worksheet'!S20 -> 0
D22: Material | I22: Material Color | N22: Colors Marked with *** will need Special Pricing | AA22: Dimensions | AB22: A+ | AC22: B+ | AD22: C= | AE22: D
D23: =VLOOKUP('Arc Worksheet'!D23,'Drop Tables'!H:I,2,0) ->  | I23: =VLOOKUP('Arc Worksheet'!I23,'Drop Tables'!Z:AA,2,0) ->  | N23: If alternate color option, please list in Notes | AA23: Standard | AB23: 4.5" | AC23: 21" | AD23: 4.5" | AE23: 30"
AA24: Custom | AE24: =SUM(AB24:AD24) -> 0
D25: Trough Style | I25: Edge Type | N25: Enclosure
D26: ='Arc Worksheet'!N23 -> 0 | I26: ='Arc Worksheet'!I26 -> 0 | N26: ='Arc Worksheet'!#REF! ->  | AA26: Soap Hole
AA27: Standard | AD27: 1"
D28: LED | I28: Purse Hooks | N28: Purse Hook Quantity | S28: Purse Hook Color | AA28: Custom
D29: ='Arc Worksheet'!I20 -> 0 | I29: ='Arc Worksheet'!#REF! ->  | N29: ='Arc Worksheet'!#REF! ->  | S29: ='Arc Worksheet'!#REF! -> 
AA30: Faucet Hole
D31: Hand Dryer | I31: Trash Hole | N31: Paper Towel holder | S31: Baby Changing Station | AA31: Standard | AD31: 1.25"
AA32: Custom
D34: Faucet Quantity (per sink) | I34: Sloan Faucet Model | N34: Sloan Faucet Code | S34: Laminate Code | AA34: Apron
D35: ='Arc Worksheet'!#REF! ->  | I35: ='Arc Worksheet'!#REF! ->  | N35: =VLOOKUP(I35,'Faucet Price Table'!#REF!,3,0) ->  | S35: =VLOOKUP('Arc Worksheet'!#REF!,'Drop Tables'!AD:AD,2,0) ->  | AA35: Standard | AD35: 5"
AA36: Custom
D37: Soap Dispenser Quantity (per sink) | I37: Sloan Soap Dispenser Model | N37: Sloan Soap Dispenser Code | S37: Basin Grate Code
D38: ='Arc Worksheet'!#REF! ->  | I38: ='Arc Worksheet'!#REF! ->  | N38: =VLOOKUP(I38,'Soap Price Table'!#REF!,3,0) -> 
D43: Approval Signature | I43: Approvers Title | N43: Date (mm/dd/yyyy)
D48: Sink Model Number | I48: =IF(Calculator_2!G2=0,"",(IF(Calculator_2!AE2="Oops! Something Went Wrong Please Contact Sloan","Oops! Something Went Wrong Please Contact Sloan",Calculator_2!AG2))) ->  | N48: Sloan Product Code | S48: =IF(I48="","",(IF(Calculator_2!AE2="","",Calculator_2!AH2))) -> 
D53: Internal Use Only
D56: Internal Sloan Representative | I56: List Price (Good for 60 Days) | N56: Extended Price (good for 60 Days) | S56: Additional Notes:
D57: ='Arc Worksheet'!D58 -> 0 | I57: Base Sink Price (EA) | K57: =IF(Calculator!AE2="Oops! Something Went Wrong Please Contact Sloan",0,Quote3[Base Sink $$]) -> 0 | N57: Base Sink Price | P57: =K57*D20 -> 0
I58: Mounting Price (EA) | K58: =Quote3[Faucet & Soap Total] -> 0 | N58: Mounting Price | P58: =N58*D20 -> 
D59: Shipping Lead Time* | I59: LED Price (EA) | K59: =Quote3[Add-On Total] -> 0 | N59: LED Price | P59: =(K59*N20)*D20 -> 
D60: ='Arc Worksheet'!D61 -> 0 | I60: Purse Hook Price (EA) | K60: =Quote3[Mounting Total] -> 0 | N60: Purse Hook Price | P60: =K60*N29 -> 
I61: Hand Dryer Price (EA) | K61: =Quote3[Sink Total] -> 0 | N61: Hand Dryer Price | P61: =(K61*N20)*D20 -> 
D62: Quote Number | I62: Trash Hole (EA) | K62: =Quote3[[Discount ]] -> 0 | N62: Trash Hole
D63: ='Arc Worksheet'!I61 -> 0 | I63: Paper Towel Holder (EA) | K63: =Quote3[Extended Price] -> 0 | N63: Paper Towel Holder
I64: Baby Changing Station (EA) | K64: 0 | N64: Baby Changing Station
D65: Compliance Notes | I65: Faucet Price (EA) | K65: 0 | N65: Faucet Price
D66: ='Arc Worksheet'!I58 -> 0 | I66: Soap Dispencer Price (EA) | K66: 0 | N66: Soap Dispencer Price | P66: =(K66*N20)*D20 -> 

Sheet Bill Of Material (hidden)
E2: Enter Quantity Below
F4: Price to SVC | G4: =G5/0.85 -> 
B5: Generic Code: | C5: =IFERROR(INDEX('Generic Codes'!G2:P345,MATCH(#REF!,'Generic Codes'!A2:A345,0),MATCH(#REF!,'Generic Codes'!G1:P1,0)),"") ->  | D5: Sink Quantity: | E5: =IF(ISBLANK('Arc Worksheet'!D20),"",'Arc Worksheet'!D20) ->  | F5: Total Cost per Sink | G5: =IFERROR(SUM(G8:G17),"Information Missing") -> Information Missing
B6: Component | C6: Description | D6: Material Code | E6: Quantity Per Sink | F6: Quantity Per Order | G6: Cost Per Sink
B7: Color | C7: =IF(ISBLANK('Arc Worksheet'!J23),"",'Arc Worksheet'!J23) ->  | D7: =IF(ISBLANK(C7),"",IFERROR(VLOOKUP(C7,'Drop Tables'!Z:AB,3,0),"")) ->  | E7: =IF(ISBLANK(C7),"",'Arc Worksheet'!I23) -> 0
B8: Model | C8: =IF(ISBLANK('Arc Worksheet'!#REF!),"",'Arc Worksheet'!#REF!) ->  | D8: =IFERROR(INDEX('Sku List'!G2:$P$245,MATCH(#REF!,'Sku List'!A2:$A$245,0),MATCH(#REF!,'Sku List'!$G$1:$P$1,0)),"") ->  | E8: =IF(ISBLANK('Arc Worksheet'!#REF!),"","1") -> 1 | F8: =IF(ISBLANK($E$5),"",IFERROR($E$5*E8,"")) ->  | G8: =IFERROR(INDEX('Sink Price Table'!G2:$K$241,MATCH(#REF!,'Sink Price Table'!A2:$A$241,0),MATCH(#REF!,'Sink Price Table'!G1:$K$1,0))*E8,"") -> 
B9: Mounting | C9: =IF(ISBLANK('Arc Worksheet'!#REF!),"",'Arc Worksheet'!#REF!) ->  | D9: =IF(ISBLANK('Arc Worksheet'!#REF!),"",IFERROR(VLOOKUP(#REF!,#REF!,2,0),VLOOKUP(#REF!,'Mounting Cheat Sheet'!A:B,2,0))) ->  | E9: =IF(ISBLANK('Arc Worksheet'!#REF!),"",IFERROR(VLOOKUP(D9,'Mounting Cheat Sheet'!B:C,2,0),VLOOKUP(D9,#REF!,2,0))) ->  | G9: =IFERROR(IF(D9="","",IFERROR(VLOOKUP(#REF!,#REF!,4,0),VLOOKUP(D9,'Mounting Cheat Sheet'!B:F,5,0)))*E9,"") -> 
B10: Angle Bracket ext. | C10: =IF(C9="Angle Bracket","Angle Bracket","Not Needed") ->  | D10: =IFERROR(IF(C10="","",VLOOKUP(#REF!,'Mounting Cheat Sheet'!A:D,4,0)),"") ->  | E10: =IFERROR(IF(C10="","",VLOOKUP(D10,'Mounting Cheat Sheet'!D:E,2,0)),"") ->  | F10: =IF(ISBLANK($E$5),"",IFERROR($E$5*E10,"")) ->  | G10: =IFERROR(IFERROR(VLOOKUP(D10,'Mounting Cheat Sheet'!D:G,4,0),0)*E10,"") -> 
B11: LED | C11: =IF(ISBLANK('Arc Worksheet'!I20),"",'Arc Worksheet'!I20) ->  | D11: =IF(ISBLANK('Arc Worksheet'!I20),"",IF('Arc Worksheet'!I20="No","",VLOOKUP(#REF!,#REF!,2,0))) ->  | E11: =IF(ISBLANK('Arc Worksheet'!I20),"",IF('Arc Worksheet'!I20="No","",VLOOKUP(#REF!,#REF!,3,0))) ->  | F11: =IF(ISBLANK($E$5),"",IFERROR($E$5*E11,"")) ->  | G11: =IF(D11="","",IFERROR(VLOOKUP(#REF!,#REF!,4,0)*E11,"")) -> 
B12: Bag Hooks | C12: =IF(ISBLANK('Arc Worksheet'!#REF!),"",'Arc Worksheet'!#REF!) ->  | D12: =IF(ISBLANK('Arc Worksheet'!#REF!),"",IF('Arc Worksheet'!#REF!="No","",VLOOKUP(#REF!,#REF!,2,0))) ->  | E12: =IF(D12="","", 'Arc Worksheet'!#REF!) ->  | G12: =IF(D12="","",IFERROR(VLOOKUP(#REF!,#REF!,4,0)*E12,"")) -> 
B13: Hand Dryer | C13: =IF(ISBLANK('Arc Worksheet'!#REF!),"",'Arc Worksheet'!#REF!) ->  | D13: =IF(ISBLANK('Arc Worksheet'!#REF!),"",VLOOKUP(#REF!,#REF!,2,0)) ->  | E13: =IF(D13="","",'Arc Worksheet'!#REF!) ->  | G13: =IF(C13="","",IFERROR(VLOOKUP(#REF!,#REF!,4,0)*E13,"")) -> 
B14: Paper Towel Holder | C14: =IF(ISBLANK('Arc Worksheet'!#REF!),"",'Arc Worksheet'!#REF!) ->  | D14: =IF('Arc Worksheet'!#REF!="Yes",VLOOKUP(#REF!,#REF!,2,0),"") ->  | E14: =IF(ISBLANK('Arc Worksheet'!#REF!),"",IF('Arc Worksheet'!#REF!="No","",VLOOKUP(D14,#REF!,2,0))) ->  | G14: =IF(D14="","",IFERROR(VLOOKUP(#REF!,#REF!,4,0)*E14,"")) -> 
B15: Basin Grates | C15: =IF(ISBLANK('Arc Worksheet'!#REF!),"",'Arc Worksheet'!#REF!) ->  | D15: =IF(ISBLANK('Arc Worksheet'!#REF!),"",IF('Arc Worksheet'!#REF!="No","",VLOOKUP(#REF!,#REF!,2,0))) ->  | E15: =IF(ISBLANK('Arc Worksheet'!#REF!),"",IF('Arc Worksheet'!#REF!="No","",1)) ->  | G15: =IF(D15="","",IFERROR(VLOOKUP(#REF!,#REF!,4,0)*E15,"")) -> 
B16: Faucet | C16: =IF(ISBLANK('Arc Worksheet'!#REF!),IFERROR(VLOOKUP('Arc Worksheet'!#REF!,'Faucet Price Table'!A:B,2,0),""),'Arc Worksheet'!#REF!) ->  | D16: =IF(ISBLANK('Arc Worksheet'!#REF!),'Arc Worksheet'!#REF!,VLOOKUP('Arc Worksheet'!#REF!,'Faucet Price Table'!B:D,3,0)) ->  | E16: =IF(ISBLANK('Arc Worksheet'!#REF!),"",'Arc Worksheet'!#REF!) ->  | G16: =IFERROR(IF(ISBLANK('Arc Worksheet'!#REF!),VLOOKUP('Arc Worksheet'!#REF!,'Faucet Price Table'!A:C,3,0)*E16,VLOOKUP(D16,'Faucet Price Table'!A:C,3,0)*E16),"") -> 
B17: Soap Dispenser | C17: =IF(ISBLANK('Arc Worksheet'!#REF!),IFERROR(VLOOKUP('Arc Worksheet'!#REF!,'Soap Price Table'!A:B,2,0),""),'Arc Worksheet'!#REF!) ->  | D17: =IF(ISBLANK('Arc Worksheet'!#REF!),'Arc Worksheet'!#REF!,VLOOKUP('Arc Worksheet'!#REF!,'Soap Price Table'!B:D,3,0)) ->  | E17: =IF(ISBLANK('Arc Worksheet'!#REF!),"",'Arc Worksheet'!#REF!) ->  | G17: =IFERROR(IF(ISBLANK('Arc Worksheet'!#REF!),(VLOOKUP('Arc Worksheet'!#REF!,'Soap Price Table'!A:C,3,0)*E17),(VLOOKUP('Arc Worksheet'!#REF!,'Soap Price Table'!B:C,2,0)*E17)),"") -> 

Sheet Manufacturing BOM (hidden)
A2: Project Name: | B2: =IF(ISBLANK('Arc Worksheet'!I11),"",'Arc Worksheet'!I11) ->  | D2: Quote Number: | E2: =IF(ISBLANK('Arc Worksheet'!I61),"",'Arc Worksheet'!I61) -> 
A3: WaterJet
A4: Generic Code: | B4: ='Bill Of Material'!C5 ->  | D4: Sink Quantity: | F4: ='Bill Of Material'!E5 -> 
A5: Component | B5: Description | C5: Material Code | D5: Quantity Per Sink | E5: Quantity Per Order | F5: Color Tier
A6: Color | B6: =IF(ISBLANK('Arc Worksheet'!$J$23),"",'Arc Worksheet'!$J$23) ->  | C6: =IF(ISBLANK(B6),"",VLOOKUP(B6,'Drop Tables'!Z:AB,3,0)) ->  | D6: ='Bill Of Material'!E7 -> 0 | F6: ='Bill Of Material'!G7 -> 0
A7: Model | B7: =IF(ISBLANK('Bill Of Material'!C8),"",'Bill Of Material'!C8) ->  | C7: ='Bill Of Material'!D8 ->  | D7: ='Bill Of Material'!E8 -> 1 | E7: =$F$4*D7 -> 
A8: Trough Style | B8: =IF(ISBLANK('Arc Worksheet'!N23),"",'Arc Worksheet'!N23) -> 
A9: Bowl Type | B9: =IF(ISBLANK('Arc Worksheet'!#REF!),"",'Arc Worksheet'!#REF!) -> 
A10: Edge Type | B10: =IF(ISBLANK('Arc Worksheet'!I26),"",'Arc Worksheet'!I26) -> 
A11: Alcove | B11: =IF(ISBLANK('Arc Worksheet'!#REF!),"",'Arc Worksheet'!#REF!) -> 
A12: LED | B12: =IF(ISBLANK('Bill Of Material'!C11),"",'Bill Of Material'!C11) ->  | C12: ='Bill Of Material'!D11 ->  | D12: ='Bill Of Material'!E11 ->  | E12: =$F$4*D12 -> 
A13: Hand Dryer | B13: =IF(ISBLANK('Bill Of Material'!C13),"",'Bill Of Material'!C13) ->  | C13: ='Bill Of Material'!D13 ->  | D13: ='Bill Of Material'!E13 -> 
A14: Faucet | B14: =IF(ISBLANK('Bill Of Material'!C16),"",'Bill Of Material'!C16) ->  | C14: ='Bill Of Material'!D16 ->  | D14: ='Bill Of Material'!E16 -> 
A15: Soap Dispenser | B15: =IF(ISBLANK('Bill Of Material'!C17),"",'Bill Of Material'!C17) ->  | C15: ='Bill Of Material'!D17 ->  | D15: ='Bill Of Material'!E17 -> 
A16: Trash Hole | B16: =IF(ISBLANK('Arc Worksheet'!#REF!),"",'Arc Worksheet'!#REF!) ->  | D16: =IF(B16="Yes",1,"") -> 
A17: Paper Towel Holder | B17: =IF(ISBLANK('Bill Of Material'!C14),"",'Bill Of Material'!C14) ->  | C17: ='Bill Of Material'!D14 ->  | D17: ='Bill Of Material'!E14 -> 
A18: Baby Changing Station | B18: =IF(ISBLANK('Arc Worksheet'!#REF!),"",'Arc Worksheet'!#REF!) ->  | C18: =IF(B18="Yes",#REF!,"") ->  | D18: =IF(B18="Yes",1,"") -> 
A19: Dimensions | B19: A+ | C19: B+ | D19: C= | E19: D
A20: Standard | B20: =IF(ISBLANK('Arc Worksheet'!#REF!),"",'Arc Worksheet'!#REF!) ->  | C20: =IF(ISBLANK('Arc Worksheet'!#REF!),"",'Arc Worksheet'!#REF!) ->  | D20: =IF(ISBLANK('Arc Worksheet'!#REF!),"",'Arc Worksheet'!#REF!) ->  | E20: =IF(ISBLANK('Arc Worksheet'!#REF!),"",'Arc Worksheet'!#REF!) -> 
A21: Custom | B21: =IF(ISBLANK('Arc Worksheet'!#REF!),"",'Arc Worksheet'!#REF!) ->  | C21: =IF(ISBLANK('Arc Worksheet'!#REF!),"",'Arc Worksheet'!#REF!) ->  | D21: =IF(ISBLANK('Arc Worksheet'!#REF!),"",'Arc Worksheet'!#REF!) ->  | E21: =IF(ISBLANK('Arc Worksheet'!#REF!),"",'Arc Worksheet'!#REF!) -> 
A22: Soap Hole | B22: Inches | C22: Faucet Hole | D22: Inches
A23: Standard | B23: 1" | C23: Standard | D23: 1.25"
A24: Custom | B24: =IF(ISBLANK('Arc Worksheet'!#REF!),"",'Arc Worksheet'!#REF!) ->  | C24: Custom | D24: =IF(ISBLANK('Arc Worksheet'!#REF!),"",'Arc Worksheet'!#REF!) -> 
A25: Back Splash | B25: Inches | C25: Apron | D25: Inches
A26: Standard | B26: ='Arc Worksheet'!#REF! ->  | C26: Standard | D26: 5"
A27: Custom | B27: =IF(ISBLANK('Arc Worksheet'!#REF!),"",'Arc Worksheet'!#REF!) ->  | C27: Custom | D27: =IF(ISBLANK('Arc Worksheet'!#REF!),"",'Arc Worksheet'!#REF!) -> 
A28: Sales Notes: | D28: Internal Notes:
A29: =IF(ISBLANK('Arc Worksheet'!S20),"",'Arc Worksheet'!S20) ->  | D29: =IF(ISBLANK('Arc Worksheet'!N58),"",'Arc Worksheet'!N58) -> 
A38: Corian Assembly
A39: Generic Code: | B39: =IF(ISBLANK('Bill Of Material'!C5),"",'Bill Of Material'!C5) ->  | D39: Sink Quantity: | F39: =IF(ISBLANK(F4),"",F4) -> 
A40: Component | B40: Description | C40: Material Code | D40: Quantity Per Sink | E40: Quantity Per Order
A41: Color Tier | B41: =IF(ISBLANK(B6),"",B6) ->  | C41: =IF(ISBLANK(C6),"",C6) ->  | D41: =IF(ISBLANK(D6),"",D6) -> 0
A42: Model | B42: =IF(ISBLANK('Bill Of Material'!C8),"",'Bill Of Material'!C8) ->  | C42: =IF(ISBLANK(C7),"",C7) ->  | D42: =IF(ISBLANK(D7),"",D7) -> 1 | E42: =IF(ISBLANK(E7),"",E7) -> 
A43: Trough Style | B43: =IF(ISBLANK('Arc Worksheet'!N23),"",'Arc Worksheet'!N23) -> 
A44: Bowl Type | B44: =IF(ISBLANK('Arc Worksheet'!#REF!),"",'Arc Worksheet'!#REF!) -> 
A45: Edge Type | B45: =IF(ISBLANK('Arc Worksheet'!I26),"",'Arc Worksheet'!I26) -> 
A46: Alcove | B46: =IF(ISBLANK('Arc Worksheet'!#REF!),"",'Arc Worksheet'!#REF!) -> 
A47: LED | B47: =IF(ISBLANK('Bill Of Material'!C11),"",'Bill Of Material'!C11) ->  | C47: =IF(ISBLANK(C12),"",C12) ->  | D47: =IF(ISBLANK(D12),"",D12) ->  | E47: =IF(ISBLANK(E12),"",E12) -> 
A48: Bag Hooks | B48: =IF(ISBLANK('Bill Of Material'!C12),"",'Bill Of Material'!C12) ->  | C48: =IF(ISBLANK('Bill Of Material'!D12),"",'Bill Of Material'!D12) ->  | D48: =IF(ISBLANK('Bill Of Material'!E12),"",'Bill Of Material'!E12) ->  | E48: =IF(ISBLANK('Bill Of Material'!F12),"",'Bill Of Material'!F12) -> 
A49: Basin Grates | B49: =IF(ISBLANK('Bill Of Material'!C15),"",'Bill Of Material'!C15) ->  | C49: =IF(ISBLANK('Bill Of Material'!D15),"",'Bill Of Material'!D15) ->  | D49: =IF(ISBLANK('Bill Of Material'!E15),"",'Bill Of Material'!E15) ->  | E49: =IF(ISBLANK('Bill Of Material'!F15),"",'Bill Of Material'!F15) -> 
A50: Hand Dryer | B50: =IF(ISBLANK(B13),"",B13) -> 
A51: Faucet
A52: Soap Dispenser
A53: Trash Hole | B53: =IF(ISBLANK(B16),"",B16) ->  | D53: =IF(ISBLANK(D16),"",D16) -> 
A54: Paper Towel Holder | B54: =IF(ISBLANK(B17),"",B17) ->  | C54: =IF(ISBLANK(C17),"",C17) -> 
A55: Baby Changing Station | B55: =IF(ISBLANK(B18),"",B18) ->  | C55: =IF(ISBLANK(C18),"",C18) -> 
A56: Dimensions | B56: A+ | C56: B+ | D56: C= | E56: D
A57: Standard | B57: =IF(ISBLANK(B20),"",B20) ->  | C57: =IF(ISBLANK(C20),"",C20) -> 
A58: Custom | B58: =IF(ISBLANK(B21),"",B21) ->  | C58: =IF(ISBLANK(C21),"",C21) ->  | D58: =IF(ISBLANK(D21),"",D21) ->  | E58: =IF(ISBLANK(E21),"",E21) -> 
A59: Soap Hole | B59: Inches | C59: Faucet Hole | D59: Inches
A60: Standard | B60: 1" | C60: Standard | D60: 1.25"
A61: Custom | B61: =IF(ISBLANK(B24),"",B24) ->  | C61: Custom | D61: =IF(ISBLANK(D24),"",D24) -> 
A62: Back Splash | B62: Inches | C62: Apron | D62: Inches
A63: Standard | B63: =B26 ->  | C63: Standard | D63: 5"
A64: Custom | B64: =IF(ISBLANK(B27),"",B27) ->  | C64: Custom | D64: =IF(ISBLANK(D27),"",D27) -> 
A72: Weldments
A73: Generic Code: | B73: =IF(ISBLANK(B4),"",B4) ->  | D73: Sink Quantity: | F73: =IF(ISBLANK(F4),"",F4) -> 
A74: Component | B74: Description | C74: Material Code | D74: Quantity Per Sink | E74: Quantity Per Order
A75: Model | B75: =IF(ISBLANK(B7),"",B7) ->  | C75: =IF(ISBLANK(C7),"",C7) ->  | D75: =IF(ISBLANK(D7),"",D7) -> 1
A76: Trough Style | B76: =IF(ISBLANK(B8),"",B8) -> 
A77: Bowl Type | B77: =IF(ISBLANK(B9),"",B9) -> 
A78: Mounting Type | B78: =IF(ISBLANK('Bill Of Material'!C9),"",'Bill Of Material'!C9) ->  | C78: =IF(ISBLANK('Bill Of Material'!D9),"",'Bill Of Material'!D9) ->  | D78: =IF(ISBLANK('Bill Of Material'!E9),"",'Bill Of Material'!E9) ->  | E78: =IF(ISBLANK('Bill Of Material'!F9),"",'Bill Of Material'!F9) -> 
A79: Angle Bracket (If App) | B79: =IF(ISBLANK('Bill Of Material'!C10),"",'Bill Of Material'!C10) ->  | C79: =IF(ISBLANK('Bill Of Material'!D10),"",'Bill Of Material'!D10) ->  | D79: =IF(ISBLANK('Bill Of Material'!E10),"",'Bill Of Material'!E10) ->  | E79: =IF(ISBLANK('Bill Of Material'!F10),"",'Bill Of Material'!F10) -> 
A80: Alcove | B80: =IF(ISBLANK(B11),"",B11) ->  | E80: =IF(ISBLANK(#REF!),"",IFERROR(#REF!*D80,"")) -> 
A81: Laminate Color | B81: =IF(ISBLANK('Arc Worksheet'!#REF!),"",'Arc Worksheet'!#REF!) ->  | C81: =IF(ISBLANK(B81),"",VLOOKUP(B81,'Drop Tables'!AD:AD,2,0)) -> 
A82: Dimensions | B82: A+ | C82: B+ | D82: C= | E82: D
A83: Standard | B83: =IF(ISBLANK(B20),"",B20) ->  | C83: =IF(ISBLANK(C20),"",C20) -> 
A84: Custom | B84: =IF(ISBLANK(B21),"",B21) ->  | C84: =IF(ISBLANK(C21),"",C21) -> 

Sheet Costs (hidden)
A1: Type | B1: Bounce Code | C1: Color Code
A2: Enclosure | B2: =CONCATENATE('Arc Worksheet'!#REF!,'Arc Worksheet'!#REF!) -> 
A3: LED | B3: =CONCATENATE('Arc Worksheet'!#REF!,'Arc Worksheet'!#REF!) -> 
A4: Bag Hook | B4: =CONCATENATE('Arc Worksheet'!#REF!,'Arc Worksheet'!#REF!,'Arc Worksheet'!#REF!) -> 
A5: Basin Grates | B5: =CONCATENATE('Arc Worksheet'!#REF!,'Arc Worksheet'!#REF!) -> 
A6: Hand Dryer | B6: =CONCATENATE('Arc Worksheet'!#REF!,'Arc Worksheet'!#REF!,'Arc Worksheet'!#REF!) -> 
A7: Paper Towel Holder | B7: ='Arc Worksheet'!#REF! -> 
A8: Baby Changing Station | B8: ='Arc Worksheet'!#REF! -> 
A10: Enclosure | B10: Station Amount | C10: LookUp | D10: Material Number | E10: Quantity Per Sink | F10: Cost
A11: AD | B11: 1 | C11: =Table1019[[#This Row],[Enclosure]]&Table1019[[#This Row],[Station Amount]] -> AD1 | D11: E0000001 | E11: 1 | F11: 900
A12: AD | B12: 2 | C12: =Table1019[[#This Row],[Enclosure]]&Table1019[[#This Row],[Station Amount]] -> AD2 | D12: E0000002 | E12: 1 | F12: 1200
A13: AD | B13: 3 | C13: =Table1019[[#This Row],[Enclosure]]&Table1019[[#This Row],[Station Amount]] -> AD3 | D13: E0000003 | E13: 1 | F13: 1400
A14: AD | B14: 4 | C14: =Table1019[[#This Row],[Enclosure]]&Table1019[[#This Row],[Station Amount]] -> AD4 | D14: E0000004 | E14: 1 | F14: 1600
A15: AD | B15: 5 | C15: =Table1019[[#This Row],[Enclosure]]&Table1019[[#This Row],[Station Amount]] -> AD5 | D15: E0000005 | E15: 1 | F15: 1800
A16: AD | B16: 6+ | C16: =Table1019[[#This Row],[Enclosure]]&Table1019[[#This Row],[Station Amount]] -> AD6+ | D16: E0000006 | E16: 1 | F16: 2000
A17: DSG | B17: 1 | C17: =Table1019[[#This Row],[Enclosure]]&Table1019[[#This Row],[Station Amount]] -> DSG1 | D17: E0000007 | E17: 1 | F17: 500
A18: DSG | B18: 2 | C18: =Table1019[[#This Row],[Enclosure]]&Table1019[[#This Row],[Station Amount]] -> DSG2 | D18: E0000008 | E18: 1 | F18: 700
A19: DSG | B19: 3 | C19: =Table1019[[#This Row],[Enclosure]]&Table1019[[#This Row],[Station Amount]] -> DSG3 | D19: E0000009 | E19: 1 | F19: 900
A20: DSG | B20: 4 | C20: =Table1019[[#This Row],[Enclosure]]&Table1019[[#This Row],[Station Amount]] -> DSG4 | D20: E0000010 | E20: 1 | F20: 1100
A21: DSG | B21: 5 | C21: =Table1019[[#This Row],[Enclosure]]&Table1019[[#This Row],[Station Amount]] -> DSG5 | D21: E0000011 | E21: 1 | F21: 1300
A22: DSG | B22: 6+ | C22: =Table1019[[#This Row],[Enclosure]]&Table1019[[#This Row],[Station Amount]] -> DSG6+ | D22: E0000012 | E22: 1 | F22: 1500
A23: DSCT | B23: 1 | C23: =Table1019[[#This Row],[Enclosure]]&Table1019[[#This Row],[Station Amount]] -> DSCT1 | D23: E0000007 | E23: 1 | F23: 500
A24: DSCT | B24: 2 | C24: =Table1019[[#This Row],[Enclosure]]&Table1019[[#This Row],[Station Amount]] -> DSCT2 | D24: E0000008 | E24: 1 | F24: 700
A25: DSCT | B25: 3 | C25: =Table1019[[#This Row],[Enclosure]]&Table1019[[#This Row],[Station Amount]] -> DSCT3 | D25: E0000009 | E25: 1 | F25: 900
A26: DSCT | B26: 4 | C26: =Table1019[[#This Row],[Enclosure]]&Table1019[[#This Row],[Station Amount]] -> DSCT4 | D26: E0000010 | E26: 1 | F26: 1100
A27: DSCT | B27: 5 | C27: =Table1019[[#This Row],[Enclosure]]&Table1019[[#This Row],[Station Amount]] -> DSCT5 | D27: E0000011 | E27: 1 | F27: 1300
A28: DSCT | B28: 6+ | C28: =Table1019[[#This Row],[Enclosure]]&Table1019[[#This Row],[Station Amount]] -> DSCT6+ | D28: E0000012 | E28: 1 | F28: 1500
A29: DSOF | B29: 1 | C29: =Table1019[[#This Row],[Enclosure]]&Table1019[[#This Row],[Station Amount]] -> DSOF1 | D29: E0000007 | E29: 1 | F29: 500
A30: DSOF | B30: 2 | C30: =Table1019[[#This Row],[Enclosure]]&Table1019[[#This Row],[Station Amount]] -> DSOF2 | D30: E0000008 | E30: 1 | F30: 700
A31: DSOF | B31: 3 | C31: =Table1019[[#This Row],[Enclosure]]&Table1019[[#This Row],[Station Amount]] -> DSOF3 | D31: E0000009 | E31: 1 | F31: 900
A32: DSOF | B32: 4 | C32: =Table1019[[#This Row],[Enclosure]]&Table1019[[#This Row],[Station Amount]] -> DSOF4 | D32: E0000010 | E32: 1 | F32: 1100
A33: DSOF | B33: 5 | C33: =Table1019[[#This Row],[Enclosure]]&Table1019[[#This Row],[Station Amount]] -> DSOF5 | D33: E0000011 | E33: 1 | F33: 1300
A34: DSOF | B34: 6+ | C34: =Table1019[[#This Row],[Enclosure]]&Table1019[[#This Row],[Station Amount]] -> DSOF6+ | D34: E0000012 | E34: 1 | F34: 1500
A35: DSUP | B35: 1 | C35: =Table1019[[#This Row],[Enclosure]]&Table1019[[#This Row],[Station Amount]] -> DSUP1 | D35: E0000007 | E35: 1 | F35: 500
A36: DSUP | B36: 2 | C36: =Table1019[[#This Row],[Enclosure]]&Table1019[[#This Row],[Station Amount]] -> DSUP2 | D36: E0000008 | E36: 1 | F36: 700
A37: DSUP | B37: 3 | C37: =Table1019[[#This Row],[Enclosure]]&Table1019[[#This Row],[Station Amount]] -> DSUP3 | D37: E0000009 | E37: 1 | F37: 900
A38: DSUP | B38: 4 | C38: =Table1019[[#This Row],[Enclosure]]&Table1019[[#This Row],[Station Amount]] -> DSUP4 | D38: E0000010 | E38: 1 | F38: 1100
A39: DSUP | B39: 5 | C39: =Table1019[[#This Row],[Enclosure]]&Table1019[[#This Row],[Station Amount]] -> DSUP5 | D39: E0000011 | E39: 1 | F39: 1300
A40: DSUP | B40: 6+ | C40: =Table1019[[#This Row],[Enclosure]]&Table1019[[#This Row],[Station Amount]] -> DSUP6+ | D40: E0000012 | E40: 1 | F40: 1500
A41: DSVR | B41: 1 | C41: =Table1019[[#This Row],[Enclosure]]&Table1019[[#This Row],[Station Amount]] -> DSVR1 | D41: E0000007 | E41: 1 | F41: 500
A42: DSVR | B42: 2 | C42: =Table1019[[#This Row],[Enclosure]]&Table1019[[#This Row],[Station Amount]] -> DSVR2 | D42: E0000008 | E42: 1 | F42: 700
A43: DSVR | B43: 3 | C43: =Table1019[[#This Row],[Enclosure]]&Table1019[[#This Row],[Station Amount]] -> DSVR3 | D43: E0000009 | E43: 1 | F43: 900
A44: DSVR | B44: 4 | C44: =Table1019[[#This Row],[Enclosure]]&Table1019[[#This Row],[Station Amount]] -> DSVR4 | D44: E0000010 | E44: 1 | F44: 1100
A45: DSVR | B45: 5 | C45: =Table1019[[#This Row],[Enclosure]]&Table1019[[#This Row],[Station Amount]] -> DSVR5 | D45: E0000011 | E45: 1 | F45: 1300
A46: DSVR | B46: 6+ | C46: =Table1019[[#This Row],[Enclosure]]&Table1019[[#This Row],[Station Amount]] -> DSVR6+ | D46: E0000012 | E46: 1 | F46: 1500
A47: DSWD | B47: 1 | C47: =Table1019[[#This Row],[Enclosure]]&Table1019[[#This Row],[Station Amount]] -> DSWD1 | D47: E0000007 | E47: 1 | F47: 500
A48: DSWD | B48: 2 | C48: =Table1019[[#This Row],[Enclosure]]&Table1019[[#This Row],[Station Amount]] -> DSWD2 | D48: E0000008 | E48: 1 | F48: 700
A49: DSWD | B49: 3 | C49: =Table1019[[#This Row],[Enclosure]]&Table1019[[#This Row],[Station Amount]] -> DSWD3 | D49: E0000009 | E49: 1 | F49: 900
A50: DSWD | B50: 4 | C50: =Table1019[[#This Row],[Enclosure]]&Table1019[[#This Row],[Station Amount]] -> DSWD4 | D50: E0000010 | E50: 1 | F50: 1100
A51: DSWD | B51: 5 | C51: =Table1019[[#This Row],[Enclosure]]&Table1019[[#This Row],[Station Amount]] -> DSWD5 | D51: E0000011 | E51: 1 | F51: 1300
A52: DSWD | B52: 6+ | C52: =Table1019[[#This Row],[Enclosure]]&Table1019[[#This Row],[Station Amount]] -> DSWD6+ | D52: E0000012 | E52: 1 | F52: 1500
A54: Basin Grates | B54: Station Amount | C54: LookUp | D54: Material Number | E54: Quantity Per Sink | F54: Cost
A55: DSWD | B55: 1 | C55: =A55&B55 -> DSWD1 | D55: BG0000013 | E55: 1 | F55: 200
A56: DSWD | B56: 2 | C56: DSWD2 | D56: BG0000014 | E56: 1 | F56: 300
A57: DSWD | B57: 3 | C57: DSWD3 | D57: BG0000015 | E57: 1 | F57: 400
A58: DSWD | B58: 4 | C58: DSWD4 | D58: BG0000016 | E58: 1 | F58: 500
A59: DSWD | B59: 5 | C59: DSWD5 | D59: BG0000017 | E59: 1 | F59: 600
A60: DSWD | B60: 6+ | C60: DSWD6+ | D60: BG0000018 | E60: 1 | F60: 700
A63: LED | B63: Station Amount | C63: LookUp | D63: Material Number | E63: Quantity Per Sink | F63: Cost
A64: AD | B64: 1 | C64: =A64&B64 -> AD1 | D64: L0000019 | E64: 1 | F64: 125
A65: AD | B65: 2 | C65: =A65&B65 -> AD2 | D65: L0000020 | E65: 1 | F65: 250
A66: AD | B66: 3 | C66: AD3 | D66: L0000021 | E66: 1 | F66: 375
A67: AD | B67: 4 | C67: AD4 | D67: L0000022 | E67: 1 | F67: 500
A68: AD | B68: 5 | C68: AD5 | D68: L0000023 | E68: 1 | F68: 625
A69: AD | B69: 6+ | C69: AD6+ | D69: L0000024 | E69: 1 | F69: 750
A70: DSG | B70: 1 | C70: DSG1 | D70: L0000019 | E70: 2 | F70: 150
A71: DSG | B71: 2 | C71: DSG2 | D71: L0000020 | E71: 2 | F71: 300
A72: DSG | B72: 3 | C72: DSG3 | D72: L0000021 | E72: 2 | F72: 450
A73: DSG | B73: 4 | C73: DSG4 | D73: L0000022 | E73: 2 | F73: 600
A74: DSG | B74: 5 | C74: DSG5 | D74: L0000023 | E74: 2 | F74: 750
A75: DSG | B75: 6+ | C75: DSG6+ | D75: L0000024 | E75: 2 | F75: 900
A78: Purse Hook | B78: Station Amount | C78: Color | D78: Lookup | E78: Material Number | F78: Quantity Per Sink | G78: Cost
A79: AD | B79: 1 | C79: Light Grey | D79: =A79&B79&Table1322[[#This Row],[Color]] -> AD1Light Grey | E79: P0000025 | F79: 1 | G79: =30*Table1322[[#This Row],[Quantity Per Sink]] -> 30
A80: AD | B80: 2 | C80: Light Grey | D80: =A80&B80&Table1322[[#This Row],[Color]] -> AD2Light Grey | E80: P0000026 | F80: 2 | G80: =30*Table1322[[#This Row],[Quantity Per Sink]] -> 60
A81: AD | B81: 3 | C81: Light Grey | D81: =A81&B81&Table1322[[#This Row],[Color]] -> AD3Light Grey | E81: P0000027 | F81: 3 | G81: =30*Table1322[[#This Row],[Quantity Per Sink]] -> 90
A82: AD | B82: 4 | C82: Light Grey | D82: =A82&B82&Table1322[[#This Row],[Color]] -> AD4Light Grey | E82: P0000028 | F82: 4 | G82: =30*Table1322[[#This Row],[Quantity Per Sink]] -> 120
A83: AD | B83: 5 | C83: Light Grey | D83: =A83&B83&Table1322[[#This Row],[Color]] -> AD5Light Grey | E83: P0000029 | F83: 5 | G83: =30*Table1322[[#This Row],[Quantity Per Sink]] -> 150
A84: AD | B84: 6+ | C84: Light Grey | D84: =A84&B84&Table1322[[#This Row],[Color]] -> AD6+Light Grey | E84: P0000030 | F84: 6 | G84: =30*Table1322[[#This Row],[Quantity Per Sink]] -> 180
A85: DSG | B85: 1 | C85: Light Grey | D85: =A85&B85&Table1322[[#This Row],[Color]] -> DSG1Light Grey | E85: P0000025 | F85: 1 | G85: =30*Table1322[[#This Row],[Quantity Per Sink]] -> 30
A86: DSG | B86: 2 | C86: Light Grey | D86: =A86&B86&Table1322[[#This Row],[Color]] -> DSG2Light Grey | E86: P0000026 | F86: 2 | G86: =30*Table1322[[#This Row],[Quantity Per Sink]] -> 60
A87: DSG | B87: 3 | C87: Light Grey | D87: =A87&B87&Table1322[[#This Row],[Color]] -> DSG3Light Grey | E87: P0000027 | F87: 3 | G87: =30*Table1322[[#This Row],[Quantity Per Sink]] -> 90
A88: DSG | B88: 4 | C88: Light Grey | D88: =A88&B88&Table1322[[#This Row],[Color]] -> DSG4Light Grey | E88: P0000028 | F88: 4 | G88: =30*Table1322[[#This Row],[Quantity Per Sink]] -> 120
A89: DSG | B89: 5 | C89: Light Grey | D89: =A89&B89&Table1322[[#This Row],[Color]] -> DSG5Light Grey | E89: P0000029 | F89: 5 | G89: =30*Table1322[[#This Row],[Quantity Per Sink]] -> 150
A90: DSG | B90: 6+ | C90: Light Grey | D90: =A90&B90&Table1322[[#This Row],[Color]] -> DSG6+Light Grey | E90: P0000030 | F90: 6 | G90: =30*Table1322[[#This Row],[Quantity Per Sink]] -> 180
A91: DSCT | B91: 1 | C91: Light Grey | D91: =A91&B91&Table1322[[#This Row],[Color]] -> DSCT1Light Grey | E91: P0000025 | F91: 1 | G91: =30*Table1322[[#This Row],[Quantity Per Sink]] -> 30
A92: DSCT | B92: 2 | C92: Light Grey | D92: =A92&B92&Table1322[[#This Row],[Color]] -> DSCT2Light Grey | E92: P0000026 | F92: 2 | G92: =30*Table1322[[#This Row],[Quantity Per Sink]] -> 60
A93: DSCT | B93: 3 | C93: Light Grey | D93: =A93&B93&Table1322[[#This Row],[Color]] -> DSCT3Light Grey | E93: P0000027 | F93: 3 | G93: =30*Table1322[[#This Row],[Quantity Per Sink]] -> 90
A94: DSCT | B94: 4 | C94: Light Grey | D94: =A94&B94&Table1322[[#This Row],[Color]] -> DSCT4Light Grey | E94: P0000028 | F94: 4 | G94: =30*Table1322[[#This Row],[Quantity Per Sink]] -> 120
A95: DSCT | B95: 5 | C95: Light Grey | D95: =A95&B95&Table1322[[#This Row],[Color]] -> DSCT5Light Grey | E95: P0000029 | F95: 5 | G95: =30*Table1322[[#This Row],[Quantity Per Sink]] -> 150
A96: DSCT | B96: 6+ | C96: Light Grey | D96: =A96&B96&Table1322[[#This Row],[Color]] -> DSCT6+Light Grey | E96: P0000030 | F96: 6 | G96: =30*Table1322[[#This Row],[Quantity Per Sink]] -> 180
A97: DSOF | B97: 1 | C97: Light Grey | D97: =A97&B97&Table1322[[#This Row],[Color]] -> DSOF1Light Grey | E97: P0000025 | F97: 1 | G97: =30*Table1322[[#This Row],[Quantity Per Sink]] -> 30
A98: DSOF | B98: 2 | C98: Light Grey | D98: =A98&B98&Table1322[[#This Row],[Color]] -> DSOF2Light Grey | E98: P0000026 | F98: 2 | G98: =30*Table1322[[#This Row],[Quantity Per Sink]] -> 60
A99: DSOF | B99: 3 | C99: Light Grey | D99: =A99&B99&Table1322[[#This Row],[Color]] -> DSOF3Light Grey | E99: P0000027 | F99: 3 | G99: =30*Table1322[[#This Row],[Quantity Per Sink]] -> 90
A100: DSOF | B100: 4 | C100: Light Grey | D100: =A100&B100&Table1322[[#This Row],[Color]] -> DSOF4Light Grey | E100: P0000028 | F100: 4 | G100: =30*Table1322[[#This Row],[Quantity Per Sink]] -> 120
A101: DSOF | B101: 5 | C101: Light Grey | D101: =A101&B101&Table1322[[#This Row],[Color]] -> DSOF5Light Grey | E101: P0000029 | F101: 5 | G101: =30*Table1322[[#This Row],[Quantity Per Sink]] -> 150
A102: DSOF | B102: 6+ | C102: Light Grey | D102: =A102&B102&Table1322[[#This Row],[Color]] -> DSOF6+Light Grey | E102: P0000030 | F102: 6 | G102: =30*Table1322[[#This Row],[Quantity Per Sink]] -> 180
A103: DSUP | B103: 1 | C103: Light Grey | D103: =A103&B103&Table1322[[#This Row],[Color]] -> DSUP1Light Grey | E103: P0000025 | F103: 1 | G103: =30*Table1322[[#This Row],[Quantity Per Sink]] -> 30
A104: DSUP | B104: 2 | C104: Light Grey | D104: =A104&B104&Table1322[[#This Row],[Color]] -> DSUP2Light Grey | E104: P0000026 | F104: 2 | G104: =30*Table1322[[#This Row],[Quantity Per Sink]] -> 60
A105: DSUP | B105: 3 | C105: Light Grey | D105: =A105&B105&Table1322[[#This Row],[Color]] -> DSUP3Light Grey | E105: P0000027 | F105: 3 | G105: =30*Table1322[[#This Row],[Quantity Per Sink]] -> 90
A106: DSUP | B106: 4 | C106: Light Grey | D106: =A106&B106&Table1322[[#This Row],[Color]] -> DSUP4Light Grey | E106: P0000028 | F106: 4 | G106: =30*Table1322[[#This Row],[Quantity Per Sink]] -> 120
A107: DSUP | B107: 5 | C107: Light Grey | D107: =A107&B107&Table1322[[#This Row],[Color]] -> DSUP5Light Grey | E107: P0000029 | F107: 5 | G107: =30*Table1322[[#This Row],[Quantity Per Sink]] -> 150
A108: DSUP | B108: 6+ | C108: Light Grey | D108: =A108&B108&Table1322[[#This Row],[Color]] -> DSUP6+Light Grey | E108: P0000030 | F108: 6 | G108: =30*Table1322[[#This Row],[Quantity Per Sink]] -> 180
A109: DSVR | B109: 1 | C109: Light Grey | D109: =A109&B109&Table1322[[#This Row],[Color]] -> DSVR1Light Grey | E109: P0000025 | F109: 1 | G109: =30*Table1322[[#This Row],[Quantity Per Sink]] -> 30
A110: DSVR | B110: 2 | C110: Light Grey | D110: =A110&B110&Table1322[[#This Row],[Color]] -> DSVR2Light Grey | E110: P0000026 | F110: 2 | G110: =30*Table1322[[#This Row],[Quantity Per Sink]] -> 60
A111: DSVR | B111: 3 | C111: Light Grey | D111: =A111&B111&Table1322[[#This Row],[Color]] -> DSVR3Light Grey | E111: P0000027 | F111: 3 | G111: =30*Table1322[[#This Row],[Quantity Per Sink]] -> 90
A112: DSVR | B112: 4 | C112: Light Grey | D112: =A112&B112&Table1322[[#This Row],[Color]] -> DSVR4Light Grey | E112: P0000028 | F112: 4 | G112: =30*Table1322[[#This Row],[Quantity Per Sink]] -> 120
A113: DSVR | B113: 5 | C113: Light Grey | D113: =A113&B113&Table1322[[#This Row],[Color]] -> DSVR5Light Grey | E113: P0000029 | F113: 5 | G113: =30*Table1322[[#This Row],[Quantity Per Sink]] -> 150
A114: DSVR | B114: 6+ | C114: Light Grey | D114: =A114&B114&Table1322[[#This Row],[Color]] -> DSVR6+Light Grey | E114: P0000030 | F114: 6 | G114: =30*Table1322[[#This Row],[Quantity Per Sink]] -> 180
A115: DSWD | B115: 1 | C115: Light Grey | D115: =A115&B115&Table1322[[#This Row],[Color]] -> DSWD1Light Grey | E115: P0000025 | F115: 1 | G115: =30*Table1322[[#This Row],[Quantity Per Sink]] -> 30
A116: DSWD | B116: 2 | C116: Light Grey | D116: =A116&B116&Table1322[[#This Row],[Color]] -> DSWD2Light Grey | E116: P0000026 | F116: 2 | G116: =30*Table1322[[#This Row],[Quantity Per Sink]] -> 60
A117: DSWD | B117: 3 | C117: Light Grey | D117: =A117&B117&Table1322[[#This Row],[Color]] -> DSWD3Light Grey | E117: P0000027 | F117: 3 | G117: =30*Table1322[[#This Row],[Quantity Per Sink]] -> 90
A118: DSWD | B118: 4 | C118: Light Grey | D118: =A118&B118&Table1322[[#This Row],[Color]] -> DSWD4Light Grey | E118: P0000028 | F118: 4 | G118: =30*Table1322[[#This Row],[Quantity Per Sink]] -> 120
A119: DSWD | B119: 5 | C119: Light Grey | D119: =A119&B119&Table1322[[#This Row],[Color]] -> DSWD5Light Grey | E119: P0000029 | F119: 5 | G119: =30*Table1322[[#This Row],[Quantity Per Sink]] -> 150
A120: DSWD | B120: 6+ | C120: Light Grey | D120: =A120&B120&Table1322[[#This Row],[Color]] -> DSWD6+Light Grey | E120: P0000030 | F120: 6 | G120: =30*Table1322[[#This Row],[Quantity Per Sink]] -> 180
A121: AD | B121: 1 | C121: Dark Grey | D121: =A121&B121&Table1322[[#This Row],[Color]] -> AD1Dark Grey | E121: P0000031 | F121: 1 | G121: =30*Table1322[[#This Row],[Quantity Per Sink]] -> 30
A122: AD | B122: 2 | C122: Dark Grey | D122: =A122&B122&Table1322[[#This Row],[Color]] -> AD2Dark Grey | E122: P0000032 | F122: 2 | G122: =30*Table1322[[#This Row],[Quantity Per Sink]] -> 60
A123: AD | B123: 3 | C123: Dark Grey | D123: =A123&B123&Table1322[[#This Row],[Color]] -> AD3Dark Grey | E123: P0000033 | F123: 3 | G123: =30*Table1322[[#This Row],[Quantity Per Sink]] -> 90
A124: AD | B124: 4 | C124: Dark Grey | D124: =A124&B124&Table1322[[#This Row],[Color]] -> AD4Dark Grey | E124: P0000034 | F124: 4 | G124: =30*Table1322[[#This Row],[Quantity Per Sink]] -> 120
A125: AD | B125: 5 | C125: Dark Grey | D125: =A125&B125&Table1322[[#This Row],[Color]] -> AD5Dark Grey | E125: P0000035 | F125: 5 | G125: =30*Table1322[[#This Row],[Quantity Per Sink]] -> 150
A126: AD | B126: 6+ | C126: Dark Grey | D126: =A126&B126&Table1322[[#This Row],[Color]] -> AD6+Dark Grey | E126: P0000036 | F126: 6 | G126: =30*Table1322[[#This Row],[Quantity Per Sink]] -> 180
A127: DSG | B127: 1 | C127: Dark Grey | D127: =A127&B127&Table1322[[#This Row],[Color]] -> DSG1Dark Grey | E127: P0000031 | F127: 1 | G127: =30*Table1322[[#This Row],[Quantity Per Sink]] -> 30
A128: DSG | B128: 2 | C128: Dark Grey | D128: =A128&B128&Table1322[[#This Row],[Color]] -> DSG2Dark Grey | E128: P0000032 | F128: 2 | G128: =30*Table1322[[#This Row],[Quantity Per Sink]] -> 60
A129: DSG | B129: 3 | C129: Dark Grey | D129: =A129&B129&Table1322[[#This Row],[Color]] -> DSG3Dark Grey | E129: P0000033 | F129: 3 | G129: =30*Table1322[[#This Row],[Quantity Per Sink]] -> 90
A130: DSG | B130: 4 | C130: Dark Grey | D130: =A130&B130&Table1322[[#This Row],[Color]] -> DSG4Dark Grey | E130: P0000034 | F130: 4 | G130: =30*Table1322[[#This Row],[Quantity Per Sink]] -> 120
A131: DSG | B131: 5 | C131: Dark Grey | D131: =A131&B131&Table1322[[#This Row],[Color]] -> DSG5Dark Grey | E131: P0000035 | F131: 5 | G131: =30*Table1322[[#This Row],[Quantity Per Sink]] -> 150
A132: DSG | B132: 6+ | C132: Dark Grey | D132: =A132&B132&Table1322[[#This Row],[Color]] -> DSG6+Dark Grey | E132: P0000036 | F132: 6 | G132: =30*Table1322[[#This Row],[Quantity Per Sink]] -> 180
A133: DSCT | B133: 1 | C133: Dark Grey | D133: =A133&B133&Table1322[[#This Row],[Color]] -> DSCT1Dark Grey | E133: P0000031 | F133: 1 | G133: =30*Table1322[[#This Row],[Quantity Per Sink]] -> 30
A134: DSCT | B134: 2 | C134: Dark Grey | D134: =A134&B134&Table1322[[#This Row],[Color]] -> DSCT2Dark Grey | E134: P0000032 | F134: 2 | G134: =30*Table1322[[#This Row],[Quantity Per Sink]] -> 60
A135: DSCT | B135: 3 | C135: Dark Grey | D135: =A135&B135&Table1322[[#This Row],[Color]] -> DSCT3Dark Grey | E135: P0000033 | F135: 3 | G135: =30*Table1322[[#This Row],[Quantity Per Sink]] -> 90
A136: DSCT | B136: 4 | C136: Dark Grey | D136: =A136&B136&Table1322[[#This Row],[Color]] -> DSCT4Dark Grey | E136: P0000034 | F136: 4 | G136: =30*Table1322[[#This Row],[Quantity Per Sink]] -> 120
A137: DSCT | B137: 5 | C137: Dark Grey | D137: =A137&B137&Table1322[[#This Row],[Color]] -> DSCT5Dark Grey | E137: P0000035 | F137: 5 | G137: =30*Table1322[[#This Row],[Quantity Per Sink]] -> 150
A138: DSCT | B138: 6+ | C138: Dark Grey | D138: =A138&B138&Table1322[[#This Row],[Color]] -> DSCT6+Dark Grey | E138: P0000036 | F138: 6 | G138: =30*Table1322[[#This Row],[Quantity Per Sink]] -> 180
A139: DSOF | B139: 1 | C139: Dark Grey | D139: =A139&B139&Table1322[[#This Row],[Color]] -> DSOF1Dark Grey | E139: P0000031 | F139: 1 | G139: =30*Table1322[[#This Row],[Quantity Per Sink]] -> 30
A140: DSOF | B140: 2 | C140: Dark Grey | D140: =A140&B140&Table1322[[#This Row],[Color]] -> DSOF2Dark Grey | E140: P0000032 | F140: 2 | G140: =30*Table1322[[#This Row],[Quantity Per Sink]] -> 60
A141: DSOF | B141: 3 | C141: Dark Grey | D141: =A141&B141&Table1322[[#This Row],[Color]] -> DSOF3Dark Grey | E141: P0000033 | F141: 3 | G141: =30*Table1322[[#This Row],[Quantity Per Sink]] -> 90
A142: DSOF | B142: 4 | C142: Dark Grey | D142: =A142&B142&Table1322[[#This Row],[Color]] -> DSOF4Dark Grey | E142: P0000034 | F142: 4 | G142: =30*Table1322[[#This Row],[Quantity Per Sink]] -> 120
A143: DSOF | B143: 5 | C143: Dark Grey | D143: =A143&B143&Table1322[[#This Row],[Color]] -> DSOF5Dark Grey | E143: P0000035 | F143: 5 | G143: =30*Table1322[[#This Row],[Quantity Per Sink]] -> 150
A144: DSOF | B144: 6+ | C144: Dark Grey | D144: =A144&B144&Table1322[[#This Row],[Color]] -> DSOF6+Dark Grey | E144: P0000036 | F144: 6 | G144: =30*Table1322[[#This Row],[Quantity Per Sink]] -> 180
A145: DSUP | B145: 1 | C145: Dark Grey | D145: =A145&B145&Table1322[[#This Row],[Color]] -> DSUP1Dark Grey | E145: P0000031 | F145: 1 | G145: =30*Table1322[[#This Row],[Quantity Per Sink]] -> 30
A146: DSUP | B146: 2 | C146: Dark Grey | D146: =A146&B146&Table1322[[#This Row],[Color]] -> DSUP2Dark Grey | E146: P0000032 | F146: 2 | G146: =30*Table1322[[#This Row],[Quantity Per Sink]] -> 60
A147: DSUP | B147: 3 | C147: Dark Grey | D147: =A147&B147&Table1322[[#This Row],[Color]] -> DSUP3Dark Grey | E147: P0000033 | F147: 3 | G147: =30*Table1322[[#This Row],[Quantity Per Sink]] -> 90
A148: DSUP | B148: 4 | C148: Dark Grey | D148: =A148&B148&Table1322[[#This Row],[Color]] -> DSUP4Dark Grey | E148: P0000034 | F148: 4 | G148: =30*Table1322[[#This Row],[Quantity Per Sink]] -> 120
A149: DSUP | B149: 5 | C149: Dark Grey | D149: =A149&B149&Table1322[[#This Row],[Color]] -> DSUP5Dark Grey | E149: P0000035 | F149: 5 | G149: =30*Table1322[[#This Row],[Quantity Per Sink]] -> 150
A150: DSUP | B150: 6+ | C150: Dark Grey | D150: =A150&B150&Table1322[[#This Row],[Color]] -> DSUP6+Dark Grey | E150: P0000036 | F150: 6 | G150: =30*Table1322[[#This Row],[Quantity Per Sink]] -> 180
A151: DSVR | B151: 1 | C151: Dark Grey | D151: =A151&B151&Table1322[[#This Row],[Color]] -> DSVR1Dark Grey | E151: P0000031 | F151: 1 | G151: =30*Table1322[[#This Row],[Quantity Per Sink]] -> 30
A152: DSVR | B152: 2 | C152: Dark Grey | D152: =A152&B152&Table1322[[#This Row],[Color]] -> DSVR2Dark Grey | E152: P0000032 | F152: 2 | G152: =30*Table1322[[#This Row],[Quantity Per Sink]] -> 60
A153: DSVR | B153: 3 | C153: Dark Grey | D153: =A153&B153&Table1322[[#This Row],[Color]] -> DSVR3Dark Grey | E153: P0000033 | F153: 3 | G153: =30*Table1322[[#This Row],[Quantity Per Sink]] -> 90
A154: DSVR | B154: 4 | C154: Dark Grey | D154: =A154&B154&Table1322[[#This Row],[Color]] -> DSVR4Dark Grey | E154: P0000034 | F154: 4 | G154: =30*Table1322[[#This Row],[Quantity Per Sink]] -> 120
A155: DSVR | B155: 5 | C155: Dark Grey | D155: =A155&B155&Table1322[[#This Row],[Color]] -> DSVR5Dark Grey | E155: P0000035 | F155: 5 | G155: =30*Table1322[[#This Row],[Quantity Per Sink]] -> 150
A156: DSVR | B156: 6+ | C156: Dark Grey | D156: =A156&B156&Table1322[[#This Row],[Color]] -> DSVR6+Dark Grey | E156: P0000036 | F156: 6 | G156: =30*Table1322[[#This Row],[Quantity Per Sink]] -> 180
A157: DSWD | B157: 1 | C157: Dark Grey | D157: =A157&B157&Table1322[[#This Row],[Color]] -> DSWD1Dark Grey | E157: P0000031 | F157: 1 | G157: =30*Table1322[[#This Row],[Quantity Per Sink]] -> 30
A158: DSWD | B158: 2 | C158: Dark Grey | D158: =A158&B158&Table1322[[#This Row],[Color]] -> DSWD2Dark Grey | E158: P0000032 | F158: 2 | G158: =30*Table1322[[#This Row],[Quantity Per Sink]] -> 60
A159: DSWD | B159: 3 | C159: Dark Grey | D159: =A159&B159&Table1322[[#This Row],[Color]] -> DSWD3Dark Grey | E159: P0000033 | F159: 3 | G159: =30*Table1322[[#This Row],[Quantity Per Sink]] -> 90
A160: DSWD | B160: 4 | C160: Dark Grey | D160: =A160&B160&Table1322[[#This Row],[Color]] -> DSWD4Dark Grey | E160: P0000034 | F160: 4 | G160: =30*Table1322[[#This Row],[Quantity Per Sink]] -> 120
A161: DSWD | B161: 5 | C161: Dark Grey | D161: =A161&B161&Table1322[[#This Row],[Color]] -> DSWD5Dark Grey | E161: P0000035 | F161: 5 | G161: =30*Table1322[[#This Row],[Quantity Per Sink]] -> 150
A162: DSWD | B162: 6+ | C162: Dark Grey | D162: =A162&B162&Table1322[[#This Row],[Color]] -> DSWD6+Dark Grey | E162: P0000036 | F162: 6 | G162: =30*Table1322[[#This Row],[Quantity Per Sink]] -> 180
A164: Hand Dryer | B164: Station Amount | C164: Finish | D164: Lookup | E164: Material Number | F164: Quantity Per Sink | G164: Cost
A165: AD | B165: 1 | C165: Chrome Plated | D165: =A165&B165&C165 -> AD1Chrome Plated | E165: 3366085 | F165: 1 | G165: =700*Table1423[[#This Row],[Quantity Per Sink]] -> 700
A166: AD | B166: 2 | C166: Chrome Plated | D166: =A166&B166&C166 -> AD2Chrome Plated | E166: 3366085 | F166: 2 | G166: =700*Table1423[[#This Row],[Quantity Per Sink]] -> 1400
A167: AD | B167: 3 | C167: Chrome Plated | D167: AD3Chrome Plated | E167: 3366085 | F167: 3 | G167: =700*Table1423[[#This Row],[Quantity Per Sink]] -> 2100
A168: AD | B168: 4 | C168: Chrome Plated | D168: AD4Chrome Plated | E168: 3366085 | F168: 4 | G168: =700*Table1423[[#This Row],[Quantity Per Sink]] -> 2800
A169: AD | B169: 5 | C169: Chrome Plated | D169: AD5Chrome Plated | E169: 3366085 | F169: 5 | G169: =700*Table1423[[#This Row],[Quantity Per Sink]] -> 3500
A170: AD | B170: 6+ | C170: Chrome Plated | D170: AD6+Chrome Plated | E170: 3366085 | F170: 6 | G170: =700*Table1423[[#This Row],[Quantity Per Sink]] -> 4200
A171: AD | B171: 1 | C171: Brushed Nickel | D171: AD1Brushed Nickel | E171: 3366081 | F171: 1 | G171: =700*Table1423[[#This Row],[Quantity Per Sink]] -> 700
A172: AD | B172: 2 | C172: Brushed Nickel | D172: AD2Brushed Nickel | E172: 3366081 | F172: 2 | G172: =700*Table1423[[#This Row],[Quantity Per Sink]] -> 1400
A173: AD | B173: 3 | C173: Brushed Nickel | D173: AD3Brushed Nickel | E173: 3366081 | F173: 3 | G173: =700*Table1423[[#This Row],[Quantity Per Sink]] -> 2100
A174: AD | B174: 4 | C174: Brushed Nickel | D174: AD4Brushed Nickel | E174: 3366081 | F174: 4 | G174: =700*Table1423[[#This Row],[Quantity Per Sink]] -> 2800
A175: AD | B175: 5 | C175: Brushed Nickel | D175: AD5Brushed Nickel | E175: 3366081 | F175: 5 | G175: =700*Table1423[[#This Row],[Quantity Per Sink]] -> 3500
A176: AD | B176: 6+ | C176: Brushed Nickel | D176: AD6+Brushed Nickel | E176: 3366081 | F176: 6 | G176: =700*Table1423[[#This Row],[Quantity Per Sink]] -> 4200
A177: AD | B177: 1 | C177: Polished Brass | D177: AD1Polished Brass | E177: 3366083 | F177: 1 | G177: =700*Table1423[[#This Row],[Quantity Per Sink]] -> 700
A178: AD | B178: 2 | C178: Polished Brass | D178: AD2Polished Brass | E178: 3366083 | F178: 2 | G178: =700*Table1423[[#This Row],[Quantity Per Sink]] -> 1400
A179: AD | B179: 3 | C179: Polished Brass | D179: AD3Polished Brass | E179: 3366083 | F179: 3 | G179: =700*Table1423[[#This Row],[Quantity Per Sink]] -> 2100
A180: AD | B180: 4 | C180: Polished Brass | D180: AD4Polished Brass | E180: 3366083 | F180: 4 | G180: =700*Table1423[[#This Row],[Quantity Per Sink]] -> 2800
A181: AD | B181: 5 | C181: Polished Brass | D181: AD5Polished Brass | E181: 3366083 | F181: 5 | G181: =700*Table1423[[#This Row],[Quantity Per Sink]] -> 3500
A182: AD | B182: 6+ | C182: Polished Brass | D182: AD6+Polished Brass | E182: 3366083 | F182: 6 | G182: =700*Table1423[[#This Row],[Quantity Per Sink]] -> 4200
A183: AD | B183: 1 | C183: Brushed Stainless | D183: AD1Brushed Stainless | E183: 3366082 | F183: 1 | G183: =700*Table1423[[#This Row],[Quantity Per Sink]] -> 700
A184: AD | B184: 2 | C184: Brushed Stainless | D184: AD2Brushed Stainless | E184: 3366082 | F184: 2 | G184: =700*Table1423[[#This Row],[Quantity Per Sink]] -> 1400
A185: AD | B185: 3 | C185: Brushed Stainless | D185: AD3Brushed Stainless | E185: 3366082 | F185: 3 | G185: =700*Table1423[[#This Row],[Quantity Per Sink]] -> 2100
A186: AD | B186: 4 | C186: Brushed Stainless | D186: AD4Brushed Stainless | E186: 3366082 | F186: 4 | G186: =700*Table1423[[#This Row],[Quantity Per Sink]] -> 2800
A187: AD | B187: 5 | C187: Brushed Stainless | D187: AD5Brushed Stainless | E187: 3366082 | F187: 5 | G187: =700*Table1423[[#This Row],[Quantity Per Sink]] -> 3500
A188: AD | B188: 6+ | C188: Brushed Stainless | D188: AD6+Brushed Stainless | E188: 3366082 | F188: 6 | G188: =700*Table1423[[#This Row],[Quantity Per Sink]] -> 4200
A191: Paper Towel holder | B191: Station Amount | C191: Look Up | D191: Material Number | E191: Quantity Per Sink | F191: Cost
A192: All Types | B192: 1 | C192: 1 | D192: 0000043 | E192: 1 | F192: =1000*Table1524[[#This Row],[Quantity Per Sink]] -> 1000
A193: All Types | B193: 2 | C193: 2 | D193: 0000043 | E193: 1 | F193: =1000*Table1524[[#This Row],[Quantity Per Sink]] -> 1000
A194: All Types | B194: 3 | C194: 3 | D194: 0000043 | E194: 2 | F194: =1000*Table1524[[#This Row],[Quantity Per Sink]] -> 2000
A195: All Types | B195: 4 | C195: 4 | D195: 0000043 | E195: 2 | F195: =1000*Table1524[[#This Row],[Quantity Per Sink]] -> 2000
A196: All Types | B196: 5 | C196: 5 | D196: 0000043 | E196: 3 | F196: =1000*Table1524[[#This Row],[Quantity Per Sink]] -> 3000
A197: All Types | B197: 6+ | C197: 6+ | D197: 0000043 | E197: 3 | F197: =1000*Table1524[[#This Row],[Quantity Per Sink]] -> 3000
A200: Baby Changing Station | B200: Station Amount | C200: Look Up | D200: Material Number | E200: Quantity Per Sink | F200: Cost
A201: All Types | B201: 1 | C201: 1 | D201: 0000044 | E201: 1 | F201: =1500*Table1625[[#This Row],[Quantity Per Sink]] -> 1500
A202: All Types | B202: 2 | C202: 2 | D202: 0000044 | E202: 1 | F202: =1500*Table1625[[#This Row],[Quantity Per Sink]] -> 1500
A203: All Types | B203: 3 | C203: 3 | D203: 0000044 | E203: 1 | F203: =1500*Table1625[[#This Row],[Quantity Per Sink]] -> 1500
A204: All Types | B204: 4 | C204: 4 | D204: 0000044 | E204: 1 | F204: =1500*Table1625[[#This Row],[Quantity Per Sink]] -> 1500
A205: All Types | B205: 5 | C205: 5 | D205: 0000044 | E205: 1 | F205: =1500*Table1625[[#This Row],[Quantity Per Sink]] -> 1500
A206: All Types | B206: 6+ | C206: 6+ | D206: 0000044 | E206: 1 | F206: =1500*Table1625[[#This Row],[Quantity Per Sink]] -> 1500

Sheet Images (hidden)
A1: Bounce | B1: Code | C1: Image
A2: =IF(ISBLANK('Arc Worksheet'!N20),"Blank",'Arc Worksheet'!N20) -> Blank | B2: Abstract | F2: =IF(ISBLANK(A2),#N/A,(INDEX($C$2:$C$70,MATCH($A$2,$B$2:$B$70,0)))) -> 
B3: Cultural
B4: Geometric
B5: Natural

Sheet Engineering BOM (hidden)
A1: =IF(ISBLANK('Arc Worksheet'!D13),"",'Arc Worksheet'!D13) ->  | B1: =IF(ISBLANK('Arc Worksheet'!F13),"",'Arc Worksheet'!F13) ->  | C1: =IF(ISBLANK('Arc Worksheet'!I13),"",'Arc Worksheet'!I13) ->  | D1: =IF(ISBLANK('Arc Worksheet'!N13),"",'Arc Worksheet'!N13) ->  | E1: =IF(ISBLANK('Arc Worksheet'!S13),"",'Arc Worksheet'!S13) -> 
A2: Shipping Lead Time* | B2: Quote Number | C2: Compliance Notes | D2: Additional Notes
A3: =IF(ISBLANK('Arc Worksheet'!D61),"",'Arc Worksheet'!D61) ->  | B3: =IF(ISBLANK('Arc Worksheet'!I61),"",'Arc Worksheet'!I61) ->  | C3: =IF(ISBLANK('Arc Worksheet'!I58),"",'Arc Worksheet'!I58) ->  | D3: =IF(ISBLANK('Arc Worksheet'!N58),"",'Arc Worksheet'!N58) ->  | E3: =IF(ISBLANK('Arc Worksheet'!D58),"",'Arc Worksheet'!D58) -> 
A4: Generic Code | B4: SAP Code | C4: Sink Quantity
A5: ='Bill Of Material'!C5 ->  | B5: ='Bill Of Material'!D8 ->  | C5: =IF(ISBLANK('Arc Worksheet'!D20),"",'Arc Worksheet'!D20) -> 
A6: Sink Model | B6: Station Quantity | C6: Drawing Requested?
A7: =IF(ISBLANK('Arc Worksheet'!#REF!),"",'Arc Worksheet'!#REF!) ->  | B7: =IF(ISBLANK('Arc Worksheet'!#REF!),"",'Arc Worksheet'!#REF!) ->  | C7: =IF(ISBLANK('Arc Worksheet'!D29),"",'Arc Worksheet'!D29) -> 
A8: Material | B8: Material Code | C8: Material Color | D8: Material Color Code
A9: =IF(ISBLANK('Arc Worksheet'!D23),"",'Arc Worksheet'!D23) ->  | B9: =IF(ISBLANK('Arc Worksheet'!D23),"",VLOOKUP('Arc Worksheet'!D23,'Drop Tables'!H:I,2,0)) ->  | C9: =IF(ISBLANK('Arc Worksheet'!I23),"",'Arc Worksheet'!I23) ->  | D9: =IF(ISBLANK('Arc Worksheet'!I23),"",VLOOKUP('Arc Worksheet'!I23,'Drop Tables'!Z:AB,3,0)) -> 
A10: Enclosure | B10: Material Code | C10: Quantity Per Sink | D10: Quantity Per Order
A11: =IF(ISBLANK('Arc Worksheet'!#REF!),"",'Arc Worksheet'!#REF!) ->  | B11: ='Bill Of Material'!D9 ->  | C11: ='Bill Of Material'!E9 ->  | D11: ='Bill Of Material'!F8 -> 
A12: Trough Style | B12: Edge Type | C12: Bowl Type | D12: Trash Hole
A13: =IF(ISBLANK('Arc Worksheet'!N23),"",'Arc Worksheet'!N23) ->  | B13: =IF(ISBLANK('Arc Worksheet'!I26),"",'Arc Worksheet'!I26) ->  | C13: =IF(ISBLANK('Arc Worksheet'!#REF!),"",'Arc Worksheet'!#REF!) ->  | D13: =IF(ISBLANK('Arc Worksheet'!#REF!),"",'Arc Worksheet'!#REF!) -> 
A14: Laminate Color | B14: Material Code
A15: =IF(ISBLANK('Arc Worksheet'!#REF!),"",'Arc Worksheet'!#REF!) ->  | B15: =IF(ISBLANK('Arc Worksheet'!#REF!),"",VLOOKUP('Arc Worksheet'!#REF!,'Drop Tables'!AD:AD,2,0)) -> 
A16: LED | B16: Material Number | C16: Quantity Per Sink | D16: Quantity Per Order
A17: =IF(ISBLANK('Arc Worksheet'!I20),"",'Arc Worksheet'!I20) ->  | B17: =IF(ISBLANK('Arc Worksheet'!I20),"",IF('Arc Worksheet'!I20="No","",VLOOKUP(#REF!,#REF!,2,0))) ->  | C17: =IF(ISBLANK('Arc Worksheet'!I20),"",IF('Arc Worksheet'!I20="No","",VLOOKUP(#REF!,#REF!,3,0))) ->  | D17: =IF(ISBLANK('Arc Worksheet'!I20),"",IF('Arc Worksheet'!I20="No","",(VLOOKUP(#REF!,#REF!,3,0)*C5))) -> 
A18: Bag Hooks | B18: Material Number | C18: Quantity Per Sink | D18: Quantity Per Order
A19: =IF(ISBLANK('Arc Worksheet'!#REF!),"",'Arc Worksheet'!#REF!) ->  | B19: =IF(ISBLANK('Arc Worksheet'!#REF!),"",IF('Arc Worksheet'!#REF!="No","",VLOOKUP(#REF!,#REF!,2,0))) ->  | C19: =IF(ISBLANK('Arc Worksheet'!#REF!),"",'Arc Worksheet'!#REF!) ->  | D19: =IF(ISBLANK('Arc Worksheet'!#REF!),"",IF('Arc Worksheet'!#REF!="No","",('Arc Worksheet'!#REF!*C5))) -> 
A20: Hand Dryer (AD) | B20: Material Number | C20: Quantity Per Sink | D20: Quantity Per Order
A21: =IF(ISBLANK('Arc Worksheet'!#REF!),"",'Arc Worksheet'!#REF!) ->  | B21: =IF(ISBLANK('Arc Worksheet'!#REF!),"",VLOOKUP(#REF!,#REF!,2,0)) ->  | C21: =IF(ISBLANK('Arc Worksheet'!#REF!),"",VLOOKUP(#REF!,#REF!,3,0)) ->  | D21: =IF(ISBLANK('Arc Worksheet'!#REF!),"",(C5*'Engineering BOM'!C21)) -> 
A22: Paper Towel holder | B22: Material Number | C22: Quantity Per Sink | D22: Quantity Per Order
A23: =IF(ISBLANK('Arc Worksheet'!#REF!),"",'Arc Worksheet'!#REF!) ->  | B23: =IF('Arc Worksheet'!#REF!="Yes",VLOOKUP(#REF!,#REF!,2,0),"") ->  | C23: =IF(ISBLANK('Arc Worksheet'!#REF!),"",IF('Arc Worksheet'!#REF!="No","",VLOOKUP(#REF!,#REF!,3,0))) ->  | D23: =IF(ISBLANK('Arc Worksheet'!#REF!),"",IF('Arc Worksheet'!#REF!="No","",(C5*'Engineering BOM'!C23))) -> 
A24: Baby Changing Station | B24: Material Number | C24: Quantity Per Sink | D24: Quantity Per Order
A25: =IF(ISBLANK('Arc Worksheet'!#REF!),"",'Arc Worksheet'!#REF!) ->  | B25: =IF(ISBLANK('Arc Worksheet'!#REF!),"",IF('Arc Worksheet'!#REF!="No","",VLOOKUP(#REF!,#REF!,2,0))) ->  | C25: =IF(ISBLANK('Arc Worksheet'!#REF!),"",IF('Arc Worksheet'!#REF!="No","",1)) ->  | D25: =IF(C25=1,C5,"") -> 
A26: Basin Grates (DSWD) | B26: Material Number | C26: Quantity Per Sink | D26: Quantity Per Order
A27: =IF(ISBLANK('Arc Worksheet'!#REF!),"",'Arc Worksheet'!#REF!) ->  | B27: =IF(ISBLANK('Arc Worksheet'!#REF!),"",IF('Arc Worksheet'!#REF!="No","",VLOOKUP(#REF!,#REF!,2,0))) ->  | C27: =IF(ISBLANK('Arc Worksheet'!#REF!),"",IF('Arc Worksheet'!#REF!="No","",1)) ->  | D27: =IF('Arc Worksheet'!#REF!="Yes",C5,"") -> 
A28: Sloan Faucet Model | B28: Sloan Faucet Code | C28: Faucet Quantity (per sink) | D28: Quantity Per Order
A29: =IF(ISBLANK('Arc Worksheet'!#REF!),IFERROR(VLOOKUP('Arc Worksheet'!#REF!,'Faucet Price Table'!#REF!,2,0),""),'Arc Worksheet'!#REF!) ->  | B29: =IF(ISBLANK('Arc Worksheet'!#REF!),'Arc Worksheet'!#REF!,VLOOKUP('Arc Worksheet'!#REF!,'Faucet Price Table'!#REF!,3,0)) ->  | C29: =IF(ISBLANK('Arc Worksheet'!#REF!),"",'Arc Worksheet'!#REF!) ->  | D29: =IF(ISBLANK('Arc Worksheet'!#REF!),"",('Arc Worksheet'!#REF!*C5)) -> 
A30: Sloan Soap Dispenser Model | B30: Sloan Soap Dispenser Code | C30: Soap Dispenser Quantity (per sink) | D30: Quantity Per Order
A31: =IF(ISBLANK('Arc Worksheet'!#REF!),IFERROR(VLOOKUP('Arc Worksheet'!#REF!,'Soap Price Table'!#REF!,3,0),""),'Arc Worksheet'!#REF!) ->  | B31: =IF(ISBLANK('Arc Worksheet'!#REF!),'Arc Worksheet'!#REF!,VLOOKUP('Arc Worksheet'!#REF!,'Soap Price Table'!#REF!,3,0)) ->  | C31: =IF(ISBLANK('Arc Worksheet'!#REF!),"",'Arc Worksheet'!#REF!) ->  | D31: =IF(ISBLANK('Arc Worksheet'!#REF!),"",('Arc Worksheet'!#REF!*C5)) -> 
A32: Alcove | B32: Material Number | C32: Quantity Per Sink | D32: Quantity Per Order
A33: =IF(ISBLANK('Arc Worksheet'!#REF!),"",'Arc Worksheet'!#REF!) ->  | B33: =IF(ISBLANK(A33),"",IFERROR(VLOOKUP(A33,Dimensions!K:L,2,0),"")) ->  | C33: =IF(ISBLANK('Arc Worksheet'!#REF!),"",IF('Arc Worksheet'!#REF!="No","",1)) ->  | D33: =IF(ISBLANK('Arc Worksheet'!#REF!),"",IF('Arc Worksheet'!#REF!="No","",C5)) -> 
A34: Dimensions | B34: A+ | C34: B+ | D34: C= | E34: D
A35: Standard | B35: ='Arc Worksheet'!#REF! ->  | C35: ='Arc Worksheet'!#REF! ->  | D35: ='Arc Worksheet'!#REF! ->  | E35: ='Arc Worksheet'!#REF! -> 
A36: Custom | B36: =IF(ISBLANK('Arc Worksheet'!#REF!),"",'Arc Worksheet'!#REF!) ->  | C36: =IF(ISBLANK('Arc Worksheet'!#REF!),"",'Arc Worksheet'!#REF!) ->  | D36: =IF(ISBLANK('Arc Worksheet'!#REF!),"",'Arc Worksheet'!#REF!) ->  | E36: =IF(ISBLANK('Arc Worksheet'!#REF!),"",'Arc Worksheet'!#REF!) -> 
A37: Soap Hole | B37: Inches | C37: Faucet Hole | D37: Inches
A38: Standard | B38: ='Arc Worksheet'!#REF! ->  | C38: Standard | D38: ='Arc Worksheet'!#REF! -> 
A39: Custom | B39: =IF(ISBLANK('Arc Worksheet'!#REF!),"",'Arc Worksheet'!#REF!) ->  | C39: Custom | D39: =IF(ISBLANK('Arc Worksheet'!#REF!),"",'Arc Worksheet'!#REF!) -> 
A40: Back Splash | B40: Inches | C40: Apron | D40: Inches
A41: Standard | B41: ='Arc Worksheet'!#REF! ->  | C41: Standard | D41: ='Arc Worksheet'!#REF! -> 
A42: Custom | B42: =IF(ISBLANK('Arc Worksheet'!#REF!),"",'Arc Worksheet'!#REF!) ->  | C42: Custom | D42: =IF(ISBLANK('Arc Worksheet'!#REF!),"",'Arc Worksheet'!#REF!) -> 

Sheet Mounting Cheat Sheet (hidden)
A1: Bounce | B1: Code 1 | C1: Count | D1: Code 2 | E1: Count | F1: Code 1 Cost | G1: Code 2 Cost
A2: ABDSG1 | B2: 386063 | C2: 2 | D2: Xtra Code Not Needed | E2: N/A | F2: 189.43 | G2: 0
A3: ABDSG2 | B3: 386063 | C3: 2 | D3: 386064 | E3: 2 | F3: 189.43 | G3: 194.99
A4: ABDSG3 | B4: 386063 | C4: 2 | D4: 386064 | E4: 3 | F4: 189.43 | G4: 194.99
A5: ABDSG4 | B5: 386063 | C5: 2 | D5: 386064 | E5: 4 | F5: 189.43 | G5: 194.99
A6: ABDSWD1 | B6: 386063 | C6: 2 | D6: Xtra Code Not Needed | E6: N/A | F6: 189.43 | G6: 0
A7: ABDSWD2 | B7: 386063 | C7: 2 | D7: 386064 | E7: 2 | F7: 189.43 | G7: 194.99
A8: ABDSWD3 | B8: 386063 | C8: 2 | D8: 386064 | E8: 3 | F8: 189.43 | G8: 194.99
A9: ABDSWD4 | B9: 386063 | C9: 2 | D9: 386064 | E9: 4 | F9: 189.43 | G9: 194.99
A10: ABDSCT1 | B10: 386063 | C10: 2 | D10: Xtra Code Not Needed | E10: N/A | F10: 189.43 | G10: 0
A11: ABDSCT2 | B11: 386063 | C11: 4 | D11: Xtra Code Not Needed | E11: N/A | F11: 189.43 | G11: 0
A12: ABDSCT3 | B12: 386063 | C12: 5 | D12: Xtra Code Not Needed | E12: N/A | F12: 189.43 | G12: 0
A13: ABDSCT4 | B13: 386063 | C13: 6 | D13: Xtra Code Not Needed | E13: N/A | F13: 189.43 | G13: 0
A14: ABDSOF1 | B14: 386063 | C14: 2 | D14: Xtra Code Not Needed | E14: N/A | F14: 189.43 | G14: 0
A15: ABDSOF2 | B15: 386063 | C15: 3 | D15: Xtra Code Not Needed | E15: N/A | F15: 189.43 | G15: 0
A16: ABDSOF3 | B16: 386063 | C16: 4 | D16: Xtra Code Not Needed | E16: N/A | F16: 189.43 | G16: 0
A17: ABDSOF4 | B17: 386063 | C17: 5 | D17: Xtra Code Not Needed | E17: N/A | F17: 189.43 | G17: 0
A18: ABDSVR1 | B18: 386063 | C18: 2 | D18: Xtra Code Not Needed | E18: N/A | F18: 189.43 | G18: 0
A19: ABDSVR2 | B19: 386063 | C19: 4 | D19: Xtra Code Not Needed | E19: N/A | F19: 189.43 | G19: 0
A20: ABDSVR3 | B20: 386063 | C20: 5 | D20: Xtra Code Not Needed | E20: N/A | F20: 189.43 | G20: 0
A21: ABDSVR4 | B21: 386063 | C21: 6 | D21: Xtra Code Not Needed | E21: N/A | F21: 189.43 | G21: 0

Sheet Generic Codes (hidden)
A1: LOOK UP | B1: Material | C1: Trough or Basin | D1: Prefix | E1: # Stations | F1: Bowl Type | G1: A | H1: B | I1: C | J1: D | K1: E | L1: F | M1: G | N1: H | O1: I | P1: J
A2: CorianContinuous TroughAD1 | B2: Corian | C2: Continuous Trough | D2: AD | E2: 1 | G2: =$D2&F2 & "-8" & $E2 & "000-C" &G$1 -> AD-81000-CA | H2: =$D2&F2 & "-8" & $E2 & "000-C" &H$1 -> AD-81000-CB | I2: =$D2&F2 & "-8" & $E2 & "000-C" &I$1 -> AD-81000-CC | J2: =$D2&F2 & "-8" & $E2 & "000-C" &J$1 -> AD-81000-CD | K2: N/A | L2: N/A | M2: N/A | N2: N/A | O2: N/A | P2: N/A
A3: CorianContinuous TroughAD2 | B3: Corian | C3: Continuous Trough | D3: AD | E3: 2 | G3: =$D3&F3 & "-8" & $E3 & "000-C" &G$1 -> AD-82000-CA | H3: =$D3&F3 & "-8" & $E3 & "000-C" &H$1 -> AD-82000-CB | I3: =$D3&F3 & "-8" & $E3 & "000-C" &I$1 -> AD-82000-CC | J3: =$D3&F3 & "-8" & $E3 & "000-C" &J$1 -> AD-82000-CD | K3: N/A | L3: N/A | M3: N/A | N3: N/A | O3: N/A | P3: N/A
A4: CorianContinuous TroughAD3 | B4: Corian | C4: Continuous Trough | D4: AD | E4: 3 | G4: AD-83000-CA | H4: AD-83000-CB | I4: AD-83000-CC | J4: AD-83000-CD | K4: N/A | L4: N/A | M4: N/A | N4: N/A | O4: N/A | P4: N/A
A5: CorianContinuous TroughAD4 | B5: Corian | C5: Continuous Trough | D5: AD | E5: 4 | G5: AD-84000-CA | H5: AD-84000-CB | I5: AD-84000-CC | J5: AD-84000-CD | K5: N/A | L5: N/A | M5: N/A | N5: N/A | O5: N/A | P5: N/A
A6: CorianContinuous TroughAD5 | B6: Corian | C6: Continuous Trough | D6: AD | E6: 5 | G6: AD-85000-CA | H6: AD-85000-CB | I6: AD-85000-CC | J6: AD-85000-CD | K6: N/A | L6: N/A | M6: N/A | N6: N/A | O6: N/A | P6: N/A
A7: CorianContinuous TroughAD6+ | B7: Corian | C7: Continuous Trough | D7: AD | E7: 6+ | G7: AD-86+000-CA | H7: AD-86+000-CB | I7: AD-86+000-CC | J7: AD-86+000-CD | K7: N/A | L7: N/A | M7: N/A | N7: N/A | O7: N/A | P7: N/A
A8: CorianContinuous TroughDSG1 | B8: Corian | C8: Continuous Trough | D8: DSG | E8: 1 | G8: DSG-81000-CA | H8: DSG-81000-CB | I8: DSG-81000-CC | J8: DSG-81000-CD | K8: N/A | L8: N/A | M8: N/A | N8: N/A | O8: N/A | P8: N/A
A9: CorianContinuous TroughDSG2 | B9: Corian | C9: Continuous Trough | D9: DSG | E9: 2 | G9: DSG-82000-CA | H9: DSG-82000-CB | I9: DSG-82000-CC | J9: DSG-82000-CD | K9: N/A | L9: N/A | M9: N/A | N9: N/A | O9: N/A | P9: N/A
A10: CorianContinuous TroughDSG3 | B10: Corian | C10: Continuous Trough | D10: DSG | E10: 3 | G10: DSG-83000-CA | H10: DSG-83000-CB | I10: DSG-83000-CC | J10: DSG-83000-CD | K10: N/A | L10: N/A | M10: N/A | N10: N/A | O10: N/A | P10: N/A
A11: CorianContinuous TroughDSG4 | B11: Corian | C11: Continuous Trough | D11: DSG | E11: 4 | G11: DSG-84000-CA | H11: DSG-84000-CB | I11: DSG-84000-CC | J11: DSG-84000-CD | K11: N/A | L11: N/A | M11: N/A | N11: N/A | O11: N/A | P11: N/A
A12: CorianContinuous TroughDSG5 | B12: Corian | C12: Continuous Trough | D12: DSG | E12: 5 | G12: DSG-85000-CA | H12: DSG-85000-CB | I12: DSG-85000-CC | J12: DSG-85000-CD | K12: N/A | L12: N/A | M12: N/A | N12: N/A | O12: N/A | P12: N/A
A13: CorianContinuous TroughDSG6+ | B13: Corian | C13: Continuous Trough | D13: DSG | E13: 6+ | G13: DSG-86+000-CA | H13: DSG-86+000-CB | I13: DSG-86+000-CC | J13: DSG-86+000-CD | K13: N/A | L13: N/A | M13: N/A | N13: N/A | O13: N/A | P13: N/A
A14: CorianContinuous TroughDSWD1 | B14: Corian | C14: Continuous Trough | D14: DSWD | E14: 1 | G14: DSWD-81000-CA | H14: DSWD-81000-CB | I14: DSWD-81000-CC | J14: DSWD-81000-CD | K14: N/A | L14: N/A | M14: N/A | N14: N/A | O14: N/A | P14: N/A
A15: CorianContinuous TroughDSWD2 | B15: Corian | C15: Continuous Trough | D15: DSWD | E15: 2 | G15: DSWD-82000-CA | H15: DSWD-82000-CB | I15: DSWD-82000-CC | J15: DSWD-82000-CD | K15: N/A | L15: N/A | M15: N/A | N15: N/A | O15: N/A | P15: N/A
A16: CorianContinuous TroughDSWD3 | B16: Corian | C16: Continuous Trough | D16: DSWD | E16: 3 | G16: DSWD-83000-CA | H16: DSWD-83000-CB | I16: DSWD-83000-CC | J16: DSWD-83000-CD | K16: N/A | L16: N/A | M16: N/A | N16: N/A | O16: N/A | P16: N/A
A17: CorianContinuous TroughDSWD4 | B17: Corian | C17: Continuous Trough | D17: DSWD | E17: 4 | G17: DSWD-84000-CA | H17: DSWD-84000-CB | I17: DSWD-84000-CC | J17: DSWD-84000-CD | K17: N/A | L17: N/A | M17: N/A | N17: N/A | O17: N/A | P17: N/A
A18: CorianContinuous TroughDSWD5 | B18: Corian | C18: Continuous Trough | D18: DSWD | E18: 5 | G18: DSWD-85000-CA | H18: DSWD-85000-CB | I18: DSWD-85000-CC | J18: DSWD-85000-CD | K18: N/A | L18: N/A | M18: N/A | N18: N/A | O18: N/A | P18: N/A
A19: CorianContinuous TroughDSWD6+ | B19: Corian | C19: Continuous Trough | D19: DSWD | E19: 6+ | G19: DSWD-86+000-CA | H19: DSWD-86+000-CB | I19: DSWD-86+000-CC | J19: DSWD-86+000-CD | K19: N/A | L19: N/A | M19: N/A | N19: N/A | O19: N/A | P19: N/A
A20: CorianContinuous TroughDSOF1 | B20: Corian | C20: Continuous Trough | D20: DSOF | E20: 1 | G20: DSOF-81000-CA | H20: DSOF-81000-CB | I20: DSOF-81000-CC | J20: DSOF-81000-CD | K20: N/A | L20: N/A | M20: N/A | N20: N/A | O20: N/A | P20: N/A
A21: CorianContinuous TroughDSOF2 | B21: Corian | C21: Continuous Trough | D21: DSOF | E21: 2 | G21: DSOF-82000-CA | H21: DSOF-82000-CB | I21: DSOF-82000-CC | J21: DSOF-82000-CD | K21: N/A | L21: N/A | M21: N/A | N21: N/A | O21: N/A | P21: N/A
A22: CorianContinuous TroughDSOF3 | B22: Corian | C22: Continuous Trough | D22: DSOF | E22: 3 | G22: DSOF-83000-CA | H22: DSOF-83000-CB | I22: DSOF-83000-CC | J22: DSOF-83000-CD | K22: N/A | L22: N/A | M22: N/A | N22: N/A | O22: N/A | P22: N/A
A23: CorianContinuous TroughDSOF4 | B23: Corian | C23: Continuous Trough | D23: DSOF | E23: 4 | G23: DSOF-84000-CA | H23: DSOF-84000-CB | I23: DSOF-84000-CC | J23: DSOF-84000-CD | K23: N/A | L23: N/A | M23: N/A | N23: N/A | O23: N/A | P23: N/A
A24: CorianContinuous TroughDSOF5 | B24: Corian | C24: Continuous Trough | D24: DSOF | E24: 5 | G24: DSOF-85000-CA | H24: DSOF-85000-CB | I24: DSOF-85000-CC | J24: DSOF-85000-CD | K24: N/A | L24: N/A | M24: N/A | N24: N/A | O24: N/A | P24: N/A
A25: CorianContinuous TroughDSOF6+ | B25: Corian | C25: Continuous Trough | D25: DSOF | E25: 6+ | G25: DSOF-86+000-CA | H25: DSOF-86+000-CB | I25: DSOF-86+000-CC | J25: DSOF-86+000-CD | K25: N/A | L25: N/A | M25: N/A | N25: N/A | O25: N/A | P25: N/A
A26: CorianContinuous TroughDSUP1 | B26: Corian | C26: Continuous Trough | D26: DSUP | E26: 1 | G26: DSUP-81000-CA | H26: DSUP-81000-CB | I26: DSUP-81000-CC | J26: DSUP-81000-CD | K26: N/A | L26: N/A | M26: N/A | N26: N/A | O26: N/A | P26: N/A
A27: CorianContinuous TroughDSVR1 | B27: Corian | C27: Continuous Trough | D27: DSVR | E27: 1 | G27: DSVR-81000-CA | H27: DSVR-81000-CB | I27: DSVR-81000-CC | J27: DSVR-81000-CD | K27: N/A | L27: N/A | M27: N/A | N27: N/A | O27: N/A | P27: N/A
A28: CorianContinuous TroughDSVR2 | B28: Corian | C28: Continuous Trough | D28: DSVR | E28: 2 | G28: DSVR-82000-CA | H28: DSVR-82000-CB | I28: DSVR-82000-CC | J28: DSVR-82000-CD | K28: N/A | L28: N/A | M28: N/A | N28: N/A | O28: N/A | P28: N/A
A29: CorianContinuous TroughDSVR3 | B29: Corian | C29: Continuous Trough | D29: DSVR | E29: 3 | G29: DSVR-83000-CA | H29: DSVR-83000-CB | I29: DSVR-83000-CC | J29: DSVR-83000-CD | K29: N/A | L29: N/A | M29: N/A | N29: N/A | O29: N/A | P29: N/A
A30: CorianContinuous TroughDSVR4 | B30: Corian | C30: Continuous Trough | D30: DSVR | E30: 4 | G30: DSVR-84000-CA | H30: DSVR-84000-CB | I30: DSVR-84000-CC | J30: DSVR-84000-CD | K30: N/A | L30: N/A | M30: N/A | N30: N/A | O30: N/A | P30: N/A
A31: CorianContinuous TroughDSVR5 | B31: Corian | C31: Continuous Trough | D31: DSVR | E31: 5 | G31: DSVR-85000-CA | H31: DSVR-85000-CB | I31: DSVR-85000-CC | J31: DSVR-85000-CD | K31: N/A | L31: N/A | M31: N/A | N31: N/A | O31: N/A | P31: N/A
A32: CorianContinuous TroughDSVR6+ | B32: Corian | C32: Continuous Trough | D32: DSVR | E32: 6+ | G32: DSVR-86+000-CA | H32: DSVR-86+000-CB | I32: DSVR-86+000-CC | J32: DSVR-86+000-CD | K32: N/A | L32: N/A | M32: N/A | N32: N/A | O32: N/A | P32: N/A
A33: CorianContinuous TroughDSCT1SS | B33: Corian | C33: Continuous Trough | D33: DSCT | E33: 1 | F33: SS | G33: DSCTSS-81000-CA | H33: DSCTSS-81000-CB | I33: DSCTSS-81000-CC | J33: DSCTSS-81000-CD | K33: N/A | L33: N/A | M33: N/A | N33: N/A | O33: N/A | P33: N/A
A34: CorianContinuous TroughDSCT2SS | B34: Corian | C34: Continuous Trough | D34: DSCT | E34: 2 | F34: SS | G34: DSCTSS-82000-CA | H34: DSCTSS-82000-CB | I34: DSCTSS-82000-CC | J34: DSCTSS-82000-CD | K34: N/A | L34: N/A | M34: N/A | N34: N/A | O34: N/A | P34: N/A
A35: CorianContinuous TroughDSCT3SS | B35: Corian | C35: Continuous Trough | D35: DSCT | E35: 3 | F35: SS | G35: DSCTSS-83000-CA | H35: DSCTSS-83000-CB | I35: DSCTSS-83000-CC | J35: DSCTSS-83000-CD | K35: N/A | L35: N/A | M35: N/A | N35: N/A | O35: N/A | P35: N/A
A36: CorianContinuous TroughDSCT4SS | B36: Corian | C36: Continuous Trough | D36: DSCT | E36: 4 | F36: SS | G36: DSCTSS-84000-CA | H36: DSCTSS-84000-CB | I36: DSCTSS-84000-CC | J36: DSCTSS-84000-CD | K36: N/A | L36: N/A | M36: N/A | N36: N/A | O36: N/A | P36: N/A
A37: CorianContinuous TroughDSCT5SS | B37: Corian | C37: Continuous Trough | D37: DSCT | E37: 5 | F37: SS | G37: DSCTSS-85000-CA | H37: DSCTSS-85000-CB | I37: DSCTSS-85000-CC | J37: DSCTSS-85000-CD | K37: N/A | L37: N/A | M37: N/A | N37: N/A | O37: N/A | P37: N/A
A38: CorianContinuous TroughDSCT6+SS | B38: Corian | C38: Continuous Trough | D38: DSCT | E38: 6+ | F38: SS | G38: DSCTSS-86+000-CA | H38: DSCTSS-86+000-CB | I38: DSCTSS-86+000-CC | J38: DSCTSS-86+000-CD | K38: N/A | L38: N/A | M38: N/A | N38: N/A | O38: N/A | P38: N/A
A39: Corian_QuartzContinuous TroughAD1 | B39: Corian_Quartz | C39: Continuous Trough | D39: AD | E39: 1 | G39: =$D39&F39 & "-8" & $E39 & "000-Q" &G$1 -> AD-81000-QA | H39: =$D39&F39 & "-8" & $E39 & "000-Q" &H$1 -> AD-81000-QB | I39: =$D39&F39 & "-8" & $E39 & "000-Q" &I$1 -> AD-81000-QC | J39: =$D39&F39 & "-8" & $E39 & "000-Q" &J$1 -> AD-81000-QD | K39: =$D39&F39 & "-8" & $E39 & "000-Q" &K$1 -> AD-81000-QE | L39: N/A | M39: N/A | N39: N/A | O39: N/A | P39: N/A
A40: Corian_QuartzContinuous TroughAD2 | B40: Corian_Quartz | C40: Continuous Trough | D40: AD | E40: 2 | G40: =$D40&F40 & "-8" & $E40 & "000-Q" &G$1 -> AD-82000-QA | H40: =$D40&F40 & "-8" & $E40 & "000-Q" &H$1 -> AD-82000-QB | I40: =$D40&F40 & "-8" & $E40 & "000-Q" &I$1 -> AD-82000-QC | J40: =$D40&F40 & "-8" & $E40 & "000-Q" &J$1 -> AD-82000-QD | K40: =$D40&F40 & "-8" & $E40 & "000-Q" &K$1 -> AD-82000-QE | L40: N/A | M40: N/A | N40: N/A | O40: N/A | P40: N/A
A41: Corian_QuartzContinuous TroughAD3 | B41: Corian_Quartz | C41: Continuous Trough | D41: AD | E41: 3 | G41: AD-83000-QA | H41: AD-83000-QB | I41: AD-83000-QC | J41: AD-83000-QD | K41: AD-83000-QE | L41: N/A | M41: N/A | N41: N/A | O41: N/A | P41: N/A
A42: Corian_QuartzContinuous TroughAD4 | B42: Corian_Quartz | C42: Continuous Trough | D42: AD | E42: 4 | G42: AD-84000-QA | H42: AD-84000-QB | I42: AD-84000-QC | J42: AD-84000-QD | K42: AD-84000-QE | L42: N/A | M42: N/A | N42: N/A | O42: N/A | P42: N/A
A43: Corian_QuartzContinuous TroughAD5 | B43: Corian_Quartz | C43: Continuous Trough | D43: AD | E43: 5 | G43: AD-85000-QA | H43: AD-85000-QB | I43: AD-85000-QC | J43: AD-85000-QD | K43: AD-85000-QE | L43: N/A | M43: N/A | N43: N/A | O43: N/A | P43: N/A
A44: Corian_QuartzContinuous TroughAD6+ | B44: Corian_Quartz | C44: Continuous Trough | D44: AD | E44: 6+ | G44: AD-86+000-QA | H44: AD-86+000-QB | I44: AD-86+000-QC | J44: AD-86+000-QD | K44: AD-86+000-QE | L44: N/A | M44: N/A | N44: N/A | O44: N/A | P44: N/A
A45: Corian_QuartzContinuous TroughDSG1 | B45: Corian_Quartz | C45: Continuous Trough | D45: DSG | E45: 1 | G45: DSG-81000-QA | H45: DSG-81000-QB | I45: DSG-81000-QC | J45: DSG-81000-QD | K45: DSG-81000-QE | L45: N/A | M45: N/A | N45: N/A | O45: N/A | P45: N/A
A46: Corian_QuartzContinuous TroughDSG2 | B46: Corian_Quartz | C46: Continuous Trough | D46: DSG | E46: 2 | G46: DSG-82000-QA | H46: DSG-82000-QB | I46: DSG-82000-QC | J46: DSG-82000-QD | K46: DSG-82000-QE | L46: N/A | M46: N/A | N46: N/A | O46: N/A | P46: N/A
A47: Corian_QuartzContinuous TroughDSG3 | B47: Corian_Quartz | C47: Continuous Trough | D47: DSG | E47: 3 | G47: DSG-83000-QA | H47: DSG-83000-QB | I47: DSG-83000-QC | J47: DSG-83000-QD | K47: DSG-83000-QE | L47: N/A | M47: N/A | N47: N/A | O47: N/A | P47: N/A
A48: Corian_QuartzContinuous TroughDSG4 | B48: Corian_Quartz | C48: Continuous Trough | D48: DSG | E48: 4 | G48: DSG-84000-QA | H48: DSG-84000-QB | I48: DSG-84000-QC | J48: DSG-84000-QD | K48: DSG-84000-QE | L48: N/A | M48: N/A | N48: N/A | O48: N/A | P48: N/A
A49: Corian_QuartzContinuous TroughDSG5 | B49: Corian_Quartz | C49: Continuous Trough | D49: DSG | E49: 5 | G49: DSG-85000-QA | H49: DSG-85000-QB | I49: DSG-85000-QC | J49: DSG-85000-QD | K49: DSG-85000-QE | L49: N/A | M49: N/A | N49: N/A | O49: N/A | P49: N/A
A50: Corian_QuartzContinuous TroughDSG6+ | B50: Corian_Quartz | C50: Continuous Trough | D50: DSG | E50: 6+ | G50: DSG-86+000-QA | H50: DSG-86+000-QB | I50: DSG-86+000-QC | J50: DSG-86+000-QD | K50: DSG-86+000-QE | L50: N/A | M50: N/A | N50: N/A | O50: N/A | P50: N/A
A51: Corian_QuartzContinuous TroughDSWD1 | B51: Corian_Quartz | C51: Continuous Trough | D51: DSWD | E51: 1 | G51: DSWD-81000-QA | H51: DSWD-81000-QB | I51: DSWD-81000-QC | J51: DSWD-81000-QD | K51: DSWD-81000-QE | L51: N/A | M51: N/A | N51: N/A | O51: N/A | P51: N/A
A52: Corian_QuartzContinuous TroughDSWD2 | B52: Corian_Quartz | C52: Continuous Trough | D52: DSWD | E52: 2 | G52: DSWD-82000-QA | H52: DSWD-82000-QB | I52: DSWD-82000-QC | J52: DSWD-82000-QD | K52: DSWD-82000-QE | L52: N/A | M52: N/A | N52: N/A | O52: N/A | P52: N/A
A53: Corian_QuartzContinuous TroughDSWD3 | B53: Corian_Quartz | C53: Continuous Trough | D53: DSWD | E53: 3 | G53: DSWD-83000-QA | H53: DSWD-83000-QB | I53: DSWD-83000-QC | J53: DSWD-83000-QD | K53: DSWD-83000-QE | L53: N/A | M53: N/A | N53: N/A | O53: N/A | P53: N/A
A54: Corian_QuartzContinuous TroughDSWD4 | B54: Corian_Quartz | C54: Continuous Trough | D54: DSWD | E54: 4 | G54: DSWD-84000-QA | H54: DSWD-84000-QB | I54: DSWD-84000-QC | J54: DSWD-84000-QD | K54: DSWD-84000-QE | L54: N/A | M54: N/A | N54: N/A | O54: N/A | P54: N/A
A55: Corian_QuartzContinuous TroughDSWD5 | B55: Corian_Quartz | C55: Continuous Trough | D55: DSWD | E55: 5 | G55: DSWD-85000-QA | H55: DSWD-85000-QB | I55: DSWD-85000-QC | J55: DSWD-85000-QD | K55: DSWD-85000-QE | L55: N/A | M55: N/A | N55: N/A | O55: N/A | P55: N/A
A56: Corian_QuartzContinuous TroughDSWD6+ | B56: Corian_Quartz | C56: Continuous Trough | D56: DSWD | E56: 6+ | G56: DSWD-86+000-QA | H56: DSWD-86+000-QB | I56: DSWD-86+000-QC | J56: DSWD-86+000-QD | K56: DSWD-86+000-QE | L56: N/A | M56: N/A | N56: N/A | O56: N/A | P56: N/A
A57: Corian_QuartzContinuous TroughDSOF1 | B57: Corian_Quartz | C57: Continuous Trough | D57: DSOF | E57: 1 | G57: DSOF-81000-QA | H57: DSOF-81000-QB | I57: DSOF-81000-QC | J57: DSOF-81000-QD | K57: DSOF-81000-QE | L57: N/A | M57: N/A | N57: N/A | O57: N/A | P57: N/A
A58: Corian_QuartzContinuous TroughDSOF2 | B58: Corian_Quartz | C58: Continuous Trough | D58: DSOF | E58: 2 | G58: DSOF-82000-QA | H58: DSOF-82000-QB | I58: DSOF-82000-QC | J58: DSOF-82000-QD | K58: DSOF-82000-QE | L58: N/A | M58: N/A | N58: N/A | O58: N/A | P58: N/A
A59: Corian_QuartzContinuous TroughDSOF3 | B59: Corian_Quartz | C59: Continuous Trough | D59: DSOF | E59: 3 | G59: DSOF-83000-QA | H59: DSOF-83000-QB | I59: DSOF-83000-QC | J59: DSOF-83000-QD | K59: DSOF-83000-QE | L59: N/A | M59: N/A | N59: N/A | O59: N/A | P59: N/A
A60: Corian_QuartzContinuous TroughDSOF4 | B60: Corian_Quartz | C60: Continuous Trough | D60: DSOF | E60: 4 | G60: DSOF-84000-QA | H60: DSOF-84000-QB | I60: DSOF-84000-QC | J60: DSOF-84000-QD | K60: DSOF-84000-QE | L60: N/A | M60: N/A | N60: N/A | O60: N/A | P60: N/A
A61: Corian_QuartzContinuous TroughDSOF5 | B61: Corian_Quartz | C61: Continuous Trough | D61: DSOF | E61: 5 | G61: DSOF-85000-QA | H61: DSOF-85000-QB | I61: DSOF-85000-QC | J61: DSOF-85000-QD | K61: DSOF-85000-QE | L61: N/A | M61: N/A | N61: N/A | O61: N/A | P61: N/A
A62: Corian_QuartzContinuous TroughDSOF6+ | B62: Corian_Quartz | C62: Continuous Trough | D62: DSOF | E62: 6+ | G62: DSOF-86+000-QA | H62: DSOF-86+000-QB | I62: DSOF-86+000-QC | J62: DSOF-86+000-QD | K62: DSOF-86+000-QE | L62: N/A | M62: N/A | N62: N/A | O62: N/A | P62: N/A
A63: Corian_QuartzContinuous TroughDSUP1 | B63: Corian_Quartz | C63: Continuous Trough | D63: DSUP | E63: 1 | G63: DSUP-81000-QA | H63: DSUP-81000-QB | I63: DSUP-81000-QC | J63: DSUP-81000-QD | K63: DSUP-81000-QE | L63: N/A | M63: N/A | N63: N/A | O63: N/A | P63: N/A
A64: Corian_QuartzContinuous TroughDSVR1 | B64: Corian_Quartz | C64: Continuous Trough | D64: DSVR | E64: 1 | G64: DSVR-81000-QA | H64: DSVR-81000-QB | I64: DSVR-81000-QC | J64: DSVR-81000-QD | K64: DSVR-81000-QE | L64: N/A | M64: N/A | N64: N/A | O64: N/A | P64: N/A
A65: Corian_QuartzContinuous TroughDSVR2 | B65: Corian_Quartz | C65: Continuous Trough | D65: DSVR | E65: 2 | G65: DSVR-82000-QA | H65: DSVR-82000-QB | I65: DSVR-82000-QC | J65: DSVR-82000-QD | K65: DSVR-82000-QE | L65: N/A | M65: N/A | N65: N/A | O65: N/A | P65: N/A
A66: Corian_QuartzContinuous TroughDSVR3 | B66: Corian_Quartz | C66: Continuous Trough | D66: DSVR | E66: 3 | G66: DSVR-83000-QA | H66: DSVR-83000-QB | I66: DSVR-83000-QC | J66: DSVR-83000-QD | K66: DSVR-83000-QE | L66: N/A | M66: N/A | N66: N/A | O66: N/A | P66: N/A
A67: Corian_QuartzContinuous TroughDSVR4 | B67: Corian_Quartz | C67: Continuous Trough | D67: DSVR | E67: 4 | G67: DSVR-84000-QA | H67: DSVR-84000-QB | I67: DSVR-84000-QC | J67: DSVR-84000-QD | K67: DSVR-84000-QE | L67: N/A | M67: N/A | N67: N/A | O67: N/A | P67: N/A
A68: Corian_QuartzContinuous TroughDSVR5 | B68: Corian_Quartz | C68: Continuous Trough | D68: DSVR | E68: 5 | G68: DSVR-85000-QA | H68: DSVR-85000-QB | I68: DSVR-85000-QC | J68: DSVR-85000-QD | K68: DSVR-85000-QE | L68: N/A | M68: N/A | N68: N/A | O68: N/A | P68: N/A
A69: Corian_QuartzContinuous TroughDSVR6+ | B69: Corian_Quartz | C69: Continuous Trough | D69: DSVR | E69: 6+ | G69: DSVR-86+000-QA | H69: DSVR-86+000-QB | I69: DSVR-86+000-QC | J69: DSVR-86+000-QD | K69: DSVR-86+000-QE | L69: N/A | M69: N/A | N69: N/A | O69: N/A | P69: N/A
A70: Corian_QuartzContinuous TroughDSCT1SS | B70: Corian_Quartz | C70: Continuous Trough | D70: DSCT | E70: 1 | F70: SS | G70: DSCTSS-81000-QA | H70: DSCTSS-81000-QB | I70: DSCTSS-81000-QC | J70: DSCTSS-81000-QD | K70: DSCTSS-81000-QE | L70: N/A | M70: N/A | N70: N/A | O70: N/A | P70: N/A
A71: Corian_QuartzContinuous TroughDSCT2SS | B71: Corian_Quartz | C71: Continuous Trough | D71: DSCT | E71: 2 | F71: SS | G71: DSCTSS-82000-QA | H71: DSCTSS-82000-QB | I71: DSCTSS-82000-QC | J71: DSCTSS-82000-QD | K71: DSCTSS-82000-QE | L71: N/A | M71: N/A | N71: N/A | O71: N/A | P71: N/A
A72: Corian_QuartzContinuous TroughDSCT3SS | B72: Corian_Quartz | C72: Continuous Trough | D72: DSCT | E72: 3 | F72: SS | G72: DSCTSS-83000-QA | H72: DSCTSS-83000-QB | I72: DSCTSS-83000-QC | J72: DSCTSS-83000-QD | K72: DSCTSS-83000-QE | L72: N/A | M72: N/A | N72: N/A | O72: N/A | P72: N/A
A73: Corian_QuartzContinuous TroughDSCT4SS | B73: Corian_Quartz | C73: Continuous Trough | D73: DSCT | E73: 4 | F73: SS | G73: DSCTSS-84000-QA | H73: DSCTSS-84000-QB | I73: DSCTSS-84000-QC | J73: DSCTSS-84000-QD | K73: DSCTSS-84000-QE | L73: N/A | M73: N/A | N73: N/A | O73: N/A | P73: N/A
A74: Corian_QuartzContinuous TroughDSCT5SS | B74: Corian_Quartz | C74: Continuous Trough | D74: DSCT | E74: 5 | F74: SS | G74: DSCTSS-85000-QA | H74: DSCTSS-85000-QB | I74: DSCTSS-85000-QC | J74: DSCTSS-85000-QD | K74: DSCTSS-85000-QE | L74: N/A | M74: N/A | N74: N/A | O74: N/A | P74: N/A
A75: Corian_QuartzContinuous TroughDSCT6+SS | B75: Corian_Quartz | C75: Continuous Trough | D75: DSCT | E75: 6+ | F75: SS | G75: DSCTSS-86+000-QA | H75: DSCTSS-86+000-QB | I75: DSCTSS-86+000-QC | J75: DSCTSS-86+000-QD | K75: DSCTSS-86+000-QE | L75: N/A | M75: N/A | N75: N/A | O75: N/A | P75: N/A
A76: SileStoneContinuous TroughAD1 | B76: SileStone | C76: Continuous Trough | D76: AD | E76: 1 | G76: AD-81000-QA | H76: AD-81000-QB | I76: AD-81000-QC | J76: AD-81000-QD | K76: AD-81000-QE | L76: N/A | M76: N/A | N76: N/A | O76: N/A | P76: N/A
A77: SileStoneContinuous TroughAD2 | B77: SileStone | C77: Continuous Trough | D77: AD | E77: 2 | G77: AD-82000-QA | H77: AD-82000-QB | I77: AD-82000-QC | J77: AD-82000-QD | K77: AD-82000-QE | L77: N/A | M77: N/A | N77: N/A | O77: N/A | P77: N/A
A78: SileStoneContinuous TroughAD3 | B78: SileStone | C78: Continuous Trough | D78: AD | E78: 3 | G78: AD-83000-QA | H78: AD-83000-QB | I78: AD-83000-QC | J78: AD-83000-QD | K78: AD-83000-QE | L78: N/A | M78: N/A | N78: N/A | O78: N/A | P78: N/A
A79: SileStoneContinuous TroughAD4 | B79: SileStone | C79: Continuous Trough | D79: AD | E79: 4 | G79: AD-84000-QA | H79: AD-84000-QB | I79: AD-84000-QC | J79: AD-84000-QD | K79: AD-84000-QE | L79: N/A | M79: N/A | N79: N/A | O79: N/A | P79: N/A
A80: SileStoneContinuous TroughAD5 | B80: SileStone | C80: Continuous Trough | D80: AD | E80: 5 | G80: AD-85000-QA | H80: AD-85000-QB | I80: AD-85000-QC | J80: AD-85000-QD | K80: AD-85000-QE | L80: N/A | M80: N/A | N80: N/A | O80: N/A | P80: N/A
A81: SileStoneContinuous TroughAD6+ | B81: SileStone | C81: Continuous Trough | D81: AD | E81: 6+ | G81: AD-86+000-QA | H81: AD-86+000-QB | I81: AD-86+000-QC | J81: AD-86+000-QD | K81: AD-86+000-QE | L81: N/A | M81: N/A | N81: N/A | O81: N/A | P81: N/A
A82: SileStoneContinuous TroughDSG1 | B82: SileStone | C82: Continuous Trough | D82: DSG | E82: 1 | G82: DSG-81000-QA | H82: DSG-81000-QB | I82: DSG-81000-QC | J82: DSG-81000-QD | K82: DSG-81000-QE | L82: N/A | M82: N/A | N82: N/A | O82: N/A | P82: N/A
A83: SileStoneContinuous TroughDSG2 | B83: SileStone | C83: Continuous Trough | D83: DSG | E83: 2 | G83: DSG-82000-QA | H83: DSG-82000-QB | I83: DSG-82000-QC | J83: DSG-82000-QD | K83: DSG-82000-QE | L83: N/A | M83: N/A | N83: N/A | O83: N/A | P83: N/A
A84: SileStoneContinuous TroughDSG3 | B84: SileStone | C84: Continuous Trough | D84: DSG | E84: 3 | G84: DSG-83000-QA | H84: DSG-83000-QB | I84: DSG-83000-QC | J84: DSG-83000-QD | K84: DSG-83000-QE | L84: N/A | M84: N/A | N84: N/A | O84: N/A | P84: N/A
A85: SileStoneContinuous TroughDSG4 | B85: SileStone | C85: Continuous Trough | D85: DSG | E85: 4 | G85: DSG-84000-QA | H85: DSG-84000-QB | I85: DSG-84000-QC | J85: DSG-84000-QD | K85: DSG-84000-QE | L85: N/A | M85: N/A | N85: N/A | O85: N/A | P85: N/A
A86: SileStoneContinuous TroughDSG5 | B86: SileStone | C86: Continuous Trough | D86: DSG | E86: 5 | G86: DSG-85000-QA | H86: DSG-85000-QB | I86: DSG-85000-QC | J86: DSG-85000-QD | K86: DSG-85000-QE | L86: N/A | M86: N/A | N86: N/A | O86: N/A | P86: N/A
A87: SileStoneContinuous TroughDSG6+ | B87: SileStone | C87: Continuous Trough | D87: DSG | E87: 6+ | G87: DSG-86+000-QA | H87: DSG-86+000-QB | I87: DSG-86+000-QC | J87: DSG-86+000-QD | K87: DSG-86+000-QE | L87: N/A | M87: N/A | N87: N/A | O87: N/A | P87: N/A
A88: SileStoneContinuous TroughDSWD1 | B88: SileStone | C88: Continuous Trough | D88: DSWD | E88: 1 | G88: DSWD-81000-QA | H88: DSWD-81000-QB | I88: DSWD-81000-QC | J88: DSWD-81000-QD | K88: DSWD-81000-QE | L88: N/A | M88: N/A | N88: N/A | O88: N/A | P88: N/A
A89: SileStoneContinuous TroughDSWD2 | B89: SileStone | C89: Continuous Trough | D89: DSWD | E89: 2 | G89: DSWD-82000-QA | H89: DSWD-82000-QB | I89: DSWD-82000-QC | J89: DSWD-82000-QD | K89: DSWD-82000-QE | L89: N/A | M89: N/A | N89: N/A | O89: N/A | P89: N/A
A90: SileStoneContinuous TroughDSWD3 | B90: SileStone | C90: Continuous Trough | D90: DSWD | E90: 3 | G90: DSWD-83000-QA | H90: DSWD-83000-QB | I90: DSWD-83000-QC | J90: DSWD-83000-QD | K90: DSWD-83000-QE | L90: N/A | M90: N/A | N90: N/A | O90: N/A | P90: N/A
A91: SileStoneContinuous TroughDSWD4 | B91: SileStone | C91: Continuous Trough | D91: DSWD | E91: 4 | G91: DSWD-84000-QA | H91: DSWD-84000-QB | I91: DSWD-84000-QC | J91: DSWD-84000-QD | K91: DSWD-84000-QE | L91: N/A | M91: N/A | N91: N/A | O91: N/A | P91: N/A
A92: SileStoneContinuous TroughDSWD5 | B92: SileStone | C92: Continuous Trough | D92: DSWD | E92: 5 | G92: DSWD-85000-QA | H92: DSWD-85000-QB | I92: DSWD-85000-QC | J92: DSWD-85000-QD | K92: DSWD-85000-QE | L92: N/A | M92: N/A | N92: N/A | O92: N/A | P92: N/A
A93: SileStoneContinuous TroughDSWD6+ | B93: SileStone | C93: Continuous Trough | D93: DSWD | E93: 6+ | G93: DSWD-86+000-QA | H93: DSWD-86+000-QB | I93: DSWD-86+000-QC | J93: DSWD-86+000-QD | K93: DSWD-86+000-QE | L93: N/A | M93: N/A | N93: N/A | O93: N/A | P93: N/A
A94: SileStoneContinuous TroughDSOF1 | B94: SileStone | C94: Continuous Trough | D94: DSOF | E94: 1 | G94: DSOF-81000-QA | H94: DSOF-81000-QB | I94: DSOF-81000-QC | J94: DSOF-81000-QD | K94: DSOF-81000-QE | L94: N/A | M94: N/A | N94: N/A | O94: N/A | P94: N/A
A95: SileStoneContinuous TroughDSOF2 | B95: SileStone | C95: Continuous Trough | D95: DSOF | E95: 2 | G95: DSOF-82000-QA | H95: DSOF-82000-QB | I95: DSOF-82000-QC | J95: DSOF-82000-QD | K95: DSOF-82000-QE | L95: N/A | M95: N/A | N95: N/A | O95: N/A | P95: N/A
A96: SileStoneContinuous TroughDSOF3 | B96: SileStone | C96: Continuous Trough | D96: DSOF | E96: 3 | G96: DSOF-83000-QA | H96: DSOF-83000-QB | I96: DSOF-83000-QC | J96: DSOF-83000-QD | K96: DSOF-83000-QE | L96: N/A | M96: N/A | N96: N/A | O96: N/A | P96: N/A
A97: SileStoneContinuous TroughDSOF4 | B97: SileStone | C97: Continuous Trough | D97: DSOF | E97: 4 | G97: DSOF-84000-QA | H97: DSOF-84000-QB | I97: DSOF-84000-QC | J97: DSOF-84000-QD | K97: DSOF-84000-QE | L97: N/A | M97: N/A | N97: N/A | O97: N/A | P97: N/A
A98: SileStoneContinuous TroughDSOF5 | B98: SileStone | C98: Continuous Trough | D98: DSOF | E98: 5 | G98: DSOF-85000-QA | H98: DSOF-85000-QB | I98: DSOF-85000-QC | J98: DSOF-85000-QD | K98: DSOF-85000-QE | L98: N/A | M98: N/A | N98: N/A | O98: N/A | P98: N/A
A99: SileStoneContinuous TroughDSOF6+ | B99: SileStone | C99: Continuous Trough | D99: DSOF | E99: 6+ | G99: DSOF-86+000-QA | H99: DSOF-86+000-QB | I99: DSOF-86+000-QC | J99: DSOF-86+000-QD | K99: DSOF-86+000-QE | L99: N/A | M99: N/A | N99: N/A | O99: N/A | P99: N/A
A100: SileStoneContinuous TroughDSUP1 | B100: SileStone | C100: Continuous Trough | D100: DSUP | E100: 1 | G100: DSUP-81000-QA | H100: DSUP-81000-QB | I100: DSUP-81000-QC | J100: DSUP-81000-QD | K100: DSUP-81000-QE | L100: N/A | M100: N/A | N100: N/A | O100: N/A | P100: N/A
A101: SileStoneContinuous TroughDSVR1 | B101: SileStone | C101: Continuous Trough | D101: DSVR | E101: 1 | G101: DSVR-81000-QA | H101: DSVR-81000-QB | I101: DSVR-81000-QC | J101: DSVR-81000-QD | K101: DSVR-81000-QE | L101: N/A | M101: N/A | N101: N/A | O101: N/A | P101: N/A
A102: SileStoneContinuous TroughDSVR2 | B102: SileStone | C102: Continuous Trough | D102: DSVR | E102: 2 | G102: DSVR-82000-QA | H102: DSVR-82000-QB | I102: DSVR-82000-QC | J102: DSVR-82000-QD | K102: DSVR-82000-QE | L102: N/A | M102: N/A | N102: N/A | O102: N/A | P102: N/A
A103: SileStoneContinuous TroughDSVR3 | B103: SileStone | C103: Continuous Trough | D103: DSVR | E103: 3 | G103: DSVR-83000-QA | H103: DSVR-83000-QB | I103: DSVR-83000-QC | J103: DSVR-83000-QD | K103: DSVR-83000-QE | L103: N/A | M103: N/A | N103: N/A | O103: N/A | P103: N/A
A104: SileStoneContinuous TroughDSVR4 | B104: SileStone | C104: Continuous Trough | D104: DSVR | E104: 4 | G104: =$D104&F104 & "-8" & $E104 & "000-Q" &G$1 -> DSVR-84000-QA | H104: =$D104&F104 & "-8" & $E104 & "000-Q" &H$1 -> DSVR-84000-QB | I104: =$D104&F104 & "-8" & $E104 & "000-Q" &I$1 -> DSVR-84000-QC | J104: =$D104&F104 & "-8" & $E104 & "000-Q" &J$1 -> DSVR-84000-QD | K104: =$D104&F104 & "-8" & $E104 & "000-Q" &K$1 -> DSVR-84000-QE | L104: N/A | M104: N/A | N104: N/A | O104: N/A | P104: N/A
A105: SileStoneContinuous TroughDSVR5 | B105: SileStone | C105: Continuous Trough | D105: DSVR | E105: 5 | G105: DSVR-85000-QA | H105: DSVR-85000-QB | I105: DSVR-85000-QC | J105: DSVR-85000-QD | K105: DSVR-85000-QE | L105: N/A | M105: N/A | N105: N/A | O105: N/A | P105: N/A
A106: SileStoneContinuous TroughDSVR6+ | B106: SileStone | C106: Continuous Trough | D106: DSVR | E106: 6+ | G106: DSVR-86+000-QA | H106: DSVR-86+000-QB | I106: DSVR-86+000-QC | J106: DSVR-86+000-QD | K106: DSVR-86+000-QE | L106: N/A | M106: N/A | N106: N/A | O106: N/A | P106: N/A
A107: SileStoneContinuous TroughDSCT1SS | B107: SileStone | C107: Continuous Trough | D107: DSCT | E107: 1 | F107: SS | G107: DSCTSS-81000-QA | H107: DSCTSS-81000-QB | I107: DSCTSS-81000-QC | J107: DSCTSS-81000-QD | K107: DSCTSS-81000-QE | L107: N/A | M107: N/A | N107: N/A | O107: N/A | P107: N/A
A108: SileStoneContinuous TroughDSCT2SS | B108: SileStone | C108: Continuous Trough | D108: DSCT | E108: 2 | F108: SS | G108: DSCTSS-82000-QA | H108: DSCTSS-82000-QB | I108: DSCTSS-82000-QC | J108: DSCTSS-82000-QD | K108: DSCTSS-82000-QE | L108: N/A | M108: N/A | N108: N/A | O108: N/A | P108: N/A
A109: SileStoneContinuous TroughDSCT3SS | B109: SileStone | C109: Continuous Trough | D109: DSCT | E109: 3 | F109: SS | G109: DSCTSS-83000-QA | H109: DSCTSS-83000-QB | I109: DSCTSS-83000-QC | J109: DSCTSS-83000-QD | K109: DSCTSS-83000-QE | L109: N/A | M109: N/A | N109: N/A | O109: N/A | P109: N/A
A110: SileStoneContinuous TroughDSCT4SS | B110: SileStone | C110: Continuous Trough | D110: DSCT | E110: 4 | F110: SS | G110: DSCTSS-84000-QA | H110: DSCTSS-84000-QB | I110: DSCTSS-84000-QC | J110: DSCTSS-84000-QD | K110: DSCTSS-84000-QE | L110: N/A | M110: N/A | N110: N/A | O110: N/A | P110: N/A
A111: SileStoneContinuous TroughDSCT5SS | B111: SileStone | C111: Continuous Trough | D111: DSCT | E111: 5 | F111: SS | G111: DSCTSS-85000-QA | H111: DSCTSS-85000-QB | I111: DSCTSS-85000-QC | J111: DSCTSS-85000-QD | K111: DSCTSS-85000-QE | L111: N/A | M111: N/A | N111: N/A | O111: N/A | P111: N/A
A112: SileStoneContinuous TroughDSCT6+SS | B112: SileStone | C112: Continuous Trough | D112: DSCT | E112: 6+ | F112: SS | G112: DSCTSS-86+000-QA | H112: DSCTSS-86+000-QB | I112: DSCTSS-86+000-QC | J112: DSCTSS-86+000-QD | K112: DSCTSS-86+000-QE | L112: N/A | M112: N/A | N112: N/A | O112: N/A | P112: N/A
A113: CorianIndividual BasinAD1 | B113: Corian | C113: Individual Basin | D113: AD | E113: 1 | G113: =$D113&F113 & "-8" & $E113 & "000-C" &G$1 -> AD-81000-CA | H113: =$D113&F113 & "-8" & $E113 & "000-C" &H$1 -> AD-81000-CB | I113: =$D113&F113 & "-8" & $E113 & "000-C" &I$1 -> AD-81000-CC | J113: =$D113&F113 & "-8" & $E113 & "000-C" &J$1 -> AD-81000-CD | K113: N/A | L113: N/A | M113: N/A | N113: N/A | O113: N/A | P113: N/A
A114: CorianIndividual BasinAD2 | B114: Corian | C114: Individual Basin | D114: AD | E114: 2 | G114: AD-82000-CA | H114: AD-82000-CB | I114: AD-82000-CC | J114: AD-82000-CD | K114: N/A | L114: N/A | M114: N/A | N114: N/A | O114: N/A | P114: N/A
A115: CorianIndividual BasinAD3 | B115: Corian | C115: Individual Basin | D115: AD | E115: 3 | G115: AD-83000-CA | H115: AD-83000-CB | I115: AD-83000-CC | J115: AD-83000-CD | K115: N/A | L115: N/A | M115: N/A | N115: N/A | O115: N/A | P115: N/A
A116: CorianIndividual BasinAD4 | B116: Corian | C116: Individual Basin | D116: AD | E116: 4 | G116: AD-84000-CA | H116: AD-84000-CB | I116: AD-84000-CC | J116: AD-84000-CD | K116: N/A | L116: N/A | M116: N/A | N116: N/A | O116: N/A | P116: N/A
A117: CorianIndividual BasinAD5 | B117: Corian | C117: Individual Basin | D117: AD | E117: 5 | G117: AD-85000-CA | H117: AD-85000-CB | I117: AD-85000-CC | J117: AD-85000-CD | K117: N/A | L117: N/A | M117: N/A | N117: N/A | O117: N/A | P117: N/A
A118: CorianIndividual BasinAD6+ | B118: Corian | C118: Individual Basin | D118: AD | E118: 6+ | G118: AD-86+000-CA | H118: AD-86+000-CB | I118: AD-86+000-CC | J118: AD-86+000-CD | K118: N/A | L118: N/A | M118: N/A | N118: N/A | O118: N/A | P118: N/A
A119: CorianIndividual BasinDSG1 | B119: Corian | C119: Individual Basin | D119: DSG | E119: 1 | G119: DSG-81000-CA | H119: DSG-81000-CB | I119: DSG-81000-CC | J119: DSG-81000-CD | K119: N/A | L119: N/A | M119: N/A | N119: N/A | O119: N/A | P119: N/A
A120: CorianIndividual BasinDSG2 | B120: Corian | C120: Individual Basin | D120: DSG | E120: 2 | G120: DSG-82000-CA | H120: DSG-82000-CB | I120: DSG-82000-CC | J120: DSG-82000-CD | K120: N/A | L120: N/A | M120: N/A | N120: N/A | O120: N/A | P120: N/A
A121: CorianIndividual BasinDSG3 | B121: Corian | C121: Individual Basin | D121: DSG | E121: 3 | G121: DSG-83000-CA | H121: DSG-83000-CB | I121: DSG-83000-CC | J121: DSG-83000-CD | K121: N/A | L121: N/A | M121: N/A | N121: N/A | O121: N/A | P121: N/A
A122: CorianIndividual BasinDSG4 | B122: Corian | C122: Individual Basin | D122: DSG | E122: 4 | G122: DSG-84000-CA | H122: DSG-84000-CB | I122: DSG-84000-CC | J122: DSG-84000-CD | K122: N/A | L122: N/A | M122: N/A | N122: N/A | O122: N/A | P122: N/A
A123: CorianIndividual BasinDSG5 | B123: Corian | C123: Individual Basin | D123: DSG | E123: 5 | G123: DSG-85000-CA | H123: DSG-85000-CB | I123: DSG-85000-CC | J123: DSG-85000-CD | K123: N/A | L123: N/A | M123: N/A | N123: N/A | O123: N/A | P123: N/A
A124: CorianIndividual BasinDSG6+ | B124: Corian | C124: Individual Basin | D124: DSG | E124: 6+ | G124: DSG-86+000-CA | H124: DSG-86+000-CB | I124: DSG-86+000-CC | J124: DSG-86+000-CD | K124: N/A | L124: N/A | M124: N/A | N124: N/A | O124: N/A | P124: N/A
A125: CorianIndividual BasinDSWD1 | B125: Corian | C125: Individual Basin | D125: DSWD | E125: 1 | G125: DSWD-81000-CA | H125: DSWD-81000-CB | I125: DSWD-81000-CC | J125: DSWD-81000-CD | K125: N/A | L125: N/A | M125: N/A | N125: N/A | O125: N/A | P125: N/A
A126: CorianIndividual BasinDSWD2 | B126: Corian | C126: Individual Basin | D126: DSWD | E126: 2 | G126: DSWD-82000-CA | H126: DSWD-82000-CB | I126: DSWD-82000-CC | J126: DSWD-82000-CD | K126: N/A | L126: N/A | M126: N/A | N126: N/A | O126: N/A | P126: N/A
A127: CorianIndividual BasinDSWD3 | B127: Corian | C127: Individual Basin | D127: DSWD | E127: 3 | G127: DSWD-83000-CA | H127: DSWD-83000-CB | I127: DSWD-83000-CC | J127: DSWD-83000-CD | K127: N/A | L127: N/A | M127: N/A | N127: N/A | O127: N/A | P127: N/A
A128: CorianIndividual BasinDSWD4 | B128: Corian | C128: Individual Basin | D128: DSWD | E128: 4 | G128: DSWD-84000-CA | H128: DSWD-84000-CB | I128: DSWD-84000-CC | J128: DSWD-84000-CD | K128: N/A | L128: N/A | M128: N/A | N128: N/A | O128: N/A | P128: N/A
A129: CorianIndividual BasinDSWD5 | B129: Corian | C129: Individual Basin | D129: DSWD | E129: 5 | G129: DSWD-85000-CA | H129: DSWD-85000-CB | I129: DSWD-85000-CC | J129: DSWD-85000-CD | K129: N/A | L129: N/A | M129: N/A | N129: N/A | O129: N/A | P129: N/A
A130: CorianIndividual BasinDSWD6+ | B130: Corian | C130: Individual Basin | D130: DSWD | E130: 6+ | G130: DSWD-86+000-CA | H130: DSWD-86+000-CB | I130: DSWD-86+000-CC | J130: DSWD-86+000-CD | K130: N/A | L130: N/A | M130: N/A | N130: N/A | O130: N/A | P130: N/A
A131: CorianIndividual BasinDSOF1 | B131: Corian | C131: Individual Basin | D131: DSOF | E131: 1 | G131: =$D131&F131 & "-8" & $E131 & "000-C" &G$1 -> DSOF-81000-CA | H131: =$D131&F131 & "-8" & $E131 & "000-C" &H$1 -> DSOF-81000-CB | I131: =$D131&F131 & "-8" & $E131 & "000-C" &I$1 -> DSOF-81000-CC | J131: =$D131&F131 & "-8" & $E131 & "000-C" &J$1 -> DSOF-81000-CD | K131: N/A | L131: N/A | M131: N/A | N131: N/A | O131: N/A | P131: N/A
A132: CorianIndividual BasinDSOF2 | B132: Corian | C132: Individual Basin | D132: DSOF | E132: 2 | G132: DSOF-82000-CA | H132: DSOF-82000-CB | I132: DSOF-82000-CC | J132: DSOF-82000-CD | K132: N/A | L132: N/A | M132: N/A | N132: N/A | O132: N/A | P132: N/A
A133: CorianIndividual BasinDSOF3 | B133: Corian | C133: Individual Basin | D133: DSOF | E133: 3 | G133: DSOF-83000-CA | H133: DSOF-83000-CB | I133: DSOF-83000-CC | J133: DSOF-83000-CD | K133: N/A | L133: N/A | M133: N/A | N133: N/A | O133: N/A | P133: N/A
A134: CorianIndividual BasinDSOF4 | B134: Corian | C134: Individual Basin | D134: DSOF | E134: 4 | G134: DSOF-84000-CA | H134: DSOF-84000-CB | I134: DSOF-84000-CC | J134: DSOF-84000-CD | K134: N/A | L134: N/A | M134: N/A | N134: N/A | O134: N/A | P134: N/A
A135: CorianIndividual BasinDSOF5 | B135: Corian | C135: Individual Basin | D135: DSOF | E135: 5 | G135: DSOF-85000-CA | H135: DSOF-85000-CB | I135: DSOF-85000-CC | J135: DSOF-85000-CD | K135: N/A | L135: N/A | M135: N/A | N135: N/A | O135: N/A | P135: N/A
A136: CorianIndividual BasinDSOF6+ | B136: Corian | C136: Individual Basin | D136: DSOF | E136: 6+ | G136: DSOF-86+000-CA | H136: DSOF-86+000-CB | I136: DSOF-86+000-CC | J136: DSOF-86+000-CD | K136: N/A | L136: N/A | M136: N/A | N136: N/A | O136: N/A | P136: N/A
A137: CorianIndividual BasinDSUP1 | B137: Corian | C137: Individual Basin | D137: DSUP | E137: 1 | G137: DSUP-81000-CA | H137: DSUP-81000-CB | I137: DSUP-81000-CC | J137: DSUP-81000-CD | K137: N/A | L137: N/A | M137: N/A | N137: N/A | O137: N/A | P137: N/A
A138: CorianIndividual BasinDSVR1 | B138: Corian | C138: Individual Basin | D138: DSVR | E138: 1 | G138: DSVR-81000-CA | H138: DSVR-81000-CB | I138: DSVR-81000-CC | J138: DSVR-81000-CD | K138: N/A | L138: N/A | M138: N/A | N138: N/A | O138: N/A | P138: N/A
A139: CorianIndividual BasinDSVR2 | B139: Corian | C139: Individual Basin | D139: DSVR | E139: 2 | G139: DSVR-82000-CA | H139: DSVR-82000-CB | I139: DSVR-82000-CC | J139: DSVR-82000-CD | K139: N/A | L139: N/A | M139: N/A | N139: N/A | O139: N/A | P139: N/A
A140: CorianIndividual BasinDSVR3 | B140: Corian | C140: Individual Basin | D140: DSVR | E140: 3 | G140: DSVR-83000-CA | H140: DSVR-83000-CB | I140: DSVR-83000-CC | J140: DSVR-83000-CD | K140: N/A | L140: N/A | M140: N/A | N140: N/A | O140: N/A | P140: N/A
A141: CorianIndividual BasinDSVR4 | B141: Corian | C141: Individual Basin | D141: DSVR | E141: 4 | G141: DSVR-84000-CA | H141: DSVR-84000-CB | I141: DSVR-84000-CC | J141: DSVR-84000-CD | K141: N/A | L141: N/A | M141: N/A | N141: N/A | O141: N/A | P141: N/A
A142: CorianIndividual BasinDSVR5 | B142: Corian | C142: Individual Basin | D142: DSVR | E142: 5 | G142: DSVR-85000-CA | H142: DSVR-85000-CB | I142: DSVR-85000-CC | J142: DSVR-85000-CD | K142: N/A | L142: N/A | M142: N/A | N142: N/A | O142: N/A | P142: N/A
A143: CorianIndividual BasinDSVR6+ | B143: Corian | C143: Individual Basin | D143: DSVR | E143: 6+ | G143: DSVR-86+000-CA | H143: DSVR-86+000-CB | I143: DSVR-86+000-CC | J143: DSVR-86+000-CD | K143: N/A | L143: N/A | M143: N/A | N143: N/A | O143: N/A | P143: N/A
A144: CorianIndividual BasinDSCT1SS | B144: Corian | C144: Individual Basin | D144: DSCT | E144: 1 | F144: SS | G144: DSCTSS-81000-CA | H144: DSCTSS-81000-CB | I144: DSCTSS-81000-CC | J144: DSCTSS-81000-CD | K144: N/A | L144: N/A | M144: N/A | N144: N/A | O144: N/A | P144: N/A
A145: CorianIndividual BasinDSCT2SS | B145: Corian | C145: Individual Basin | D145: DSCT | E145: 2 | F145: SS | G145: DSCTSS-82000-CA | H145: DSCTSS-82000-CB | I145: DSCTSS-82000-CC | J145: DSCTSS-82000-CD | K145: N/A | L145: N/A | M145: N/A | N145: N/A | O145: N/A | P145: N/A
A146: CorianIndividual BasinDSCT3SS | B146: Corian | C146: Individual Basin | D146: DSCT | E146: 3 | F146: SS | G146: DSCTSS-83000-CA | H146: DSCTSS-83000-CB | I146: DSCTSS-83000-CC | J146: DSCTSS-83000-CD | K146: N/A | L146: N/A | M146: N/A | N146: N/A | O146: N/A | P146: N/A
A147: CorianIndividual BasinDSCT4SS | B147: Corian | C147: Individual Basin | D147: DSCT | E147: 4 | F147: SS | G147: DSCTSS-84000-CA | H147: DSCTSS-84000-CB | I147: DSCTSS-84000-CC | J147: DSCTSS-84000-CD | K147: N/A | L147: N/A | M147: N/A | N147: N/A | O147: N/A | P147: N/A
A148: CorianIndividual BasinDSCT5SS | B148: Corian | C148: Individual Basin | D148: DSCT | E148: 5 | F148: SS | G148: DSCTSS-85000-CA | H148: DSCTSS-85000-CB | I148: DSCTSS-85000-CC | J148: DSCTSS-85000-CD | K148: N/A | L148: N/A | M148: N/A | N148: N/A | O148: N/A | P148: N/A
A149: CorianIndividual BasinDSCT6+SS | B149: Corian | C149: Individual Basin | D149: DSCT | E149: 6+ | F149: SS | G149: DSCTSS-86+000-CA | H149: DSCTSS-86+000-CB | I149: DSCTSS-86+000-CC | J149: DSCTSS-86+000-CD | K149: N/A | L149: N/A | M149: N/A | N149: N/A | O149: N/A | P149: N/A
A150: Corian_QuartzIndividual BasinAD1 | B150: Corian_Quartz | C150: Individual Basin | D150: AD | E150: 1 | G150: =$D150&F150 & "-8" & $E150 & "000-Q" &G$1 -> AD-81000-QA | H150: =$D150&F150 & "-8" & $E150 & "000-Q" &H$1 -> AD-81000-QB | I150: =$D150&F150 & "-8" & $E150 & "000-Q" &I$1 -> AD-81000-QC | J150: =$D150&F150 & "-8" & $E150 & "000-Q" &J$1 -> AD-81000-QD | K150: =$D150&F150 & "-8" & $E150 & "000-Q" &K$1 -> AD-81000-QE | L150: N/A | M150: N/A | N150: N/A | O150: N/A | P150: N/A
A151: Corian_QuartzIndividual BasinAD2 | B151: Corian_Quartz | C151: Individual Basin | D151: AD | E151: 2 | G151: =$D151&F151 & "-8" & $E151 & "000-Q" &G$1 -> AD-82000-QA | H151: =$D151&F151 & "-8" & $E151 & "000-Q" &H$1 -> AD-82000-QB | I151: =$D151&F151 & "-8" & $E151 & "000-Q" &I$1 -> AD-82000-QC | J151: =$D151&F151 & "-8" & $E151 & "000-Q" &J$1 -> AD-82000-QD | K151: =$D151&F151 & "-8" & $E151 & "000-Q" &K$1 -> AD-82000-QE | L151: N/A | M151: N/A | N151: N/A | O151: N/A | P151: N/A
A152: Corian_QuartzIndividual BasinAD3 | B152: Corian_Quartz | C152: Individual Basin | D152: AD | E152: 3 | G152: AD-83000-QA | H152: AD-83000-QB | I152: AD-83000-QC | J152: AD-83000-QD | K152: AD-83000-QE | L152: N/A | M152: N/A | N152: N/A | O152: N/A | P152: N/A
A153: Corian_QuartzIndividual BasinAD4 | B153: Corian_Quartz | C153: Individual Basin | D153: AD | E153: 4 | G153: AD-84000-QA | H153: AD-84000-QB | I153: AD-84000-QC | J153: AD-84000-QD | K153: AD-84000-QE | L153: N/A | M153: N/A | N153: N/A | O153: N/A | P153: N/A
A154: Corian_QuartzIndividual BasinAD5 | B154: Corian_Quartz | C154: Individual Basin | D154: AD | E154: 5 | G154: AD-85000-QA | H154: AD-85000-QB | I154: AD-85000-QC | J154: AD-85000-QD | K154: AD-85000-QE | L154: N/A | M154: N/A | N154: N/A | O154: N/A | P154: N/A
A155: Corian_QuartzIndividual BasinAD6+ | B155: Corian_Quartz | C155: Individual Basin | D155: AD | E155: 6+ | G155: AD-86+000-QA | H155: AD-86+000-QB | I155: AD-86+000-QC | J155: AD-86+000-QD | K155: AD-86+000-QE | L155: N/A | M155: N/A | N155: N/A | O155: N/A | P155: N/A
A156: Corian_QuartzIndividual BasinDSG1 | B156: Corian_Quartz | C156: Individual Basin | D156: DSG | E156: 1 | G156: DSG-81000-QA | H156: DSG-81000-QB | I156: DSG-81000-QC | J156: DSG-81000-QD | K156: DSG-81000-QE | L156: N/A | M156: N/A | N156: N/A | O156: N/A | P156: N/A
A157: Corian_QuartzIndividual BasinDSG2 | B157: Corian_Quartz | C157: Individual Basin | D157: DSG | E157: 2 | G157: DSG-82000-QA | H157: DSG-82000-QB | I157: DSG-82000-QC | J157: DSG-82000-QD | K157: DSG-82000-QE | L157: N/A | M157: N/A | N157: N/A | O157: N/A | P157: N/A
A158: Corian_QuartzIndividual BasinDSG3 | B158: Corian_Quartz | C158: Individual Basin | D158: DSG | E158: 3 | G158: DSG-83000-QA | H158: DSG-83000-QB | I158: DSG-83000-QC | J158: DSG-83000-QD | K158: DSG-83000-QE | L158: N/A | M158: N/A | N158: N/A | O158: N/A | P158: N/A
A159: Corian_QuartzIndividual BasinDSG4 | B159: Corian_Quartz | C159: Individual Basin | D159: DSG | E159: 4 | G159: DSG-84000-QA | H159: DSG-84000-QB | I159: DSG-84000-QC | J159: DSG-84000-QD | K159: DSG-84000-QE | L159: N/A | M159: N/A | N159: N/A | O159: N/A | P159: N/A
A160: Corian_QuartzIndividual BasinDSG5 | B160: Corian_Quartz | C160: Individual Basin | D160: DSG | E160: 5 | G160: DSG-85000-QA | H160: DSG-85000-QB | I160: DSG-85000-QC | J160: DSG-85000-QD | K160: DSG-85000-QE | L160: N/A | M160: N/A | N160: N/A | O160: N/A | P160: N/A
A161: Corian_QuartzIndividual BasinDSG6+ | B161: Corian_Quartz | C161: Individual Basin | D161: DSG | E161: 6+ | G161: DSG-86+000-QA | H161: DSG-86+000-QB | I161: DSG-86+000-QC | J161: DSG-86+000-QD | K161: DSG-86+000-QE | L161: N/A | M161: N/A | N161: N/A | O161: N/A | P161: N/A
A162: Corian_QuartzIndividual BasinDSWD1 | B162: Corian_Quartz | C162: Individual Basin | D162: DSWD | E162: 1 | G162: DSWD-81000-QA | H162: DSWD-81000-QB | I162: DSWD-81000-QC | J162: DSWD-81000-QD | K162: DSWD-81000-QE | L162: N/A | M162: N/A | N162: N/A | O162: N/A | P162: N/A
A163: Corian_QuartzIndividual BasinDSWD2 | B163: Corian_Quartz | C163: Individual Basin | D163: DSWD | E163: 2 | G163: DSWD-82000-QA | H163: DSWD-82000-QB | I163: DSWD-82000-QC | J163: DSWD-82000-QD | K163: DSWD-82000-QE | L163: N/A | M163: N/A | N163: N/A | O163: N/A | P163: N/A
A164: Corian_QuartzIndividual BasinDSWD3 | B164: Corian_Quartz | C164: Individual Basin | D164: DSWD | E164: 3 | G164: DSWD-83000-QA | H164: DSWD-83000-QB | I164: DSWD-83000-QC | J164: DSWD-83000-QD | K164: DSWD-83000-QE | L164: N/A | M164: N/A | N164: N/A | O164: N/A | P164: N/A
A165: Corian_QuartzIndividual BasinDSWD4 | B165: Corian_Quartz | C165: Individual Basin | D165: DSWD | E165: 4 | G165: DSWD-84000-QA | H165: DSWD-84000-QB | I165: DSWD-84000-QC | J165: DSWD-84000-QD | K165: DSWD-84000-QE | L165: N/A | M165: N/A | N165: N/A | O165: N/A | P165: N/A
A166: Corian_QuartzIndividual BasinDSWD5 | B166: Corian_Quartz | C166: Individual Basin | D166: DSWD | E166: 5 | G166: DSWD-85000-QA | H166: DSWD-85000-QB | I166: DSWD-85000-QC | J166: DSWD-85000-QD | K166: DSWD-85000-QE | L166: N/A | M166: N/A | N166: N/A | O166: N/A | P166: N/A
A167: Corian_QuartzIndividual BasinDSWD6+ | B167: Corian_Quartz | C167: Individual Basin | D167: DSWD | E167: 6+ | G167: DSWD-86+000-QA | H167: DSWD-86+000-QB | I167: DSWD-86+000-QC | J167: DSWD-86+000-QD | K167: DSWD-86+000-QE | L167: N/A | M167: N/A | N167: N/A | O167: N/A | P167: N/A
A168: Corian_QuartzIndividual BasinDSOF1 | B168: Corian_Quartz | C168: Individual Basin | D168: DSOF | E168: 1 | G168: DSOF-81000-QA | H168: DSOF-81000-QB | I168: DSOF-81000-QC | J168: DSOF-81000-QD | K168: DSOF-81000-QE | L168: N/A | M168: N/A | N168: N/A | O168: N/A | P168: N/A
A169: Corian_QuartzIndividual BasinDSOF2 | B169: Corian_Quartz | C169: Individual Basin | D169: DSOF | E169: 2 | G169: DSOF-82000-QA | H169: DSOF-82000-QB | I169: DSOF-82000-QC | J169: DSOF-82000-QD | K169: DSOF-82000-QE | L169: N/A | M169: N/A | N169: N/A | O169: N/A | P169: N/A
A170: Corian_QuartzIndividual BasinDSOF3 | B170: Corian_Quartz | C170: Individual Basin | D170: DSOF | E170: 3 | G170: DSOF-83000-QA | H170: DSOF-83000-QB | I170: DSOF-83000-QC | J170: DSOF-83000-QD | K170: DSOF-83000-QE | L170: N/A | M170: N/A | N170: N/A | O170: N/A | P170: N/A
A171: Corian_QuartzIndividual BasinDSOF4 | B171: Corian_Quartz | C171: Individual Basin | D171: DSOF | E171: 4 | G171: DSOF-84000-QA | H171: DSOF-84000-QB | I171: DSOF-84000-QC | J171: DSOF-84000-QD | K171: DSOF-84000-QE | L171: N/A | M171: N/A | N171: N/A | O171: N/A | P171: N/A
A172: Corian_QuartzIndividual BasinDSOF5 | B172: Corian_Quartz | C172: Individual Basin | D172: DSOF | E172: 5 | G172: DSOF-85000-QA | H172: DSOF-85000-QB | I172: DSOF-85000-QC | J172: DSOF-85000-QD | K172: DSOF-85000-QE | L172: N/A | M172: N/A | N172: N/A | O172: N/A | P172: N/A
A173: Corian_QuartzIndividual BasinDSOF6+ | B173: Corian_Quartz | C173: Individual Basin | D173: DSOF | E173: 6+ | G173: DSOF-86+000-QA | H173: DSOF-86+000-QB | I173: DSOF-86+000-QC | J173: DSOF-86+000-QD | K173: DSOF-86+000-QE | L173: N/A | M173: N/A | N173: N/A | O173: N/A | P173: N/A
A174: Corian_QuartzIndividual BasinDSUP1 | B174: Corian_Quartz | C174: Individual Basin | D174: DSUP | E174: 1 | G174: DSUP-81000-QA | H174: DSUP-81000-QB | I174: DSUP-81000-QC | J174: DSUP-81000-QD | K174: DSUP-81000-QE | L174: N/A | M174: N/A | N174: N/A | O174: N/A | P174: N/A
A175: Corian_QuartzIndividual BasinDSVR1 | B175: Corian_Quartz | C175: Individual Basin | D175: DSVR | E175: 1 | G175: DSVR-81000-QA | H175: DSVR-81000-QB | I175: DSVR-81000-QC | J175: DSVR-81000-QD | K175: DSVR-81000-QE | L175: N/A | M175: N/A | N175: N/A | O175: N/A | P175: N/A
A176: Corian_QuartzIndividual BasinDSVR2 | B176: Corian_Quartz | C176: Individual Basin | D176: DSVR | E176: 2 | G176: DSVR-82000-QA | H176: DSVR-82000-QB | I176: DSVR-82000-QC | J176: DSVR-82000-QD | K176: DSVR-82000-QE | L176: N/A | M176: N/A | N176: N/A | O176: N/A | P176: N/A
A177: Corian_QuartzIndividual BasinDSVR3 | B177: Corian_Quartz | C177: Individual Basin | D177: DSVR | E177: 3 | G177: DSVR-83000-QA | H177: DSVR-83000-QB | I177: DSVR-83000-QC | J177: DSVR-83000-QD | K177: DSVR-83000-QE | L177: N/A | M177: N/A | N177: N/A | O177: N/A | P177: N/A
A178: Corian_QuartzIndividual BasinDSVR4 | B178: Corian_Quartz | C178: Individual Basin | D178: DSVR | E178: 4 | G178: DSVR-84000-QA | H178: DSVR-84000-QB | I178: DSVR-84000-QC | J178: DSVR-84000-QD | K178: DSVR-84000-QE | L178: N/A | M178: N/A | N178: N/A | O178: N/A | P178: N/A
A179: Corian_QuartzIndividual BasinDSVR5 | B179: Corian_Quartz | C179: Individual Basin | D179: DSVR | E179: 5 | G179: DSVR-85000-QA | H179: DSVR-85000-QB | I179: DSVR-85000-QC | J179: DSVR-85000-QD | K179: DSVR-85000-QE | L179: N/A | M179: N/A | N179: N/A | O179: N/A | P179: N/A
A180: Corian_QuartzIndividual BasinDSVR6+ | B180: Corian_Quartz | C180: Individual Basin | D180: DSVR | E180: 6+ | G180: DSVR-86+000-QA | H180: DSVR-86+000-QB | I180: DSVR-86+000-QC | J180: DSVR-86+000-QD | K180: DSVR-86+000-QE | L180: N/A | M180: N/A | N180: N/A | O180: N/A | P180: N/A
A181: Corian_QuartzIndividual BasinDSCT1SS | B181: Corian_Quartz | C181: Individual Basin | D181: DSCT | E181: 1 | F181: SS | G181: DSCTSS-81000-QA | H181: DSCTSS-81000-QB | I181: DSCTSS-81000-QC | J181: DSCTSS-81000-QD | K181: DSCTSS-81000-QE | L181: N/A | M181: N/A | N181: N/A | O181: N/A | P181: N/A
A182: Corian_QuartzIndividual BasinDSCT2SS | B182: Corian_Quartz | C182: Individual Basin | D182: DSCT | E182: 2 | F182: SS | G182: DSCTSS-82000-QA | H182: DSCTSS-82000-QB | I182: DSCTSS-82000-QC | J182: DSCTSS-82000-QD | K182: DSCTSS-82000-QE | L182: N/A | M182: N/A | N182: N/A | O182: N/A | P182: N/A
A183: Corian_QuartzIndividual BasinDSCT3SS | B183: Corian_Quartz | C183: Individual Basin | D183: DSCT | E183: 3 | F183: SS | G183: DSCTSS-83000-QA | H183: DSCTSS-83000-QB | I183: DSCTSS-83000-QC | J183: DSCTSS-83000-QD | K183: DSCTSS-83000-QE | L183: N/A | M183: N/A | N183: N/A | O183: N/A | P183: N/A
A184: Corian_QuartzIndividual BasinDSCT4SS | B184: Corian_Quartz | C184: Individual Basin | D184: DSCT | E184: 4 | F184: SS | G184: DSCTSS-84000-QA | H184: DSCTSS-84000-QB | I184: DSCTSS-84000-QC | J184: DSCTSS-84000-QD | K184: DSCTSS-84000-QE | L184: N/A | M184: N/A | N184: N/A | O184: N/A | P184: N/A
A185: Corian_QuartzIndividual BasinDSCT5SS | B185: Corian_Quartz | C185: Individual Basin | D185: DSCT | E185: 5 | F185: SS | G185: DSCTSS-85000-QA | H185: DSCTSS-85000-QB | I185: DSCTSS-85000-QC | J185: DSCTSS-85000-QD | K185: DSCTSS-85000-QE | L185: N/A | M185: N/A | N185: N/A | O185: N/A | P185: N/A
A186: Corian_QuartzIndividual BasinDSCT6+SS | B186: Corian_Quartz | C186: Individual Basin | D186: DSCT | E186: 6+ | F186: SS | G186: DSCTSS-86+000-QA | H186: DSCTSS-86+000-QB | I186: DSCTSS-86+000-QC | J186: DSCTSS-86+000-QD | K186: DSCTSS-86+000-QE | L186: N/A | M186: N/A | N186: N/A | O186: N/A | P186: N/A
A187: SileStoneIndividual BasinAD1 | B187: SileStone | C187: Individual Basin | D187: AD | E187: 1 | G187: AD-81000-QA | H187: AD-81000-QB | I187: AD-81000-QC | J187: AD-81000-QD | K187: AD-81000-QE | L187: N/A | M187: N/A | N187: N/A | O187: N/A | P187: N/A
A188: SileStoneIndividual BasinAD2 | B188: SileStone | C188: Individual Basin | D188: AD | E188: 2 | G188: AD-82000-QA | H188: AD-82000-QB | I188: AD-82000-QC | J188: AD-82000-QD | K188: AD-82000-QE | L188: N/A | M188: N/A | N188: N/A | O188: N/A | P188: N/A
A189: SileStoneIndividual BasinAD3 | B189: SileStone | C189: Individual Basin | D189: AD | E189: 3 | G189: AD-83000-QA | H189: AD-83000-QB | I189: AD-83000-QC | J189: AD-83000-QD | K189: AD-83000-QE | L189: N/A | M189: N/A | N189: N/A | O189: N/A | P189: N/A
A190: SileStoneIndividual BasinAD4 | B190: SileStone | C190: Individual Basin | D190: AD | E190: 4 | G190: AD-84000-QA | H190: AD-84000-QB | I190: AD-84000-QC | J190: AD-84000-QD | K190: AD-84000-QE | L190: N/A | M190: N/A | N190: N/A | O190: N/A | P190: N/A
A191: SileStoneIndividual BasinAD5 | B191: SileStone | C191: Individual Basin | D191: AD | E191: 5 | G191: AD-85000-QA | H191: AD-85000-QB | I191: AD-85000-QC | J191: AD-85000-QD | K191: AD-85000-QE | L191: N/A | M191: N/A | N191: N/A | O191: N/A | P191: N/A
A192: SileStoneIndividual BasinAD6+ | B192: SileStone | C192: Individual Basin | D192: AD | E192: 6+ | G192: AD-86+000-QA | H192: AD-86+000-QB | I192: AD-86+000-QC | J192: AD-86+000-QD | K192: AD-86+000-QE | L192: N/A | M192: N/A | N192: N/A | O192: N/A | P192: N/A
A193: SileStoneIndividual BasinDSG1 | B193: SileStone | C193: Individual Basin | D193: DSG | E193: 1 | G193: DSG-81000-QA | H193: DSG-81000-QB | I193: DSG-81000-QC | J193: DSG-81000-QD | K193: DSG-81000-QE | L193: N/A | M193: N/A | N193: N/A | O193: N/A | P193: N/A
A194: SileStoneIndividual BasinDSG2 | B194: SileStone | C194: Individual Basin | D194: DSG | E194: 2 | G194: DSG-82000-QA | H194: DSG-82000-QB | I194: DSG-82000-QC | J194: DSG-82000-QD | K194: DSG-82000-QE | L194: N/A | M194: N/A | N194: N/A | O194: N/A | P194: N/A
A195: SileStoneIndividual BasinDSG3 | B195: SileStone | C195: Individual Basin | D195: DSG | E195: 3 | G195: DSG-83000-QA | H195: DSG-83000-QB | I195: DSG-83000-QC | J195: DSG-83000-QD | K195: DSG-83000-QE | L195: N/A | M195: N/A | N195: N/A | O195: N/A | P195: N/A
A196: SileStoneIndividual BasinDSG4 | B196: SileStone | C196: Individual Basin | D196: DSG | E196: 4 | G196: DSG-84000-QA | H196: DSG-84000-QB | I196: DSG-84000-QC | J196: DSG-84000-QD | K196: DSG-84000-QE | L196: N/A | M196: N/A | N196: N/A | O196: N/A | P196: N/A
A197: SileStoneIndividual BasinDSG5 | B197: SileStone | C197: Individual Basin | D197: DSG | E197: 5 | G197: DSG-85000-QA | H197: DSG-85000-QB | I197: DSG-85000-QC | J197: DSG-85000-QD | K197: DSG-85000-QE | L197: N/A | M197: N/A | N197: N/A | O197: N/A | P197: N/A
A198: SileStoneIndividual BasinDSG6+ | B198: SileStone | C198: Individual Basin | D198: DSG | E198: 6+ | G198: DSG-86+000-QA | H198: DSG-86+000-QB | I198: DSG-86+000-QC | J198: DSG-86+000-QD | K198: DSG-86+000-QE | L198: N/A | M198: N/A | N198: N/A | O198: N/A | P198: N/A
A199: SileStoneIndividual BasinDSWD1 | B199: SileStone | C199: Individual Basin | D199: DSWD | E199: 1 | G199: DSWD-81000-QA | H199: DSWD-81000-QB | I199: DSWD-81000-QC | J199: DSWD-81000-QD | K199: DSWD-81000-QE | L199: N/A | M199: N/A | N199: N/A | O199: N/A | P199: N/A
A200: SileStoneIndividual BasinDSWD2 | B200: SileStone | C200: Individual Basin | D200: DSWD | E200: 2 | G200: DSWD-82000-QA | H200: DSWD-82000-QB | I200: DSWD-82000-QC | J200: DSWD-82000-QD | K200: DSWD-82000-QE | L200: N/A | M200: N/A | N200: N/A | O200: N/A | P200: N/A
... 145 more rows

Sheet Dimensions (hidden)
A1: Bounce Code | B1: Material | C1: Sink Type | D1: Stations | E1: Look Up | F1: A | G1: B | H1: C | I1: D | K1: Alcove | L1: Material Number
A2: ='Arc Worksheet'!D23&'Arc Worksheet'!#REF!&'Arc Worksheet'!#REF! ->  | B2: Corian | C2: AD | D2: 1 | E2: =B2&C2&D2 -> CorianAD1 | F2: 4.5 | G2: 21 | H2: 4.5 | I2: 30 | K2: No
B3: Corian | C3: AD | D3: 2 | E3: CorianAD2 | F3: 4.5 | G3: 51 | H3: 4.5 | I3: 60 | K3: Yes | L3: ACV001
B4: Corian | C4: AD | D4: 3 | E4: CorianAD3 | F4: 4.5 | G4: 81 | H4: 4.5 | I4: 90
B5: Corian | C5: AD | D5: 4 | E5: CorianAD4 | F5: 4.5 | G5: 111 | H5: 4.5 | I5: 120
B6: Corian | C6: AD | D6: 5 | E6: CorianAD5 | F6: 4.5 | G6: 141 | H6: 4.5 | I6: 150
B7: Corian | C7: AD | D7: 6+ | E7: CorianAD6+ | F7: 4.5 | G7: 171 | H7: 4.5 | I7: 180
B8: Corian | C8: DSCT | D8: 1 | E8: CorianDSCT1 | F8: 7.1875 | G8: 15.625 | H8: 7.1875 | I8: 30
B9: Corian | C9: DSCT | D9: 2 | E9: CorianDSCT2 | F9: 7.1875 | G9: 45.625 | H9: 7.1875 | I9: 60
B10: Corian | C10: DSCT | D10: 3 | E10: CorianDSCT3 | F10: 7.1875 | G10: 75.625 | H10: 7.1875 | I10: 90
B11: Corian | C11: DSCT | D11: 4 | E11: CorianDSCT4 | F11: 7.1875 | G11: 105.625 | H11: 7.1875 | I11: 120
B12: Corian | C12: DSCT | D12: 5 | E12: CorianDSCT5 | F12: 7.1875 | G12: 135.625 | H12: 7.1875 | I12: 150
B13: Corian | C13: DSCT | D13: 6+ | E13: CorianDSCT6+ | F13: 7.1875 | G13: 165.625 | H13: 7.1875 | I13: 180
B14: Corian | C14: DSG | D14: 1 | E14: CorianDSG1 | F14: 4 | G14: 22 | H14: 4 | I14: 30
B15: Corian | C15: DSG | D15: 2 | E15: CorianDSG2 | F15: 4 | G15: 52 | H15: 4 | I15: 60
B16: Corian | C16: DSG | D16: 3 | E16: CorianDSG3 | F16: 4 | G16: 82 | H16: 4 | I16: 90
B17: Corian | C17: DSG | D17: 4 | E17: CorianDSG4 | F17: 4 | G17: 112 | H17: 4 | I17: 120
B18: Corian | C18: DSG | D18: 5 | E18: CorianDSG5 | F18: 4 | G18: 142 | H18: 4 | I18: 150
B19: Corian | C19: DSG | D19: 6+ | E19: CorianDSG6+ | F19: 4 | G19: 172 | H19: 4 | I19: 180
B20: Corian | C20: DSOF | D20: 1 | E20: CorianDSOF1 | F20: 6 | G20: 18 | H20: 6 | I20: 30
B21: Corian | C21: DSOF | D21: 2 | E21: CorianDSOF2 | F21: 6 | G21: 48 | H21: 6 | I21: 60
B22: Corian | C22: DSOF | D22: 3 | E22: CorianDSOF3 | F22: 6 | G22: 78 | H22: 6 | I22: 90
B23: Corian | C23: DSOF | D23: 4 | E23: CorianDSOF4 | F23: 6 | G23: 108 | H23: 6 | I23: 120
B24: Corian | C24: DSOF | D24: 5 | E24: CorianDSOF5 | F24: 6 | G24: 138 | H24: 6 | I24: 150
B25: Corian | C25: DSOF | D25: 6+ | E25: CorianDSOF6+ | F25: 6 | G25: 168 | H25: 6 | I25: 180
B26: Corian | C26: DSVR | D26: 1 | E26: CorianDSVR1 | F26: 6.5 | G26: 17 | H26: 6.5 | I26: 30
B27: Corian | C27: DSVR | D27: 2 | E27: CorianDSVR2 | F27: 6.5 | G27: 47 | H27: 6.5 | I27: 60
B28: Corian | C28: DSVR | D28: 3 | E28: CorianDSVR3 | F28: 6.5 | G28: 77 | H28: 6.5 | I28: 90
B29: Corian | C29: DSVR | D29: 5 | E29: CorianDSVR5 | F29: 6.5 | G29: 137 | H29: 6.5 | I29: 150
B30: Corian | C30: DSVR | D30: 6+ | E30: CorianDSVR6+ | F30: 6.5 | G30: 167 | H30: 6.5 | I30: 180
B31: Corian | C31: DSWD | D31: 1 | E31: CorianDSWD1 | F31: 4 | G31: 22 | H31: 4 | I31: 30
B32: Corian | C32: DSWD | D32: 2 | E32: CorianDSWD2 | F32: 4 | G32: 52 | H32: 4 | I32: 60
B33: Corian | C33: DSWD | D33: 3 | E33: CorianDSWD3 | F33: 4 | G33: 82 | H33: 4 | I33: 90
B34: Corian | C34: DSWD | D34: 4 | E34: =B34&C34&D34 -> CorianDSWD4 | F34: 4 | G34: 112 | H34: 4 | I34: 120
B35: Corian | C35: DSWD | D35: 5 | E35: CorianDSWD5 | F35: 4 | G35: 142 | H35: 4 | I35: 150
B36: Corian | C36: DSWD | D36: 6+ | E36: CorianDSWD6+ | F36: 4 | G36: 172 | H36: 4 | I36: 180
B37: Corian_Quartz | C37: AD | D37: 1 | E37: Corian_QuartzAD1 | F37: 4.5 | G37: 21 | H37: 4.5 | I37: 30
B38: Corian_Quartz | C38: AD | D38: 2 | E38: Corian_QuartzAD2 | F38: 4.5 | G38: 51 | H38: 4.5 | I38: 60
B39: Corian_Quartz | C39: AD | D39: 3 | E39: Corian_QuartzAD3 | F39: 4.5 | G39: 81 | H39: 4.5 | I39: 90
B40: Corian_Quartz | C40: AD | D40: 4 | E40: Corian_QuartzAD4 | F40: 4.5 | G40: 110 | H40: 4.5 | I40: 119
B41: Corian_Quartz | C41: AD | D41: 5 | E41: Corian_QuartzAD5 | F41: 4.5 | G41: 141 | H41: 4.5 | I41: 150
B42: Corian_Quartz | C42: AD | D42: 6+ | E42: Corian_QuartzAD6+ | F42: 4.5 | G42: 171 | H42: 4.5 | I42: 180
B43: Corian_Quartz | C43: DSCT | D43: 1 | E43: Corian_QuartzDSCT1 | F43: 7.1875 | G43: 15.625 | H43: 7.1875 | I43: 30
B44: Corian_Quartz | C44: DSCT | D44: 2 | E44: Corian_QuartzDSCT2 | F44: 7.1875 | G44: 45.625 | H44: 7.1875 | I44: 60
B45: Corian_Quartz | C45: DSCT | D45: 3 | E45: Corian_QuartzDSCT3 | F45: 7.1875 | G45: 75.625 | H45: 7.1875 | I45: 90
B46: Corian_Quartz | C46: DSCT | D46: 4 | E46: Corian_QuartzDSCT4 | F46: 7.1875 | G46: 104.625 | H46: 7.1875 | I46: 119
B47: Corian_Quartz | C47: DSCT | D47: 5 | E47: Corian_QuartzDSCT5 | F47: 7.1875 | G47: 135.625 | H47: 7.1875 | I47: 150
B48: Corian_Quartz | C48: DSCT | D48: 6+ | E48: Corian_QuartzDSCT6+ | F48: 7.1875 | G48: 165.625 | H48: 7.1875 | I48: 180
B49: Corian_Quartz | C49: DSG | D49: 1 | E49: Corian_QuartzDSG1 | F49: 4 | G49: 22 | H49: 4 | I49: 30
B50: Corian_Quartz | C50: DSG | D50: 2 | E50: Corian_QuartzDSG2 | F50: 4 | G50: 52 | H50: 4 | I50: 60
B51: Corian_Quartz | C51: DSG | D51: 3 | E51: Corian_QuartzDSG3 | F51: 4 | G51: 82 | H51: 4 | I51: 90
B52: Corian_Quartz | C52: DSG | D52: 4 | E52: Corian_QuartzDSG4 | F52: 4 | G52: 111 | H52: 4 | I52: 119
B53: Corian_Quartz | C53: DSG | D53: 5 | E53: Corian_QuartzDSG5 | F53: 4 | G53: 142 | H53: 4 | I53: 150
B54: Corian_Quartz | C54: DSG | D54: 6+ | E54: Corian_QuartzDSG6+ | F54: 4 | G54: 172 | H54: 4 | I54: 180
B55: Corian_Quartz | C55: DSOF | D55: 1 | E55: Corian_QuartzDSOF1 | F55: 6 | G55: 18 | H55: 6 | I55: 30
B56: Corian_Quartz | C56: DSOF | D56: 2 | E56: Corian_QuartzDSOF2 | F56: 6 | G56: 48 | H56: 6 | I56: 60
B57: Corian_Quartz | C57: DSOF | D57: 3 | E57: Corian_QuartzDSOF3 | F57: 6 | G57: 78 | H57: 6 | I57: 90
B58: Corian_Quartz | C58: DSOF | D58: 4 | E58: Corian_QuartzDSOF4 | F58: 6 | G58: 107 | H58: 6 | I58: 119
B59: Corian_Quartz | C59: DSOF | D59: 5 | E59: Corian_QuartzDSOF5 | F59: 6 | G59: 138 | H59: 6 | I59: 150
B60: Corian_Quartz | C60: DSOF | D60: 6+ | E60: Corian_QuartzDSOF6+ | F60: 6 | G60: 168 | H60: 6 | I60: 180
B61: Corian_Quartz | C61: DSVR | D61: 1 | E61: Corian_QuartzDSVR1 | F61: 6.5 | G61: 17 | H61: 6.5 | I61: 30
B62: Corian_Quartz | C62: DSVR | D62: 2 | E62: Corian_QuartzDSVR2 | F62: 6.5 | G62: 47 | H62: 6.5 | I62: 60
B63: Corian_Quartz | C63: DSVR | D63: 3 | E63: Corian_QuartzDSVR3 | F63: 6.5 | G63: 77 | H63: 6.5 | I63: 90
B64: Corian_Quartz | C64: DSVR | D64: 5 | E64: Corian_QuartzDSVR5 | F64: 6.5 | G64: 137 | H64: 6.5 | I64: 150
B65: Corian_Quartz | C65: DSVR | D65: 6+ | E65: Corian_QuartzDSVR6+ | F65: 6.5 | G65: 167 | H65: 6.5 | I65: 180
B66: Corian_Quartz | C66: DSWD | D66: 1 | E66: =B66&C66&D66 -> Corian_QuartzDSWD1 | F66: 4 | G66: 22 | H66: 4 | I66: 30
B67: Corian_Quartz | C67: DSWD | D67: 2 | E67: Corian_QuartzDSWD2 | F67: 4 | G67: 52 | H67: 4 | I67: 60
B68: Corian_Quartz | C68: DSWD | D68: 3 | E68: Corian_QuartzDSWD3 | F68: 4 | G68: 82 | H68: 4 | I68: 90
B69: Corian_Quartz | C69: DSWD | D69: 4 | E69: Corian_QuartzDSWD4 | F69: 4 | G69: 111 | H69: 4 | I69: 119
B70: Corian_Quartz | C70: DSWD | D70: 5 | E70: Corian_QuartzDSWD5 | F70: 4 | G70: 142 | H70: 4 | I70: 150
B71: Corian_Quartz | C71: DSWD | D71: 6+ | E71: Corian_QuartzDSWD6+ | F71: 4 | G71: 172 | H71: 4 | I71: 180
B72: Caeserstone | C72: AD | D72: 1 | E72: CaeserstoneAD1 | F72: 4.5 | G72: 21 | H72: 4.5 | I72: 30
B73: Caeserstone | C73: AD | D73: 2 | E73: CaeserstoneAD2 | F73: 4.5 | G73: 51 | H73: 4.5 | I73: 60
B74: Caeserstone | C74: AD | D74: 3 | E74: CaeserstoneAD3 | F74: 4.5 | G74: 81 | H74: 4.5 | I74: 90
B75: Caeserstone | C75: AD | D75: 4 | E75: CaeserstoneAD4 | F75: 4.5 | G75: 110 | H75: 4.5 | I75: 119
B76: Caeserstone | C76: AD | D76: 5 | E76: CaeserstoneAD5 | F76: 4.5 | G76: 141 | H76: 4.5 | I76: 150
B77: Caeserstone | C77: AD | D77: 6+ | E77: CaeserstoneAD6+ | F77: 4.5 | G77: 171 | H77: 4.5 | I77: 180
B78: Caeserstone | C78: DSCT | D78: 1 | E78: CaeserstoneDSCT1 | F78: 7.1875 | G78: 15.625 | H78: 7.1875 | I78: 30
B79: Caeserstone | C79: DSCT | D79: 2 | E79: CaeserstoneDSCT2 | F79: 7.1875 | G79: 45.625 | H79: 7.1875 | I79: 60
B80: Caeserstone | C80: DSCT | D80: 3 | E80: CaeserstoneDSCT3 | F80: 7.1875 | G80: 75.625 | H80: 7.1875 | I80: 90
B81: Caeserstone | C81: DSCT | D81: 4 | E81: CaeserstoneDSCT4 | F81: 7.1875 | G81: 104.625 | H81: 7.1875 | I81: 119
B82: Caeserstone | C82: DSCT | D82: 5 | E82: CaeserstoneDSCT5 | F82: 7.1875 | G82: 135.625 | H82: 7.1875 | I82: 150
B83: Caeserstone | C83: DSCT | D83: 6+ | E83: CaeserstoneDSCT6+ | F83: 7.1875 | G83: 165.625 | H83: 7.1875 | I83: 180
B84: Caeserstone | C84: DSG | D84: 1 | E84: CaeserstoneDSG1 | F84: 4 | G84: 22 | H84: 4 | I84: 30
B85: Caeserstone | C85: DSG | D85: 2 | E85: CaeserstoneDSG2 | F85: 4 | G85: 52 | H85: 4 | I85: 60
B86: Caeserstone | C86: DSG | D86: 3 | E86: CaeserstoneDSG3 | F86: 4 | G86: 82 | H86: 4 | I86: 90
B87: Caeserstone | C87: DSG | D87: 4 | E87: CaeserstoneDSG4 | F87: 4 | G87: 111 | H87: 4 | I87: 119
B88: Caeserstone | C88: DSG | D88: 5 | E88: CaeserstoneDSG5 | F88: 4 | G88: 142 | H88: 4 | I88: 150
B89: Caeserstone | C89: DSG | D89: 6+ | E89: CaeserstoneDSG6+ | F89: 4 | G89: 172 | H89: 4 | I89: 180
B90: Caeserstone | C90: DSOF | D90: 1 | E90: CaeserstoneDSOF1 | F90: 6 | G90: 18 | H90: 6 | I90: 30
B91: Caeserstone | C91: DSOF | D91: 2 | E91: CaeserstoneDSOF2 | F91: 6 | G91: 48 | H91: 6 | I91: 60
B92: Caeserstone | C92: DSOF | D92: 3 | E92: CaeserstoneDSOF3 | F92: 6 | G92: 78 | H92: 6 | I92: 90
B93: Caeserstone | C93: DSOF | D93: 4 | E93: CaeserstoneDSOF4 | F93: 6 | G93: 107 | H93: 6 | I93: 119
B94: Caeserstone | C94: DSOF | D94: 5 | E94: CaeserstoneDSOF5 | F94: 6 | G94: 138 | H94: 6 | I94: 150
B95: Caeserstone | C95: DSOF | D95: 6+ | E95: CaeserstoneDSOF6+ | F95: 6 | G95: 168 | H95: 6 | I95: 180
B96: Caeserstone | C96: DSVR | D96: 1 | E96: CaeserstoneDSVR1 | F96: 6.5 | G96: 17 | H96: 6.5 | I96: 30
B97: Caeserstone | C97: DSVR | D97: 2 | E97: CaeserstoneDSVR2 | F97: 6.5 | G97: 47 | H97: 6.5 | I97: 60
B98: Caeserstone | C98: DSVR | D98: 3 | E98: =B98&C98&D98 -> CaeserstoneDSVR3 | F98: 6.5 | G98: 77 | H98: 6.5 | I98: 90
B99: Caeserstone | C99: DSVR | D99: 5 | E99: CaeserstoneDSVR5 | F99: 6.5 | G99: 137 | H99: 6.5 | I99: 150
B100: Caeserstone | C100: DSVR | D100: 6+ | E100: CaeserstoneDSVR6+ | F100: 6.5 | G100: 167 | H100: 6.5 | I100: 180
B101: Caeserstone | C101: DSWD | D101: 1 | E101: CaeserstoneDSWD1 | F101: 4 | G101: 22 | H101: 4 | I101: 30
B102: Caeserstone | C102: DSWD | D102: 2 | E102: CaeserstoneDSWD2 | F102: 4 | G102: 52 | H102: 4 | I102: 60
B103: Caeserstone | C103: DSWD | D103: 3 | E103: CaeserstoneDSWD3 | F103: 4 | G103: 82 | H103: 4 | I103: 90
B104: Caeserstone | C104: DSWD | D104: 4 | E104: CaeserstoneDSWD4 | F104: 4 | G104: 111 | H104: 4 | I104: 119
B105: Caeserstone | C105: DSWD | D105: 5 | E105: CaeserstoneDSWD5 | F105: 4 | G105: 142 | H105: 4 | I105: 150
B106: Caeserstone | C106: DSWD | D106: 6+ | E106: CaeserstoneDSWD6+ | F106: 4 | G106: 172 | H106: 4 | I106: 180
B107: Silestone | C107: AD | D107: 1 | E107: SilestoneAD1 | F107: 4.5 | G107: 21 | H107: 4.5 | I107: 30
B108: Silestone | C108: AD | D108: 2 | E108: SilestoneAD2 | F108: 4.5 | G108: 51 | H108: 4.5 | I108: 60
B109: Silestone | C109: AD | D109: 3 | E109: SilestoneAD3 | F109: 4.5 | G109: 81 | H109: 4.5 | I109: 90
B110: Silestone | C110: AD | D110: 4 | E110: SilestoneAD4 | F110: 4.5 | G110: 110 | H110: 4.5 | I110: 119
B111: Silestone | C111: AD | D111: 5 | E111: SilestoneAD5 | F111: 4.5 | G111: 141 | H111: 4.5 | I111: 150
B112: Silestone | C112: AD | D112: 6+ | E112: SilestoneAD6+ | F112: 4.5 | G112: 171 | H112: 4.5 | I112: 180
B113: Silestone | C113: DSCT | D113: 1 | E113: SilestoneDSCT1 | F113: 7.1875 | G113: 15.625 | H113: 7.1875 | I113: 30
B114: Silestone | C114: DSCT | D114: 2 | E114: SilestoneDSCT2 | F114: 7.1875 | G114: 45.625 | H114: 7.1875 | I114: 60
B115: Silestone | C115: DSCT | D115: 3 | E115: SilestoneDSCT3 | F115: 7.1875 | G115: 75.625 | H115: 7.1875 | I115: 90
B116: Silestone | C116: DSCT | D116: 4 | E116: SilestoneDSCT4 | F116: 7.1875 | G116: 104.625 | H116: 7.1875 | I116: 119
B117: Silestone | C117: DSCT | D117: 5 | E117: SilestoneDSCT5 | F117: 7.1875 | G117: 135.625 | H117: 7.1875 | I117: 150
B118: Silestone | C118: DSCT | D118: 6+ | E118: SilestoneDSCT6+ | F118: 7.1875 | G118: 165.625 | H118: 7.1875 | I118: 180
B119: Silestone | C119: DSG | D119: 1 | E119: SilestoneDSG1 | F119: 4 | G119: 22 | H119: 4 | I119: 30
B120: Silestone | C120: DSG | D120: 2 | E120: SilestoneDSG2 | F120: 4 | G120: 52 | H120: 4 | I120: 60
B121: Silestone | C121: DSG | D121: 3 | E121: SilestoneDSG3 | F121: 4 | G121: 82 | H121: 4 | I121: 90
B122: Silestone | C122: DSG | D122: 4 | E122: SilestoneDSG4 | F122: 4 | G122: 111 | H122: 4 | I122: 119
B123: Silestone | C123: DSG | D123: 5 | E123: SilestoneDSG5 | F123: 4 | G123: 142 | H123: 4 | I123: 150
B124: Silestone | C124: DSG | D124: 6+ | E124: SilestoneDSG6+ | F124: 4 | G124: 172 | H124: 4 | I124: 180
B125: Silestone | C125: DSOF | D125: 1 | E125: SilestoneDSOF1 | F125: 6 | G125: 18 | H125: 6 | I125: 30
B126: Silestone | C126: DSOF | D126: 2 | E126: SilestoneDSOF2 | F126: 6 | G126: 48 | H126: 6 | I126: 60
B127: Silestone | C127: DSOF | D127: 3 | E127: SilestoneDSOF3 | F127: 6 | G127: 78 | H127: 6 | I127: 90
B128: Silestone | C128: DSOF | D128: 4 | E128: SilestoneDSOF4 | F128: 6 | G128: 107 | H128: 6 | I128: 119
B129: Silestone | C129: DSOF | D129: 5 | E129: SilestoneDSOF5 | F129: 6 | G129: 138 | H129: 6 | I129: 150
B130: Silestone | C130: DSOF | D130: 6+ | E130: =B130&C130&D130 -> SilestoneDSOF6+ | F130: 6 | G130: 168 | H130: 6 | I130: 180
B131: Silestone | C131: DSVR | D131: 1 | E131: SilestoneDSVR1 | F131: 6.5 | G131: 17 | H131: 6.5 | I131: 30
B132: Silestone | C132: DSVR | D132: 2 | E132: SilestoneDSVR2 | F132: 6.5 | G132: 47 | H132: 6.5 | I132: 60
B133: Silestone | C133: DSVR | D133: 3 | E133: SilestoneDSVR3 | F133: 6.5 | G133: 77 | H133: 6.5 | I133: 90
B134: Silestone | C134: DSVR | D134: 5 | E134: SilestoneDSVR5 | F134: 6.5 | G134: 137 | H134: 6.5 | I134: 150
B135: Silestone | C135: DSVR | D135: 6+ | E135: SilestoneDSVR6+ | F135: 6.5 | G135: 167 | H135: 6.5 | I135: 180
B136: Silestone | C136: DSWD | D136: 1 | E136: SilestoneDSWD1 | F136: 4 | G136: 22 | H136: 4 | I136: 30
B137: Silestone | C137: DSWD | D137: 2 | E137: SilestoneDSWD2 | F137: 4 | G137: 52 | H137: 4 | I137: 60
B138: Silestone | C138: DSWD | D138: 3 | E138: SilestoneDSWD3 | F138: 4 | G138: 82 | H138: 4 | I138: 90
B139: Silestone | C139: DSWD | D139: 4 | E139: SilestoneDSWD4 | F139: 4 | G139: 111 | H139: 4 | I139: 119
B140: Silestone | C140: DSWD | D140: 5 | E140: SilestoneDSWD5 | F140: 4 | G140: 142 | H140: 4 | I140: 150
B141: Silestone | C141: DSWD | D141: 6+ | E141: SilestoneDSWD6+ | F141: 4 | G141: 172 | H141: 4 | I141: 180

Sheet Calculator (hidden)
A1: Quantity | B1: Material Type | C1: Sink Type | D1: Model | E1: Edge Type | F1: Stations | G1: Trough Style | H1: Group | I1: LookUp Value 1 | J1: Hand Dryers (AD) | K1: Faucet Model | L1: Faucet Quantity | M1: Soap Dispencer | N1: Soap Disp. Quantity | O1: Enclosure Type | P1: LED Lights | Q1: Purse Hooks | R1: Purse Hook Color | S1: Purse Hook Quantity | T1: HD(AD)$$ | U1: Enclosure$$ | V1: LED$$ | W1: PH$$ | X1: Faucet$$ | Y1: Soap$$ | Z1: Faucet & Soap Total | AA1: Add-On Total | AB1: Mounting Total | AC1: Sink Total | AD1: Discount | AE1: Base Sink $$ | AF1: Extended Price | AG1: Stone SKU | AH1: Sloan SKU
A2: =Designer_Sink_Quote_1!D20 -> 0 | B2: =Designer_Sink_Quote_1!D23 -> 0 | C2: =Designer_Sink_Quote_1!D26 -> 0 | D2: =Designer_Sink_Quote_1!I20 -> 0 | E2: =Designer_Sink_Quote_1!I26 -> 0 | F2: =Designer_Sink_Quote_1!N20 -> 0 | G2: =Designer_Sink_Quote_1!D26 -> 0 | H2: =VLOOKUP('Arc Worksheet'!I23,'Drop Tables'!Z:AA,2,0) ->  | I2: =CONCATENATE(Quote3[[#This Row],[Material Type]],Quote3[[#This Row],[Sink Type]],Quote3[[#This Row],[Model]],Quote3[[#This Row],[Stations]]) -> 0000 | J2: 0 | K2: =VLOOKUP(Designer_Sink_Quote_1!N32,'Faucet Price Table'!#REF!,2,0) ->  | L2: =Designer_Sink_Quote_1!D32 -> 0 | M2: =Designer_Sink_Quote_1!I35 -> 0 | N2: =Designer_Sink_Quote_1!D35 -> 0 | O2: =Designer_Sink_Quote_1!N26 -> 0 | P2: =Designer_Sink_Quote_1!D29 -> 0 | Q2: =Designer_Sink_Quote_1!I29 -> 0 | R2: =Designer_Sink_Quote_1!S29 -> 0 | S2: =Designer_Sink_Quote_1!N29 -> 0 | T2: 0 | U2: =IFERROR(INDEX('Sink Price Table'!#REF!,MATCH(Quote3[[#This Row],[LookUp Value 1]],'Sink Price Table'!#REF!,0),MATCH(Quote3[Enclosure Type],'Sink Price Table'!#REF!,0)),0) -> 0 | V2: =IF(Quote3[[#This Row],[LED Lights]]="Yes",VLOOKUP(Quote3[LookUp Value 1],'Sink Price Table'!#REF!,19,0),0) -> 0 | W2: =IF(Quote3[[#This Row],[Purse Hooks]]="Yes",(VLOOKUP(Quote3[LookUp Value 1],'Sink Price Table'!#REF!,20,0)*S2),0) -> 0 | X2: =IFERROR((VLOOKUP(Quote3[Faucet Model],'Faucet Price Table'!#REF!,2,0)*Quote3[Faucet Quantity]),0) -> 0 | Y2: =IFERROR((VLOOKUP(Quote3[Soap Dispencer],'Soap Price Table'!#REF!,2,0)*Quote3[Soap Disp. Quantity]),0) -> 0 | Z2: =IFERROR(SUM(Quote3[[Faucet$$]:[Soap$$]])*Quote3[Quantity],0) -> 0 | AA2: =IFERROR(SUM(Quote3[[#This Row],[LED$$]:[PH$$]],Quote3[[#This Row],[HD(AD)$$]])*Quote3[Quantity],0) -> 0 | AB2: =IFERROR(Quote3[Enclosure$$]*Quote3[Quantity],0) -> 0 | AC2: =IFERROR(A2*Quote3[[#This Row],[Base Sink $$]],0) -> 0 | AD2: =Designer_Sink_Quote_1!I38 -> 0 | AE2: =IFERROR(INDEX('Sink Price Table'!#REF!,MATCH(Quote3[[#This Row],[LookUp Value 1]],'Sink Price Table'!#REF!,0),MATCH(Quote3[[#This Row],[Group]],'Sink Price Table'!#REF!,0)),"Oops! Something Went Wrong Please Contact Sloan") -> Oops! Something Went Wrong Please Contact Sloan | AF2: =IFERROR((SUM(Quote3[[#This Row],[Faucet & Soap Total]],Quote3[[#This Row],[Add-On Total]],Quote3[[#This Row],[Mounting Total]],Quote3[[#This Row],[Sink Total]])-Quote3[[#This Row],[Discount ]]),0) -> 0 | AG2: =IFERROR(INDEX('Generic Codes'!$A$1:$P$112,MATCH(Quote3[LookUp Value 1],'Generic Codes'!$A$1:$A$112,0),MATCH(Quote3[Group],'Generic Codes'!$A$1:$P$1,0)),"Oops! Something Went Wrong Please Contact Sloan") -> Oops! Something Went Wrong Please Contact Sloan | AH2: =IFERROR(INDEX('Sku List'!$A$1:$P$48,MATCH(Quote3[LookUp Value 1],'Sku List'!$A$1:$A$48,0),MATCH(Quote3[Group],'Sku List'!$A$1:$P$1,0)),"Oops! Something Went Wrong Please Contact Sloan") -> Oops! Something Went Wrong Please Contact Sloan

Sheet Calculator_2 (hidden)
A1: Quantity | B1: Material Type | C1: Sink Type | D1: Model | E1: Edge Type | F1: Stations | G1: Trough Style | H1: Group | I1: LookUp Value 1 | J1: Hand Dryers (AD) | K1: Faucet Model | L1: Faucet Quantity | M1: Soap Dispencer | N1: Soap Disp. Quantity | O1: Enclosure Type | P1: LED Lights | Q1: Purse Hooks | R1: Purse Hook Color | S1: Purse Hook Quantity | T1: HD(AD)$$ | U1: Enclosure$$ | V1: LED$$ | W1: PH$$ | X1: Faucet$$ | Y1: Soap$$ | Z1: Faucet & Soap Total | AA1: Add-On Total | AB1: Mounting Total | AC1: Sink Total | AD1: Discount | AE1: Base Sink $$ | AF1: Extended Price | AG1: Stone SKU | AH1: Sloan SKU
A2: ='Arc Worksheet'!D20 -> 0 | B2: ='Arc Worksheet'!D23 -> 0 | C2: ='Arc Worksheet'!N23 -> 0 | D2: ='Arc Worksheet'!#REF! ->  | E2: ='Arc Worksheet'!I26 -> 0 | F2: ='Arc Worksheet'!#REF! ->  | G2: ='Arc Worksheet'!N23 -> 0 | H2: =VLOOKUP('Arc Worksheet'!I23,'Drop Tables'!Z:AA,2,0) ->  | I2: =CONCATENATE(Quote39[[#This Row],[Material Type]],Quote39[[#This Row],[Sink Type]],Quote39[[#This Row],[Model]],Quote39[[#This Row],[Stations]]) ->  | J2: 0 | K2: =VLOOKUP('Arc Worksheet'!#REF!,'Faucet Price Table'!#REF!,2,0) ->  | L2: ='Arc Worksheet'!#REF! ->  | M2: ='Arc Worksheet'!#REF! ->  | N2: ='Arc Worksheet'!#REF! ->  | O2: ='Arc Worksheet'!#REF! ->  | P2: ='Arc Worksheet'!I20 -> 0 | Q2: ='Arc Worksheet'!#REF! ->  | R2: ='Arc Worksheet'!#REF! ->  | S2: ='Arc Worksheet'!#REF! ->  | T2: 0 | U2: =IFERROR(INDEX('Sink Price Table'!#REF!,MATCH(Quote39[[#This Row],[LookUp Value 1]],'Sink Price Table'!#REF!,0),MATCH(Quote39[Enclosure Type],'Sink Price Table'!#REF!,0)),0) -> 0 | V2: =IF(Quote39[[#This Row],[LED Lights]]="Yes",VLOOKUP(Quote39[LookUp Value 1],'Sink Price Table'!#REF!,19,0),0) -> 0 | W2: =IF(Quote39[[#This Row],[Purse Hooks]]="Yes",(VLOOKUP(Quote39[LookUp Value 1],'Sink Price Table'!#REF!,20,0)*S2),0) ->  | X2: =IFERROR((VLOOKUP(Quote39[Faucet Model],'Faucet Price Table'!#REF!,2,0)*Quote39[Faucet Quantity]),0) -> 0 | Y2: =IFERROR((VLOOKUP(Quote39[Soap Dispencer],'Soap Price Table'!#REF!,2,0)*Quote39[Soap Disp. Quantity]),0) -> 0 | Z2: =IFERROR(SUM(Quote39[[Faucet$$]:[Soap$$]])*Quote39[Quantity],0) -> 0 | AA2: =IFERROR(SUM(Quote39[[#This Row],[LED$$]:[PH$$]],Quote39[[#This Row],[HD(AD)$$]])*Quote39[Quantity],0) -> 0 | AB2: =IFERROR(Quote39[Enclosure$$]*Quote39[Quantity],0) -> 0 | AC2: =IFERROR(A2*Quote39[[#This Row],[Base Sink $$]],0) -> 0 | AD2: =Designer_Sink_Quote_1!I38 -> 0 | AE2: =IFERROR(INDEX('Sink Price Table'!#REF!,MATCH(Quote39[[#This Row],[LookUp Value 1]],'Sink Price Table'!#REF!,0),MATCH(Quote39[[#This Row],[Group]],'Sink Price Table'!#REF!,0)),"Oops! Something Went Wrong Please Contact Sloan") -> Oops! Something Went Wrong Please Contact Sloan | AF2: =IFERROR((SUM(Quote39[[#This Row],[Faucet & Soap Total]],Quote39[[#This Row],[Add-On Total]],Quote39[[#This Row],[Mounting Total]],Quote39[[#This Row],[Sink Total]])-Quote39[[#This Row],[Discount ]]),0) -> 0 | AG2: =IFERROR(INDEX('Generic Codes'!$A$1:$P$223,MATCH(Quote39[LookUp Value 1],'Generic Codes'!$A$1:$A$223,0),MATCH(Quote39[Group],'Generic Codes'!$A$1:$P$1,0)),"Oops! Something Went Wrong Please Contact Sloan") -> Oops! Something Went Wrong Please Contact Sloan | AH2: =IFERROR(INDEX('Sku List'!$A$1:$P$143,MATCH(Quote39[LookUp Value 1],'Sku List'!$A$1:$A$143,0),MATCH(Quote39[Group],'Sku List'!$A$1:$P$1,0)),"Oops! Something Went Wrong Please Contact Sloan") -> Oops! Something Went Wrong Please Contact Sloan

Sheet Drop Tables (hidden)
A1: Yes/No1 | B1: Country | C1: CA State List | D1: US State List | E1: Rep List | F1: Model | G1: Yes/No2 | H1: Material Name | I1: Material Code | J1: Trough Style | K1: Station Quantity | L1: Stone and Steel Reps. | M1: Configuration | N1: Material Name | O1: Finishes | P1: Sizes | Q1: Threshold Design | R1: Drain Style | S1: Rough In | T1: Shower Wall Configuration | U1: Materials | V1: Finishes | W1: Height | X1: Hardware Finish | Y1: Material | Z1: Material Color List | AA1: Color Category | AB1: Color Code | AC1: Color Group
A2: Yes | B2: Canada | C2: Alberta | D2: Alabama | E2: American Sales Co. | F2: AD | G2: Yes | H2: Caeserstone | I2: E0001 | J2: Continuous Trough | K2: 1 | L2: EP&D | M2: Rectangle | N2: Quartz - Caeserstone | O2: Gloss/Polished | P2: 36"x36" | Q2: Zero - ADA | R2: 5" round or square | S2: Above Floor | T2: Sliding Door | U2: Quartz - Caeserstone | V2: Gloss/Polished | W2: 84" | X2: Black | Y2: Caeserstone | Z2: Alpine Mist | AA2: D | AB2: 0 | AC2: A
A3: No | B3: United States | C3: British Columbia | D3: Alaska | E3: Aspinall Associates | F3: DSG | G3: No | H3: Corian | I3: C0002 | J3: Individual Basin | K3: 2 | L3: BBN | M3: Pentagon | N3: Solid Surface - Corian | O3: Matte/Leather | P3: 36"x42" | Q3: 2" - ADA | R3: Linear with no grate | S3: Through Floor | T3: Pivot Door | U3: Solid Surface - Corian | V3: Matte/Leather | W3: 96" | X3: Brushed Nickel | Y3: Caeserstone | Z3: Atlantic Salt | AA3: B | AB3: 0 | AC3: B
A4: N/A | B4: Other | C4: Manitoba | D4: Arkansas | E4: Badgerland Trading | F4: DSCT | G4: Yes | H4: Corian_Quartz | I4: S0003 | K4: 3 | L4: Braley Gray | M4: Curved | N4: Quartz - Corian Quartz | P4: 48"x32" | Q4: 4" - Standard | R4: Linear with grate | T4: Walk in Entry | U4: Quartz - Corian Quartz | V4: Clear | W4: Custom | X4: Oil Rubbed Bronze | Y4: Caeserstone | Z4: Bianco Drift | AA4: D | AB4: 0 | AC4: C
C5: New Brunswick | D5: Arizona | E5: BBN Sales | F5: DSOF | G5: No | H5: Silestone | I5: Z0004 | J5: Individual Basin | K5: 4 | L5: Burns Cope | M5: Custom | N5: Quartz - Silestone | P5: 60"x30" | R5: Custom | U5: Quartz - Silestone | V5: Frosted | X5: White | Y5: Caeserstone | Z5: Blizzard | AA5: A | AB5: 0108095 | AC5: D
C6: Newfoundland & Labrador | D6: California | E6: Braley Gray | F6: DSVR | H6: Other | I6: O0005 | K6: 5 | L6: Delco | N6: Acrylic | P6: Custom | U6: Acrylic | V6: Etched | X6: Other | Y6: Caeserstone | Z6: Calacatta Nuovo | AA6: E | AB6: 0 | AC6: E
C7: Northwest Territories | D7: Colorado | E7: Burns Cope | F7: DSWD | G7: =IF(OR('Arc Worksheet'!#REF!='Drop Tables'!F2,'Arc Worksheet'!#REF!='Drop Tables'!F3),"AD",#N/A) ->  | K7: 6+ | L7: Dillard | N7: Other | U7: Other | Y7: Caeserstone | Z7: Clamshell | AA7: B | AB7: 0
C8: Nova Scotia | D8: Connecticut | E8: C.A. Riner | G8: =IF(OR('Arc Worksheet'!#REF!='Drop Tables'!F6,'Arc Worksheet'!#REF!='Drop Tables'!F5,'Arc Worksheet'!#REF!='Drop Tables'!F4),"Basin","Trough") ->  | L8: Diversified | N8: Solid Surface - Other | U8: Solid Surface - Other | Y8: Caeserstone | Z8: Coastal Grey | AA8: D | AB8: 0
C9: Nunavut | D9: Delaware | E9: Clapper Co. | G9: =IF('Arc Worksheet'!#REF!='Drop Tables'!L4,"Laminate","#N/A") ->  | L9: Dobbin | N9: Quartz - Other | U9: Quartz - Other | Y9: Caeserstone | Z9: Concrete | AA9: A | AB9: 0108099
C10: Ontario | D10: Florida | E10: Delco Sales | G10: Yes | L10: Engineered Concepts | U10: Glass | Y10: Caeserstone | Z10: Cosmopolitan White | AA10: D | AB10: 0
C11: Prince Edward Island | D11: Georgia | E11: Dillard Associates - SA | G11: No | L11: Joyce | N11: Shower Pan | Y11: Caeserstone | Z11: Dreamy Marfil | AA11: D | AB11: 0
C12: Quebec | D12: Hawaii | E12: Dillard Associates | G12: Yes | L12: Kliman | N12: =IF('Arc Worksheet'!D23="Quartz - Caeserstone", "Caeserstone",IF('Arc Worksheet'!D23="Solid Surface - Corian","Corian",IF('Arc Worksheet'!D23="Quartz - Corian Quartz","Corain_Quartz",IF('Arc Worksheet'!D23="Quartz - Silestone", "Silestone","Other")))) -> Other | Y12: Caeserstone | Z12: Eggshell | AA12: A | AB12: 0
C13: Saskatchewan | D13: Idaho | E13: Diversified Spec. | G13: No | L13: Maloney & Curcio | N13: Shower Wall | Y13: Caeserstone | Z13: Fresh Concrete | AA13: D | AB13: 0
C14: Yukon | D14: Illinois | E14: Edwards, Platt, & Deely | L14: Pannell | N14: =IF('Arc Worksheet'!N36="Quartz - Caeserstone", "Caeserstone",IF('Arc Worksheet'!N36="Solid Surface - Corian","Corian",IF('Arc Worksheet'!N36="Quartz - Corian Quartz","Corain_Quartz",IF('Arc Worksheet'!N36="Quartz - Silestone", "Silestone","Other")))) -> Other | Y14: Caeserstone | Z14: Frosty Carrina | AA14: D | AB14: 0
D15: Indiana | E15: Engineered Concepts | G15: =IF('Arc Worksheet'!#REF!="DSWD","Basin","No") ->  | L15: RE Fitzpatrick | Y15: Caeserstone | Z15: Geogian Bluffs | AA15: D | AB15: 0
D16: Iowa | E16: Hamel Associates | G16: Yes | L16: Repco | Y16: Caeserstone | Z16: Ginger | AA16: A | AB16: 0
D17: Kansas | E17: Hebco | G17: No | L17: SDAJ | Y17: Caeserstone | Z17: Haze | AA17: B | AB17: 0
D18: Kentucky | E18: J.B. O'Connor Co. Inc. | L18: Smith & Stevenson | Y18: Caeserstone | Z18: Jet Black | AA18: B | AB18: 0
D19: Louisiana | E19: J.H. Pokorny Associates | L19: Tri-Rep | Y19: Caeserstone | Z19: Lagos Blue | AA19: B | AB19: 0
D20: Maine | E20: Joyce Agency | L20: WG Lesemann | Y20: Caeserstone | Z20: Linen | AA20: B | AB20: 0
D21: Maryland | E21: Kliman Sales Inc. | Y21: Caeserstone | Z21: London Grey | AA21: D | AB21: 0
D22: Massachusetts | E22: M & M Sales Inc. | Y22: Caeserstone | Z22: Montblanc | AA22: D | AB22: 0
D23: Michigan | E23: Maloney & Curcio | Y23: Caeserstone | Z23: Moorland Fog | AA23: B | AB23: 0
D24: Minnesota | E24: Marshall-Rodeno | Y24: Caeserstone | Z24: Nobel Grey | AA24: D | AB24: 0
D25: Mississippi | E25: Mendell Sales | Y25: Caeserstone | Z25: Nougat | AA25: A | AB25: 0
D26: Missouri | E26: Midwest Spec. | Y26: Caeserstone | Z26: Ocean Foam | AA26: B | AB26: 0
D27: Montana | E27: Pannell | Y27: Caeserstone | Z27: Organic White | AA27: B | AB27: 0
D28: Nebraska | E28: Premier Marketing | Y28: Caeserstone | Z28: Pebble | AA28: B | AB28: 0
D29: Nevada | E29: R.E. Fitzpatrick | Y29: Caeserstone | Z29: Piatra Grey | AA29: D | AB29: 0
D30: New Hampshire | E30: Repco | Y30: Caeserstone | Z30: Pure White | AA30: D | AB30: 0
D31: New Jersey | E31: Service Reps Inc. | Y31: Caeserstone | Z31: Quartz Reflections | AA31: B | AB31: 0
D32: New Mexico | E32: Service Reps Inc. - IA | Y32: Caeserstone | Z32: Raven | AA32: B | AB32: 0
D33: New York | E33: Smith & Stevenson | Y33: Caeserstone | Z33: Raw Concrete | AA33: D | AB33: 0
D34: North Carolina | E34: Southern Spec | Y34: Caeserstone | Z34: Rugged Concrete | AA34: D | AB34: 0
D35: North Dakota | E35: Southwestern Mech - AZ | Y35: Caeserstone | Z35: Shitake | AA35: B | AB35: 0
D36: Ohio | E36: Southwestern Mech - NV | Y36: Caeserstone | Z36: Sleek Concrete | AA36: B | AB36: 0
D37: Oklahoma | E37: Stone, Drew, Ashe, Jones | Y37: Caeserstone | Z37: Statuario Maximus | AA37: E | AB37: 0
D38: Oregon | E38: Stone, Drew, Ashe, Jones - AK | Y38: Caeserstone | Z38: Statuario Nuovo | AA38: E | AB38: 0
D39: Pennsylvania | E39: Superior Products | Y39: Caeserstone | Z39: Sympony Grey | AA39: D | AB39: 0
D40: Rhode Island | E40: Tri-Rep Sales | Y40: Caeserstone | Z40: Taj Royal | AA40: D | AB40: 0
D41: South Carolina | E41: W.G. Lesemann & Son | Y41: Caeserstone | Z41: Turbine Grey | AA41: B | AB41: 0
D42: South Dakota | E42: Will & Pierce Agency | Y42: Caeserstone | Z42: Tuscan Dawn | AA42: D | AB42: 0
D43: Tennessee | E43: WMS Sales Inc. | Y43: Caeserstone | Z43: Urban Safari | AA43: D | AB43: 0
D44: Texas | E44: Yost Associates | Y44: Caeserstone | Z44: Villa Noir | AA44: D | AB44: 0
D45: Utah | E45: Ziel-Carlson Inc. | Y45: Caeserstone | Z45: White Attica | AA45: D | AB45: 0
D46: Vermont | E46: R.G. Dobbin | Y46: Caeserstone | Z46: Wild Rice | AA46: B | AB46: 0
D47: Virginia | Y47: Caeserstone | Z47: Woodlands | AA47: D | AB47: 0
D48: Washington | Y48: Corian | Z48: Abalone | AA48: A | AB48: 0000001
D49: West Virginia | Y49: Corian | Z49: Allspice | AA49: D | AB49: =J2+1
D50: Wisconsin | Y50: Corian | Z50: Antarctica | AA50: B | AB50: 0108003
D51: Wyoming | Y51: Corian | Z51: Anthracite | AA51: C | AB51: 0108035
Y52: Corian | Z52: Aqualite | AA52: D | AB52: 0
Y53: Corian | Z53: Arctic Ice | AA53: C | AB53: 0108028
Y54: Corian | Z54: Arrowroot | AA54: D | AB54: 0108034
Y55: Corian | Z55: Ash Concrete | AA55: C | AB55: 0
Y56: Corian | Z56: Basil | AA56: D | AB56: 0
Y57: Corian | Z57: Bisque | AA57: A | AB57: 0108042
Y58: Corian | Z58: Blue Pebble | AA58: B | AB58: 0108016
Y59: Corian | Z59: Blue Spice | AA59: C | AB59: 0
Y60: Corian | Z60: Bone | AA60: A | AB60: 0
Y61: Corian | Z61: Bronzite | AA61: C | AB61: 0
Y62: Corian | Z62: Burled Birch | AA62: D | AB62: 0
Y63: Corian | Z63: Cameo White | AA63: A | AB63: 0108004
Y64: Corian | Z64: Canvas | AA64: C | AB64: 0108009
Y65: Corian | Z65: Canyon | AA65: B | AB65: 0
Y66: Corian | Z66: Carbon Concrete | AA66: C | AB66: 0
Y67: Corian | Z67: Cilantro | AA67: C | AB67: 0
Y68: Corian | Z68: Clam Shell | AA68: D | AB68: 0
Y69: Corian | Z69: Cobalt | AA69: C | AB69: 0
Y70: Corian | Z70: Cocoa Brown | AA70: B | AB70: 0108047
Y71: Corian | Z71: Cocoa Prima | AA71: D | AB71: 0
Y72: Corian | Z72: Concrete | AA72: C | AB72: 0108013
Y73: Corian | Z73: Cosmos Prima | AA73: D | AB73: 0
Y74: Corian | Z74: Cottage Lane | AA74: C | AB74: 0
Y75: Corian | Z75: Deep Anthracite | AA75: C | AB75: 0
Y76: Corian | Z76: Deep Bedrock | AA76: C | AB76: 0
Y77: Corian | Z77: Deep Black Quartz | AA77: C | AB77: 0
Y78: Corian | Z78: Deep Caviar | AA78: C | AB78: 0
Y79: Corian | Z79: Deep Cloud | AA79: C | AB79: 0108037
Y80: Corian | Z80: Deep Espresso | AA80: C | AB80: 0
Y81: Corian | Z81: Deep Inkwell | AA81: D | AB81: 0
Y82: Corian | Z82: Deep Lapis | AA82: D | AB82: 0
Y83: Corian | Z83: Deep Mink | AA83: C | AB83: 0108053
Y84: Corian | Z84: Deep Night Sky | AA84: C | AB84: 0108018
Y85: Corian | Z85: Deep Nocturne | AA85: C | AB85: 0108061
Y86: Corian | Z86: Deep Sable | AA86: C | AB86: 0108065
Y87: Corian | Z87: Deep Smokey Pearl | AA87: D | AB87: 0
Y88: Corian | Z88: Deep Space | AA88: C | AB88: 0
Y89: Corian | Z89: Deep Storm | AA89: C | AB89: 0
Y90: Corian | Z90: Deep Terrain | AA90: D | AB90: 0
Y91: Corian | Z91: Deep Titanium | AA91: C | AB91: 0108044
Y92: Corian | Z92: Designer White | AA92: B | AB92: 0108001
Y93: Corian | Z93: Doeskin | AA93: C | AB93: 0108060
Y94: Corian | Z94: Dove | AA94: C | AB94: 0108015
Y95: Corian | Z95: Dune Prima | AA95: D | AB95: 0
Y96: Corian | Z96: Earth | AA96: D | AB96: 0108063
Y97: Corian | Z97: Ecru | AA97: D | AB97: 0
Y98: Corian | Z98: Elderberry | AA98: D | AB98: 0
Y99: Corian | Z99: Elegant Gray | AA99: B | AB99: 0
Y100: Corian | Z100: Evening Prima | AA100: D | AB100: 0
Y101: Corian | Z101: Everest | AA101: B | AB101: 0
Y102: Corian | Z102: Fawn | AA102: C | AB102: 0
Y103: Corian | Z103: Flint | AA103: C | AB103: 0
Y104: Corian | Z104: Fossil | AA104: C | AB104: 0108010
Y105: Corian | Z105: Glacier Ice | AA105: C | AB105: 0108039
Y106: Corian | Z106: Glacier White | AA106: A | AB106: 0108002
Y107: Corian | Z107: Granola | AA107: C | AB107: 0
Y108: Corian | Z108: Graylite | AA108: D | AB108: 0108020
Y109: Corian | Z109: Hazelnut | AA109: D | AB109: 0108026
Y110: Corian | Z110: Hickory Smoke | AA110: D | AB110: 0
Y111: Corian | Z111: Jasmine | AA111: D | AB111: 0108058
Y112: Corian | Z112: Juniper | AA112: D | AB112: 0
Y113: Corian | Z113: Lava Rock | AA113: D | AB113: 0108021
Y114: Corian | Z114: Limestone Prima | AA114: D | AB114: 0
Y115: Corian | Z115: Linen | AA115: A | AB115: 0108006
Y116: Corian | Z116: Matterhorn | AA116: C | AB116: 0108048
Y117: Corian | Z117: Maui | AA117: A | AB117: 0108017
Y118: Corian | Z118: Milky Way | AA118: D | AB118: 0108064
Y119: Corian | Z119: Mineral | AA119: D | AB119: 0
Y120: Corian | Z120: Modern White | AA120: B | AB120: 0
Y121: Corian | Z121: Mojave | AA121: B | AB121: 0
Y122: Corian | Z122: Moss | AA122: B | AB122: 0
Y123: Corian | Z123: Natural Gray | AA123: D | AB123: 0108056
Y124: Corian | Z124: Neutral Concrete | AA124: C | AB124: 0
Y125: Corian | Z125: NightFall | AA125: B | AB125: 0
Y126: Corian | Z126: Nimbus Prima | AA126: D | AB126: 0
Y127: Corian | Z127: Oat | AA127: C | AB127: 0108045
Y128: Corian | Z128: Pearl Gray | AA128: B | AB128: 0108033
Y129: Corian | Z129: Pine | AA129: C | AB129: 0108054
Y130: Corian | Z130: Platinum | AA130: B | AB130: 0108040
Y131: Corian | Z131: Raffia | AA131: C | AB131: 0108012
Y132: Corian | Z132: Rain Cloud | AA132: D | AB132: 0108036
Y133: Corian | Z133: Rice Paper | AA133: C | AB133: 0108005
Y134: Corian | Z134: Riverbed | AA134: D | AB134: 0108023
Y135: Corian | Z135: Rosemary | AA135: D | AB135: 0108041
Y136: Corian | Z136: Royal Red | AA136: C | AB136: 0108023
Y137: Corian | Z137: Saffron | AA137: D | AB137: 0
Y138: Corian | Z138: Sagebrush | AA138: D | AB138: 0
Y139: Corian | Z139: Sahara | AA139: A | AB139: 0
Y140: Corian | Z140: Sand | AA140: B | AB140: 0
Y141: Corian | Z141: Sand Storm | AA141: D | AB141: 0108052
Y142: Corian | Z142: Sandalwood | AA142: D | AB142: 0108050
Y143: Corian | Z143: Savannah | AA143: B | AB143: 0108007
Y144: Corian | Z144: Seafoam | AA144: C | AB144: 0108051
Y145: Corian | Z145: Serene Sage | AA145: C | AB145: 0
Y146: Corian | Z146: Silt | AA146: B | AB146: 0
Y147: Corian | Z147: Silver Birch | AA147: C | AB147: 0108025
Y148: Corian | Z148: Silver Gray | AA148: A | AB148: 0
Y149: Corian | Z149: Silverite | AA149: C | AB149: 0
Y150: Corian | Z150: Smoke Drift Prima | AA150: D | AB150: 0
Y151: Corian | Z151: Sonora | AA151: D | AB151: 0
Y152: Corian | Z152: Sorrel | AA152: D | AB152: 0108019
Y153: Corian | Z153: Sparkling White | AA153: C | AB153: 0
Y154: Corian | Z154: Stardust | AA154: D | AB154: 0108057
Y155: Corian | Z155: Suede | AA155: C | AB155: 0108029
Y156: Corian | Z156: Tumbleweed | AA156: D | AB156: 0
Y157: Corian | Z157: Vanilla | AA157: A | AB157: 0
Y158: Corian | Z158: Venaro White | AA158: C | AB158: 0108024
Y159: Corian | Z159: Weathered Concrete | AA159: C | AB159: 0
Y160: Corian | Z160: Whipped Cream | AA160: C | AB160: 0108027
Y161: Corian | Z161: Whisper | AA161: C | AB161: 0108008
Y162: Corian | Z162: White Jasmine | AA162: C | AB162: 0
Y163: Corian | Z163: White Onyx | AA163: D | AB163: 0
Y164: Corian | Z164: Willow | AA164: C | AB164: 0108032
Y165: Corian | Z165: Windswept Prima | AA165: D | AB165: 0
Y166: Corian | Z166: Witch Hazel | AA166: D | AB166: 0108055
Y167: Silestone | Z167: Alpina White | AA167: C | AB167: 0
Y168: Silestone | Z168: Altair | AA168: B | AB168: 0
Y169: Silestone | Z169: Arctic | AA169: E | AB169: 0
Y170: Silestone | Z170: Ariel | AA170: C | AB170: 0
Y171: Silestone | Z171: Bamboo | AA171: D | AB171: 0
Y172: Silestone | Z172: Blanco City | AA172: A | AB172: 0
Y173: Silestone | Z173: Blanco Maple | AA173: C | AB173: 0108087
Y174: Silestone | Z174: Blanco Orion | AA174: D | AB174: 0
Y175: Silestone | Z175: Blue Sahara | AA175: B | AB175: 0
Y176: Silestone | Z176: Calacatta Gold | AA176: E | AB176: 0
Y177: Silestone | Z177: Calypso | AA177: E | AB177: 0
Y178: Silestone | Z178: Capri Limestone | AA178: C | AB178: 0
Y179: Silestone | Z179: Cemento | AA179: B | AB179: 0
Y180: Silestone | Z180: Charcoal Soapstone | AA180: D | AB180: 0
Y181: Silestone | Z181: Chrome | AA181: E | AB181: 0
Y182: Silestone | Z182: Classic White | AA182: C | AB182: 0
Y183: Silestone | Z183: Coppermist | AA183: D | AB183: 0
Y184: Silestone | Z184: Coral Clay | AA184: B | AB184: 0
Y185: Silestone | Z185: Cygnus | AA185: B | AB185: 0
Y186: Silestone | Z186: Daria | AA186: E | AB186: 0
Y187: Silestone | Z187: Forest Snow | AA187: D | AB187: 0
Y188: Silestone | Z188: Grey Expo | AA188: A | AB188: 0
Y189: Silestone | Z189: Helix | AA189: E | AB189: 0
Y190: Silestone | Z190: Iconic Black | AA190: D | AB190: 0
Y191: Silestone | Z191: Iconic White | AA191: E | AB191: 0
Y192: Silestone | Z192: Iron Bark | AA192: B | AB192: 0
Y193: Silestone | Z193: Iron Ore | AA193: E | AB193: 0
Y194: Silestone | Z194: Kensho | AA194: D | AB194: 0
Y195: Silestone | Z195: Kimbler Mist | AA195: E | AB195: 0
Y196: Silestone | Z196: Kona Beige | AA196: C | AB196: 0
Y197: Silestone | Z197: Lagoon | AA197: D | AB197: 0
Y198: Silestone | Z198: Lena | AA198: A | AB198: 0
Y199: Silestone | Z199: Luna | AA199: E | AB199: 0
Y200: Silestone | Z200: Lusso | AA200: D | AB200: 0
... 212 more rows

Sheet Images (2) (hidden)
A1: Bounce | B1: Code | C1: Image
A2: =IF(ISBLANK('Arc Worksheet'!D23),"Blank",'Arc Worksheet'!D23) -> Blank | B2: Steel | F2: =IF(ISBLANK(A2),#N/A,(INDEX($C$2:$C$70,MATCH($A$2,$B$2:$B$70,0)))) -> 
B3: Hardwoods
B4: Solid Surface
B5: Glass
B6: Acrylic
B7: Natural Stone
B8: Custom

Sheet To DOs (hidden)
A1: Led off individual basin must multiply per station

Sheet Color List 2 (hidden)
A1: Material Type | B1: Brand | C1: Color | D1: Matl-Color | E1: JP COLOR | F1: Price Group | G1: SAP Code | H1: PriceCode | I1: Supplier Color Code | J1: Color Code | K1: Ext Color Code | L1: USE THIS | N1: IF Blank 000000 | P1: Sink Color | Q1: Category | R1: Code
A2: Quartz | B2: Caeserstone | C2: Alpine Mist | D2: =A2& " - " & C2 -> Quartz - Alpine Mist | E2: =A2&" - "&B2&" - "&C2 -> Quartz - Caeserstone - Alpine Mist | F2: C | H2: Quartz D | I2: 5110 | J2: AMI | K2: ="N"&J2 -> NAMI | L2: D | P2: Silestone - Albedo*** | R2: =IFERROR(VLOOKUP(P2,E:G,6,0),"0000000") -> 0000000
A3: Quartz | B3: Caeserstone | C3: Atlantic Salt | D3: Quartz - Atlantic Salt | E3: =A3&" - "&B3&" - "&C3 -> Quartz - Caeserstone - Atlantic Salt | F3: B | H3: Quartz B | I3: 6270 | J3: ASA | K3: NASA | L3: B | P3: Silestone - Aquatint*** | R3: 0000000
A4: Quartz | B4: Caeserstone | C4: Bianco Drift | D4: Quartz - Bianco Drift | E4: Quartz - Caeserstone - Bianco Drift | F4: C | H4: Quartz D | I4: 6131 | J4: BDR | K4: NBDR | L4: D | P4: Silestone - Ariel*** | R4: 0000000
A5: Quartz | B5: Caeserstone | C5: Blizzard | D5: Quartz - Blizzard | E5: Quartz - Caeserstone - Blizzard | F5: A | G5: 0108095 | H5: Quartz A | I5: 2141 | J5: BLI | K5: NBLI | L5: A | P5: Silestone - Bianco River | Q5: D | R5: 0000000
A6: Quartz | B6: Caeserstone | C6: Calacatta Nuovo | D6: Quartz - Calacatta Nuovo | E6: Quartz - Caeserstone - Calacatta Nuovo | F6: E | H6: Quartz E | I6: 5131 | J6: CAL | K6: NCAL | L6: E | P6: Silestone - Blanco Orion | Q6: D | R6: 0000000
A7: Quartz | B7: Caeserstone | C7: Clamshell | D7: Quartz - Clamshell | E7: Quartz - Caeserstone - Clamshell | F7: B | H7: Quartz B | I7: 4130 | J7: CLA | K7: NCLA | L7: B | P7: Silestone - Coppermist*** | R7: 0000000
A8: Quartz | B8: Caeserstone | C8: Coastal Grey | D8: Quartz - Coastal Grey | E8: Quartz - Caeserstone - Coastal Grey | F8: C | H8: Quartz D | I8: 6003 | J8: CGR | K8: NCGR | L8: D | P8: Silestone - Cygnus Suede | Q8: H | R8: 0000000
A9: Quartz | B9: Caeserstone | C9: Concrete | D9: Quartz - Concrete | E9: Quartz - Caeserstone - Concrete | F9: A | G9: 0108099 | H9: Quartz A | I9: 2003 | J9: CCR | K9: NCCR | L9: A | P9: Silestone - Daria Suede | Q9: J | R9: 0000000
A10: Quartz | B10: Caeserstone | C10: Cosmopolitan White | D10: Quartz - Cosmopolitan White | E10: Quartz - Caeserstone - Cosmopolitan White | F10: C | H10: Quartz D | I10: 5130 | J10: CWH | K10: NCWH | L10: D | P10: Silestone - Eternal Serena*** | R10: 0000000
A11: Quartz | B11: Caeserstone | C11: Dreamy Marfil | D11: Quartz - Dreamy Marfil | E11: Quartz - Caeserstone - Dreamy Marfil | F11: C | H11: Quartz D | I11: 5220 | J11: DMA | K11: NDMA | L11: D | P11: Silestone - Grey Amazon | Q11: D | R11: 0000000
A12: Quartz | B12: Caeserstone | C12: Eggshell | D12: Quartz - Eggshell | E12: Quartz - Caeserstone - Eggshell | F12: A | H12: Quartz A | I12: 3141 | J12: EGG | K12: NEGG | L12: A | P12: Silestone - Grey Expo*** | R12: 0000000
A13: Quartz | B13: Caeserstone | C13: Fresh Concrete | D13: Quartz - Fresh Concrete | E13: Quartz - Caeserstone - Fresh Concrete | F13: C | H13: Quartz D | I13: 4001 | J13: FCR | K13: NFCR | L13: D | P13: Silestone - Hudson*** | R13: 0000000
A14: Quartz | B14: Caeserstone | C14: Frosty Carrina | D14: Quartz - Frosty Carrina | E14: Quartz - Caeserstone - Frosty Carrina | F14: C | H14: Quartz D | I14: 5141 | J14: FCA | K14: NFCA | L14: D | P14: Silestone - Iconic White*** | R14: 0000000
A15: Quartz | B15: Caeserstone | C15: Geogian Bluffs | D15: Quartz - Geogian Bluffs | E15: Quartz - Caeserstone - Geogian Bluffs | F15: C | H15: Quartz D | I15: 6134 | J15: GBL | K15: NGBL | L15: D | P15: Silestone - Iron Bark*** | R15: 0000000
A16: Quartz | B16: Caeserstone | C16: Ginger | D16: Quartz - Ginger | E16: Quartz - Caeserstone - Ginger | F16: A | H16: Quartz A | I16: 4330 | J16: GIN | K16: NGIN | L16: A | P16: Silestone - Iron Ore*** | R16: 0000000
A17: Quartz | B17: Caeserstone | C17: Haze | D17: Quartz - Haze | E17: Quartz - Caeserstone - Haze | F17: B | H17: Quartz B | I17: 2030 | J17: HAZ | K17: NHAZ | L17: B | P17: Silestone - Koan*** | R17: 0000000
A18: Quartz | B18: Caeserstone | C18: Jet Black | D18: Quartz - Jet Black | E18: Quartz - Caeserstone - Jet Black | F18: B | H18: Quartz B | I18: 3100 | J18: JBL | K18: NJBL | L18: B | P18: Silestone - Marengo | Q18: A | R18: 0000000
A19: Quartz | B19: Caeserstone | C19: Lagos Blue | D19: Quartz - Lagos Blue | E19: Quartz - Caeserstone - Lagos Blue | F19: B | H19: Quartz B | I19: 4350 | J19: LBL | K19: NLBL | L19: B | P19: Silestone - Mountain Mist*** | R19: 0000000
A20: Quartz | B20: Caeserstone | C20: Linen | D20: Quartz - Linen | E20: Quartz - Caeserstone - Linen | F20: B | H20: Quartz B | I20: 2230 | J20: LIN | K20: NLIN | L20: B | P20: Silestone - Noka | Q20: A | R20: 0000000
A21: Quartz | B21: Caeserstone | C21: London Grey | D21: Quartz - London Grey | E21: Quartz - Caeserstone - London Grey | F21: C | H21: Quartz D | I21: 5000 | J21: LGR | K21: NLGR | L21: D | P21: Silestone - Nuit Bleue*** | R21: 0000000
A22: Quartz | B22: Caeserstone | C22: Montblanc | D22: Quartz - Montblanc | E22: Quartz - Caeserstone - Montblanc | F22: C | H22: Quartz D | I22: 5043 | J22: MBL | K22: NMBL | L22: D | P22: Silestone - Red Vital*** | R22: 0000000
A23: Quartz | B23: Caeserstone | C23: Moorland Fog | D23: Quartz - Moorland Fog | E23: Quartz - Caeserstone - Moorland Fog | F23: B | H23: Quartz B | I23: 6046 | J23: MLF | K23: NMLF | L23: B | P23: Silestone - Riverbed*** | R23: 0000000
A24: Quartz | B24: Caeserstone | C24: Nobel Grey | D24: Quartz - Nobel Grey | E24: Quartz - Caeserstone - Nobel Grey | F24: C | H24: Quartz D | I24: 5211 | J24: NGR | K24: NNGR | L24: D | P24: Silestone - Sienna Ridge*** | R24: 0000000
A25: Quartz | B25: Caeserstone | C25: Nougat | D25: Quartz - Nougat | E25: Quartz - Caeserstone - Nougat | F25: A | H25: Quartz A | I25: 6600 | J25: NOU | K25: NNOU | L25: A | P25: Silestone - Silver Nube*** | R25: 0000000
A26: Quartz | B26: Caeserstone | C26: Ocean Foam | D26: Quartz - Ocean Foam | E26: Quartz - Caeserstone - Ocean Foam | F26: B | H26: Quartz B | I26: 6141 | J26: OFO | K26: NOFO | L26: B | P26: Silestone - Starlight*** | R26: 0000000
A27: Quartz | B27: Caeserstone | C27: Organic White | D27: Quartz - Organic White | E27: Quartz - Caeserstone - Organic White | F27: B | H27: Quartz B | I27: 4600 | J27: OWH | K27: NOWH | L27: B | P27: Silestone - Stellar Night*** | R27: 0000000
A28: Quartz | B28: Caeserstone | C28: Pebble | D28: Quartz - Pebble | E28: Quartz - Caeserstone - Pebble | F28: B | H28: Quartz B | I28: 4030 | J28: PEB | K28: NPEB | L28: B | P28: Silestone - Tebas Black*** | R28: 0000000
A29: Quartz | B29: Caeserstone | C29: Piatra Grey | D29: Quartz - Piatra Grey | E29: Quartz - Caeserstone - Piatra Grey | F29: C | H29: Quartz D | I29: 5003 | J29: PIA | K29: NPIA | L29: D | P29: Silestone - Tigris Sand | Q29: D | R29: 0000000
A30: Quartz | B30: Caeserstone | C30: Pure White | D30: Quartz - Pure White | E30: Quartz - Caeserstone - Pure White | F30: C | H30: Quartz D | I30: 1141 | J30: PWH | K30: NPWH | L30: D | P30: Silestone - Urban Cream*** | R30: 0000000
A31: Quartz | B31: Caeserstone | C31: Quartz Reflections | D31: Quartz - Quartz Reflections | E31: Quartz - Caeserstone - Quartz Reflections | F31: B | H31: Quartz B | I31: 7141 | J31: QRE | K31: NQRE | L31: B | P31: Silestone - Verde Agua*** | R31: 0000000
A32: Quartz | B32: Caeserstone | C32: Raven | D32: Quartz - Raven | E32: Quartz - Caeserstone - Raven | F32: B | H32: Quartz B | I32: 4120 | J32: RAV | K32: NRAV | L32: B | P32: Silestone - White Diamond*** | R32: 0000000
A33: Quartz | B33: Caeserstone | C33: Raw Concrete | D33: Quartz - Raw Concrete | E33: Quartz - Caeserstone - Raw Concrete | F33: C | H33: Quartz D | I33: 4004 | J33: RCR | K33: NRCR | L33: D | P33: Silestone - White Dune*** | R33: 0000000
A34: Quartz | B34: Caeserstone | C34: Rugged Concrete | D34: Quartz - Rugged Concrete | E34: Quartz - Caeserstone - Rugged Concrete | F34: C | H34: Quartz D | I34: 4033 | J34: RGC | K34: NRGC | L34: D | P34: Silestone - White Zeus Extreme*** | R34: 0000000
A35: Quartz | B35: Caeserstone | C35: Shitake | D35: Quartz - Shitake | E35: Quartz - Caeserstone - Shitake | F35: B | H35: Quartz B | I35: 4230 | J35: SHI | K35: NSHI | L35: B | P35: Zodiaq - Antique Pearl | Q35: A | R35: 0000000
A36: Quartz | B36: Caeserstone | C36: Sleek Concrete | D36: Quartz - Sleek Concrete | E36: Quartz - Caeserstone - Sleek Concrete | F36: B | H36: Quartz B | I36: 4003 | J36: SCR | K36: NSCR | L36: B | P36: Zodiaq - Calacatta Natura | Q36: B | R36: 0000000
A37: Quartz | B37: Caeserstone | C37: Statuario Maximus | D37: Quartz - Statuario Maximus | E37: Quartz - Caeserstone - Statuario Maximus | F37: E | H37: Quartz E | I37: 5031 | J37: SMA | K37: NSMA | L37: E | P37: Zodiaq - Coarse Carrara | Q37: A | R37: 0000000
A38: Quartz | B38: Caeserstone | C38: Statuario Nuovo | D38: Quartz - Statuario Nuovo | E38: Quartz - Caeserstone - Statuario Nuovo | F38: E | H38: Quartz E | I38: 5111 | J38: SNU | K38: NSNU | L38: E | P38: Zodiaq - Coarse Marfil | Q38: A | R38: 0000000
A39: Quartz | B39: Caeserstone | C39: Sympony Grey | D39: Quartz - Sympony Grey | E39: Quartz - Caeserstone - Sympony Grey | F39: C | H39: Quartz D | I39: 5133 | J39: SGR | K39: NSGR | L39: D | P39: Zodiaq - Evergreen | Q39: A | R39: 0000000
A40: Quartz | B40: Caeserstone | C40: Taj Royal | D40: Quartz - Taj Royal | E40: Quartz - Caeserstone - Taj Royal | F40: C | H40: Quartz D | I40: 5212 | J40: TAJ | K40: NTAJ | L40: D | P40: Zodiaq - Galaxy Black | Q40: A | R40: 0000000
A41: Quartz | B41: Caeserstone | C41: Turbine Grey | D41: Quartz - Turbine Grey | E41: Quartz - Caeserstone - Turbine Grey | F41: B | H41: Quartz B | I41: 6313 | J41: TGR | K41: NTGR | L41: B | P41: Zodiaq - Indus Red | Q41: A | R41: 0000000
A42: Quartz | B42: Caeserstone | C42: Tuscan Dawn | D42: Quartz - Tuscan Dawn | E42: Quartz - Caeserstone - Tuscan Dawn | F42: C | H42: Quartz D | I42: 5104 | J42: TDA | K42: NTDA | L42: D | P42: Zodiaq - London Sky | Q42: A | R42: 0000000
A43: Quartz | B43: Caeserstone | C43: Urban Safari | D43: Quartz - Urban Safari | E43: Quartz - Caeserstone - Urban Safari | F43: C | H43: Quartz D | I43: 5134 | J43: USA | K43: NUSA | L43: D | P43: Zodiaq - Marble Mist | Q43: A | R43: 0000000
A44: Quartz | B44: Caeserstone | C44: Villa Noir | D44: Quartz - Villa Noir | E44: Quartz - Caeserstone - Villa Noir | F44: C | H44: Quartz D | I44: 5100 | J44: VNO | K44: NVNO | L44: D | P44: Zodiaq - Mystic Black | Q44: A | R44: 0000000
A45: Quartz | B45: Caeserstone | C45: White Attica | D45: Quartz - White Attica | E45: Quartz - Caeserstone - White Attica | F45: C | H45: Quartz D | I45: 5143 | J45: WHA | K45: NWHA | L45: D | P45: Zodiaq - Octavio | Q45: B | R45: 0000000
A46: Quartz | B46: Caeserstone | C46: Wild Rice | D46: Quartz - Wild Rice | E46: Quartz - Caeserstone - Wild Rice | F46: B | H46: Quartz B | I46: 4360 | J46: WRI | K46: NWRI | L46: B | P46: Zodiaq - Storm Grey | Q46: A | R46: 0000000
A47: Quartz | B47: Caeserstone | C47: Woodlands | D47: Quartz - Woodlands | E47: Quartz - Caeserstone - Woodlands | F47: C | H47: Quartz D | I47: 6338 | J47: WOO | K47: NWOO | L47: D | P47: Zodiaq - Stratus White | Q47: A | R47: 0000000
A48: Solid Surface | B48: Corian | C48: Abalone | D48: Solid Surface - Abalone | E48: Solid Surface - Corian - Abalone | F48: A | G48: 0000001 | H48: ="Corian " & F48 -> Corian A | I48: =J48 -> ABA | J48: ABA | K48: CABA | L48: A | P48: Corian - Abalone | Q48: A | R48: 0000000
A49: Solid Surface | B49: Corian | C49: Allspice | D49: Solid Surface - Allspice | E49: Solid Surface - Corian - Allspice | F49: D | G49: =J2+1 | H49: Corian D | I49: ALS | J49: ALS | K49: CALS | L49: D | P49: Corian - Allspice | Q49: D | R49: 0000000
A50: Solid Surface | B50: Corian | C50: Antarctica | D50: Solid Surface - Antarctica | E50: Solid Surface - Corian - Antarctica | F50: B | G50: 0108003 | H50: Corian B | I50: MAN | J50: MAN | K50: CMAN | L50: B | P50: Corian - Antarctica | Q50: B | R50: 0000000
A51: Solid Surface | B51: Corian | C51: Anthracite | D51: Solid Surface - Anthracite | E51: Solid Surface - Corian - Anthracite | F51: C | G51: 0108035 | H51: Corian C | I51: ANT | J51: ANT | K51: CANT | L51: C | P51: Corian - Anthracite | Q51: C | R51: 0000000
A52: Solid Surface | B52: Corian | C52: Aqualite | D52: Solid Surface - Aqualite | E52: Solid Surface - Corian - Aqualite | F52: D | H52: Corian D | I52: AQT | J52: AQT | K52: CAQT | L52: D | P52: Corian - Aqualite | Q52: D | R52: 0000000
A53: Solid Surface | B53: Corian | C53: Arctic Ice | D53: Solid Surface - Arctic Ice | E53: Solid Surface - Corian - Arctic Ice | F53: C | G53: 0108028 | H53: Corian C | I53: ARI | J53: ARI | K53: CARI | L53: C | P53: Corian - Arctic Ice | Q53: C | R53: 0000000
A54: Solid Surface | B54: Corian | C54: Arrowroot | D54: Solid Surface - Arrowroot | E54: Solid Surface - Corian - Arrowroot | F54: D | G54: 0108034 | H54: Corian D | I54: ARR | J54: ARR | K54: CARR | L54: D | P54: Corian - Arrowroot | Q54: D | R54: 0000000
A55: Solid Surface | B55: Corian | C55: Ash Concrete | D55: Solid Surface - Ash Concrete | E55: Solid Surface - Corian - Ash Concrete | F55: C | H55: Corian C | I55: ACN | J55: ACN | K55: CACN | L55: C | P55: Corian - Ash Concrete | Q55: C | R55: 0000000
A56: Solid Surface | B56: Corian | C56: Basil | D56: Solid Surface - Basil | E56: Solid Surface - Corian - Basil | F56: D | H56: Corian D | I56: BSL | J56: BSL | K56: CBSL | L56: D | P56: Corian - Basil | Q56: D | R56: 0000000
A57: Solid Surface | B57: Corian | C57: Bisque | D57: Solid Surface - Bisque | E57: Solid Surface - Corian - Bisque | F57: A | G57: 0108042 | H57: Corian A | I57: BIS | J57: BIS | K57: CBIS | L57: A | P57: Corian - Bisque | Q57: A | R57: 0000000
A58: Solid Surface | B58: Corian | C58: Blue Pebble | D58: Solid Surface - Blue Pebble | E58: Solid Surface - Corian - Blue Pebble | F58: B | G58: 0108016 | H58: Corian B | I58: BPE | J58: BPE | K58: CBPE | L58: B | P58: Corian - Blue Pebble | Q58: B | R58: 0000000
A59: Solid Surface | B59: Corian | C59: Blue Spice | D59: Solid Surface - Blue Spice | E59: Solid Surface - Corian - Blue Spice | F59: C | H59: Corian C | I59: BLS | J59: BLS | K59: CBLS | L59: C | P59: Corian - Blue Spice | Q59: C | R59: 0000000
A60: Solid Surface | B60: Corian | C60: Bone | D60: Solid Surface - Bone | E60: Solid Surface - Corian - Bone | F60: A | H60: Corian A | I60: BNE | J60: BNE | K60: CBNE | L60: A | P60: Corian - Bone | Q60: A | R60: 0000000
A61: Solid Surface | B61: Corian | C61: Bronzite | D61: Solid Surface - Bronzite | E61: Solid Surface - Corian - Bronzite | F61: C | H61: Corian C | I61: BRO | J61: BRO | K61: CBRO | L61: C | P61: Corian - Bronzite | Q61: C | R61: 0000000
A62: Solid Surface | B62: Corian | C62: Burled Birch | D62: Solid Surface - Burled Birch | E62: Solid Surface - Corian - Burled Birch | F62: D | H62: Corian D | I62: BUB | J62: BUB | K62: CBUB | L62: D | P62: Corian - Burled Birch | Q62: D | R62: 0000000
A63: Solid Surface | B63: Corian | C63: Cameo White | D63: Solid Surface - Cameo White | E63: Solid Surface - Corian - Cameo White | F63: A | G63: 0108004 | H63: Corian A | I63: CWH | J63: CWH | K63: CCWH | L63: A | P63: Corian - Cameo White | Q63: A | R63: 0000000
A64: Solid Surface | B64: Corian | C64: Canvas | D64: Solid Surface - Canvas | E64: Solid Surface - Corian - Canvas | F64: C | G64: 0108009 | H64: Corian C | I64: CVS | J64: CVS | K64: CCVS | L64: C | P64: Corian - Canvas | Q64: C | R64: 0000000
A65: Solid Surface | B65: Corian | C65: Canyon | D65: Solid Surface - Canyon | E65: Solid Surface - Corian - Canyon | F65: B | H65: Corian B | I65: CAN | J65: CAN | K65: CCAN | L65: B | P65: Corian - Canyon | Q65: B | R65: 0000000
A66: Solid Surface | B66: Corian | C66: Carbon Concrete | D66: =A66& " - " & C66 -> Solid Surface - Carbon Concrete | E66: Solid Surface - Corian - Carbon Concrete | F66: C | H66: Corian C | I66: CCN | J66: CCN | K66: CCCN | L66: C | P66: Corian - Carbon Concrete | Q66: C | R66: =IFERROR(VLOOKUP(P66,E:G,6,0),"0000000") -> 0000000
A67: Solid Surface | B67: Corian | C67: Cilantro | D67: Solid Surface - Cilantro | E67: =A67&" - "&B67&" - "&C67 -> Solid Surface - Corian - Cilantro | F67: C | H67: Corian C | I67: CIL | J67: CIL | K67: CCIL | L67: C | P67: Corian - Cilantro | Q67: C | R67: 0000000
A68: Solid Surface | B68: Corian | C68: Clam Shell | D68: Solid Surface - Clam Shell | E68: Solid Surface - Corian - Clam Shell | F68: D | H68: Corian D | I68: CSH | J68: CSH | K68: CCSH | L68: D | P68: Corian - Clam Shell | Q68: D | R68: 0000000
A69: Solid Surface | B69: Corian | C69: Cobalt | D69: Solid Surface - Cobalt | E69: Solid Surface - Corian - Cobalt | F69: C | H69: Corian C | I69: COB | J69: COB | K69: CCOB | L69: C | P69: Corian - Cobalt | Q69: C | R69: 0000000
A70: Solid Surface | B70: Corian | C70: Cocoa Brown | D70: Solid Surface - Cocoa Brown | E70: Solid Surface - Corian - Cocoa Brown | F70: B | G70: 0108047 | H70: Corian B | I70: CBR | J70: CBR | K70: CCBR | L70: B | P70: Corian - Cocoa Brown | Q70: B | R70: 0000000
A71: Solid Surface | B71: Corian | C71: Cocoa Prima | D71: Solid Surface - Cocoa Prima | E71: Solid Surface - Corian - Cocoa Prima | F71: D | H71: Corian D | I71: CPM | J71: CPM | K71: CCPM | L71: D | P71: Corian - Cocoa Prima | Q71: D | R71: 0000000
A72: Solid Surface | B72: Corian | C72: Concrete | D72: Solid Surface - Concrete | E72: Solid Surface - Corian - Concrete | F72: C | G72: 0108013 | H72: Corian C | I72: CON | J72: CON | K72: CCON | L72: C | P72: Corian - Concrete | Q72: C | R72: 0000000
A73: Solid Surface | B73: Corian | C73: Cosmos Prima | D73: Solid Surface - Cosmos Prima | E73: Solid Surface - Corian - Cosmos Prima | F73: D | H73: Corian D | I73: OPM | J73: OPM | K73: COPM | L73: D | P73: Corian - Cosmos Prima | Q73: D | R73: 0000000
A74: Solid Surface | B74: Corian | C74: Cottage Lane | D74: Solid Surface - Cottage Lane | E74: Solid Surface - Corian - Cottage Lane | F74: C | H74: Corian C | I74: COL | J74: COL | K74: CCOL | L74: C | P74: Corian - Cottage Lane | Q74: C | R74: 0000000
A75: Solid Surface | B75: Corian | C75: Deep Anthracite | D75: Solid Surface - Deep Anthracite | E75: Solid Surface - Corian - Deep Anthracite | F75: C | H75: Corian C | I75: DAT | J75: DAT | K75: CDAT | L75: C | P75: Corian - Deep Anthracite | Q75: C | R75: 0000000
A76: Solid Surface | B76: Corian | C76: Deep Bedrock | D76: Solid Surface - Deep Bedrock | E76: Solid Surface - Corian - Deep Bedrock | F76: C | H76: Corian C | I76: DBR | J76: DBR | K76: CDBR | L76: C | P76: Corian - Deep Bedrock | Q76: C | R76: 0000000
A77: Solid Surface | B77: Corian | C77: Deep Black Quartz | D77: Solid Surface - Deep Black Quartz | E77: Solid Surface - Corian - Deep Black Quartz | F77: C | H77: Corian C | I77: DBQ | J77: DBQ | K77: CDBQ | L77: C | P77: Corian - Deep Black Quartz | Q77: C | R77: 0000000
A78: Solid Surface | B78: Corian | C78: Deep Caviar | D78: Solid Surface - Deep Caviar | E78: Solid Surface - Corian - Deep Caviar | F78: C | H78: Corian C | I78: DCV | J78: DCV | K78: CDCV | L78: C | P78: Corian - Deep Caviar | Q78: C | R78: 0000000
A79: Solid Surface | B79: Corian | C79: Deep Cloud | D79: Solid Surface - Deep Cloud | E79: Solid Surface - Corian - Deep Cloud | F79: C | G79: 0108037 | H79: Corian C | I79: DCL | J79: DCL | K79: CDCL | L79: C | P79: Corian - Deep Cloud | Q79: C | R79: 0000000
A80: Solid Surface | B80: Corian | C80: Deep Espresso | D80: Solid Surface - Deep Espresso | E80: Solid Surface - Corian - Deep Espresso | F80: C | H80: ="Corian " & F80 -> Corian C | I80: =J80 -> DEP | J80: DEP | K80: CDEP | L80: C | P80: Corian - Deep Espresso | Q80: C | R80: 0000000
A81: Solid Surface | B81: Corian | C81: Deep Inkwell | D81: Solid Surface - Deep Inkwell | E81: Solid Surface - Corian - Deep Inkwell | F81: D | H81: Corian D | I81: DIW | J81: DIW | K81: CDIW | L81: D | P81: Corian - Deep Inkwell | Q81: D | R81: 0000000
A82: Solid Surface | B82: Corian | C82: Deep Lapis | D82: Solid Surface - Deep Lapis | E82: Solid Surface - Corian - Deep Lapis | F82: D | H82: Corian D | I82: DLS | J82: DLS | K82: CDLS | L82: D | P82: Corian - Deep Lapis | Q82: D | R82: 0000000
A83: Solid Surface | B83: Corian | C83: Deep Mink | D83: Solid Surface - Deep Mink | E83: Solid Surface - Corian - Deep Mink | F83: C | G83: 0108053 | H83: Corian C | I83: DMK | J83: DMK | K83: CDMK | L83: C | P83: Corian - Deep Mink | Q83: C | R83: 0000000
A84: Solid Surface | B84: Corian | C84: Deep Night Sky | D84: Solid Surface - Deep Night Sky | E84: Solid Surface - Corian - Deep Night Sky | F84: C | G84: 0108018 | H84: Corian C | I84: DNS | J84: DNS | K84: CDNS | L84: C | P84: Corian - Deep Night Sky | Q84: C | R84: 0000000
A85: Solid Surface | B85: Corian | C85: Deep Nocturne | D85: Solid Surface - Deep Nocturne | E85: Solid Surface - Corian - Deep Nocturne | F85: C | G85: 0108061 | H85: Corian C | I85: DNC | J85: DNC | K85: CDNC | L85: C | P85: Corian - Deep Nocturne | Q85: C | R85: 0000000
A86: Solid Surface | B86: Corian | C86: Deep Sable | D86: Solid Surface - Deep Sable | E86: Solid Surface - Corian - Deep Sable | F86: C | G86: 0108065 | H86: Corian C | I86: DSB | J86: DSB | K86: CDSB | L86: C | P86: Corian - Deep Sable | Q86: C | R86: 0000000
A87: Solid Surface | B87: Corian | C87: Deep Smokey Pearl | D87: Solid Surface - Deep Smokey Pearl | E87: Solid Surface - Corian - Deep Smokey Pearl | F87: D | H87: Corian D | I87: DSY | J87: DSY | K87: CDSY | L87: D | P87: Corian - Deep Smokey Pearl | Q87: D | R87: 0000000
A88: Solid Surface | B88: Corian | C88: Deep Space | D88: Solid Surface - Deep Space | E88: Solid Surface - Corian - Deep Space | F88: C | H88: Corian C | I88: DSC | J88: DSC | K88: CDSC | L88: C | P88: Corian - Deep Space | Q88: C | R88: 0000000
A89: Solid Surface | B89: Corian | C89: Deep Storm | D89: Solid Surface - Deep Storm | E89: Solid Surface - Corian - Deep Storm | F89: C | H89: Corian C | I89: DSM | J89: DSM | K89: CDSM | L89: C | P89: Corian - Deep Storm | Q89: C | R89: 0000000
A90: Solid Surface | B90: Corian | C90: Deep Terrain | D90: Solid Surface - Deep Terrain | E90: Solid Surface - Corian - Deep Terrain | F90: D | H90: Corian D | I90: DTR | J90: DTR | K90: CDTR | L90: D | P90: Corian - Deep Terrain | Q90: D | R90: 0000000
A91: Solid Surface | B91: Corian | C91: Deep Titanium | D91: Solid Surface - Deep Titanium | E91: Solid Surface - Corian - Deep Titanium | F91: C | G91: 0108044 | H91: Corian C | I91: DTI | J91: DTI | K91: CDTI | L91: C | P91: Corian - Deep Titanium | Q91: C | R91: 0000000
A92: Solid Surface | B92: Corian | C92: Designer White | D92: Solid Surface - Designer White | E92: Solid Surface - Corian - Designer White | F92: B | G92: 0108001 | H92: Corian B | I92: DEW | J92: DEW | K92: CDEW | L92: B | P92: Corian - Designer White | Q92: B | R92: 0000000
A93: Solid Surface | B93: Corian | C93: Doeskin | D93: Solid Surface - Doeskin | E93: Solid Surface - Corian - Doeskin | F93: C | G93: 0108060 | H93: Corian C | I93: DOE | J93: DOE | K93: CDOE | L93: C | P93: Corian - Doeskin | Q93: C | R93: 0000000
A94: Solid Surface | B94: Corian | C94: Dove | D94: Solid Surface - Dove | E94: Solid Surface - Corian - Dove | F94: C | G94: 0108015 | H94: Corian C | I94: DOV | J94: DOV | K94: CDOV | L94: C | P94: Corian - Dove | Q94: C | R94: 0000000
A95: Solid Surface | B95: Corian | C95: Dune Prima | D95: Solid Surface - Dune Prima | E95: Solid Surface - Corian - Dune Prima | F95: D | H95: Corian D | I95: DPM | J95: DPM | K95: CDPM | L95: D | P95: Corian - Dune Prima | Q95: D | R95: 0000000
A96: Solid Surface | B96: Corian | C96: Earth | D96: Solid Surface - Earth | E96: Solid Surface - Corian - Earth | F96: D | G96: 0108063 | H96: Corian D | I96: EAR | J96: EAR | K96: CEAR | L96: D | P96: Corian - Earth | Q96: D | R96: 0000000
A97: Solid Surface | B97: Corian | C97: Ecru | D97: Solid Surface - Ecru | E97: Solid Surface - Corian - Ecru | F97: D | H97: Corian D | I97: ECR | J97: ECR | K97: CECR | L97: D | P97: Corian - Ecru | Q97: D | R97: 0000000
A98: Solid Surface | B98: Corian | C98: Elderberry | D98: Solid Surface - Elderberry | E98: Solid Surface - Corian - Elderberry | F98: D | H98: Corian D | I98: ELB | J98: ELB | K98: CELB | L98: D | P98: Corian - Elderberry | Q98: D | R98: 0000000
A99: Solid Surface | B99: Corian | C99: Elegant Gray | D99: Solid Surface - Elegant Gray | E99: Solid Surface - Corian - Elegant Gray | F99: B | H99: Corian B | I99: EGG | J99: EGG | K99: CEGG | L99: B | P99: Corian - Elegant Gray | Q99: B | R99: 0000000
A100: Solid Surface | B100: Corian | C100: Evening Prima | D100: Solid Surface - Evening Prima | E100: Solid Surface - Corian - Evening Prima | F100: D | H100: Corian D | I100: EPM | J100: EPM | K100: CEPM | L100: D | P100: Corian - Evening Prima | Q100: D | R100: 0000000
A101: Solid Surface | B101: Corian | C101: Everest | D101: Solid Surface - Everest | E101: Solid Surface - Corian - Everest | F101: B | H101: Corian B | I101: EVE | J101: EVE | K101: CEVE | L101: B | P101: Corian - Everest | Q101: B | R101: 0000000
A102: Solid Surface | B102: Corian | C102: Fawn | D102: Solid Surface - Fawn | E102: Solid Surface - Corian - Fawn | F102: C | H102: Corian C | I102: FAW | J102: FAW | K102: CFAW | L102: C | P102: Corian - Fawn | Q102: C | R102: 0000000
A103: Solid Surface | B103: Corian | C103: Flint | D103: Solid Surface - Flint | E103: Solid Surface - Corian - Flint | F103: C | H103: Corian C | I103: FLI | J103: FLI | K103: CFLI | L103: C | P103: Corian - Flint | Q103: C | R103: 0000000
A104: Solid Surface | B104: Corian | C104: Fossil | D104: Solid Surface - Fossil | E104: Solid Surface - Corian - Fossil | F104: C | G104: 0108010 | H104: Corian C | I104: FOS | J104: FOS | K104: CFOS | L104: C | P104: Corian - Fossil | Q104: C | R104: 0000000
A105: Solid Surface | B105: Corian | C105: Glacier Ice | D105: Solid Surface - Glacier Ice | E105: Solid Surface - Corian - Glacier Ice | F105: C | G105: 0108039 | H105: Corian C | I105: GLI | J105: GLI | K105: CGLI | L105: C | P105: Corian - Glacier Ice | Q105: C | R105: 0000000
A106: Solid Surface | B106: Corian | C106: Glacier White | D106: Solid Surface - Glacier White | E106: Solid Surface - Corian - Glacier White | F106: A | G106: 0108002 | H106: Corian A | I106: GLW | J106: GLW | K106: CGLW | L106: A | P106: Corian - Glacier White | Q106: A | R106: 0000000
A107: Solid Surface | B107: Corian | C107: Granola | D107: Solid Surface - Granola | E107: Solid Surface - Corian - Granola | F107: C | H107: Corian C | I107: GOA | J107: GOA | K107: CGOA | L107: C | P107: Corian - Granola | Q107: C | R107: 0000000
A108: Solid Surface | B108: Corian | C108: Graylite | D108: Solid Surface - Graylite | E108: Solid Surface - Corian - Graylite | F108: D | G108: 0108020 | H108: Corian D | I108: GYT | J108: GYT | K108: CGYT | L108: D | P108: Corian - Graylite | Q108: D | R108: 0000000
A109: Solid Surface | B109: Corian | C109: Hazelnut | D109: Solid Surface - Hazelnut | E109: Solid Surface - Corian - Hazelnut | F109: D | G109: 0108026 | H109: Corian D | I109: HAZ | J109: HAZ | K109: CHAZ | L109: D | P109: Corian - Hazelnut | Q109: D | R109: 0000000
A110: Solid Surface | B110: Corian | C110: Hickory Smoke | D110: Solid Surface - Hickory Smoke | E110: Solid Surface - Corian - Hickory Smoke | F110: D | H110: Corian D | I110: HIS | J110: HIS | K110: CHIS | L110: D | P110: Corian - Hickory Smoke | Q110: D | R110: 0000000
A111: Solid Surface | B111: Corian | C111: Jasmine | D111: Solid Surface - Jasmine | E111: Solid Surface - Corian - Jasmine | F111: D | G111: 0108058 | H111: Corian D | I111: JAS | J111: JAS | K111: CJAS | L111: D | P111: Corian - Jasmine | Q111: D | R111: 0000000
A112: Solid Surface | B112: Corian | C112: Juniper | D112: Solid Surface - Juniper | E112: Solid Surface - Corian - Juniper | F112: D | H112: ="Corian " & F112 -> Corian D | I112: =J112 -> JUN | J112: JUN | K112: CJUN | L112: D | P112: Corian - Juniper | Q112: D | R112: 0000000
A113: Solid Surface | B113: Corian | C113: Lava Rock | D113: Solid Surface - Lava Rock | E113: Solid Surface - Corian - Lava Rock | F113: D | G113: 0108021 | H113: Corian D | I113: LAR | J113: LAR | K113: CLAR | L113: D | P113: Corian - Lava Rock | Q113: D | R113: 0000000
A114: Solid Surface | B114: Corian | C114: Limestone Prima | D114: Solid Surface - Limestone Prima | E114: Solid Surface - Corian - Limestone Prima | F114: D | H114: Corian D | I114: LPM | J114: LPM | K114: CLPM | L114: D | P114: Corian - Limestone Prima | Q114: D | R114: 0000000
A115: Solid Surface | B115: Corian | C115: Linen | D115: Solid Surface - Linen | E115: Solid Surface - Corian - Linen | F115: A | G115: 0108006 | H115: Corian A | I115: LIN | J115: LIN | K115: CLIN | L115: A | P115: Corian - Linen | Q115: A | R115: 0000000
A116: Solid Surface | B116: Corian | C116: Matterhorn | D116: Solid Surface - Matterhorn | E116: Solid Surface - Corian - Matterhorn | F116: C | G116: 0108048 | H116: Corian C | I116: MAT | J116: MAT | K116: CMAT | L116: C | P116: Corian - Matterhorn | Q116: C | R116: 0000000
A117: Solid Surface | B117: Corian | C117: Maui | D117: Solid Surface - Maui | E117: Solid Surface - Corian - Maui | F117: A | G117: 0108017 | H117: Corian A | I117: MAU | J117: MAU | K117: CMAU | L117: A | P117: Corian - Maui | Q117: A | R117: 0000000
A118: Solid Surface | B118: Corian | C118: Milky Way | D118: Solid Surface - Milky Way | E118: Solid Surface - Corian - Milky Way | F118: D | G118: 0108064 | H118: Corian D | I118: MKW | J118: MKW | K118: CMKW | L118: D | P118: Corian - Milky Way | Q118: D | R118: 0000000
A119: Solid Surface | B119: Corian | C119: Mineral | D119: Solid Surface - Mineral | E119: Solid Surface - Corian - Mineral | F119: D | H119: Corian D | I119: MIN | J119: MIN | K119: CMIN | L119: D | P119: Corian - Mineral | Q119: D | R119: 0000000
A120: Solid Surface | B120: Corian | C120: Modern White | D120: Solid Surface - Modern White | E120: Solid Surface - Corian - Modern White | F120: B | H120: Corian B | I120: MOW | J120: MOW | K120: CMOW | L120: B | P120: Corian - Modern White | Q120: B | R120: 0000000
A121: Solid Surface | B121: Corian | C121: Mojave | D121: Solid Surface - Mojave | E121: Solid Surface - Corian - Mojave | F121: B | H121: Corian B | I121: SMJ | J121: SMJ | K121: CSMJ | L121: B | P121: Corian - Mojave | Q121: B | R121: 0000000
A122: Solid Surface | B122: Corian | C122: Moss | D122: Solid Surface - Moss | E122: Solid Surface - Corian - Moss | F122: B | H122: Corian B | I122: MOS | J122: MOS | K122: CMOS | L122: B | P122: Corian - Moss | Q122: B | R122: 0000000
A123: Solid Surface | B123: Corian | C123: Natural Gray | D123: Solid Surface - Natural Gray | E123: Solid Surface - Corian - Natural Gray | F123: D | G123: 0108056 | H123: Corian D | I123: NGR | J123: NGR | K123: CNGR | L123: D | P123: Corian - Natural Gray | Q123: D | R123: 0000000
A124: Solid Surface | B124: Corian | C124: Neutral Concrete | D124: Solid Surface - Neutral Concrete | E124: Solid Surface - Corian - Neutral Concrete | F124: C | H124: Corian C | I124: NCN | J124: NCN | K124: CNCN | L124: C | P124: Corian - Neutral Concrete | Q124: C | R124: 0000000
A125: Solid Surface | B125: Corian | C125: NightFall | D125: Solid Surface - NightFall | E125: Solid Surface - Corian - NightFall | F125: B | H125: Corian B | I125: NIF | J125: NIF | K125: CNIF | L125: B | P125: Corian - NightFall | Q125: B | R125: 0000000
A126: Solid Surface | B126: Corian | C126: Nimbus Prima | D126: Solid Surface - Nimbus Prima | E126: Solid Surface - Corian - Nimbus Prima | F126: D | H126: Corian D | I126: NPM | J126: NPM | K126: CNPM | L126: D | P126: Corian - Nimbus Prima | Q126: D | R126: 0000000
A127: Solid Surface | B127: Corian | C127: Oat | D127: Solid Surface - Oat | E127: Solid Surface - Corian - Oat | F127: C | G127: 0108045 | H127: Corian C | I127: OAA | J127: OAA | K127: COAA | L127: C | P127: Corian - Oat | Q127: C | R127: 0000000
A128: Solid Surface | B128: Corian | C128: Pearl Gray | D128: Solid Surface - Pearl Gray | E128: Solid Surface - Corian - Pearl Gray | F128: B | G128: 0108033 | H128: Corian B | I128: PLG | J128: PLG | K128: CPLG | L128: B | P128: Corian - Pearl Gray | Q128: B | R128: 0000000
A129: Solid Surface | B129: Corian | C129: Pine | D129: Solid Surface - Pine | E129: Solid Surface - Corian - Pine | F129: C | G129: 0108054 | H129: Corian C | I129: PNE | J129: PNE | K129: CPNE | L129: C | P129: Corian - Pine | Q129: C | R129: 0000000
A130: Solid Surface | B130: Corian | C130: Platinum | D130: =A130& " - " & C130 -> Solid Surface - Platinum | E130: Solid Surface - Corian - Platinum | F130: B | G130: 0108040 | H130: Corian B | I130: MPL | J130: MPL | K130: CMPL | L130: B | P130: Corian - Platinum | Q130: B | R130: =IFERROR(VLOOKUP(P130,E:G,6,0),"0000000") -> 0000000
A131: Quartz | B131: Corian - Quartz | C131: ANTIQUE PEARL | D131: Quartz - ANTIQUE PEARL | E131: =A131&" - "&B131&" - "&C131 -> Quartz - Corian - Quartz - ANTIQUE PEARL | F131: A | H131: Quartz D | J131: TPE | K131: ZTPE | L131: D | P131: Corian - Raffia | Q131: C | R131: 0000000
A132: Quartz | B132: Corian - Quartz | C132: ASTRAL PEARL | D132: Quartz - ASTRAL PEARL | E132: Quartz - Corian - Quartz - ASTRAL PEARL | F132: A | H132: Quartz D | J132: APE | K132: ZAPE | L132: D | P132: Corian - Rain Cloud | Q132: D | R132: 0000000
A133: Quartz | B133: Corian - Quartz | C133: BLUE CARRARA | D133: Quartz - BLUE CARRARA | E133: Quartz - Corian - Quartz - BLUE CARRARA | F133: A | H133: Quartz D | J133: BCA | K133: ZBCA | L133: D | P133: Corian - Rice Paper | Q133: C | R133: 0000000
A134: Quartz | B134: Corian - Quartz | C134: BOREALIS BLUE | D134: Quartz - BOREALIS BLUE | E134: Quartz - Corian - Quartz - BOREALIS BLUE | F134: A | H134: Quartz D | J134: BBU | K134: ZBBU | L134: D | P134: Corian - Riverbed | Q134: D | R134: 0000000
A135: Quartz | B135: Corian - Quartz | C135: CALACATTA NATURA | D135: Quartz - CALACATTA NATURA | E135: Quartz - Corian - Quartz - CALACATTA NATURA | F135: B | H135: Quartz E | J135: CAL | K135: ZCAL | L135: E | P135: Corian - Rosemary | Q135: D | R135: 0000000
A136: Quartz | B136: Corian - Quartz | C136: CARAWAY | D136: Quartz - CARAWAY | E136: Quartz - Corian - Quartz - CARAWAY | F136: A | H136: Quartz D | J136: CRW | K136: ZCRW | L136: D | P136: Corian - Royal Red | Q136: C | R136: 0000000
A137: Quartz | B137: Corian - Quartz | C137: CASHMERE CARRARA | D137: Quartz - CASHMERE CARRARA | E137: Quartz - Corian - Quartz - CASHMERE CARRARA | F137: A | H137: Quartz D | J137: CAC | K137: ZCAC | L137: D | P137: Corian - Saffron | Q137: D | R137: 0000000
A138: Quartz | B138: Corian - Quartz | C138: CLOUD WHITE | D138: Quartz - CLOUD WHITE | E138: Quartz - Corian - Quartz - CLOUD WHITE | F138: A | G138: 0108074 | H138: Quartz D | J138: CWH | K138: ZCWH | L138: D | P138: Corian - Sagebrush | Q138: D | R138: 0000000
A139: Quartz | B139: Corian - Quartz | C139: COARSE BOTTICINO | D139: Quartz - COARSE BOTTICINO | E139: Quartz - Corian - Quartz - COARSE BOTTICINO | F139: A | H139: Quartz D | J139: CBO | K139: ZCBO | L139: D | P139: Corian - Sahara | Q139: A | R139: 0000000
A140: Quartz | B140: Corian - Quartz | C140: COARSE CARRARA | D140: Quartz - COARSE CARRARA | E140: Quartz - Corian - Quartz - COARSE CARRARA | F140: A | H140: Quartz D | J140: CCA | K140: ZCCA | L140: D | P140: Corian - Sand | Q140: B | R140: 0000000
A141: Quartz | B141: Corian - Quartz | C141: COARSE MARFIL | D141: Quartz - COARSE MARFIL | E141: Quartz - Corian - Quartz - COARSE MARFIL | F141: A | H141: Quartz D | J141: CMA | K141: ZCMA | L141: D | P141: Corian - Sand Storm | Q141: D | R141: 0000000
A142: Quartz | B142: Corian - Quartz | C142: COARSE PEPPER | D142: Quartz - COARSE PEPPER | E142: Quartz - Corian - Quartz - COARSE PEPPER | F142: A | H142: Quartz D | J142: CPR | K142: ZCPR | L142: D | P142: Corian - Sandalwood | Q142: D | R142: 0000000
A143: Quartz | B143: Corian - Quartz | C143: CONCRETE CARRARA | D143: Quartz - CONCRETE CARRARA | E143: Quartz - Corian - Quartz - CONCRETE CARRARA | F143: A | H143: Quartz D | J143: CON | K143: ZCON | L143: D | P143: Corian - Savannah | Q143: B | R143: 0000000
A144: Quartz | B144: Corian - Quartz | C144: CORIANDER | D144: Quartz - CORIANDER | E144: Quartz - Corian - Quartz - CORIANDER | F144: A | H144: Quartz D | J144: COR | K144: ZCOR | L144: D | P144: Corian - Seafoam | Q144: C | R144: 0000000
A145: Quartz | B145: Corian - Quartz | C145: CYGNUS PEARL | D145: Quartz - CYGNUS PEARL | E145: Quartz - Corian - Quartz - CYGNUS PEARL | F145: A | H145: Quartz D | J145: CPE | K145: ZCPE | L145: D | P145: Corian - Serene Sage | Q145: C | R145: 0000000
A146: Quartz | B146: Corian - Quartz | C146: DOVE GREY | D146: Quartz - DOVE GREY | E146: Quartz - Corian - Quartz - DOVE GREY | F146: A | H146: Quartz D | J146: DGR | K146: ZDGR | L146: D | P146: Corian - Silt | Q146: B | R146: 0000000
A147: Quartz | B147: Corian - Quartz | C147: EVERGREEN | D147: Quartz - EVERGREEN | E147: Quartz - Corian - Quartz - EVERGREEN | F147: A | H147: Quartz D | J147: EVG | K147: ZEVG | L147: D | P147: Corian - Silver Birch | Q147: C | R147: 0000000
A148: Quartz | B148: Corian - Quartz | C148: GALAXY BLACK | D148: Quartz - GALAXY BLACK | E148: Quartz - Corian - Quartz - GALAXY BLACK | F148: A | H148: Quartz D | J148: GBL | K148: ZGBL | L148: D | P148: Corian - Silver Gray | Q148: A | R148: 0000000
A149: Quartz | B149: Corian - Quartz | C149: GRAPHITE | D149: Quartz - GRAPHITE | E149: Quartz - Corian - Quartz - GRAPHITE | F149: A | H149: Quartz D | J149: GPH | K149: ZGPH | L149: D | P149: Corian - Silverite | Q149: C | R149: 0000000
A150: Quartz | B150: Corian - Quartz | C150: GRAVEL | D150: Quartz - GRAVEL | E150: Quartz - Corian - Quartz - GRAVEL | F150: A | H150: Quartz D | J150: GRA | K150: ZGRA | L150: D | P150: Corian - Smoke Drift Prima | Q150: D | R150: 0000000
A151: Quartz | B151: Corian - Quartz | C151: GRIGIONE | D151: Quartz - GRIGIONE | E151: Quartz - Corian - Quartz - GRIGIONE | F151: A | H151: Quartz D | J151: GRI | K151: ZGRI | L151: D | P151: Corian - Sonora | Q151: D | R151: 0000000
A152: Quartz | B152: Corian - Quartz | C152: IMPERIAL | D152: Quartz - IMPERIAL | E152: Quartz - Corian - Quartz - IMPERIAL | F152: A | H152: Quartz D | J152: IMP | K152: ZIMP | L152: D | P152: Corian - Sorrel | Q152: D | R152: 0000000
A153: Quartz | B153: Corian - Quartz | C153: INDIGO SWIRL | D153: Quartz - INDIGO SWIRL | E153: Quartz - Corian - Quartz - INDIGO SWIRL | F153: A | H153: Quartz D | J153: ISW | K153: ZISW | L153: D | P153: Corian - Sparkling White | Q153: C | R153: 0000000
A154: Quartz | B154: Corian - Quartz | C154: INDUS RED | D154: Quartz - INDUS RED | E154: Quartz - Corian - Quartz - INDUS RED | F154: A | H154: Quartz D | J154: IRD | K154: ZIRD | L154: D | P154: Corian - Stardust | Q154: D | R154: 0000000
A155: Quartz | B155: Corian - Quartz | C155: LONDON SKY | D155: Quartz - LONDON SKY | E155: Quartz - Corian - Quartz - LONDON SKY | F155: A | H155: Quartz D | J155: LON | K155: ZLON | L155: D | P155: Corian - Suede | Q155: C | R155: 0000000
A156: Quartz | B156: Corian - Quartz | C156: LUNAR PEARL | D156: Quartz - LUNAR PEARL | E156: Quartz - Corian - Quartz - LUNAR PEARL | F156: A | H156: Quartz D | J156: LPE | K156: ZLPE | L156: D | P156: Corian - Tumbleweed | Q156: D | R156: 0000000
A157: Quartz | B157: Corian - Quartz | C157: MARBLE MIST | D157: Quartz - MARBLE MIST | E157: Quartz - Corian - Quartz - MARBLE MIST | F157: A | H157: Quartz D | J157: MST | K157: ZMST | L157: D | P157: Corian - Vanilla | Q157: A | R157: 0000000
A158: Quartz | B158: Corian - Quartz | C158: MOCHA LATTE | D158: Quartz - MOCHA LATTE | E158: Quartz - Corian - Quartz - MOCHA LATTE | F158: A | H158: Quartz D | J158: MOL | K158: ZMOL | L158: D | P158: Corian - Venaro White | Q158: C | R158: 0000000
A159: Quartz | B159: Corian - Quartz | C159: MOSSY GREEN | D159: Quartz - MOSSY GREEN | E159: Quartz - Corian - Quartz - MOSSY GREEN | F159: A | H159: Quartz D | J159: MSY | K159: ZMSY | L159: D | P159: Corian - Weathered Concrete | Q159: C | R159: 0000000
A160: Quartz | B160: Corian - Quartz | C160: MOSSY OAK | D160: Quartz - MOSSY OAK | E160: Quartz - Corian - Quartz - MOSSY OAK | F160: A | H160: Quartz D | J160: MOA | K160: ZMOA | L160: D | P160: Corian - Whipped Cream | Q160: C | R160: 0000000
A161: Quartz | B161: Corian - Quartz | C161: MYSTIC BLACK | D161: Quartz - MYSTIC BLACK | E161: Quartz - Corian - Quartz - MYSTIC BLACK | F161: A | H161: Quartz D | J161: MBL | K161: ZMBL | L161: D | P161: Corian - Whisper | Q161: C | R161: 0000000
A162: Quartz | B162: Corian - Quartz | C162: NEVE | D162: Quartz - NEVE | E162: Quartz - Corian - Quartz - NEVE | F162: A | H162: Quartz D | J162: NEV | K162: ZNEV | L162: D | P162: Corian - White Jasmine | Q162: C | R162: 0000000
A163: Quartz | B163: Corian - Quartz | C163: OATMEAL | D163: Quartz - OATMEAL | E163: Quartz - Corian - Quartz - OATMEAL | F163: A | H163: Quartz D | J163: OAT | K163: ZOAT | L163: D | P163: Corian - White Onyx | Q163: D | R163: 0000000
A164: Quartz | B164: Corian - Quartz | C164: OCTAVIO | D164: Quartz - OCTAVIO | E164: Quartz - Corian - Quartz - OCTAVIO | F164: B | H164: Quartz E | J164: OCT | K164: ZOCT | L164: E | P164: Corian - Willow | Q164: C | R164: 0000000
A165: Quartz | B165: Corian - Quartz | C165: ONYX CARRARA | D165: Quartz - ONYX CARRARA | E165: Quartz - Corian - Quartz - ONYX CARRARA | F165: A | H165: Quartz D | J165: OCA | K165: ZOCA | L165: D | P165: Corian - Windswept Prima | Q165: D | R165: 0000000
A166: Quartz | B166: Corian - Quartz | C166: PAPYRUS | D166: Quartz - PAPYRUS | E166: Quartz - Corian - Quartz - PAPYRUS | F166: A | H166: Quartz D | J166: PAP | K166: ZPAP | L166: D | P166: Corian - Witch Hazel | Q166: D | R166: 0000000
A167: Quartz | B167: Corian - Quartz | C167: PORTORO | D167: Quartz - PORTORO | E167: Quartz - Corian - Quartz - PORTORO | F167: B | H167: Quartz E | J167: POR | K167: ZPOR | L167: E | P167: Silestone - African Red*** | R167: 0000000
A168: Quartz | B168: Corian - Quartz | C168: PROVENCE | D168: Quartz - PROVENCE | E168: Quartz - Corian - Quartz - PROVENCE | F168: A | H168: Quartz D | J168: PRO | K168: ZPRO | L168: D | P168: Silestone - Alpina White*** | R168: 0000000
A169: Quartz | B169: Corian - Quartz | C169: SADDLE BROWN | D169: Quartz - SADDLE BROWN | E169: Quartz - Corian - Quartz - SADDLE BROWN | F169: A | H169: Quartz D | J169: SBD | K169: ZSBD | L169: D | P169: Silestone - Altair Suede | Q169: H | R169: 0000000
A170: Quartz | B170: Corian - Quartz | C170: SAGE | D170: Quartz - SAGE | E170: Quartz - Corian - Quartz - SAGE | F170: A | H170: Quartz D | J170: SGE | K170: ZSGE | L170: D | P170: Silestone - Amarillo Palmira*** | R170: 0000000
A171: Quartz | B171: Corian - Quartz | C171: SNODRIFT | D171: Quartz - SNODRIFT | E171: Quartz - Corian - Quartz - SNODRIFT | F171: A | H171: Quartz D | J171: SND | K171: ZSND | L171: D | P171: Silestone - Arezzo*** | R171: 0000000
A172: Quartz | B172: Corian - Quartz | C172: SNOW FLURRY | D172: Quartz - SNOW FLURRY | E172: Quartz - Corian - Quartz - SNOW FLURRY | F172: A | H172: Quartz D | J172: SFL | K172: ZSFL | L172: D | P172: Silestone - Atlantis*** | R172: 0000000
A173: Quartz | B173: Corian - Quartz | C173: SNOW WHITE | D173: Quartz - SNOW WHITE | E173: Quartz - Corian - Quartz - SNOW WHITE | F173: A | G173: 0108084 | H173: Quartz D | J173: SWH | K173: ZSWH | L173: D | P173: Silestone - Bamboo*** | R173: 0000000
A174: Quartz | B174: Corian - Quartz | C174: SPACE BLACK | D174: Quartz - SPACE BLACK | E174: Quartz - Corian - Quartz - SPACE BLACK | F174: A | H174: Quartz D | J174: SBL | K174: ZSBL | L174: D | P174: Silestone - Bering*** | R174: 0000000
A175: Quartz | B175: Corian - Quartz | C175: STORM GREY | D175: Quartz - STORM GREY | E175: Quartz - Corian - Quartz - STORM GREY | F175: A | G175: 0108080 | H175: Quartz D | J175: SGR | K175: ZSGR | L175: D | P175: Silestone - Black Anubis*** | R175: 0000000
A176: Quartz | B176: Corian - Quartz | C176: STRATUS WHITE | D176: Quartz - STRATUS WHITE | E176: Quartz - Corian - Quartz - STRATUS WHITE | F176: A | G176: 0108089 | H176: Quartz D | J176: STW | K176: ZSTW | L176: D | P176: Silestone - Blanco City*** | R176: 0000000
A177: Quartz | B177: Corian - Quartz | C177: TOASTED ALMOND | D177: Quartz - TOASTED ALMOND | E177: Quartz - Corian - Quartz - TOASTED ALMOND | F177: A | H177: Quartz D | J177: TAR | K177: ZTAR | L177: D | P177: Silestone - Blue Enjoy*** | R177: 0000000
A178: Quartz | B178: Corian - Quartz | C178: TOFFEE | D178: Quartz - TOFFEE | E178: Quartz - Corian - Quartz - TOFFEE | F178: A | H178: Quartz D | J178: TPF | K178: ZTPF | L178: D | P178: Silestone - Brazilian Brown*** | R178: 0000000
A179: Quartz | B179: Corian - Quartz | C179: VALENTE PEARL | D179: Quartz - VALENTE PEARL | E179: Quartz - Corian - Quartz - VALENTE PEARL | F179: B | H179: Quartz E | J179: VLP | K179: ZVLP | L179: E | P179: Silestone - Carbono*** | R179: 0000000
A180: Quartz | B180: Corian - Quartz | C180: VENETIA CREAM | D180: Quartz - VENETIA CREAM | E180: Quartz - Corian - Quartz - VENETIA CREAM | F180: A | H180: Quartz D | J180: VEN | K180: ZVEN | L180: D | P180: Silestone - Charcoal Soapstone*** | R180: 0000000
A181: Quartz | B181: Corian - Quartz | C181: VERSILIA GRIGIO | D181: Quartz - VERSILIA GRIGIO | E181: Quartz - Corian - Quartz - VERSILIA GRIGIO | F181: B | H181: Quartz E | J181: VER | K181: ZVER | L181: E | P181: Silestone - Classic White*** | R181: 0000000
A182: Quartz | B182: Corian - Quartz | C182: WARM TAUPE | D182: Quartz - WARM TAUPE | E182: Quartz - Corian - Quartz - WARM TAUPE | F182: A | H182: Quartz D | J182: WTP | K182: ZWTP | L182: D | P182: Silestone - Coral Clay*** | R182: 0000000
A183: Quartz | B183: Corian - Quartz | C183: WILD RICE | D183: Quartz - WILD RICE | E183: Quartz - Corian - Quartz - WILD RICE | F183: A | H183: Quartz D | J183: WRI | K183: ZWRI | L183: D | P183: Silestone - Dreis*** | R183: 0000000
A184: Solid Surface | B184: Corian | C184: Raffia | D184: Solid Surface - Raffia | E184: Solid Surface - Corian - Raffia | F184: C | G184: 0108012 | H184: ="Corian " & F184 -> Corian C | I184: =J184 -> RAF | J184: RAF | K184: CRAF | L184: C | P184: Silestone - Ebony Pearl*** | R184: 0000000
A185: Solid Surface | B185: Corian | C185: Rain Cloud | D185: Solid Surface - Rain Cloud | E185: Solid Surface - Corian - Rain Cloud | F185: D | G185: 0108036 | H185: Corian D | I185: RAC | J185: RAC | K185: CRAC | L185: D | P185: Silestone - Etnl Calacatta Gold*** | R185: 0000000
A186: Solid Surface | B186: Corian | C186: Rice Paper | D186: Solid Surface - Rice Paper | E186: Solid Surface - Corian - Rice Paper | F186: C | G186: 0108005 | H186: Corian C | I186: RPA | J186: RPA | K186: CRPA | L186: C | P186: Silestone - Gedatsu*** | R186: 0000000
A187: Solid Surface | B187: Corian | C187: Riverbed | D187: Solid Surface - Riverbed | E187: Solid Surface - Corian - Riverbed | F187: D | G187: 0108023 | H187: Corian D | I187: RVB | J187: RVB | K187: CRVB | L187: D | P187: Silestone - Helix | Q187: E | R187: 0000000
A188: Solid Surface | B188: Corian | C188: Rosemary | D188: Solid Surface - Rosemary | E188: Solid Surface - Corian - Rosemary | F188: D | G188: 0108041 | H188: Corian D | I188: RSM | J188: RSM | K188: CRSM | L188: D | P188: Silestone - Kalahari*** | R188: 0000000
A189: Solid Surface | B189: Corian | C189: Royal Red | D189: Solid Surface - Royal Red | E189: Solid Surface - Corian - Royal Red | F189: C | G189: 0108023 | H189: Corian C | I189: RVB | J189: RVB | K189: CRVB | L189: C | P189: Silestone - Kona Beige | Q189: C | R189: 0000000
A190: Solid Surface | B190: Corian | C190: Saffron | D190: Solid Surface - Saffron | E190: Solid Surface - Corian - Saffron | F190: D | H190: Corian D | I190: SAF | J190: SAF | K190: CSAF | L190: D | P190: Silestone - Lena | Q190: A | R190: 0000000
A191: Solid Surface | B191: Corian | C191: Sagebrush | D191: Solid Surface - Sagebrush | E191: Solid Surface - Corian - Sagebrush | F191: D | H191: Corian D | I191: SAB | J191: SAB | K191: CSAB | L191: D | P191: Silestone - Lena Suede | Q191: G | R191: 0000000
A192: Solid Surface | B192: Corian | C192: Sahara | D192: Solid Surface - Sahara | E192: Solid Surface - Corian - Sahara | F192: A | H192: Corian A | I192: MSA | J192: MSA | K192: CMSA | L192: A | P192: Silestone - Magenta Energy*** | R192: 0000000
A193: Solid Surface | B193: Corian | C193: Sand | D193: Solid Surface - Sand | E193: Solid Surface - Corian - Sand | F193: B | H193: Corian B | I193: SAN | J193: SAN | K193: CSAN | L193: B | P193: Silestone - Mahogany*** | R193: 0000000
A194: Solid Surface | B194: Corian | C194: Sand Storm | D194: =A194& " - " & C194 -> Solid Surface - Sand Storm | E194: Solid Surface - Corian - Sand Storm | F194: D | G194: 0108052 | H194: Corian D | I194: SAS | J194: SAS | K194: CSAS | L194: D | P194: Silestone - Merope | Q194: D | R194: =IFERROR(VLOOKUP(P194,E:G,6,0),"0000000") -> 0000000
A195: Solid Surface | B195: Corian | C195: Sandalwood | D195: Solid Surface - Sandalwood | E195: =A195&" - "&B195&" - "&C195 -> Solid Surface - Corian - Sandalwood | F195: D | G195: 0108050 | H195: Corian D | I195: SAW | J195: SAW | K195: CSAW | L195: D | P195: Silestone - Minerva Cream*** | R195: 0000000
A196: Solid Surface | B196: Corian | C196: Savannah | D196: Solid Surface - Savannah | E196: Solid Surface - Corian - Savannah | F196: B | G196: 0108007 | H196: Corian B | I196: MSV | J196: MSV | K196: CMSV | L196: B | P196: Silestone - Mont Blanc*** | R196: 0000000
A197: Solid Surface | B197: Corian | C197: Seafoam | D197: Solid Surface - Seafoam | E197: Solid Surface - Corian - Seafoam | F197: C | G197: 0108051 | H197: Corian C | I197: SEF | J197: SEF | K197: CSEF | L197: C | P197: Silestone - Moonstone | Q197: E | R197: 0000000
A198: Solid Surface | B198: Corian | C198: Serene Sage | D198: Solid Surface - Serene Sage | E198: Solid Surface - Corian - Serene Sage | F198: C | H198: Corian C | I198: SSA | J198: SSA | K198: CSSA | L198: C | P198: Silestone - Niebla*** | R198: 0000000
A199: Solid Surface | B199: Corian | C199: Silt | D199: Solid Surface - Silt | E199: Solid Surface - Corian - Silt | F199: B | H199: Corian B | I199: SIL | J199: SIL | K199: CSIL | L199: B | P199: Silestone - Olive Green*** | R199: 0000000
A200: Solid Surface | B200: Corian | C200: Silver Birch | D200: Solid Surface - Silver Birch | E200: Solid Surface - Corian - Silver Birch | F200: C | G200: 0108025 | H200: Corian C | I200: SVB | J200: SVB | K200: CSVB | L200: C | P200: Silestone - Orange Cool*** | R200: 0000000
... 88 more rows

Sheet Sink Price Table (hidden)
A1: LUP | B1: Material | C1: Trough | D1: Model | E1: Stations | F1: Bowl | G1: A | H1: B | I1: C | J1: D | K1: E
A2: =CONCATENATE(B2,C2,D2,E2,F2,) -> CorianContinuous TroughAD1 | B2: Corian | C2: Continuous Trough | D2: AD | E2: 1 | G2: 1116.796 | H2: 1161.7959 | I2: 1241.7959 | J2: 1376.7959 | K2: ERR
A3: CorianContinuous TroughAD2 | B3: Corian | C3: Continuous Trough | D3: AD | E3: 2 | G3: 1265.9369 | H3: 1161.7959 | I3: 1241.7959 | J3: 1376.7959 | K3: ERR
A4: CorianContinuous TroughAD3 | B4: Corian | C4: Continuous Trough | D4: AD | E4: 3 | G4: 2268.6838 | H4: 2358.6838 | I4: 2518.6838 | J4: 2788.6838 | K4: ERR
A5: CorianContinuous TroughAD4 | B5: Corian | C5: Continuous Trough | D5: AD | E5: 4 | G5: 2444.1438 | H5: 2534.1438 | I5: 2694.1438 | J5: 2964.1438 | K5: ERR
A6: CorianContinuous TroughAD5 | B6: Corian | C6: Continuous Trough | D6: AD | E6: 5 | G6: 4323.5467 | H6: 4503.5467 | I6: 4823.5467 | J6: 5363.5467 | K6: ERR
A7: CorianContinuous TroughAD6+ | B7: Corian | C7: Continuous Trough | D7: AD | E7: 6+ | G7: 4639.3747 | H7: 4819.3747 | I7: 5139.3747 | J7: 5679.3747 | K7: ERR
A8: CorianContinuous TroughDSG1 | B8: Corian | C8: Continuous Trough | D8: DSG | E8: 1 | G8: 1088.685 | H8: 1133.685 | I8: 1213.685 | J8: 1348.685 | K8: ERR
A9: CorianContinuous TroughDSG2 | B9: Corian | C9: Continuous Trough | D9: DSG | E9: 2 | G9: 1202.734 | H9: 1247.734 | I9: 1327.734 | J9: 1462.734 | K9: ERR
A10: CorianContinuous TroughDSG3 | B10: Corian | C10: Continuous Trough | D10: DSG | E10: 3 | G10: 2177.37 | H10: 2267.37 | I10: 2427.37 | J10: 2697.37 | K10: ERR
A11: CorianContinuous TroughDSG4 | B11: Corian | C11: Continuous Trough | D11: DSG | E11: 4 | G11: 2317.738 | H11: 2407.738 | I11: 2567.738 | J11: 2837.738 | K11: ERR
A12: CorianContinuous TroughDSG5 | B12: Corian | C12: Continuous Trough | D12: DSG | E12: 5 | G12: 4169.03 | H12: 4349.03 | I12: 4669.03 | J12: 5209.03 | K12: ERR
A13: CorianContinuous TroughDSG6+ | B13: Corian | C13: Continuous Trough | D13: DSG | E13: 6+ | G13: 4449.766 | H13: 4629.766 | I13: 4949.766 | J13: 5489.766 | K13: ERR
A14: CorianContinuous TroughDSWD1 | B14: Corian | C14: Continuous Trough | D14: DSWD | E14: 1 | G14: 1109.7402 | H14: 1154.7402 | I14: 1234.7402 | J14: 1369.7402 | K14: ERR
A15: CorianContinuous TroughDSWD2 | B15: Corian | C15: Continuous Trough | D15: DSWD | E15: 2 | G15: 1227.2984 | H15: 1272.2984 | I15: 1352.2984 | J15: 1487.2984 | K15: ERR
A16: CorianContinuous TroughDSWD3 | B16: Corian | C16: Continuous Trough | D16: DSWD | E16: 3 | G16: 2219.4804 | H16: 2309.4804 | I16: 2469.4804 | J16: 2739.4804 | K16: ERR
A17: CorianContinuous TroughDSWD4 | B17: Corian | C17: Continuous Trough | D17: DSWD | E17: 4 | G17: 2363.3576 | H17: 2453.3576 | I17: 2613.3576 | J17: 2883.3576 | K17: ERR
A18: CorianContinuous TroughDSWD5 | B18: Corian | C18: Continuous Trough | D18: DSWD | E18: 5 | G18: 4247.987 | H18: 4427.987 | I18: 4747.987 | J18: 5287.987 | K18: ERR
A19: CorianContinuous TroughDSWD6+ | B19: Corian | C19: Continuous Trough | D19: DSWD | E19: 6+ | G19: 4535.7414 | H19: 4715.7414 | I19: 5035.7414 | J19: 5575.7414 | K19: ERR
A20: CorianIndividual BasinAD1 | B20: Corian | C20: Individual Basin | D20: AD | E20: 1 | G20: 1116.796 | H20: 1161.7959 | I20: 1241.7959 | J20: 1376.7959 | K20: ERR
A21: CorianIndividual BasinAD2 | B21: Corian | C21: Individual Basin | D21: AD | E21: 2 | G21: 1265.9369 | H21: 1161.7959 | I21: 1241.7959 | J21: 1376.7959 | K21: ERR
A22: CorianIndividual BasinAD3 | B22: Corian | C22: Individual Basin | D22: AD | E22: 3 | G22: 2268.6838 | H22: 2358.6838 | I22: 2518.6838 | J22: 2788.6838 | K22: ERR
A23: CorianIndividual BasinAD4 | B23: Corian | C23: Individual Basin | D23: AD | E23: 4 | G23: 2444.1438 | H23: 2534.1438 | I23: 2694.1438 | J23: 2964.1438 | K23: ERR
A24: CorianIndividual BasinAD5 | B24: Corian | C24: Individual Basin | D24: AD | E24: 5 | G24: 4323.5467 | H24: 4503.5467 | I24: 4823.5467 | J24: 5363.5467 | K24: ERR
A25: CorianIndividual BasinAD6+ | B25: Corian | C25: Individual Basin | D25: AD | E25: 6+ | G25: 4639.3747 | H25: 4819.3747 | I25: 5139.3747 | J25: 5679.3747 | K25: ERR
A26: CorianIndividual BasinDSCT1SS | B26: Corian | C26: Individual Basin | D26: DSCT | E26: 1 | F26: SS | G26: 672.4785 | H26: 717.4785 | I26: 797.4785 | J26: 932.4785 | K26: ERR
A27: CorianIndividual BasinDSCT1VC | B27: Corian | C27: Individual Basin | D27: DSCT | E27: 1 | F27: VC | G27: 593.9285 | H27: 638.9285 | I27: 718.9285 | J27: 853.9285 | K27: ERR
A28: CorianIndividual BasinDSCT2SS | B28: Corian | C28: Individual Basin | D28: DSCT | E28: 2 | F28: SS | G28: 1012.227 | H28: 1057.227 | I28: 1137.227 | J28: 1272.227 | K28: ERR
A29: CorianIndividual BasinDSCT2VC | B29: Corian | C29: Individual Basin | D29: DSCT | E29: 2 | F29: VC | G29: 855.127 | H29: 900.127 | I29: 980.127 | J29: 1115.127 | K29: ERR
A30: CorianIndividual BasinDSCT3SS | B30: Corian | C30: Individual Basin | D30: DSCT | E30: 3 | F30: SS | G30: 1772.4355 | H30: 1862.4355 | I30: 2022.4355 | J30: 2292.4355 | K30: ERR
A31: CorianIndividual BasinDSCT3VC | B31: Corian | C31: Individual Basin | D31: DSCT | E31: 3 | F31: VC | G31: 1536.7855 | H31: 1626.7855 | I31: 1786.7855 | J31: 2056.7855 | K31: ERR
A32: CorianIndividual BasinDSCT4SS | B32: Corian | C32: Individual Basin | D32: DSCT | E32: 4 | F32: SS | G32: 2112.184 | H32: 2202.184 | I32: 2362.184 | J32: 2632.184 | K32: ERR
A33: CorianIndividual BasinDSCT4VC | B33: Corian | C33: Individual Basin | D33: DSCT | E33: 4 | F33: VC | G33: 1797.984 | H33: 1887.984 | I33: 2047.984 | J33: 2317.984 | K33: ERR
A34: CorianIndividual BasinDSCT5SS | B34: Corian | C34: Individual Basin | D34: DSCT | E34: 5 | F34: SS | G34: 3073.5275 | H34: 3253.5275 | I34: 3573.5275 | J34: 4113.5275 | K34: ERR
A35: CorianIndividual BasinDSCT5VC | B35: Corian | C35: Individual Basin | D35: DSCT | E35: 5 | F35: VC | G35: 2680.7775 | H35: 2860.7775 | I35: 3180.7775 | J35: 3720.7775 | K35: ERR
A36: CorianIndividual BasinDSCT6+SS | B36: Corian | C36: Individual Basin | D36: DSCT | E36: 6+ | F36: SS | G36: 3544.871 | H36: 3724.871 | I36: 4044.871 | J36: 4584.871 | K36: ERR
A37: CorianIndividual BasinDSCT6+VC | B37: Corian | C37: Individual Basin | D37: DSCT | E37: 6+ | F37: VC | G37: 3073.571 | H37: 3253.571 | I37: 3573.571 | J37: 4113.571 | K37: ERR
A38: CorianIndividual BasinDSG1 | B38: Corian | C38: Individual Basin | D38: DSG | E38: 1 | G38: 1088.685 | H38: 1133.685 | I38: 1213.685 | J38: 1348.685 | K38: ERR
A39: CorianIndividual BasinDSG2 | B39: Corian | C39: Individual Basin | D39: DSG | E39: 2 | G39: 1202.734 | H39: 1247.734 | I39: 1327.734 | J39: 1462.734 | K39: ERR
A40: CorianIndividual BasinDSG3 | B40: Corian | C40: Individual Basin | D40: DSG | E40: 3 | G40: 2177.37 | H40: 2267.37 | I40: 2427.37 | J40: 2697.37 | K40: ERR
A41: CorianIndividual BasinDSG4 | B41: Corian | C41: Individual Basin | D41: DSG | E41: 4 | G41: 2317.738 | H41: 2407.738 | I41: 2567.738 | J41: 2837.738 | K41: ERR
A42: CorianIndividual BasinDSG5 | B42: Corian | C42: Individual Basin | D42: DSG | E42: 5 | G42: 4169.03 | H42: 4349.03 | I42: 4669.03 | J42: 5209.03 | K42: ERR
A43: CorianIndividual BasinDSG6+ | B43: Corian | C43: Individual Basin | D43: DSG | E43: 6+ | G43: 4449.766 | H43: 4629.766 | I43: 4949.766 | J43: 5489.766 | K43: ERR
A44: CorianIndividual BasinDSOF1 | B44: Corian | C44: Individual Basin | D44: DSOF | E44: 1 | G44: 1109.7402 | H44: 1154.7402 | I44: 1234.7402 | J44: 1369.7402 | K44: ERR
A45: CorianIndividual BasinDSOF2 | B45: Corian | C45: Individual Basin | D45: DSOF | E45: 2 | G45: 1239.303 | H45: 1284.303 | I45: 1364.303 | J45: 1499.303 | K45: ERR
A46: CorianIndividual BasinDSOF3 | B46: Corian | C46: Individual Basin | D46: DSOF | E46: 3 | G46: 2229.7304 | H46: 2319.7304 | I46: 2479.7304 | J46: 2749.7304 | K46: ERR
A47: CorianIndividual BasinDSOF4 | B47: Corian | C47: Individual Basin | D47: DSOF | E47: 4 | G47: 2383.8576 | H47: 2473.8576 | I47: 2633.8576 | J47: 2903.8576 | K47: ERR
A48: CorianIndividual BasinDSOF5 | B48: Corian | C48: Individual Basin | D48: DSOF | E48: 5 | G48: 4268.487 | H48: 4448.487 | I48: 4768.487 | J48: 5308.487 | K48: ERR
A49: CorianIndividual BasinDSOF6+ | B49: Corian | C49: Individual Basin | D49: DSOF | E49: 6+ | G49: 4575.2644 | H49: 4755.2644 | I49: 5075.2644 | J49: 5615.2644 | K49: ERR
A50: CorianIndividual BasinDSVR1 | B50: Corian | C50: Individual Basin | D50: DSVR | E50: 1 | G50: 526.6625 | H50: 571.6625 | I50: 651.6625 | J50: 786.6625 | K50: ERR
A51: CorianIndividual BasinDSVR2 | B51: Corian | C51: Individual Basin | D51: DSVR | E51: 2 | G51: 720.595 | H51: 765.595 | I51: 845.595 | J51: 980.595 | K51: ERR
A52: CorianIndividual BasinDSVR3 | B52: Corian | C52: Individual Basin | D52: DSVR | E52: 3 | G52: 1334.9875 | H52: 1424.9875 | I52: 1584.9875 | J52: 1854.9875 | K52: ERR
A53: CorianIndividual BasinDSVR4 | B53: Corian | C53: Individual Basin | D53: DSVR | E53: 4 | G53: 1528.92 | H53: 1618.92 | I53: 1778.92 | J53: 2048.92 | K53: ERR
A54: CorianIndividual BasinDSVR5 | B54: Corian | C54: Individual Basin | D54: DSVR | E54: 5 | G54: 2344.4475 | H54: 2524.4475 | I54: 2844.4475 | J54: 3384.4475 | K54: ERR
A55: CorianIndividual BasinDSVR6+ | B55: Corian | C55: Individual Basin | D55: DSVR | E55: 6+ | G55: 2669.975 | H55: 2849.975 | I55: 3169.975 | J55: 3709.975 | K55: ERR
A56: CorianIndividual BasinDSWD1 | B56: Corian | C56: Individual Basin | D56: DSWD | E56: 1 | G56: 1109.7402 | H56: 1154.7402 | I56: 1234.7402 | J56: 1369.7402 | K56: ERR
A57: CorianIndividual BasinDSWD2 | B57: Corian | C57: Individual Basin | D57: DSWD | E57: 2 | G57: 1227.2984 | H57: 1272.2984 | I57: 1352.2984 | J57: 1487.2984 | K57: ERR
A58: CorianIndividual BasinDSWD3 | B58: Corian | C58: Individual Basin | D58: DSWD | E58: 3 | G58: 2219.4804 | H58: 2309.4804 | I58: 2469.4804 | J58: 2739.4804 | K58: ERR
A59: CorianIndividual BasinDSWD4 | B59: Corian | C59: Individual Basin | D59: DSWD | E59: 4 | G59: 2363.3576 | H59: 2453.3576 | I59: 2613.3576 | J59: 2883.3576 | K59: ERR
A60: CorianIndividual BasinDSWD5 | B60: Corian | C60: Individual Basin | D60: DSWD | E60: 5 | G60: 4247.987 | H60: 4427.987 | I60: 4747.987 | J60: 5287.987 | K60: ERR
A61: CorianIndividual BasinDSWD6+ | B61: Corian | C61: Individual Basin | D61: DSWD | E61: 6+ | G61: 4535.7414 | H61: 4715.7414 | I61: 5035.7414 | J61: 5575.7414 | K61: ERR
A62: Corian_QuartzIndividual BasinAD1 | B62: Corian_Quartz | C62: Individual Basin | D62: AD | E62: 1 | G62: 2175.4022 | H62: 2242.5005 | I62: 6507.5789 | J62: 2533.5869 | K62: 4183.8509
A63: Corian_QuartzIndividual BasinAD2 | B63: Corian_Quartz | C63: Individual Basin | D63: AD | E63: 2 | G63: 2959.0282 | H63: 3026.1158 | I63: 3067.4054 | J63: 3317.2128 | K63: 4017.0662
A64: Corian_QuartzIndividual BasinAD3 | B64: Corian_Quartz | C64: Individual Basin | D64: AD | E64: 3 | G64: 5016.697 | H64: 5150.8829 | I64: 5233.4621 | J64: 5733.0662 | K64: 7132.7837
A65: Corian_QuartzIndividual BasinAD4 | B65: Corian_Quartz | C65: Individual Basin | D65: AD | E65: 4 | G65: 5827.4832 | H65: 5961.6797 | I65: 6044.2589 | J65: 6543.863 | K65: 7943.5805
A66: =CONCATENATE(B66,C66,D66,E66,F66,) -> Corian_QuartzIndividual BasinAD5 | B66: Corian_Quartz | C66: Individual Basin | D66: AD | E66: 5 | G66: 9182.3635 | H66: 9450.7459 | I66: 9105.97 | J66: 10615.1126 | K66: 13414.5475
A67: Corian_QuartzIndividual BasinAD6+ | B67: Corian_Quartz | C67: Individual Basin | D67: AD | E67: 6+ | G67: 10138.0541 | H67: 10406.4365 | I67: 10571.5949 | J67: 11570.8032 | K67: 14370.2381
A68: Corian_QuartzIndividual BasinDSCT1SS | B68: Corian_Quartz | C68: Individual Basin | D68: DSCT | E68: 1 | F68: SS | G68: 1455.9389 | H68: 1523.0371 | I68: 1564.3267 | J68: 1814.1341 | K68: 2513.9875
A69: Corian_QuartzIndividual BasinDSCT1VC | B69: Corian_Quartz | C69: Individual Basin | D69: DSCT | E69: 1 | F69: VC | G69: 1455.9389 | H69: 1523.0371 | I69: 1564.3267 | J69: 1814.1341 | K69: 2513.9875
A70: Corian_QuartzIndividual BasinDSCT2SS | B70: Corian_Quartz | C70: Individual Basin | D70: DSCT | E70: 2 | F70: SS | G70: 2116.7098 | H70: 2183.808 | I70: 2225.0976 | J70: 2473.849 | K70: 3174.7584
A71: Corian_QuartzIndividual BasinDSCT2VC | B71: Corian_Quartz | C71: Individual Basin | D71: DSCT | E71: 2 | F71: VC | G71: 2116.7098 | H71: 2183.808 | I71: 2225.0976 | J71: 2474.905 | K71: 3174.7584
A72: Corian_QuartzIndividual BasinDSCT3SS | B72: Corian_Quartz | C72: Individual Basin | D72: DSCT | E72: 3 | F72: SS | G72: 3548.8675 | H72: 3683.064 | I72: 3765.6432 | J72: 4265.2474 | K72: 5664.9648
A73: Corian_QuartzIndividual BasinDSCT3VC | B73: Corian_Quartz | C73: Individual Basin | D73: DSCT | E73: 3 | F73: VC | G73: 3548.5507 | H73: 3683.064 | I73: 3765.6432 | J73: 4265.2474 | K73: 5664.9648
A74: Corian_QuartzIndividual BasinDSCT4SS | B74: Corian_Quartz | C74: Individual Basin | D74: DSCT | E74: 4 | F74: SS | G74: 4215.1296 | H74: 4349.3155 | I74: 4431.8947 | J74: 4931.4989 | K74: 6331.2163
A75: Corian_QuartzIndividual BasinDSCT4VC | B75: Corian_Quartz | C75: Individual Basin | D75: DSCT | E75: 4 | F75: VC | G75: 4215.1296 | H75: 4349.3155 | I75: 4431.863 | J75: 4931.4989 | K75: 6331.2163
A76: Corian_QuartzIndividual BasinDSCT5SS | B76: Corian_Quartz | C76: Individual Basin | D76: DSCT | E76: 5 | F76: SS | G76: 6424.1654 | H76: 6692.5478 | I76: 6857.7062 | J76: 7856.9146 | K76: 10656.3494
A77: Corian_QuartzIndividual BasinDSCT5VC | B77: Corian_Quartz | C77: Individual Basin | D77: DSCT | E77: 5 | F77: VC | G77: 6424.1654 | H77: 6692.5478 | I77: 6857.7062 | J77: 7856.9146 | K77: 10656.3494
A78: Corian_QuartzIndividual BasinDSCT6+SS | B78: Corian_Quartz | C78: Individual Basin | D78: DSCT | E78: 6+ | F78: SS | G78: 7119.6998 | H78: 7388.0822 | I78: 7553.2406 | J78: 8552.449 | K78: 11351.8838
A79: Corian_QuartzIndividual BasinDSCT6+VC | B79: Corian_Quartz | C79: Individual Basin | D79: DSCT | E79: 6+ | F79: VC | G79: 7119.6998 | H79: 7388.0822 | I79: 7553.2406 | J79: 8552.449 | K79: 11351.8838
A80: Corian_QuartzIndividual BasinDSG1 | B80: Corian_Quartz | C80: Individual Basin | D80: DSG | E80: 1 | G80: 2145.7498 | H80: 2212.848 | I80: 2444.2176 | J80: 2503.9344 | K80: 3202.848
A81: Corian_QuartzIndividual BasinDSG2 | B81: Corian_Quartz | C81: Individual Basin | D81: DSG | E81: 2 | G81: 2893.1549 | H81: 2960.2426 | I81: 3001.5322 | J81: 3251.3395 | K81: 3951.193
A82: Corian_QuartzIndividual BasinDSG3 | B82: Corian_Quartz | C82: Individual Basin | D82: DSG | E82: 3 | G82: 4921.1712 | H82: 5055.3571 | I82: 5137.9363 | J82: 5637.5405 | K82: 7037.2579
A83: Corian_QuartzIndividual BasinDSG4 | B83: Corian_Quartz | C83: Individual Basin | D83: DSG | E83: 4 | G83: 5695.7366 | H83: 5829.9226 | I83: 5912.5018 | J83: 6412.1059 | K83: 7811.8234
A84: Corian_QuartzIndividual BasinDSG5 | B84: Corian_Quartz | C84: Individual Basin | D84: DSG | E84: 5 | G84: 9020.9645 | H84: 9289.3469 | I84: 9454.5053 | J84: 10453.7136 | K84: 13253.1485
A85: Corian_QuartzIndividual BasinDSG6+ | B85: Corian_Quartz | C85: Individual Basin | D85: DSG | E85: 6+ | G85: 9940.4342 | H85: 10208.8166 | I85: 10373.975 | J85: 11373.1834 | K85: 14172.6182
A86: Corian_QuartzIndividual BasinDSOF1 | B86: Corian_Quartz | C86: Individual Basin | D86: DSOF | E86: 1 | G86: 2167.2605 | H86: 2234.3587 | I86: 2275.6483 | J86: 2525.4451 | K86: 3225.3091
A87: Corian_QuartzIndividual BasinDSOF2 | B87: Corian_Quartz | C87: Individual Basin | D87: DSOF | E87: 2 | G87: 2928.1824 | H87: 2995.2806 | I87: 3036.5702 | J87: 3286.367 | K87: 3986.231
A88: Corian_QuartzIndividual BasinDSOF3 | B88: Corian_Quartz | C88: Individual Basin | D88: DSOF | E88: 3 | G88: 4974.7632 | H88: 5108.9597 | I88: 5191.5389 | J88: 2523.143 | K88: 7090.8605
A89: Corian_QuartzIndividual BasinDSOF4 | B89: Corian_Quartz | C89: Individual Basin | D89: DSOF | E89: 4 | G89: 5763.5424 | H89: 5897.7283 | I89: 5980.3075 | J89: 6479.9117 | K89: 7879.6291
A90: Corian_QuartzIndividual BasinDSOF5 | B90: Corian_Quartz | C90: Individual Basin | D90: DSOF | E90: 5 | G90: 9123.6288 | H90: 9392.0112 | I90: 9557.1696 | J90: 10556.3779 | K90: 13355.8128
A91: Corian_QuartzIndividual BasinDSOF6+ | B91: Corian_Quartz | C91: Individual Basin | D91: DSOF | E91: 6+ | G91: 10060.9238 | H91: 9283.8662 | I91: 10494.4646 | J91: 1989.673 | K91: 14293.1078
A92: Corian_QuartzIndividual BasinDSVR1 | B92: Corian_Quartz | C92: Individual Basin | D92: DSVR | E92: 1 | G92: 1378.73 | H92: 1442.27 | I92: 1481.37 | J92: 1717.93 | K92: 2380.67
A93: Corian_QuartzIndividual BasinDSVR2 | B93: Corian_Quartz | C93: Individual Basin | D93: DSVR | E93: 2 | G93: 2004.46 | H93: 2068 | I93: 2107.1 | J93: 2343.66 | K93: 3006.4
A94: Corian_QuartzIndividual BasinDSVR3 | B94: Corian_Quartz | C94: Individual Basin | D94: DSVR | E94: 3 | G94: 3360.67 | H94: 3487.75 | I94: 3565.95 | J94: 4039.06 | K94: 5364.55
A95: Corian_QuartzIndividual BasinDSVR4 | B95: Corian_Quartz | C95: Individual Basin | D95: DSVR | E95: 4 | G95: 3991.6 | H95: 4118.67 | I95: 4196.87 | J95: 4669.98 | K95: 5995.47
A96: Corian_QuartzIndividual BasinDSVR5 | B96: Corian_Quartz | C96: Individual Basin | D96: DSVR | E96: 5 | G96: 6083.49 | H96: 6337.64 | I96: 6494.04 | J96: 7440.26 | K96: 100.9124
A97: Corian_QuartzIndividual BasinDSVR6+ | B97: Corian_Quartz | C97: Individual Basin | D97: DSVR | E97: 6+ | G97: 6742.14 | H97: 6996.29 | I97: 7152.69 | J97: 8098.91 | K97: 10749.89
A98: Corian_QuartzIndividual BasinDSWD1 | B98: Corian_Quartz | C98: Individual Basin | D98: DSWD | E98: 1 | G98: 2167.2605 | H98: 2234.3587 | I98: 2275.6483 | J98: 2525.4451 | K98: 3225.3091
A99: Corian_QuartzIndividual BasinDSWD2 | B99: Corian_Quartz | C99: Individual Basin | D99: DSWD | E99: 2 | G99: 2885.9213 | H99: 2984.6995 | I99: 3025.9891 | J99: 3275.7859 | K99: 3975.6499
A100: Corian_QuartzIndividual BasinDSWD3 | B100: Corian_Quartz | C100: Individual Basin | D100: DSWD | E100: 3 | G100: 4964.1821 | H100: 5098.3786 | I100: 5181.4858 | J100: 5680.5619 | K100: 7080.2794
A101: Corian_QuartzIndividual BasinDSWD4 | B101: Corian_Quartz | C101: Individual Basin | D101: DSWD | E101: 4 | G101: 5742.3802 | H101: 5876.5661 | I101: 5959.1453 | J101: 6458.7494 | K101: 7858.4669
A102: Corian_QuartzIndividual BasinDSWD5 | B102: Corian_Quartz | C102: Individual Basin | D102: DSWD | E102: 5 | G102: 9102.4666 | H102: 93.7085 | I102: 9536.0074 | J102: 10535.2157 | K102: 13334.6506
A103: Corian_QuartzIndividual BasinDSWD6+ | B103: Corian_Quartz | C103: Individual Basin | D103: DSWD | E103: 6+ | G103: 10029.1805 | H103: 10297.5629 | I103: 10462.7213 | J103: 11461.9296 | K103: 14261.3645
A104: Corian_QuartzContinuous TroughAD1 | B104: Corian_Quartz | C104: Continuous Trough | D104: AD | E104: 1 | G104: 2175.4022 | H104: 2242.5005 | I104: 6507.5789 | J104: 2533.5869 | K104: 4183.8509
A105: Corian_QuartzContinuous TroughAD2 | B105: Corian_Quartz | C105: Continuous Trough | D105: AD | E105: 2 | G105: 2959.0282 | H105: 3026.1158 | I105: 3067.4054 | J105: 3317.2128 | K105: 4017.0662
A106: Corian_QuartzContinuous TroughAD3 | B106: Corian_Quartz | C106: Continuous Trough | D106: AD | E106: 3 | G106: 5016.697 | H106: 5150.8829 | I106: 5233.4621 | J106: 5733.0662 | K106: 7132.7837
A107: Corian_QuartzContinuous TroughAD4 | B107: Corian_Quartz | C107: Continuous Trough | D107: AD | E107: 4 | G107: 5827.4832 | H107: 5961.6797 | I107: 6044.2589 | J107: 6543.863 | K107: 7943.5805
A108: Corian_QuartzContinuous TroughAD5 | B108: Corian_Quartz | C108: Continuous Trough | D108: AD | E108: 5 | G108: 9182.3635 | H108: 9450.7459 | I108: 9105.97 | J108: 10615.1126 | K108: 13414.5475
A109: Corian_QuartzContinuous TroughAD6+ | B109: Corian_Quartz | C109: Continuous Trough | D109: AD | E109: 6+ | G109: 10138.0541 | H109: 10406.4365 | I109: 10571.5949 | J109: 11570.8032 | K109: 14370.2381
A110: Corian_QuartzContinuous TroughDSG1 | B110: Corian_Quartz | C110: Continuous Trough | D110: DSG | E110: 1 | G110: 2145.7498 | H110: 2212.848 | I110: 2444.2176 | J110: 2503.9344 | K110: 3202.848
A111: Corian_QuartzContinuous TroughDSG2 | B111: Corian_Quartz | C111: Continuous Trough | D111: DSG | E111: 2 | G111: 2893.1549 | H111: 2960.2426 | I111: 3001.5322 | J111: 3251.3395 | K111: 3951.193
A112: Corian_QuartzContinuous TroughDSG3 | B112: Corian_Quartz | C112: Continuous Trough | D112: DSG | E112: 3 | G112: 4921.1712 | H112: 5055.3571 | I112: 5137.9363 | J112: 5637.5405 | K112: 7037.2579
A113: Corian_QuartzContinuous TroughDSG4 | B113: Corian_Quartz | C113: Continuous Trough | D113: DSG | E113: 4 | G113: 5695.7366 | H113: 5829.9226 | I113: 5912.5018 | J113: 6412.1059 | K113: 7811.8234
A114: Corian_QuartzContinuous TroughDSG5 | B114: Corian_Quartz | C114: Continuous Trough | D114: DSG | E114: 5 | G114: 9020.9645 | H114: 9289.3469 | I114: 9454.5053 | J114: 10453.7136 | K114: 13253.1485
A115: Corian_QuartzContinuous TroughDSG6+ | B115: Corian_Quartz | C115: Continuous Trough | D115: DSG | E115: 6+ | G115: 9940.4342 | H115: 10208.8166 | I115: 10373.975 | J115: 11373.1834 | K115: 14172.6182
A116: Corian_QuartzContinuous TroughDSWD1 | B116: Corian_Quartz | C116: Continuous Trough | D116: DSWD | E116: 1 | G116: 2167.2605 | H116: 2234.3587 | I116: 2275.6483 | J116: 2525.4451 | K116: 3225.3091
A117: Corian_QuartzContinuous TroughDSWD2 | B117: Corian_Quartz | C117: Continuous Trough | D117: DSWD | E117: 2 | G117: 2885.9213 | H117: 2984.6995 | I117: 3025.9891 | J117: 3275.7859 | K117: 3975.6499
A118: Corian_QuartzContinuous TroughDSWD3 | B118: Corian_Quartz | C118: Continuous Trough | D118: DSWD | E118: 3 | G118: 4964.1821 | H118: 5098.3786 | I118: 5181.4858 | J118: 5680.5619 | K118: 7080.2794
A119: Corian_QuartzContinuous TroughDSWD4 | B119: Corian_Quartz | C119: Continuous Trough | D119: DSWD | E119: 4 | G119: 5742.3802 | H119: 5876.5661 | I119: 5959.1453 | J119: 6458.7494 | K119: 7858.4669
A120: Corian_QuartzContinuous TroughDSWD5 | B120: Corian_Quartz | C120: Continuous Trough | D120: DSWD | E120: 5 | G120: 9102.4666 | H120: 93.7085 | I120: 9536.0074 | J120: 10535.2157 | K120: 13334.6506
A121: Corian_QuartzContinuous TroughDSWD6+ | B121: Corian_Quartz | C121: Continuous Trough | D121: DSWD | E121: 6+ | G121: 10029.1805 | H121: 10297.5629 | I121: 10462.7213 | J121: 11461.9296 | K121: 14261.3645
A122: CaeserstoneIndividual BasinAD1 | B122: Caeserstone | C122: Individual Basin | D122: AD | E122: 1 | G122: 2175.4022 | H122: 2242.5005 | I122: 6507.5789 | J122: 2533.5869 | K122: 4183.8509
A123: CaeserstoneIndividual BasinAD2 | B123: Caeserstone | C123: Individual Basin | D123: AD | E123: 2 | G123: 2959.0282 | H123: 3026.1158 | I123: 3067.4054 | J123: 3317.2128 | K123: 4017.0662
A124: CaeserstoneIndividual BasinAD3 | B124: Caeserstone | C124: Individual Basin | D124: AD | E124: 3 | G124: 5016.697 | H124: 5150.8829 | I124: 5233.4621 | J124: 5733.0662 | K124: 7132.7837
A125: CaeserstoneIndividual BasinAD4 | B125: Caeserstone | C125: Individual Basin | D125: AD | E125: 4 | G125: 5827.4832 | H125: 5961.6797 | I125: 6044.2589 | J125: 6543.863 | K125: 7943.5805
A126: CaeserstoneIndividual BasinAD5 | B126: Caeserstone | C126: Individual Basin | D126: AD | E126: 5 | G126: 9182.3635 | H126: 9450.7459 | I126: 9105.97 | J126: 10615.1126 | K126: 13414.5475
A127: CaeserstoneIndividual BasinAD6+ | B127: Caeserstone | C127: Individual Basin | D127: AD | E127: 6+ | G127: 10138.0541 | H127: 10406.4365 | I127: 10571.5949 | J127: 11570.8032 | K127: 14370.2381
A128: CaeserstoneIndividual BasinDSCT1SS | B128: Caeserstone | C128: Individual Basin | D128: DSCT | E128: 1 | F128: SS | G128: 1455.9389 | H128: 1523.0371 | I128: 1564.3267 | J128: 1814.1341 | K128: 2513.9875
A129: CaeserstoneIndividual BasinDSCT1VC | B129: Caeserstone | C129: Individual Basin | D129: DSCT | E129: 1 | F129: VC | G129: 1455.9389 | H129: 1523.0371 | I129: 1564.3267 | J129: 1814.1341 | K129: 2513.9875
A130: =CONCATENATE(B130,C130,D130,E130,F130,) -> CaeserstoneIndividual BasinDSCT2SS | B130: Caeserstone | C130: Individual Basin | D130: DSCT | E130: 2 | F130: SS | G130: 2116.7098 | H130: 2183.808 | I130: 2225.0976 | J130: 2473.849 | K130: 3174.7584
A131: CaeserstoneIndividual BasinDSCT2VC | B131: Caeserstone | C131: Individual Basin | D131: DSCT | E131: 2 | F131: VC | G131: 2116.7098 | H131: 2183.808 | I131: 2225.0976 | J131: 2474.905 | K131: 3174.7584
A132: CaeserstoneIndividual BasinDSCT3SS | B132: Caeserstone | C132: Individual Basin | D132: DSCT | E132: 3 | F132: SS | G132: 3548.8675 | H132: 3683.064 | I132: 3765.6432 | J132: 4265.2474 | K132: 5664.9648
A133: CaeserstoneIndividual BasinDSCT3VC | B133: Caeserstone | C133: Individual Basin | D133: DSCT | E133: 3 | F133: VC | G133: 3548.5507 | H133: 3683.064 | I133: 3765.6432 | J133: 4265.2474 | K133: 5664.9648
A134: CaeserstoneIndividual BasinDSCT4SS | B134: Caeserstone | C134: Individual Basin | D134: DSCT | E134: 4 | F134: SS | G134: 4215.1296 | H134: 4349.3155 | I134: 4431.8947 | J134: 4931.4989 | K134: 6331.2163
A135: CaeserstoneIndividual BasinDSCT4VC | B135: Caeserstone | C135: Individual Basin | D135: DSCT | E135: 4 | F135: VC | G135: 4215.1296 | H135: 4349.3155 | I135: 4431.863 | J135: 4931.4989 | K135: 6331.2163
A136: CaeserstoneIndividual BasinDSCT5SS | B136: Caeserstone | C136: Individual Basin | D136: DSCT | E136: 5 | F136: SS | G136: 6424.1654 | H136: 6692.5478 | I136: 6857.7062 | J136: 7856.9146 | K136: 10656.3494
A137: CaeserstoneIndividual BasinDSCT5VC | B137: Caeserstone | C137: Individual Basin | D137: DSCT | E137: 5 | F137: VC | G137: 6424.1654 | H137: 6692.5478 | I137: 6857.7062 | J137: 7856.9146 | K137: 10656.3494
A138: CaeserstoneIndividual BasinDSCT6+SS | B138: Caeserstone | C138: Individual Basin | D138: DSCT | E138: 6+ | F138: SS | G138: 7119.6998 | H138: 7388.0822 | I138: 7553.2406 | J138: 8552.449 | K138: 11351.8838
A139: CaeserstoneIndividual BasinDSCT6+VC | B139: Caeserstone | C139: Individual Basin | D139: DSCT | E139: 6+ | F139: VC | G139: 7119.6998 | H139: 7388.0822 | I139: 7553.2406 | J139: 8552.449 | K139: 11351.8838
A140: CaeserstoneIndividual BasinDSG1 | B140: Caeserstone | C140: Individual Basin | D140: DSG | E140: 1 | G140: 2145.7498 | H140: 2212.848 | I140: 2444.2176 | J140: 2503.9344 | K140: 3202.848
A141: CaeserstoneIndividual BasinDSG2 | B141: Caeserstone | C141: Individual Basin | D141: DSG | E141: 2 | G141: 2893.1549 | H141: 2960.2426 | I141: 3001.5322 | J141: 3251.3395 | K141: 3951.193
A142: CaeserstoneIndividual BasinDSG3 | B142: Caeserstone | C142: Individual Basin | D142: DSG | E142: 3 | G142: 4921.1712 | H142: 5055.3571 | I142: 5137.9363 | J142: 5637.5405 | K142: 7037.2579
A143: CaeserstoneIndividual BasinDSG4 | B143: Caeserstone | C143: Individual Basin | D143: DSG | E143: 4 | G143: 5695.7366 | H143: 5829.9226 | I143: 5912.5018 | J143: 6412.1059 | K143: 7811.8234
A144: CaeserstoneIndividual BasinDSG5 | B144: Caeserstone | C144: Individual Basin | D144: DSG | E144: 5 | G144: 9020.9645 | H144: 9289.3469 | I144: 9454.5053 | J144: 10453.7136 | K144: 13253.1485
A145: CaeserstoneIndividual BasinDSG6+ | B145: Caeserstone | C145: Individual Basin | D145: DSG | E145: 6+ | G145: 9940.4342 | H145: 10208.8166 | I145: 10373.975 | J145: 11373.1834 | K145: 14172.6182
A146: CaeserstoneIndividual BasinDSOF1 | B146: Caeserstone | C146: Individual Basin | D146: DSOF | E146: 1 | G146: 2167.2605 | H146: 2234.3587 | I146: 2275.6483 | J146: 2525.4451 | K146: 3225.3091
A147: CaeserstoneIndividual BasinDSOF2 | B147: Caeserstone | C147: Individual Basin | D147: DSOF | E147: 2 | G147: 2928.1824 | H147: 2995.2806 | I147: 3036.5702 | J147: 3286.367 | K147: 3986.231
A148: CaeserstoneIndividual BasinDSOF3 | B148: Caeserstone | C148: Individual Basin | D148: DSOF | E148: 3 | G148: 4974.7632 | H148: 5108.9597 | I148: 5191.5389 | J148: 2523.143 | K148: 7090.8605
A149: CaeserstoneIndividual BasinDSOF4 | B149: Caeserstone | C149: Individual Basin | D149: DSOF | E149: 4 | G149: 5763.5424 | H149: 5897.7283 | I149: 5980.3075 | J149: 6479.9117 | K149: 7879.6291
A150: CaeserstoneIndividual BasinDSOF5 | B150: Caeserstone | C150: Individual Basin | D150: DSOF | E150: 5 | G150: 9123.6288 | H150: 9392.0112 | I150: 9557.1696 | J150: 10556.3779 | K150: 13355.8128
A151: CaeserstoneIndividual BasinDSOF6+ | B151: Caeserstone | C151: Individual Basin | D151: DSOF | E151: 6+ | G151: 10060.9238 | H151: 9283.8662 | I151: 10494.4646 | J151: 1989.673 | K151: 14293.1078
A152: CaeserstoneIndividual BasinDSVR1 | B152: Caeserstone | C152: Individual Basin | D152: DSVR | E152: 1 | G152: 1378.73 | H152: 1442.27 | I152: 1481.37 | J152: 1717.93 | K152: 2380.67
A153: CaeserstoneIndividual BasinDSVR2 | B153: Caeserstone | C153: Individual Basin | D153: DSVR | E153: 2 | G153: 2004.46 | H153: 2068 | I153: 2107.1 | J153: 2343.66 | K153: 3006.4
A154: CaeserstoneIndividual BasinDSVR3 | B154: Caeserstone | C154: Individual Basin | D154: DSVR | E154: 3 | G154: 3360.67 | H154: 3487.75 | I154: 3565.95 | J154: 4039.06 | K154: 5364.55
A155: CaeserstoneIndividual BasinDSVR4 | B155: Caeserstone | C155: Individual Basin | D155: DSVR | E155: 4 | G155: 3991.6 | H155: 4118.67 | I155: 4196.87 | J155: 4669.98 | K155: 5995.47
A156: CaeserstoneIndividual BasinDSVR5 | B156: Caeserstone | C156: Individual Basin | D156: DSVR | E156: 5 | G156: 6083.49 | H156: 6337.64 | I156: 6494.04 | J156: 7440.26 | K156: 100.9124
A157: CaeserstoneIndividual BasinDSVR6+ | B157: Caeserstone | C157: Individual Basin | D157: DSVR | E157: 6+ | G157: 6742.14 | H157: 6996.29 | I157: 7152.69 | J157: 8098.91 | K157: 10749.89
A158: CaeserstoneIndividual BasinDSWD1 | B158: Caeserstone | C158: Individual Basin | D158: DSWD | E158: 1 | G158: 2167.2605 | H158: 2234.3587 | I158: 2275.6483 | J158: 2525.4451 | K158: 3225.3091
A159: CaeserstoneIndividual BasinDSWD2 | B159: Caeserstone | C159: Individual Basin | D159: DSWD | E159: 2 | G159: 2885.9213 | H159: 2984.6995 | I159: 3025.9891 | J159: 3275.7859 | K159: 3975.6499
A160: CaeserstoneIndividual BasinDSWD3 | B160: Caeserstone | C160: Individual Basin | D160: DSWD | E160: 3 | G160: 4964.1821 | H160: 5098.3786 | I160: 5181.4858 | J160: 5680.5619 | K160: 7080.2794
A161: CaeserstoneIndividual BasinDSWD4 | B161: Caeserstone | C161: Individual Basin | D161: DSWD | E161: 4 | G161: 5742.3802 | H161: 5876.5661 | I161: 5959.1453 | J161: 6458.7494 | K161: 7858.4669
A162: CaeserstoneIndividual BasinDSWD5 | B162: Caeserstone | C162: Individual Basin | D162: DSWD | E162: 5 | G162: 9102.4666 | H162: 93.7085 | I162: 9536.0074 | J162: 10535.2157 | K162: 13334.6506
A163: CaeserstoneIndividual BasinDSWD6+ | B163: Caeserstone | C163: Individual Basin | D163: DSWD | E163: 6+ | G163: 10029.1805 | H163: 10297.5629 | I163: 10462.7213 | J163: 11461.9296 | K163: 14261.3645
A164: CaeserstoneContinuous TroughAD1 | B164: Caeserstone | C164: Continuous Trough | D164: AD | E164: 1 | G164: 2175.4022 | H164: 2242.5005 | I164: 6507.5789 | J164: 2533.5869 | K164: 4183.8509
A165: CaeserstoneContinuous TroughAD2 | B165: Caeserstone | C165: Continuous Trough | D165: AD | E165: 2 | G165: 2959.0282 | H165: 3026.1158 | I165: 3067.4054 | J165: 3317.2128 | K165: 4017.0662
A166: CaeserstoneContinuous TroughAD3 | B166: Caeserstone | C166: Continuous Trough | D166: AD | E166: 3 | G166: 5016.697 | H166: 5150.8829 | I166: 5233.4621 | J166: 5733.0662 | K166: 7132.7837
A167: CaeserstoneContinuous TroughAD4 | B167: Caeserstone | C167: Continuous Trough | D167: AD | E167: 4 | G167: 5827.4832 | H167: 5961.6797 | I167: 6044.2589 | J167: 6543.863 | K167: 7943.5805
A168: CaeserstoneContinuous TroughAD5 | B168: Caeserstone | C168: Continuous Trough | D168: AD | E168: 5 | G168: 9182.3635 | H168: 9450.7459 | I168: 9105.97 | J168: 10615.1126 | K168: 13414.5475
A169: CaeserstoneContinuous TroughAD6+ | B169: Caeserstone | C169: Continuous Trough | D169: AD | E169: 6+ | G169: 10138.0541 | H169: 10406.4365 | I169: 10571.5949 | J169: 11570.8032 | K169: 14370.2381
A170: CaeserstoneContinuous TroughDSG1 | B170: Caeserstone | C170: Continuous Trough | D170: DSG | E170: 1 | G170: 2145.7498 | H170: 2212.848 | I170: 2444.2176 | J170: 2503.9344 | K170: 3202.848
A171: CaeserstoneContinuous TroughDSG2 | B171: Caeserstone | C171: Continuous Trough | D171: DSG | E171: 2 | G171: 2893.1549 | H171: 2960.2426 | I171: 3001.5322 | J171: 3251.3395 | K171: 3951.193
A172: CaeserstoneContinuous TroughDSG3 | B172: Caeserstone | C172: Continuous Trough | D172: DSG | E172: 3 | G172: 4921.1712 | H172: 5055.3571 | I172: 5137.9363 | J172: 5637.5405 | K172: 7037.2579
A173: CaeserstoneContinuous TroughDSG4 | B173: Caeserstone | C173: Continuous Trough | D173: DSG | E173: 4 | G173: 5695.7366 | H173: 5829.9226 | I173: 5912.5018 | J173: 6412.1059 | K173: 7811.8234
A174: CaeserstoneContinuous TroughDSG5 | B174: Caeserstone | C174: Continuous Trough | D174: DSG | E174: 5 | G174: 9020.9645 | H174: 9289.3469 | I174: 9454.5053 | J174: 10453.7136 | K174: 13253.1485
A175: CaeserstoneContinuous TroughDSG6+ | B175: Caeserstone | C175: Continuous Trough | D175: DSG | E175: 6+ | G175: 9940.4342 | H175: 10208.8166 | I175: 10373.975 | J175: 11373.1834 | K175: 14172.6182
A176: CaeserstoneContinuous TroughDSWD1 | B176: Caeserstone | C176: Continuous Trough | D176: DSWD | E176: 1 | G176: 2167.2605 | H176: 2234.3587 | I176: 2275.6483 | J176: 2525.4451 | K176: 3225.3091
A177: CaeserstoneContinuous TroughDSWD2 | B177: Caeserstone | C177: Continuous Trough | D177: DSWD | E177: 2 | G177: 2885.9213 | H177: 2984.6995 | I177: 3025.9891 | J177: 3275.7859 | K177: 3975.6499
A178: CaeserstoneContinuous TroughDSWD3 | B178: Caeserstone | C178: Continuous Trough | D178: DSWD | E178: 3 | G178: 4964.1821 | H178: 5098.3786 | I178: 5181.4858 | J178: 5680.5619 | K178: 7080.2794
A179: CaeserstoneContinuous TroughDSWD4 | B179: Caeserstone | C179: Continuous Trough | D179: DSWD | E179: 4 | G179: 5742.3802 | H179: 5876.5661 | I179: 5959.1453 | J179: 6458.7494 | K179: 7858.4669
A180: CaeserstoneContinuous TroughDSWD5 | B180: Caeserstone | C180: Continuous Trough | D180: DSWD | E180: 5 | G180: 9102.4666 | H180: 93.7085 | I180: 9536.0074 | J180: 10535.2157 | K180: 13334.6506
A181: CaeserstoneContinuous TroughDSWD6+ | B181: Caeserstone | C181: Continuous Trough | D181: DSWD | E181: 6+ | G181: 10029.1805 | H181: 10297.5629 | I181: 10462.7213 | J181: 11461.9296 | K181: 14261.3645
A182: =CONCATENATE(B182,C182,D182,E182,F182,) -> SileStoneIndividual BasinAD1 | B182: SileStone | C182: Individual Basin | D182: AD | E182: 1 | G182: 2175.4022 | H182: 2242.5005 | I182: 6507.5789 | J182: 2533.5869 | K182: 4183.8509
A183: =CONCATENATE(B183,C183,D183,E183,F183,) -> SileStoneIndividual BasinAD2 | B183: SileStone | C183: Individual Basin | D183: AD | E183: 2 | G183: 2959.0282 | H183: 3026.1158 | I183: 3067.4054 | J183: 3317.2128 | K183: 4017.0662
A184: SileStoneIndividual BasinAD3 | B184: SileStone | C184: Individual Basin | D184: AD | E184: 3 | G184: 5016.697 | H184: 5150.8829 | I184: 5233.4621 | J184: 5733.0662 | K184: 7132.7837
A185: SileStoneIndividual BasinAD4 | B185: SileStone | C185: Individual Basin | D185: AD | E185: 4 | G185: 5827.4832 | H185: 5961.6797 | I185: 6044.2589 | J185: 6543.863 | K185: 7943.5805
A186: SileStoneIndividual BasinAD5 | B186: SileStone | C186: Individual Basin | D186: AD | E186: 5 | G186: 9182.3635 | H186: 9450.7459 | I186: 9105.97 | J186: 10615.1126 | K186: 13414.5475
A187: SileStoneIndividual BasinAD6+ | B187: SileStone | C187: Individual Basin | D187: AD | E187: 6+ | G187: 10138.0541 | H187: 10406.4365 | I187: 10571.5949 | J187: 11570.8032 | K187: 14370.2381
A188: SileStoneIndividual BasinDSCT1SS | B188: SileStone | C188: Individual Basin | D188: DSCT | E188: 1 | F188: SS | G188: 1455.9389 | H188: 1523.0371 | I188: 1564.3267 | J188: 1814.1341 | K188: 2513.9875
A189: SileStoneIndividual BasinDSCT1VC | B189: SileStone | C189: Individual Basin | D189: DSCT | E189: 1 | F189: VC | G189: 1455.9389 | H189: 1523.0371 | I189: 1564.3267 | J189: 1814.1341 | K189: 2513.9875
A190: SileStoneIndividual BasinDSCT2SS | B190: SileStone | C190: Individual Basin | D190: DSCT | E190: 2 | F190: SS | G190: 2116.7098 | H190: 2183.808 | I190: 2225.0976 | J190: 2473.849 | K190: 3174.7584
A191: SileStoneIndividual BasinDSCT2VC | B191: SileStone | C191: Individual Basin | D191: DSCT | E191: 2 | F191: VC | G191: 2116.7098 | H191: 2183.808 | I191: 2225.0976 | J191: 2474.905 | K191: 3174.7584
A192: SileStoneIndividual BasinDSCT3SS | B192: SileStone | C192: Individual Basin | D192: DSCT | E192: 3 | F192: SS | G192: 3548.8675 | H192: 3683.064 | I192: 3765.6432 | J192: 4265.2474 | K192: 5664.9648
A193: SileStoneIndividual BasinDSCT3VC | B193: SileStone | C193: Individual Basin | D193: DSCT | E193: 3 | F193: VC | G193: 3548.5507 | H193: 3683.064 | I193: 3765.6432 | J193: 4265.2474 | K193: 5664.9648
A194: SileStoneIndividual BasinDSCT4SS | B194: SileStone | C194: Individual Basin | D194: DSCT | E194: 4 | F194: SS | G194: 4215.1296 | H194: 4349.3155 | I194: 4431.8947 | J194: 4931.4989 | K194: 6331.2163
A195: SileStoneIndividual BasinDSCT4VC | B195: SileStone | C195: Individual Basin | D195: DSCT | E195: 4 | F195: VC | G195: 4215.1296 | H195: 4349.3155 | I195: 4431.863 | J195: 4931.4989 | K195: 6331.2163
A196: SileStoneIndividual BasinDSCT5SS | B196: SileStone | C196: Individual Basin | D196: DSCT | E196: 5 | F196: SS | G196: 6424.1654 | H196: 6692.5478 | I196: 6857.7062 | J196: 7856.9146 | K196: 10656.3494
A197: SileStoneIndividual BasinDSCT5VC | B197: SileStone | C197: Individual Basin | D197: DSCT | E197: 5 | F197: VC | G197: 6424.1654 | H197: 6692.5478 | I197: 6857.7062 | J197: 7856.9146 | K197: 10656.3494
A198: SileStoneIndividual BasinDSCT6+SS | B198: SileStone | C198: Individual Basin | D198: DSCT | E198: 6+ | F198: SS | G198: 7119.6998 | H198: 7388.0822 | I198: 7553.2406 | J198: 8552.449 | K198: 11351.8838
A199: SileStoneIndividual BasinDSCT6+VC | B199: SileStone | C199: Individual Basin | D199: DSCT | E199: 6+ | F199: VC | G199: 7119.6998 | H199: 7388.0822 | I199: 7553.2406 | J199: 8552.449 | K199: 11351.8838
A200: SileStoneIndividual BasinDSG1 | B200: SileStone | C200: Individual Basin | D200: DSG | E200: 1 | G200: 2145.7498 | H200: 2212.848 | I200: 2444.2176 | J200: 2503.9344 | K200: 3202.848
... 41 more rows

Sheet Sku List (hidden)
A1: LOOK UP | B1: Material | C1: Trough or Basin | D1: Prefix | E1: # Stations | F1: Bowl Type | G1: A | H1: B | I1: C | J1: D | K1: E | L1: F | M1: G | N1: H | O1: I | P1: J
A2: =CONCATENATE(B2,C2,D2,E2,F2) -> CorianContinuous TroughAD1 | B2: Corian | C2: Continuous Trough | D2: AD | E2: 1 | G2: 3862000 | H2: 3862001 | I2: 3862002 | J2: 3862003 | K2: ERR | L2: ERR | M2: ERR | N2: ERR | O2: ERR | P2: ERR
A3: CorianContinuous TroughAD2 | B3: Corian | C3: Continuous Trough | D3: AD | E3: 2 | G3: 3862004 | H3: 3862005 | I3: 3862006 | J3: 3862007 | K3: ERR | L3: ERR | M3: ERR | N3: ERR | O3: ERR | P3: ERR
A4: CorianContinuous TroughAD3 | B4: Corian | C4: Continuous Trough | D4: AD | E4: 3 | G4: 3862008 | H4: 3862009 | I4: 3862010 | J4: 3862011 | K4: ERR | L4: ERR | M4: ERR | N4: ERR | O4: ERR | P4: ERR
A5: CorianContinuous TroughAD4 | B5: Corian | C5: Continuous Trough | D5: AD | E5: 4 | G5: 3862012 | H5: 3862013 | I5: 3862014 | J5: 3862015 | K5: ERR | L5: ERR | M5: ERR | N5: ERR | O5: ERR | P5: ERR
A6: CorianContinuous TroughAD5 | B6: Corian | C6: Continuous Trough | D6: AD | E6: 5 | G6: 3862016 | H6: 3862017 | I6: 3862018 | J6: 3862019 | K6: ERR | L6: ERR | M6: ERR | N6: ERR | O6: ERR | P6: ERR
A7: CorianContinuous TroughAD6+ | B7: Corian | C7: Continuous Trough | D7: AD | E7: 6+ | G7: 3862020 | H7: 3862021 | I7: 3862022 | J7: 3862023 | K7: ERR | L7: ERR | M7: ERR | N7: ERR | O7: ERR | P7: ERR
A8: CorianContinuous TroughDSG1 | B8: Corian | C8: Continuous Trough | D8: DSG | E8: 1 | G8: 3862024 | H8: 3862025 | I8: 3862026 | J8: 3862027 | K8: ERR | L8: ERR | M8: ERR | N8: ERR | O8: ERR | P8: ERR
A9: CorianContinuous TroughDSG2 | B9: Corian | C9: Continuous Trough | D9: DSG | E9: 2 | G9: 3862028 | H9: 3862029 | I9: 3862030 | J9: 3862031 | K9: ERR | L9: ERR | M9: ERR | N9: ERR | O9: ERR | P9: ERR
A10: CorianContinuous TroughDSG3 | B10: Corian | C10: Continuous Trough | D10: DSG | E10: 3 | G10: 3862032 | H10: 3862033 | I10: 3862034 | J10: 3862035 | K10: ERR | L10: ERR | M10: ERR | N10: ERR | O10: ERR | P10: ERR
A11: CorianContinuous TroughDSG4 | B11: Corian | C11: Continuous Trough | D11: DSG | E11: 4 | G11: 3862036 | H11: 3862037 | I11: 3862038 | J11: 3862039 | K11: ERR | L11: ERR | M11: ERR | N11: ERR | O11: ERR | P11: ERR
A12: CorianContinuous TroughDSG5 | B12: Corian | C12: Continuous Trough | D12: DSG | E12: 5 | G12: 3862040 | H12: 3862041 | I12: 3862042 | J12: 3862043 | K12: ERR | L12: ERR | M12: ERR | N12: ERR | O12: ERR | P12: ERR
A13: CorianContinuous TroughDSG6+ | B13: Corian | C13: Continuous Trough | D13: DSG | E13: 6+ | G13: 3862044 | H13: 3862045 | I13: 3862046 | J13: 3862047 | K13: ERR | L13: ERR | M13: ERR | N13: ERR | O13: ERR | P13: ERR
A14: CorianContinuous TroughDSWD1 | B14: Corian | C14: Continuous Trough | D14: DSWD | E14: 1 | G14: 3862048 | H14: 3862049 | I14: 3862050 | J14: 3862051 | K14: ERR | L14: ERR | M14: ERR | N14: ERR | O14: ERR | P14: ERR
A15: CorianContinuous TroughDSWD2 | B15: Corian | C15: Continuous Trough | D15: DSWD | E15: 2 | G15: 3862052 | H15: 3862053 | I15: 3862054 | J15: 3862055 | K15: ERR | L15: ERR | M15: ERR | N15: ERR | O15: ERR | P15: ERR
A16: CorianContinuous TroughDSWD3 | B16: Corian | C16: Continuous Trough | D16: DSWD | E16: 3 | G16: 3862056 | H16: 3862057 | I16: 3862058 | J16: 3862059 | K16: ERR | L16: ERR | M16: ERR | N16: ERR | O16: ERR | P16: ERR
A17: CorianContinuous TroughDSWD4 | B17: Corian | C17: Continuous Trough | D17: DSWD | E17: 4 | G17: 3862060 | H17: 3862061 | I17: 3862062 | J17: 3862063 | K17: ERR | L17: ERR | M17: ERR | N17: ERR | O17: ERR | P17: ERR
A18: CorianContinuous TroughDSWD5 | B18: Corian | C18: Continuous Trough | D18: DSWD | E18: 5 | G18: 3862064 | H18: 3862065 | I18: 3862066 | J18: 3862067 | K18: ERR | L18: ERR | M18: ERR | N18: ERR | O18: ERR | P18: ERR
A19: CorianContinuous TroughDSWD6+ | B19: Corian | C19: Continuous Trough | D19: DSWD | E19: 6+ | G19: 3862068 | H19: 3862069 | I19: 3862070 | J19: 3862071 | K19: ERR | L19: ERR | M19: ERR | N19: ERR | O19: ERR | P19: ERR
A20: Corian_QuartzContinuous TroughAD1 | B20: Corian_Quartz | C20: Continuous Trough | D20: AD | E20: 1 | G20: 3862200 | H20: 3862230 | I20: 3862260 | J20: 3862290 | K20: 3862320 | L20: ERR | M20: ERR | N20: ERR | O20: ERR | P20: ERR
A21: Corian_QuartzContinuous TroughAD2 | B21: Corian_Quartz | C21: Continuous Trough | D21: AD | E21: 2 | G21: 3862201 | H21: 3862231 | I21: 3862261 | J21: 3862291 | K21: 3862321 | L21: ERR | M21: ERR | N21: ERR | O21: ERR | P21: ERR
A22: Corian_QuartzContinuous TroughAD3 | B22: Corian_Quartz | C22: Continuous Trough | D22: AD | E22: 3 | G22: 3862202 | H22: 3862232 | I22: 3862262 | J22: 3862292 | K22: 3862322 | L22: ERR | M22: ERR | N22: ERR | O22: ERR | P22: ERR
A23: Corian_QuartzContinuous TroughAD4 | B23: Corian_Quartz | C23: Continuous Trough | D23: AD | E23: 4 | G23: 3862203 | H23: 3862233 | I23: 3862263 | J23: 3862293 | K23: 3862323 | L23: ERR | M23: ERR | N23: ERR | O23: ERR | P23: ERR
A24: Corian_QuartzContinuous TroughAD5 | B24: Corian_Quartz | C24: Continuous Trough | D24: AD | E24: 5 | G24: 3862204 | H24: 3862234 | I24: 3862264 | J24: 3862294 | K24: 3862324 | L24: ERR | M24: ERR | N24: ERR | O24: ERR | P24: ERR
A25: Corian_QuartzContinuous TroughAD6+ | B25: Corian_Quartz | C25: Continuous Trough | D25: AD | E25: 6+ | G25: 3862205 | H25: 3862235 | I25: 3862265 | J25: 3862295 | K25: 3862325 | L25: ERR | M25: ERR | N25: ERR | O25: ERR | P25: ERR
A26: Corian_QuartzContinuous TroughDSG1 | B26: Corian_Quartz | C26: Continuous Trough | D26: DSG | E26: 1 | G26: 3862206 | H26: 3862236 | I26: 3862266 | J26: 3862296 | K26: 3862326 | L26: ERR | M26: ERR | N26: ERR | O26: ERR | P26: ERR
A27: Corian_QuartzContinuous TroughDSG2 | B27: Corian_Quartz | C27: Continuous Trough | D27: DSG | E27: 2 | G27: 3862207 | H27: 3862237 | I27: 3862267 | J27: 3862297 | K27: 3862327 | L27: ERR | M27: ERR | N27: ERR | O27: ERR | P27: ERR
A28: Corian_QuartzContinuous TroughDSG3 | B28: Corian_Quartz | C28: Continuous Trough | D28: DSG | E28: 3 | G28: 3862208 | H28: 3862238 | I28: 3862268 | J28: 3862298 | K28: 3862328 | L28: ERR | M28: ERR | N28: ERR | O28: ERR | P28: ERR
A29: Corian_QuartzContinuous TroughDSG4 | B29: Corian_Quartz | C29: Continuous Trough | D29: DSG | E29: 4 | G29: 3862209 | H29: 3862239 | I29: 3862269 | J29: 3862299 | K29: 3862329 | L29: ERR | M29: ERR | N29: ERR | O29: ERR | P29: ERR
A30: Corian_QuartzContinuous TroughDSG5 | B30: Corian_Quartz | C30: Continuous Trough | D30: DSG | E30: 5 | G30: 3862210 | H30: 3862240 | I30: 3862270 | J30: 3862300 | K30: 3862330 | L30: ERR | M30: ERR | N30: ERR | O30: ERR | P30: ERR
A31: Corian_QuartzContinuous TroughDSG6+ | B31: Corian_Quartz | C31: Continuous Trough | D31: DSG | E31: 6+ | G31: 3862211 | H31: 3862241 | I31: 3862271 | J31: 3862301 | K31: 3862331 | L31: ERR | M31: ERR | N31: ERR | O31: ERR | P31: ERR
A32: Corian_QuartzContinuous TroughDSWD1 | B32: Corian_Quartz | C32: Continuous Trough | D32: DSWD | E32: 1 | G32: 3862212 | H32: 3862242 | I32: 3862272 | J32: 3862302 | K32: 3862332 | L32: ERR | M32: ERR | N32: ERR | O32: ERR | P32: ERR
A33: Corian_QuartzContinuous TroughDSWD2 | B33: Corian_Quartz | C33: Continuous Trough | D33: DSWD | E33: 2 | G33: 3862213 | H33: 3862243 | I33: 3862273 | J33: 3862303 | K33: 3862333 | L33: ERR | M33: ERR | N33: ERR | O33: ERR | P33: ERR
A34: =CONCATENATE(B34,C34,D34,E34,F34) -> Corian_QuartzContinuous TroughDSWD3 | B34: Corian_Quartz | C34: Continuous Trough | D34: DSWD | E34: 3 | G34: 3862214 | H34: 3862244 | I34: 3862274 | J34: 3862304 | K34: 3862334 | L34: ERR | M34: ERR | N34: ERR | O34: ERR | P34: ERR
A35: Corian_QuartzContinuous TroughDSWD4 | B35: Corian_Quartz | C35: Continuous Trough | D35: DSWD | E35: 4 | G35: 3862215 | H35: 3862245 | I35: 3862275 | J35: 3862305 | K35: 3862335 | L35: ERR | M35: ERR | N35: ERR | O35: ERR | P35: ERR
A36: Corian_QuartzContinuous TroughDSWD5 | B36: Corian_Quartz | C36: Continuous Trough | D36: DSWD | E36: 5 | G36: 3862216 | H36: 3862246 | I36: 3862276 | J36: 3862306 | K36: 3862336 | L36: ERR | M36: ERR | N36: ERR | O36: ERR | P36: ERR
A37: Corian_QuartzContinuous TroughDSWD6+ | B37: Corian_Quartz | C37: Continuous Trough | D37: DSWD | E37: 6+ | G37: 3862217 | H37: 3862247 | I37: 3862277 | J37: 3862307 | K37: 3862337 | L37: ERR | M37: ERR | N37: ERR | O37: ERR | P37: ERR
A38: SileStoneContinuous TroughAD1 | B38: SileStone | C38: Continuous Trough | D38: AD | E38: 1 | G38: 3862200 | H38: 3862230 | I38: 3862260 | J38: 3862290 | K38: 3862320 | L38: ERR | M38: ERR | N38: ERR | O38: ERR | P38: ERR
A39: SileStoneContinuous TroughAD2 | B39: SileStone | C39: Continuous Trough | D39: AD | E39: 2 | G39: 3862201 | H39: 3862231 | I39: 3862261 | J39: 3862291 | K39: 3862321 | L39: ERR | M39: ERR | N39: ERR | O39: ERR | P39: ERR
A40: SileStoneContinuous TroughAD3 | B40: SileStone | C40: Continuous Trough | D40: AD | E40: 3 | G40: 3862202 | H40: 3862232 | I40: 3862262 | J40: 3862292 | K40: 3862322 | L40: ERR | M40: ERR | N40: ERR | O40: ERR | P40: ERR
A41: SileStoneContinuous TroughAD4 | B41: SileStone | C41: Continuous Trough | D41: AD | E41: 4 | G41: 3862203 | H41: 3862233 | I41: 3862263 | J41: 3862293 | K41: 3862323 | L41: ERR | M41: ERR | N41: ERR | O41: ERR | P41: ERR
A42: SileStoneContinuous TroughAD5 | B42: SileStone | C42: Continuous Trough | D42: AD | E42: 5 | G42: 3862204 | H42: 3862234 | I42: 3862264 | J42: 3862294 | K42: 3862324 | L42: ERR | M42: ERR | N42: ERR | O42: ERR | P42: ERR
A43: SileStoneContinuous TroughAD6+ | B43: SileStone | C43: Continuous Trough | D43: AD | E43: 6+ | G43: 3862205 | H43: 3862235 | I43: 3862265 | J43: 3862295 | K43: 3862325 | L43: ERR | M43: ERR | N43: ERR | O43: ERR | P43: ERR
A44: SileStoneContinuous TroughDSG1 | B44: SileStone | C44: Continuous Trough | D44: DSG | E44: 1 | G44: 3862206 | H44: 3862236 | I44: 3862266 | J44: 3862296 | K44: 3862326 | L44: ERR | M44: ERR | N44: ERR | O44: ERR | P44: ERR
A45: SileStoneContinuous TroughDSG2 | B45: SileStone | C45: Continuous Trough | D45: DSG | E45: 2 | G45: 3862207 | H45: 3862237 | I45: 3862267 | J45: 3862297 | K45: 3862327 | L45: ERR | M45: ERR | N45: ERR | O45: ERR | P45: ERR
A46: SileStoneContinuous TroughDSG3 | B46: SileStone | C46: Continuous Trough | D46: DSG | E46: 3 | G46: 3862208 | H46: 3862238 | I46: 3862268 | J46: 3862298 | K46: 3862328 | L46: ERR | M46: ERR | N46: ERR | O46: ERR | P46: ERR
A47: SileStoneContinuous TroughDSG4 | B47: SileStone | C47: Continuous Trough | D47: DSG | E47: 4 | G47: 3862209 | H47: 3862239 | I47: 3862269 | J47: 3862299 | K47: 3862329 | L47: ERR | M47: ERR | N47: ERR | O47: ERR | P47: ERR
A48: SileStoneContinuous TroughDSG5 | B48: SileStone | C48: Continuous Trough | D48: DSG | E48: 5 | G48: 3862210 | H48: 3862240 | I48: 3862270 | J48: 3862300 | K48: 3862330 | L48: ERR | M48: ERR | N48: ERR | O48: ERR | P48: ERR
A49: SileStoneContinuous TroughDSG6+ | B49: SileStone | C49: Continuous Trough | D49: DSG | E49: 6+ | G49: 3862211 | H49: 3862241 | I49: 3862271 | J49: 3862301 | K49: 3862331 | L49: ERR | M49: ERR | N49: ERR | O49: ERR | P49: ERR
A50: SileStoneContinuous TroughDSWD1 | B50: SileStone | C50: Continuous Trough | D50: DSWD | E50: 1 | G50: 3862212 | H50: 3862242 | I50: 3862272 | J50: 3862302 | K50: 3862332 | L50: ERR | M50: ERR | N50: ERR | O50: ERR | P50: ERR
A51: SileStoneContinuous TroughDSWD2 | B51: SileStone | C51: Continuous Trough | D51: DSWD | E51: 2 | G51: 3862213 | H51: 3862243 | I51: 3862273 | J51: 3862303 | K51: 3862333 | L51: ERR | M51: ERR | N51: ERR | O51: ERR | P51: ERR
A52: SileStoneContinuous TroughDSWD3 | B52: SileStone | C52: Continuous Trough | D52: DSWD | E52: 3 | G52: 3862214 | H52: 3862244 | I52: 3862274 | J52: 3862304 | K52: 3862334 | L52: ERR | M52: ERR | N52: ERR | O52: ERR | P52: ERR
A53: SileStoneContinuous TroughDSWD4 | B53: SileStone | C53: Continuous Trough | D53: DSWD | E53: 4 | G53: 3862215 | H53: 3862245 | I53: 3862275 | J53: 3862305 | K53: 3862335 | L53: ERR | M53: ERR | N53: ERR | O53: ERR | P53: ERR
A54: SileStoneContinuous TroughDSWD5 | B54: SileStone | C54: Continuous Trough | D54: DSWD | E54: 5 | G54: 3862216 | H54: 3862246 | I54: 3862276 | J54: 3862306 | K54: 3862336 | L54: ERR | M54: ERR | N54: ERR | O54: ERR | P54: ERR
A55: SileStoneContinuous TroughDSWD6+ | B55: SileStone | C55: Continuous Trough | D55: DSWD | E55: 6+ | G55: 3862217 | H55: 3862247 | I55: 3862277 | J55: 3862307 | K55: 3862337 | L55: ERR | M55: ERR | N55: ERR | O55: ERR | P55: ERR
A56: CorianIndividual BasinAD1 | B56: Corian | C56: Individual Basin | D56: AD | E56: 1 | G56: 3862000 | H56: 3862001 | I56: 3862002 | J56: 3862003 | K56: ERR | L56: ERR | M56: ERR | N56: ERR | O56: ERR | P56: ERR | R56: Corian | S56: Indi | T56: AD | U56: DSCT | V56: DSG | W56: DSVR | X56: DSOF | Y56: DSWD
A57: CorianIndividual BasinAD2 | B57: Corian | C57: Individual Basin | D57: AD | E57: 2 | G57: 3862004 | H57: 3862005 | I57: 3862006 | J57: 3862007 | K57: ERR | L57: ERR | M57: ERR | N57: ERR | O57: ERR | P57: ERR
A58: CorianIndividual BasinAD3 | B58: Corian | C58: Individual Basin | D58: AD | E58: 3 | G58: 3862008 | H58: 3862009 | I58: 3862010 | J58: 3862011 | K58: ERR | L58: ERR | M58: ERR | N58: ERR | O58: ERR | P58: ERR
A59: CorianIndividual BasinAD4 | B59: Corian | C59: Individual Basin | D59: AD | E59: 4 | G59: 3862012 | H59: 3862013 | I59: 3862014 | J59: 3862015 | K59: ERR | L59: ERR | M59: ERR | N59: ERR | O59: ERR | P59: ERR
A60: CorianIndividual BasinAD5 | B60: Corian | C60: Individual Basin | D60: AD | E60: 5 | G60: 3862016 | H60: 3862017 | I60: 3862018 | J60: 3862019 | K60: ERR | L60: ERR | M60: ERR | N60: ERR | O60: ERR | P60: ERR
A61: CorianIndividual BasinAD6+ | B61: Corian | C61: Individual Basin | D61: AD | E61: 6+ | G61: 3862020 | H61: 3862021 | I61: 3862022 | J61: 3862023 | K61: ERR | L61: ERR | M61: ERR | N61: ERR | O61: ERR | P61: ERR
A62: CorianIndividual BasinDSCT1VC | B62: Corian | C62: Individual Basin | D62: DSCT | E62: 1 | F62: VC | G62: 3862096 | H62: 3862097 | I62: 3862098 | J62: 3862099 | K62: ERR | L62: ERR | M62: ERR | N62: ERR | O62: ERR | P62: ERR
A63: CorianIndividual BasinDSCT1SS | B63: Corian | C63: Individual Basin | D63: DSCT | E63: 1 | F63: SS | G63: 3862120 | H63: 3862121 | I63: 3862122 | J63: 3862123 | K63: ERR | L63: ERR | M63: ERR | N63: ERR | O63: ERR | P63: ERR
A64: CorianIndividual BasinDSCT2VC | B64: Corian | C64: Individual Basin | D64: DSCT | E64: 2 | F64: VC | G64: 3862100 | H64: 3862101 | I64: 3862102 | J64: 3862103 | K64: ERR | L64: ERR | M64: ERR | N64: ERR | O64: ERR | P64: ERR
A65: CorianIndividual BasinDSCT2SS | B65: Corian | C65: Individual Basin | D65: DSCT | E65: 2 | F65: SS | G65: 3862124 | H65: 3862125 | I65: 3862126 | J65: 3862127 | K65: ERR | L65: ERR | M65: ERR | N65: ERR | O65: ERR | P65: ERR
A66: =CONCATENATE(B66,C66,D66,E66,F66) -> CorianIndividual BasinDSCT3VC | B66: Corian | C66: Individual Basin | D66: DSCT | E66: 3 | F66: VC | G66: 3862104 | H66: 3862105 | I66: 3862106 | J66: 3862107 | K66: ERR | L66: ERR | M66: ERR | N66: ERR | O66: ERR | P66: ERR
A67: CorianIndividual BasinDSCT3SS | B67: Corian | C67: Individual Basin | D67: DSCT | E67: 3 | F67: SS | G67: 3862128 | H67: 3862129 | I67: 3862130 | J67: 3862131 | K67: ERR | L67: ERR | M67: ERR | N67: ERR | O67: ERR | P67: ERR
A68: CorianIndividual BasinDSCT4VC | B68: Corian | C68: Individual Basin | D68: DSCT | E68: 4 | F68: VC | G68: 3862108 | H68: 3862109 | I68: 3862110 | J68: 3862111 | K68: ERR | L68: ERR | M68: ERR | N68: ERR | O68: ERR | P68: ERR
A69: CorianIndividual BasinDSCT4SS | B69: Corian | C69: Individual Basin | D69: DSCT | E69: 4 | F69: SS | G69: 3862132 | H69: 3862133 | I69: 3862134 | J69: 3862135 | K69: ERR | L69: ERR | M69: ERR | N69: ERR | O69: ERR | P69: ERR
A70: CorianIndividual BasinDSCT5VC | B70: Corian | C70: Individual Basin | D70: DSCT | E70: 5 | F70: VC | G70: 3862112 | H70: 3862113 | I70: 3862114 | J70: 3862115 | K70: ERR | L70: ERR | M70: ERR | N70: ERR | O70: ERR | P70: ERR
A71: CorianIndividual BasinDSCT5SS | B71: Corian | C71: Individual Basin | D71: DSCT | E71: 5 | F71: SS | G71: 3862136 | H71: 3862137 | I71: 3862138 | J71: 3862139 | K71: ERR | L71: ERR | M71: ERR | N71: ERR | O71: ERR | P71: ERR
A72: CorianIndividual BasinDSCT6+VC | B72: Corian | C72: Individual Basin | D72: DSCT | E72: 6+ | F72: VC | G72: 3862116 | H72: 3862117 | I72: 3862118 | J72: 3862119 | K72: ERR | L72: ERR | M72: ERR | N72: ERR | O72: ERR | P72: ERR
A73: CorianIndividual BasinDSCT6+SS | B73: Corian | C73: Individual Basin | D73: DSCT | E73: 6+ | F73: SS | G73: 3862140 | H73: 3862141 | I73: 3862142 | J73: 3862143 | K73: ERR | L73: ERR | M73: ERR | N73: ERR | O73: ERR | P73: ERR
A74: CorianIndividual BasinDSG1 | B74: Corian | C74: Individual Basin | D74: DSG | E74: 1 | G74: 3862024 | H74: 3862025 | I74: 3862026 | J74: 3862027 | K74: ERR | L74: ERR | M74: ERR | N74: ERR | O74: ERR | P74: ERR
A75: CorianIndividual BasinDSG2 | B75: Corian | C75: Individual Basin | D75: DSG | E75: 2 | G75: 3862028 | H75: 3862029 | I75: 3862030 | J75: 3862031 | K75: ERR | L75: ERR | M75: ERR | N75: ERR | O75: ERR | P75: ERR
A76: CorianIndividual BasinDSG3 | B76: Corian | C76: Individual Basin | D76: DSG | E76: 3 | G76: 3862032 | H76: 3862033 | I76: 3862034 | J76: 3862035 | K76: ERR | L76: ERR | M76: ERR | N76: ERR | O76: ERR | P76: ERR
A77: CorianIndividual BasinDSG4 | B77: Corian | C77: Individual Basin | D77: DSG | E77: 4 | G77: 3862036 | H77: 3862037 | I77: 3862038 | J77: 3862039 | K77: ERR | L77: ERR | M77: ERR | N77: ERR | O77: ERR | P77: ERR
A78: CorianIndividual BasinDSG5 | B78: Corian | C78: Individual Basin | D78: DSG | E78: 5 | G78: 3862040 | H78: 3862041 | I78: 3862042 | J78: 3862043 | K78: ERR | L78: ERR | M78: ERR | N78: ERR | O78: ERR | P78: ERR
A79: CorianIndividual BasinDSG6+ | B79: Corian | C79: Individual Basin | D79: DSG | E79: 6+ | G79: 3862044 | H79: 3862045 | I79: 3862046 | J79: 3862047 | K79: ERR | L79: ERR | M79: ERR | N79: ERR | O79: ERR | P79: ERR
A80: CorianIndividual BasinDSOF1 | B80: Corian | C80: Individual Basin | D80: DSOF | E80: 1 | G80: 3862072 | H80: 3862073 | I80: 3862074 | J80: 3862075 | K80: ERR | L80: ERR | M80: ERR | N80: ERR | O80: ERR | P80: ERR
A81: CorianIndividual BasinDSOF2 | B81: Corian | C81: Individual Basin | D81: DSOF | E81: 2 | G81: 3862076 | H81: 3862077 | I81: 3862078 | J81: 3862079 | K81: ERR | L81: ERR | M81: ERR | N81: ERR | O81: ERR | P81: ERR
A82: CorianIndividual BasinDSOF3 | B82: Corian | C82: Individual Basin | D82: DSOF | E82: 3 | G82: 3862080 | H82: 3862081 | I82: 3862082 | J82: 3862083 | K82: ERR | L82: ERR | M82: ERR | N82: ERR | O82: ERR | P82: ERR
A83: CorianIndividual BasinDSOF4 | B83: Corian | C83: Individual Basin | D83: DSOF | E83: 4 | G83: 3862084 | H83: 3862085 | I83: 3862086 | J83: 3862087 | K83: ERR | L83: ERR | M83: ERR | N83: ERR | O83: ERR | P83: ERR
A84: CorianIndividual BasinDSOF5 | B84: Corian | C84: Individual Basin | D84: DSOF | E84: 5 | G84: 3862088 | H84: 3862089 | I84: 3862090 | J84: 3862091 | K84: ERR | L84: ERR | M84: ERR | N84: ERR | O84: ERR | P84: ERR
A85: CorianIndividual BasinDSOF6+ | B85: Corian | C85: Individual Basin | D85: DSOF | E85: 6+ | G85: 3862092 | H85: 3862093 | I85: 3862094 | J85: 3862095 | K85: ERR | L85: ERR | M85: ERR | N85: ERR | O85: ERR | P85: ERR
A86: CorianIndividual BasinDSUP1 | B86: Corian | C86: Individual Basin | D86: DSUP | E86: 1 | G86: ERR | H86: ERR | I86: ERR | J86: ERR | K86: ERR | L86: ERR | M86: ERR | N86: ERR | O86: ERR | P86: ERR
A87: CorianIndividual BasinDSVR1 | B87: Corian | C87: Individual Basin | D87: DSVR | E87: 1 | G87: 3862144 | H87: 3862145 | I87: 3862146 | J87: 3862147 | K87: ERR | L87: ERR | M87: ERR | N87: ERR | O87: ERR | P87: ERR
A88: CorianIndividual BasinDSVR2 | B88: Corian | C88: Individual Basin | D88: DSVR | E88: 2 | G88: 3862148 | H88: 3862149 | I88: 3862150 | J88: 3862151 | K88: ERR | L88: ERR | M88: ERR | N88: ERR | O88: ERR | P88: ERR
A89: CorianIndividual BasinDSVR3 | B89: Corian | C89: Individual Basin | D89: DSVR | E89: 3 | G89: 3862152 | H89: 3862153 | I89: 3862154 | J89: 3862155 | K89: ERR | L89: ERR | M89: ERR | N89: ERR | O89: ERR | P89: ERR
A90: CorianIndividual BasinDSVR4 | B90: Corian | C90: Individual Basin | D90: DSVR | E90: 4 | G90: 3862156 | H90: 3862157 | I90: 3862158 | J90: 3862159 | K90: ERR | L90: ERR | M90: ERR | N90: ERR | O90: ERR | P90: ERR
A91: CorianIndividual BasinDSVR5 | B91: Corian | C91: Individual Basin | D91: DSVR | E91: 5 | G91: 3862160 | H91: 3862161 | I91: 3862162 | J91: 3862163 | K91: ERR | L91: ERR | M91: ERR | N91: ERR | O91: ERR | P91: ERR
A92: CorianIndividual BasinDSVR6+ | B92: Corian | C92: Individual Basin | D92: DSVR | E92: 6+ | G92: 3862164 | H92: 3862165 | I92: 3862166 | J92: 3862167 | K92: ERR | L92: ERR | M92: ERR | N92: ERR | O92: ERR | P92: ERR
A93: CorianIndividual BasinDSWD1 | B93: Corian | C93: Individual Basin | D93: DSWD | E93: 1 | G93: 3862048 | H93: 3862049 | I93: 3862050 | J93: 3862051 | K93: ERR | L93: ERR | M93: ERR | N93: ERR | O93: ERR | P93: ERR
A94: CorianIndividual BasinDSWD2 | B94: Corian | C94: Individual Basin | D94: DSWD | E94: 2 | G94: 3862052 | H94: 3862053 | I94: 3862054 | J94: 3862055 | K94: ERR | L94: ERR | M94: ERR | N94: ERR | O94: ERR | P94: ERR
A95: CorianIndividual BasinDSWD3 | B95: Corian | C95: Individual Basin | D95: DSWD | E95: 3 | G95: 3862056 | H95: 3862057 | I95: 3862058 | J95: 3862059 | K95: ERR | L95: ERR | M95: ERR | N95: ERR | O95: ERR | P95: ERR
A96: CorianIndividual BasinDSWD4 | B96: Corian | C96: Individual Basin | D96: DSWD | E96: 4 | G96: 3862060 | H96: 3862061 | I96: 3862062 | J96: 3862063 | K96: ERR | L96: ERR | M96: ERR | N96: ERR | O96: ERR | P96: ERR
A97: CorianIndividual BasinDSWD5 | B97: Corian | C97: Individual Basin | D97: DSWD | E97: 5 | G97: 3862064 | H97: 3862065 | I97: 3862066 | J97: 3862067 | K97: ERR | L97: ERR | M97: ERR | N97: ERR | O97: ERR | P97: ERR
A98: =CONCATENATE(B98,C98,D98,E98,F98) -> CorianIndividual BasinDSWD6+ | B98: Corian | C98: Individual Basin | D98: DSWD | E98: 6+ | G98: 3862068 | H98: 3862069 | I98: 3862070 | J98: 3862071 | K98: ERR | L98: ERR | M98: ERR | N98: ERR | O98: ERR | P98: ERR
A99: Corian_QuartzIndividual BasinAD1 | B99: Corian_Quartz | C99: Individual Basin | D99: AD | E99: 1 | G99: 3862200 | H99: 3862230 | I99: 3862260 | J99: 3862290 | K99: 3862320 | L99: ERR | M99: ERR | N99: ERR | O99: ERR | P99: ERR
A100: Corian_QuartzIndividual BasinAD2 | B100: Corian_Quartz | C100: Individual Basin | D100: AD | E100: 2 | G100: 3862201 | H100: 3862231 | I100: 3862261 | J100: 3862291 | K100: 3862321 | L100: ERR | M100: ERR | N100: ERR | O100: ERR | P100: ERR
A101: Corian_QuartzIndividual BasinAD3 | B101: Corian_Quartz | C101: Individual Basin | D101: AD | E101: 3 | G101: 3862202 | H101: 3862232 | I101: 3862262 | J101: 3862292 | K101: 3862322 | L101: ERR | M101: ERR | N101: ERR | O101: ERR | P101: ERR
A102: Corian_QuartzIndividual BasinAD4 | B102: Corian_Quartz | C102: Individual Basin | D102: AD | E102: 4 | G102: 3862203 | H102: 3862233 | I102: 3862263 | J102: 3862293 | K102: 3862323 | L102: ERR | M102: ERR | N102: ERR | O102: ERR | P102: ERR
A103: Corian_QuartzIndividual BasinAD5 | B103: Corian_Quartz | C103: Individual Basin | D103: AD | E103: 5 | G103: 3862204 | H103: 3862234 | I103: 3862264 | J103: 3862294 | K103: 3862324 | L103: ERR | M103: ERR | N103: ERR | O103: ERR | P103: ERR
A104: Corian_QuartzIndividual BasinAD6+ | B104: Corian_Quartz | C104: Individual Basin | D104: AD | E104: 6+ | G104: 3862205 | H104: 3862235 | I104: 3862265 | J104: 3862295 | K104: 3862325 | L104: ERR | M104: ERR | N104: ERR | O104: ERR | P104: ERR
A105: Corian_QuartzIndividual BasinDSCT1VC | B105: Corian_Quartz | C105: Individual Basin | D105: DSCT | E105: 1 | F105: VC | G105: 3862350 | H105: 3862356 | I105: 3862356 | J105: 3862368 | K105: 3862374 | L105: ERR | M105: ERR | N105: ERR | O105: ERR | P105: ERR
A106: Corian_QuartzIndividual BasinDSCT1SS | B106: Corian_Quartz | C106: Individual Basin | D106: DSCT | E106: 1 | F106: SS | G106: 3862224 | H106: 3862254 | I106: 3862284 | J106: 3862314 | K106: 3862344 | L106: ERR | M106: ERR | N106: ERR | O106: ERR | P106: ERR
A107: Corian_QuartzIndividual BasinDSCT2VC | B107: Corian_Quartz | C107: Individual Basin | D107: DSCT | E107: 2 | F107: VC | G107: 3862351 | H107: 3862357 | I107: 3862357 | J107: 3862369 | K107: 3862375 | L107: ERR | M107: ERR | N107: ERR | O107: ERR | P107: ERR
A108: Corian_QuartzIndividual BasinDSCT2SS | B108: Corian_Quartz | C108: Individual Basin | D108: DSCT | E108: 2 | F108: SS | G108: 3862225 | H108: 3862255 | I108: 3862285 | J108: 3862315 | K108: 3862345 | L108: ERR | M108: ERR | N108: ERR | O108: ERR | P108: ERR
A109: Corian_QuartzIndividual BasinDSCT3VC | B109: Corian_Quartz | C109: Individual Basin | D109: DSCT | E109: 3 | F109: VC | G109: 3862352 | H109: 3862358 | I109: 3862358 | J109: 3862370 | K109: 3862376 | L109: ERR | M109: ERR | N109: ERR | O109: ERR | P109: ERR
A110: Corian_QuartzIndividual BasinDSCT3SS | B110: Corian_Quartz | C110: Individual Basin | D110: DSCT | E110: 3 | F110: SS | G110: 3862226 | H110: 3862256 | I110: 3862286 | J110: 3862316 | K110: 3862346 | L110: ERR | M110: ERR | N110: ERR | O110: ERR | P110: ERR
A111: Corian_QuartzIndividual BasinDSCT4VC | B111: Corian_Quartz | C111: Individual Basin | D111: DSCT | E111: 4 | F111: VC | G111: 3862353 | H111: 3862359 | I111: 3862359 | J111: 3862371 | K111: 3862377 | L111: ERR | M111: ERR | N111: ERR | O111: ERR | P111: ERR
A112: Corian_QuartzIndividual BasinDSCT4SS | B112: Corian_Quartz | C112: Individual Basin | D112: DSCT | E112: 4 | F112: SS | G112: 3862227 | H112: 3862257 | I112: 3862287 | J112: 3862317 | K112: 3862347 | L112: ERR | M112: ERR | N112: ERR | O112: ERR | P112: ERR
A113: Corian_QuartzIndividual BasinDSCT5VC | B113: Corian_Quartz | C113: Individual Basin | D113: DSCT | E113: 5 | F113: VC | G113: 3862354 | H113: 3862360 | I113: 3862360 | J113: 3862372 | K113: 3862378 | L113: ERR | M113: ERR | N113: ERR | O113: ERR | P113: ERR
A114: Corian_QuartzIndividual BasinDSCT5SS | B114: Corian_Quartz | C114: Individual Basin | D114: DSCT | E114: 5 | F114: SS | G114: 3862228 | H114: 3862258 | I114: 3862288 | J114: 3862318 | K114: 3862348 | L114: ERR | M114: ERR | N114: ERR | O114: ERR | P114: ERR
A115: Corian_QuartzIndividual BasinDSCT6+VC | B115: Corian_Quartz | C115: Individual Basin | D115: DSCT | E115: 6+ | F115: VC | G115: 3862355 | H115: 3862361 | I115: 3862361 | J115: 3862373 | K115: 3862379 | L115: ERR | M115: ERR | N115: ERR | O115: ERR | P115: ERR
A116: Corian_QuartzIndividual BasinDSCT6+SS | B116: Corian_Quartz | C116: Individual Basin | D116: DSCT | E116: 6+ | F116: SS | G116: 3862229 | H116: 3862259 | I116: 3862289 | J116: 3862319 | K116: 3862349 | L116: ERR | M116: ERR | N116: ERR | O116: ERR | P116: ERR
A117: Corian_QuartzIndividual BasinDSG1 | B117: Corian_Quartz | C117: Individual Basin | D117: DSG | E117: 1 | G117: 3862206 | H117: 3862236 | I117: 3862266 | J117: 3862296 | K117: 3862326 | L117: ERR | M117: ERR | N117: ERR | O117: ERR | P117: ERR
A118: Corian_QuartzIndividual BasinDSG2 | B118: Corian_Quartz | C118: Individual Basin | D118: DSG | E118: 2 | G118: 3862207 | H118: 3862237 | I118: 3862267 | J118: 3862297 | K118: 3862327 | L118: ERR | M118: ERR | N118: ERR | O118: ERR | P118: ERR
A119: Corian_QuartzIndividual BasinDSG3 | B119: Corian_Quartz | C119: Individual Basin | D119: DSG | E119: 3 | G119: 3862208 | H119: 3862238 | I119: 3862268 | J119: 3862298 | K119: 3862328 | L119: ERR | M119: ERR | N119: ERR | O119: ERR | P119: ERR
A120: Corian_QuartzIndividual BasinDSG4 | B120: Corian_Quartz | C120: Individual Basin | D120: DSG | E120: 4 | G120: 3862209 | H120: 3862239 | I120: 3862269 | J120: 3862299 | K120: 3862329 | L120: ERR | M120: ERR | N120: ERR | O120: ERR | P120: ERR
A121: Corian_QuartzIndividual BasinDSG5 | B121: Corian_Quartz | C121: Individual Basin | D121: DSG | E121: 5 | G121: 3862210 | H121: 3862240 | I121: 3862270 | J121: 3862300 | K121: 3862330 | L121: ERR | M121: ERR | N121: ERR | O121: ERR | P121: ERR
A122: Corian_QuartzIndividual BasinDSG6+ | B122: Corian_Quartz | C122: Individual Basin | D122: DSG | E122: 6+ | G122: 3862211 | H122: 3862241 | I122: 3862271 | J122: 3862301 | K122: 3862331 | L122: ERR | M122: ERR | N122: ERR | O122: ERR | P122: ERR
A123: Corian_QuartzIndividual BasinDSOF1 | B123: Corian_Quartz | C123: Individual Basin | D123: DSOF | E123: 1 | G123: 3862218 | H123: 3862248 | I123: 3862278 | J123: 3862308 | K123: 3862338 | L123: ERR | M123: ERR | N123: ERR | O123: ERR | P123: ERR
A124: Corian_QuartzIndividual BasinDSOF2 | B124: Corian_Quartz | C124: Individual Basin | D124: DSOF | E124: 2 | G124: 3862219 | H124: 3862249 | I124: 3862279 | J124: 3862309 | K124: 3862339 | L124: ERR | M124: ERR | N124: ERR | O124: ERR | P124: ERR
A125: Corian_QuartzIndividual BasinDSOF3 | B125: Corian_Quartz | C125: Individual Basin | D125: DSOF | E125: 3 | G125: 3862220 | H125: 3862250 | I125: 3862280 | J125: 3862310 | K125: 3862340 | L125: ERR | M125: ERR | N125: ERR | O125: ERR | P125: ERR
A126: Corian_QuartzIndividual BasinDSOF4 | B126: Corian_Quartz | C126: Individual Basin | D126: DSOF | E126: 4 | G126: 3862221 | H126: 3862251 | I126: 3862281 | J126: 3862311 | K126: 3862341 | L126: ERR | M126: ERR | N126: ERR | O126: ERR | P126: ERR
A127: Corian_QuartzIndividual BasinDSOF5 | B127: Corian_Quartz | C127: Individual Basin | D127: DSOF | E127: 5 | G127: 3862222 | H127: 3862252 | I127: 3862282 | J127: 3862312 | K127: 3862342 | L127: ERR | M127: ERR | N127: ERR | O127: ERR | P127: ERR
A128: Corian_QuartzIndividual BasinDSOF6+ | B128: Corian_Quartz | C128: Individual Basin | D128: DSOF | E128: 6+ | G128: 3862223 | H128: 3862253 | I128: 3862283 | J128: 3862313 | K128: 3862343 | L128: ERR | M128: ERR | N128: ERR | O128: ERR | P128: ERR
A129: Corian_QuartzIndividual BasinDSUP1 | B129: Corian_Quartz | C129: Individual Basin | D129: DSUP | E129: 1 | G129: ERR | H129: ERR | I129: ERR | J129: ERR | K129: ERR | L129: ERR | M129: ERR | N129: ERR | O129: ERR | P129: ERR
A130: =CONCATENATE(B130,C130,D130,E130,F130) -> Corian_QuartzIndividual BasinDSVR1 | B130: Corian_Quartz | C130: Individual Basin | D130: DSVR | E130: 1 | G130: 3862380 | H130: 3862386 | I130: 3862392 | J130: 3862398 | K130: 3862404 | L130: ERR | M130: ERR | N130: ERR | O130: ERR | P130: ERR
A131: Corian_QuartzIndividual BasinDSVR2 | B131: Corian_Quartz | C131: Individual Basin | D131: DSVR | E131: 2 | G131: 3862381 | H131: 3862387 | I131: 3862393 | J131: 3862399 | K131: 3862405 | L131: ERR | M131: ERR | N131: ERR | O131: ERR | P131: ERR
A132: Corian_QuartzIndividual BasinDSVR3 | B132: Corian_Quartz | C132: Individual Basin | D132: DSVR | E132: 3 | G132: 3862382 | H132: 3862388 | I132: 3862394 | J132: 3862400 | K132: 3862406 | L132: ERR | M132: ERR | N132: ERR | O132: ERR | P132: ERR
A133: Corian_QuartzIndividual BasinDSVR4 | B133: Corian_Quartz | C133: Individual Basin | D133: DSVR | E133: 4 | G133: 3862383 | H133: 3862389 | I133: 3862395 | J133: 3862401 | K133: 3862407 | L133: ERR | M133: ERR | N133: ERR | O133: ERR | P133: ERR
A134: Corian_QuartzIndividual BasinDSVR5 | B134: Corian_Quartz | C134: Individual Basin | D134: DSVR | E134: 5 | G134: 3862384 | H134: 3862390 | I134: 3862396 | J134: 3862402 | K134: 3862408 | L134: ERR | M134: ERR | N134: ERR | O134: ERR | P134: ERR
A135: Corian_QuartzIndividual BasinDSVR6+ | B135: Corian_Quartz | C135: Individual Basin | D135: DSVR | E135: 6+ | G135: 3862385 | H135: 3862391 | I135: 3862397 | J135: 3862403 | K135: 3862409 | L135: ERR | M135: ERR | N135: ERR | O135: ERR | P135: ERR
A136: Corian_QuartzIndividual BasinDSWD1 | B136: Corian_Quartz | C136: Individual Basin | D136: DSWD | E136: 1 | G136: 3862212 | H136: 3862242 | I136: 3862272 | J136: 3862302 | K136: 3862332 | L136: ERR | M136: ERR | N136: ERR | O136: ERR | P136: ERR
A137: Corian_QuartzIndividual BasinDSWD2 | B137: Corian_Quartz | C137: Individual Basin | D137: DSWD | E137: 2 | G137: 3862213 | H137: 3862243 | I137: 3862273 | J137: 3862303 | K137: 3862333 | L137: ERR | M137: ERR | N137: ERR | O137: ERR | P137: ERR
A138: Corian_QuartzIndividual BasinDSWD3 | B138: Corian_Quartz | C138: Individual Basin | D138: DSWD | E138: 3 | G138: 3862214 | H138: 3862244 | I138: 3862274 | J138: 3862304 | K138: 3862334 | L138: ERR | M138: ERR | N138: ERR | O138: ERR | P138: ERR
A139: Corian_QuartzIndividual BasinDSWD4 | B139: Corian_Quartz | C139: Individual Basin | D139: DSWD | E139: 4 | G139: 3862215 | H139: 3862245 | I139: 3862275 | J139: 3862305 | K139: 3862335 | L139: ERR | M139: ERR | N139: ERR | O139: ERR | P139: ERR
A140: Corian_QuartzIndividual BasinDSWD5 | B140: Corian_Quartz | C140: Individual Basin | D140: DSWD | E140: 5 | G140: 3862216 | H140: 3862246 | I140: 3862276 | J140: 3862306 | K140: 3862336 | L140: ERR | M140: ERR | N140: ERR | O140: ERR | P140: ERR
A141: Corian_QuartzIndividual BasinDSWD6+ | B141: Corian_Quartz | C141: Individual Basin | D141: DSWD | E141: 6+ | G141: 3862217 | H141: 3862247 | I141: 3862277 | J141: 3862307 | K141: 3862337 | L141: ERR | M141: ERR | N141: ERR | O141: ERR | P141: ERR
A142: SileStoneIndividual BasinAD1 | B142: SileStone | C142: Individual Basin | D142: AD | E142: 1 | G142: 3862200 | H142: 3862230 | I142: 3862260 | J142: 3862290 | K142: 3862320 | L142: ERR | M142: ERR | N142: ERR | O142: ERR | P142: ERR
A143: SileStoneIndividual BasinAD2 | B143: SileStone | C143: Individual Basin | D143: AD | E143: 2 | G143: 3862201 | H143: 3862231 | I143: 3862261 | J143: 3862291 | K143: 3862321 | L143: ERR | M143: ERR | N143: ERR | O143: ERR | P143: ERR
A144: SileStoneIndividual BasinAD3 | B144: SileStone | C144: Individual Basin | D144: AD | E144: 3 | G144: 3862202 | H144: 3862232 | I144: 3862262 | J144: 3862292 | K144: 3862322 | L144: ERR | M144: ERR | N144: ERR | O144: ERR | P144: ERR
A145: SileStoneIndividual BasinAD4 | B145: SileStone | C145: Individual Basin | D145: AD | E145: 4 | G145: 3862203 | H145: 3862233 | I145: 3862263 | J145: 3862293 | K145: 3862323 | L145: ERR | M145: ERR | N145: ERR | O145: ERR | P145: ERR
A146: SileStoneIndividual BasinAD5 | B146: SileStone | C146: Individual Basin | D146: AD | E146: 5 | G146: 3862204 | H146: 3862234 | I146: 3862264 | J146: 3862294 | K146: 3862324 | L146: ERR | M146: ERR | N146: ERR | O146: ERR | P146: ERR
A147: SileStoneIndividual BasinAD6+ | B147: SileStone | C147: Individual Basin | D147: AD | E147: 6+ | G147: 3862205 | H147: 3862235 | I147: 3862265 | J147: 3862295 | K147: 3862325 | L147: ERR | M147: ERR | N147: ERR | O147: ERR | P147: ERR
A148: SileStoneIndividual BasinDSCT1VC | B148: SileStone | C148: Individual Basin | D148: DSCT | E148: 1 | F148: VC | G148: 3862350 | H148: 3862356 | I148: 3862356 | J148: 3862368 | K148: 3862374 | L148: ERR | M148: ERR | N148: ERR | O148: ERR | P148: ERR
A149: SileStoneIndividual BasinDSCT1SS | B149: SileStone | C149: Individual Basin | D149: DSCT | E149: 1 | F149: SS | G149: 3862224 | H149: 3862254 | I149: 3862284 | J149: 3862314 | K149: 3862344 | L149: ERR | M149: ERR | N149: ERR | O149: ERR | P149: ERR
A150: SileStoneIndividual BasinDSCT2VC | B150: SileStone | C150: Individual Basin | D150: DSCT | E150: 2 | F150: VC | G150: 3862351 | H150: 3862357 | I150: 3862357 | J150: 3862369 | K150: 3862375 | L150: ERR | M150: ERR | N150: ERR | O150: ERR | P150: ERR
A151: SileStoneIndividual BasinDSCT2SS | B151: SileStone | C151: Individual Basin | D151: DSCT | E151: 2 | F151: SS | G151: 3862225 | H151: 3862255 | I151: 3862285 | J151: 3862315 | K151: 3862345 | L151: ERR | M151: ERR | N151: ERR | O151: ERR | P151: ERR
A152: SileStoneIndividual BasinDSCT3VC | B152: SileStone | C152: Individual Basin | D152: DSCT | E152: 3 | F152: VC | G152: 3862352 | H152: 3862358 | I152: 3862358 | J152: 3862370 | K152: 3862376 | L152: ERR | M152: ERR | N152: ERR | O152: ERR | P152: ERR
A153: SileStoneIndividual BasinDSCT3SS | B153: SileStone | C153: Individual Basin | D153: DSCT | E153: 3 | F153: SS | G153: 3862226 | H153: 3862256 | I153: 3862286 | J153: 3862316 | K153: 3862346 | L153: ERR | M153: ERR | N153: ERR | O153: ERR | P153: ERR
A154: SileStoneIndividual BasinDSCT4VC | B154: SileStone | C154: Individual Basin | D154: DSCT | E154: 4 | F154: VC | G154: 3862353 | H154: 3862359 | I154: 3862359 | J154: 3862371 | K154: 3862377 | L154: ERR | M154: ERR | N154: ERR | O154: ERR | P154: ERR
A155: SileStoneIndividual BasinDSCT4SS | B155: SileStone | C155: Individual Basin | D155: DSCT | E155: 4 | F155: SS | G155: 3862227 | H155: 3862257 | I155: 3862287 | J155: 3862317 | K155: 3862347 | L155: ERR | M155: ERR | N155: ERR | O155: ERR | P155: ERR
A156: SileStoneIndividual BasinDSCT5VC | B156: SileStone | C156: Individual Basin | D156: DSCT | E156: 5 | F156: VC | G156: 3862354 | H156: 3862360 | I156: 3862360 | J156: 3862372 | K156: 3862378 | L156: ERR | M156: ERR | N156: ERR | O156: ERR | P156: ERR
A157: SileStoneIndividual BasinDSCT5SS | B157: SileStone | C157: Individual Basin | D157: DSCT | E157: 5 | F157: SS | G157: 3862228 | H157: 3862258 | I157: 3862288 | J157: 3862318 | K157: 3862348 | L157: ERR | M157: ERR | N157: ERR | O157: ERR | P157: ERR
A158: SileStoneIndividual BasinDSCT6+VC | B158: SileStone | C158: Individual Basin | D158: DSCT | E158: 6+ | F158: VC | G158: 3862355 | H158: 3862361 | I158: 3862361 | J158: 3862373 | K158: 3862379 | L158: ERR | M158: ERR | N158: ERR | O158: ERR | P158: ERR
A159: SileStoneIndividual BasinDSCT6+SS | B159: SileStone | C159: Individual Basin | D159: DSCT | E159: 6+ | F159: SS | G159: 3862229 | H159: 3862259 | I159: 3862289 | J159: 3862319 | K159: 3862349 | L159: ERR | M159: ERR | N159: ERR | O159: ERR | P159: ERR
A160: SileStoneIndividual BasinDSG1 | B160: SileStone | C160: Individual Basin | D160: DSG | E160: 1 | G160: 3862206 | H160: 3862236 | I160: 3862266 | J160: 3862296 | K160: 3862326 | L160: ERR | M160: ERR | N160: ERR | O160: ERR | P160: ERR
A161: SileStoneIndividual BasinDSG2 | B161: SileStone | C161: Individual Basin | D161: DSG | E161: 2 | G161: 3862207 | H161: 3862237 | I161: 3862267 | J161: 3862297 | K161: 3862327 | L161: ERR | M161: ERR | N161: ERR | O161: ERR | P161: ERR
A162: =CONCATENATE(B162,C162,D162,E162,F162) -> SileStoneIndividual BasinDSG3 | B162: SileStone | C162: Individual Basin | D162: DSG | E162: 3 | G162: 3862208 | H162: 3862238 | I162: 3862268 | J162: 3862298 | K162: 3862328 | L162: ERR | M162: ERR | N162: ERR | O162: ERR | P162: ERR
A163: SileStoneIndividual BasinDSG4 | B163: SileStone | C163: Individual Basin | D163: DSG | E163: 4 | G163: 3862209 | H163: 3862239 | I163: 3862269 | J163: 3862299 | K163: 3862329 | L163: ERR | M163: ERR | N163: ERR | O163: ERR | P163: ERR
A164: SileStoneIndividual BasinDSG5 | B164: SileStone | C164: Individual Basin | D164: DSG | E164: 5 | G164: 3862210 | H164: 3862240 | I164: 3862270 | J164: 3862300 | K164: 3862330 | L164: ERR | M164: ERR | N164: ERR | O164: ERR | P164: ERR
A165: SileStoneIndividual BasinDSG6+ | B165: SileStone | C165: Individual Basin | D165: DSG | E165: 6+ | G165: 3862211 | H165: 3862241 | I165: 3862271 | J165: 3862301 | K165: 3862331 | L165: ERR | M165: ERR | N165: ERR | O165: ERR | P165: ERR
A166: SileStoneIndividual BasinDSOF1 | B166: SileStone | C166: Individual Basin | D166: DSOF | E166: 1 | G166: 3862218 | H166: 3862248 | I166: 3862278 | J166: 3862308 | K166: 3862338 | L166: ERR | M166: ERR | N166: ERR | O166: ERR | P166: ERR
A167: SileStoneIndividual BasinDSOF2 | B167: SileStone | C167: Individual Basin | D167: DSOF | E167: 2 | G167: 3862219 | H167: 3862249 | I167: 3862279 | J167: 3862309 | K167: 3862339 | L167: ERR | M167: ERR | N167: ERR | O167: ERR | P167: ERR
A168: SileStoneIndividual BasinDSOF3 | B168: SileStone | C168: Individual Basin | D168: DSOF | E168: 3 | G168: 3862220 | H168: 3862250 | I168: 3862280 | J168: 3862310 | K168: 3862340 | L168: ERR | M168: ERR | N168: ERR | O168: ERR | P168: ERR
A169: SileStoneIndividual BasinDSOF4 | B169: SileStone | C169: Individual Basin | D169: DSOF | E169: 4 | G169: 3862221 | H169: 3862251 | I169: 3862281 | J169: 3862311 | K169: 3862341 | L169: ERR | M169: ERR | N169: ERR | O169: ERR | P169: ERR
A170: SileStoneIndividual BasinDSOF5 | B170: SileStone | C170: Individual Basin | D170: DSOF | E170: 5 | G170: 3862222 | H170: 3862252 | I170: 3862282 | J170: 3862312 | K170: 3862342 | L170: ERR | M170: ERR | N170: ERR | O170: ERR | P170: ERR
A171: SileStoneIndividual BasinDSOF6+ | B171: SileStone | C171: Individual Basin | D171: DSOF | E171: 6+ | G171: 3862223 | H171: 3862253 | I171: 3862283 | J171: 3862313 | K171: 3862343 | L171: ERR | M171: ERR | N171: ERR | O171: ERR | P171: ERR
A172: SileStoneIndividual BasinDSUP1 | B172: SileStone | C172: Individual Basin | D172: DSUP | E172: 1 | G172: ERR | H172: ERR | I172: ERR | J172: ERR | K172: ERR | L172: ERR | M172: ERR | N172: ERR | O172: ERR | P172: ERR
A173: SileStoneIndividual BasinDSVR1 | B173: SileStone | C173: Individual Basin | D173: DSVR | E173: 1 | G173: 3862380 | H173: 3862386 | I173: 3862392 | J173: 3862398 | K173: 3862404 | L173: ERR | M173: ERR | N173: ERR | O173: ERR | P173: ERR
A174: SileStoneIndividual BasinDSVR2 | B174: SileStone | C174: Individual Basin | D174: DSVR | E174: 2 | G174: 3862381 | H174: 3862387 | I174: 3862393 | J174: 3862399 | K174: 3862405 | L174: ERR | M174: ERR | N174: ERR | O174: ERR | P174: ERR
A175: SileStoneIndividual BasinDSVR3 | B175: SileStone | C175: Individual Basin | D175: DSVR | E175: 3 | G175: 3862382 | H175: 3862388 | I175: 3862394 | J175: 3862400 | K175: 3862406 | L175: ERR | M175: ERR | N175: ERR | O175: ERR | P175: ERR
A176: SileStoneIndividual BasinDSVR4 | B176: SileStone | C176: Individual Basin | D176: DSVR | E176: 4 | G176: 3862383 | H176: 3862389 | I176: 3862395 | J176: 3862401 | K176: 3862407 | L176: ERR | M176: ERR | N176: ERR | O176: ERR | P176: ERR
A177: SileStoneIndividual BasinDSVR5 | B177: SileStone | C177: Individual Basin | D177: DSVR | E177: 5 | G177: 3862384 | H177: 3862390 | I177: 3862396 | J177: 3862402 | K177: 3862408 | L177: ERR | M177: ERR | N177: ERR | O177: ERR | P177: ERR
A178: SileStoneIndividual BasinDSVR6+ | B178: SileStone | C178: Individual Basin | D178: DSVR | E178: 6+ | G178: 3862385 | H178: 3862391 | I178: 3862397 | J178: 3862403 | K178: 3862409 | L178: ERR | M178: ERR | N178: ERR | O178: ERR | P178: ERR
A179: SileStoneIndividual BasinDSWD1 | B179: SileStone | C179: Individual Basin | D179: DSWD | E179: 1 | G179: 3862212 | H179: 3862242 | I179: 3862272 | J179: 3862302 | K179: 3862332 | L179: ERR | M179: ERR | N179: ERR | O179: ERR | P179: ERR
A180: SileStoneIndividual BasinDSWD2 | B180: SileStone | C180: Individual Basin | D180: DSWD | E180: 2 | G180: 3862213 | H180: 3862243 | I180: 3862273 | J180: 3862303 | K180: 3862333 | L180: ERR | M180: ERR | N180: ERR | O180: ERR | P180: ERR
A181: SileStoneIndividual BasinDSWD3 | B181: SileStone | C181: Individual Basin | D181: DSWD | E181: 3 | G181: 3862214 | H181: 3862244 | I181: 3862274 | J181: 3862304 | K181: 3862334 | L181: ERR | M181: ERR | N181: ERR | O181: ERR | P181: ERR
A182: SileStoneIndividual BasinDSWD4 | B182: SileStone | C182: Individual Basin | D182: DSWD | E182: 4 | G182: 3862215 | H182: 3862245 | I182: 3862275 | J182: 3862305 | K182: 3862335 | L182: ERR | M182: ERR | N182: ERR | O182: ERR | P182: ERR
A183: SileStoneIndividual BasinDSWD5 | B183: SileStone | C183: Individual Basin | D183: DSWD | E183: 5 | G183: 3862216 | H183: 3862246 | I183: 3862276 | J183: 3862306 | K183: 3862336 | L183: ERR | M183: ERR | N183: ERR | O183: ERR | P183: ERR
A184: SileStoneIndividual BasinDSWD6+ | B184: SileStone | C184: Individual Basin | D184: DSWD | E184: 6+ | G184: 3862217 | H184: 3862247 | I184: 3862277 | J184: 3862307 | K184: 3862337 | L184: ERR | M184: ERR | N184: ERR | O184: ERR | P184: ERR
A185: CaeserstoneContinuous TroughAD1 | B185: Caeserstone | C185: Continuous Trough | D185: AD | E185: 1 | G185: 3862200 | H185: 3862230 | I185: 3862260 | J185: 3862290 | K185: 3862320 | L185: ERR | M185: ERR | N185: ERR | O185: ERR | P185: ERR
A186: CaeserstoneContinuous TroughAD2 | B186: Caeserstone | C186: Continuous Trough | D186: AD | E186: 2 | G186: 3862201 | H186: 3862231 | I186: 3862261 | J186: 3862291 | K186: 3862321 | L186: ERR | M186: ERR | N186: ERR | O186: ERR | P186: ERR
A187: CaeserstoneContinuous TroughAD3 | B187: Caeserstone | C187: Continuous Trough | D187: AD | E187: 3 | G187: 3862202 | H187: 3862232 | I187: 3862262 | J187: 3862292 | K187: 3862322 | L187: ERR | M187: ERR | N187: ERR | O187: ERR | P187: ERR
A188: CaeserstoneContinuous TroughAD4 | B188: Caeserstone | C188: Continuous Trough | D188: AD | E188: 4 | G188: 3862203 | H188: 3862233 | I188: 3862263 | J188: 3862293 | K188: 3862323 | L188: ERR | M188: ERR | N188: ERR | O188: ERR | P188: ERR
A189: CaeserstoneContinuous TroughAD5 | B189: Caeserstone | C189: Continuous Trough | D189: AD | E189: 5 | G189: 3862204 | H189: 3862234 | I189: 3862264 | J189: 3862294 | K189: 3862324 | L189: ERR | M189: ERR | N189: ERR | O189: ERR | P189: ERR
A190: CaeserstoneContinuous TroughAD6+ | B190: Caeserstone | C190: Continuous Trough | D190: AD | E190: 6+ | G190: 3862205 | H190: 3862235 | I190: 3862265 | J190: 3862295 | K190: 3862325 | L190: ERR | M190: ERR | N190: ERR | O190: ERR | P190: ERR
A191: CaeserstoneContinuous TroughDSG1 | B191: Caeserstone | C191: Continuous Trough | D191: DSG | E191: 1 | G191: 3862206 | H191: 3862236 | I191: 3862266 | J191: 3862296 | K191: 3862326 | L191: ERR | M191: ERR | N191: ERR | O191: ERR | P191: ERR
A192: CaeserstoneContinuous TroughDSG2 | B192: Caeserstone | C192: Continuous Trough | D192: DSG | E192: 2 | G192: 3862207 | H192: 3862237 | I192: 3862267 | J192: 3862297 | K192: 3862327 | L192: ERR | M192: ERR | N192: ERR | O192: ERR | P192: ERR
A193: CaeserstoneContinuous TroughDSG3 | B193: Caeserstone | C193: Continuous Trough | D193: DSG | E193: 3 | G193: 3862208 | H193: 3862238 | I193: 3862268 | J193: 3862298 | K193: 3862328 | L193: ERR | M193: ERR | N193: ERR | O193: ERR | P193: ERR
A194: CaeserstoneContinuous TroughDSG4 | B194: Caeserstone | C194: Continuous Trough | D194: DSG | E194: 4 | G194: 3862209 | H194: 3862239 | I194: 3862269 | J194: 3862299 | K194: 3862329 | L194: ERR | M194: ERR | N194: ERR | O194: ERR | P194: ERR
A195: CaeserstoneContinuous TroughDSG5 | B195: Caeserstone | C195: Continuous Trough | D195: DSG | E195: 5 | G195: 3862210 | H195: 3862240 | I195: 3862270 | J195: 3862300 | K195: 3862330 | L195: ERR | M195: ERR | N195: ERR | O195: ERR | P195: ERR
A196: CaeserstoneContinuous TroughDSG6+ | B196: Caeserstone | C196: Continuous Trough | D196: DSG | E196: 6+ | G196: 3862211 | H196: 3862241 | I196: 3862271 | J196: 3862301 | K196: 3862331 | L196: ERR | M196: ERR | N196: ERR | O196: ERR | P196: ERR
A197: CaeserstoneContinuous TroughDSWD1 | B197: Caeserstone | C197: Continuous Trough | D197: DSWD | E197: 1 | G197: 3862212 | H197: 3862242 | I197: 3862272 | J197: 3862302 | K197: 3862332 | L197: ERR | M197: ERR | N197: ERR | O197: ERR | P197: ERR
A198: CaeserstoneContinuous TroughDSWD2 | B198: Caeserstone | C198: Continuous Trough | D198: DSWD | E198: 2 | G198: 3862213 | H198: 3862243 | I198: 3862273 | J198: 3862303 | K198: 3862333 | L198: ERR | M198: ERR | N198: ERR | O198: ERR | P198: ERR
A199: CaeserstoneContinuous TroughDSWD3 | B199: Caeserstone | C199: Continuous Trough | D199: DSWD | E199: 3 | G199: 3862214 | H199: 3862244 | I199: 3862274 | J199: 3862304 | K199: 3862334 | L199: ERR | M199: ERR | N199: ERR | O199: ERR | P199: ERR
A200: CaeserstoneContinuous TroughDSWD4 | B200: Caeserstone | C200: Continuous Trough | D200: DSWD | E200: 4 | G200: 3862215 | H200: 3862245 | I200: 3862275 | J200: 3862305 | K200: 3862335 | L200: ERR | M200: ERR | N200: ERR | O200: ERR | P200: ERR
... 45 more rows

Sheet Soap Price Table (hidden)
A1: Material # | B1: Description | C1: List Price | D1: Material #
A2: 3346093 | B2: ESD1500A CP SOAP DISPENSER W/SOAP | C2: 583 | D2: 3346093
A3: 3346092 | B3: ESD1501A CP FAUCET/SOAP DISPENSER COMBO | C3: 1328.8 | D3: 3346092
A4: 3346089 | B4: ESD2000A CP SOAP DISPENSER W/SOAP | C4: 598 | D4: 3346089
A5: 3346088 | B5: ESD2001A CP FAUCET/SOAP DISPENSER COMBO | C5: 1412.3 | D5: 3346088
A6: 3346052 | B6: ESD200-LT CP ELECT SOAP DISPENSER | C6: 452.5 | D6: 3346052
A7: 3346051 | B7: ESD200-P CP ELECT SOAP DISPENSER | C7: 502.7 | D7: 3346051
A8: 3346098 | B8: ESD2100A CP SOAP DISPENSER W/SOAP | C8: 526 | D8: 3346098
A9: 3346099 | B9: ESD2101A CP FAUCET/SOAP DISPENSER COMBO | C9: 962.65 | D9: 3346099
A10: 3346050 | B10: ESD250 CP BATTERY SOAP DISPENSER | C10: 502.7 | D10: 3346050
A11: 3346058 | B11: ESD300-LT CP ELECT SOAP DISPENSER | C11: 522.75 | D11: 3346058
A12: 3346057 | B12: ESD300-P CP ELECT SOAP DISPENSER | C12: 572.95 | D12: 3346057
A13: 3346059 | B13: ESD350 CP BATTERY SOAP DISPENSER | C13: 572.95 | D13: 3346059
A14: 3346080 | B14: ESD400A CP BASYS STYLE FOAMING SOAP KIT | C14: 650.5 | D14: 3346080
A15: 3346081 | B15: ESD400A PVDBN BASYS STYLE SOAP KIT | C15: 845.65 | D15: 3346081
A16: 3346083 | B16: ESD400A PVDPB BASYS STYLE SOAP KIT | C16: 845.65 | D16: 3346083
A17: 3346082 | B17: ESD400A PVDSF BASYS STYLE SOAP KIT | C17: 845.65 | D17: 3346082
A18: 3346087 | B18: ESD500A CP SOAP DISPENSER W/SOAP | C18: 611 | D18: 3346087
A19: 3346086 | B19: ESD501A CP FAUCET/SOAP DISPENSER COMBO | C19: 1362.85 | D19: 3346086
A20: 3346091 | B20: ESD600A CP SOAP DISPENSER W/SOAP | C20: 476 | D20: 3346091
A21: 3346090 | B21: ESD601A CP FAUCET/SOAP DISPENSER COMBO | C21: 1148.25 | D21: 3346090
A22: 3346095 | B22: ESD700A CP SOAP DISPENSER W/SOAP | C22: 632 | D22: 3346095
A23: 3346094 | B23: ESD701A CP FAUCET/SOAP DISPENSER COMBO | C23: 1401.05 | D23: 3346094
A24: 3346097 | B24: ESD800A CP SOAP DISPENSER W/SOAP | C24: 505 | D24: 3346097
A25: 3346096 | B25: ESD801A CP FAUCET/SOAP DISPENSER COMBO | C25: 1364.6 | D25: 3346096
A26: 7000004 | B26: SJS1650 SOAP DISP SENSOR DECK MNT LIQ | C26: 226.05 | D26: 7000004
A27: 7000015 | B27: SJS1750 BELOW DECK FOAM SOAP DISPENSER | C27: 416.4 | D27: 7000015

Sheet Faucet Price Table (hidden)
A1: Material # | B1: Description | C1: List Price | D1: Material #
A2: 3335132 | B2: EAF100-LT CP ELECT FAUCET 1.0 GPM (IQ) | C2: 771.65 | D2: 3335132
A3: 3335012 | B3: EAF100-LT CP ELECT FAUCET 1.5 GPM (IQ) | C3: 771.65 | D3: 3335012
A4: 3335166 | B4: EAF100-LT-ISM CP ELECT FCT 0.35 GPM | C4: 780.1 | D4: 3335166
A5: 3335140 | B5: EAF100-LT-ISM CP ELECT FCT 0.5 GPM (IQ) | C5: 780.1 | D5: 3335140
A6: 3335127 | B6: EAF100-LT-ISM CP ELECT FCT 1.0 GPM (IQ) | C6: 780.1 | D6: 3335127
A7: 3335013 | B7: EAF100-LT-ISM CP ELECT FCT 1.5 GPM (IQ) | C7: 780.1 | D7: 3335013
A8: 3335014 | B8: EAF100-LT-ISM-IC CP ELECT FCT | C8: 801 | D8: 3335014
A9: 3335037 | B9: EAF100-P CP ELECT FAUCET (IQ) | C9: 834.15 | D9: 3335037
A10: 3335161 | B10: EAF100-P CP ELECT FAUCET 0.35 GPM | C10: 796.7 | D10: 3335161
A11: 3335124 | B11: EAF100-P CP ELECT FAUCET 1.0 GPM (IQ) | C11: 796.7 | D11: 3335124
A12: 3335003 | B12: EAF100-P CP ELECT FAUCET 1.5 GPM (IQ) | C12: 796.7 | D12: 3335003
A13: 3335157 | B13: EAF100-P-ISM CP ELECT FCT 0.35 GPM | C13: 818.55 | D13: 3335157
